Workbook

Sheet Simulación Cliente
D4: SIMULADOR LINEA DE CAPITAL DE TRABAJO PYME
V6: Porcentaje %
D7: Línea Solicitada/Aprobada | E7: 100000 | G7: Ingresa el importe total de la línea | V7: Valor
D8: % Desembolso | E8: =E9/E7 -> 1
D9: Monto a desembolsar | E9: 100000 | G9: Ingresa el monto de tu primer desembolso
D10: Monto a Financiar (Desembolso + Prima Seguro) | E10: =IF($E$16="Natural",'Simulador Cronograma'!$C$3,'Simulador para calculos'!$C$3) -> 102639.9204 | W10: SD. Exonerado | X10: 0
D12: Fecha de Desembolso | E12: 2023-10-24 | G12: Ingresar Fecha de Desembolso y Primera fecha de pago
D13: Fecha Primer Pago | E13: 2023-11-24
Z14: =E17+AC23 -> 25
Q15: PN | R15: Tasa | W15: Columna1 | X15: Columna2 | Z15: Identificador | AA15: Plazo | AB15: TITULAR | AC15: TITULAR +CONYUGE
D16: Persona | E16: Natural | G16: Selecciona si eres Persona Natural o Persona Jurídica | Q16: Seguro Desgravamen sin devolución - Titular | R16: 0.2 | W16: SD. Exonerado | X16: 0 | Z16: =IF(Z14<13,1,0) -> 0 | AA16: 0-12 | AB16: 0.002195 | AC16: 0.00439
D17: Plazo (meses) | E17: 24 | G17: Ingresa el plazo en meses de tu préstamo | Q17: Seguro Desgravamen con devolución - Titular | R17: 0.26 | W17: Endosado | X17: 0 | Z17: =IF(AND(Z14>12,Z14<=36),1,0) -> 1 | AA17: 13-36 | AB17: 0.0014 | AC17: 0.0028
D18: Tipo de Seguro Desgravamen/Vida (%mensual) | E18: Seguro Desgravamen sin devolución - Titular | F18: =IFERROR(IF($E$16="Natural",VLOOKUP($E$18,$Q$15:$R$23,2,FALSE),VLOOKUP($E$18,$Q$26:$R$30,2,FALSE))/100,"No aplica este seguro en esta Persona Jurídica") -> 0.002 | G18: Selecciona el Seguro que deseas adquirir | Q18: Seguro Desgravamen sin devolución Titular + Cónyuge | R18: 0.4 | W18: SR Titular Premium | X18: 0.025 | Z18: =IF(AND(Z14>36,Z14<=60),1,0) -> 0 | AA18: 37-60 | AB18: 0.000975 | AC18: 0.00195
D19: Valor asegurable del bien/Seguro del bien | F19: 0.00028 | Q19: Seguro Desgravamen con devolución Titular + Cónyuge | R19: 0.52 | W19: CR Titular Premium | X19: 0.047 | Z19: =IF(AND(Z14>60,Z14<=84),1,0) -> 0 | AA19: 61-84 | AB19: 0.000575 | AC19: 0.00115
D20: TEA (Tasa efectiva anual) | E20: 0.1956 | G20: Ingresa la Tasa Efectiva Anual | Q20: Seguro Vida Titular | R20: =_xlfn.XLOOKUP(1,Z16:Z21,AB16:AB21)*100 -> 0.14 | W20: SR Titular + Cony. Premium | X20: 0.0425 | Z20: =IF(AND(Z14>84,Z14<=108),1,0) -> 0 | AA20: 85-108 | AB20: 0.00045 | AC20: 0.0009
D21: TCEA (Tasa de costo efectivo anual) | E21: 0.2273784316 | Q21: Seguro Vida Titular + Cónyuge | R21: =_xlfn.XLOOKUP(1,Z16:Z21,AC16:AC21)*100 -> 0.28 | W21: CR Titular + Cony. Premium | X21: 0.0799 | Z21: =IF(Z14>108,1,0) -> 0 | AA21: 109-más | AB21: 0.00035 | AC21: 0.0007
Q22: Exonerado | R22: 0 | W22: SR SD. Hipotecario CV/BF Titular CAMPAØA | X22: 0.0285
Q23: Endosado | R23: 0 | W23: CR SD. Hipotecario CV/BF Titular CAMPAØA | X23: 0.0485 | Z23: Identificador | AA23: Periodo Gracia | AB23: Meses | AC23: =SUMPRODUCT(Z24:Z30,AB24:AB30) -> 1
W24: SR SD. Hipotecario CV/BF Tit.+ Cony.CAMP | X24: 0.0546 | Z24: =IF($E$13-$E$12<31,1,0) -> 0 | AA24: 0-30 | AB24: 0
D25: Valor Cuota | E25: =IFERROR(IF($E$16="Natural",'Simulador Cronograma'!$C$17, 'Simulador para calculos'!$C$17),"NO APLICA") -> 5139.050855 | W25: CR SD. Hipotecario CV/BF Tit.+ Cony.CAMP | X25: 0.0928 | Z25: =IF(AND($E$13-$E$12>30,$E$13-$E$12<=60),1,0) -> 1 | AA25: 31-60 | AB25: 1
D26: =IF(E16="Natural","Prima total del seguros","Seguro de desgravamen total máximo a cobrar") -> Prima total del seguros | E26: =IFERROR(IF(E16="Natural",E10-E9,'Simulador para calculos'!F5),"NO APLICA") -> 2639.920448 | Q26: PJ | R26: Tasa | W26: SR Desgravamen TIT Sobretasa (100%) | X26: 0.057 | Z26: =IF(AND($E$13-$E$12>60,$E$13-$E$12<=90),1,0) -> 0 | AA26: 61-90 | AB26: 2
Q27: Seguro Desgravamen sin devolución - Titular | R27: 0.0909 | W27: CR Desgravamen TIT Sobretasa (100%) | X27: 0.0969 | Z27: =IF(AND($E$13-$E$12>90,$E$13-$E$12<=120),1,0) -> 0 | AA27: 91-120 | AB27: 3
Q28: Seguro Desgravamen sin devolución Titular + Cónyuge | R28: 0.1591 | W28: SR Desgravamen TIT + CONY Sobretasa (100 | X28: 0.0819
G29: =+TODAY() -> 2024-01-15 | Q29: Exonerado | R29: 0 | W29: CR Desgravamen TIT + CONY Sobretasa (100 | X29: 0.1392 | Z29: =IF(AND($E$13-$E$12>120,$E$13-$E$12<=150),1,0) -> 0 | AA29: 121-150 | AB29: 4
Q30: Endosado | R30: 0 | W30: SR Degravamen TIT Sobretasa 50% | X30: 0.0428 | Z30: =IF(AND($E$13-$E$12>150,$E$13-$E$12<=180),1,0) -> 0 | AA30: 151-180 | AB30: 5
W31: CR Degravamen TIT Sobretasa 50% | X31: 0.0728
W32: SR Degravamen TIT Sobretasa(50%)+CONY | X32: 0.0683
W33: CR Degravamen TIT Sobretasa(50%)+CONY | X33: 0.1161
W34: SR Desgravamen TIT+ CONY Sobretasa (50%) | X34: 0.0683
W35: CR Desgravamen TIT+ CONY Sobretasa (50%) | X35: 0.11
W36: SR Desgravamen TIT Sobretasa(100%)+CONY | X36: 0.0819
W37: CR Desgravamen TIT Sobretasa(100%)+CONY | X37: 0.13
D38: Importante: | W38: SR Desgravamen (TIT+CONY)Sobretasa (50%) | X38: 0.0819
D39: - Cargos mensuales que se incluyen: Seguro de desgravamen individual CARDIF BNP PARIBAS (sobre el monto del crédito adeudado a la fecha) - Valores aproximados y referenciales. - Los términos y condiciones presentados son indicativos y vigentes en la medida que no ocurra cambios sustantivos en el mercado que afecten las condiciones existentes a la fecha de la presente propuesta. - Crédito sujeto a evaluación crediticia. | W39: CR Desgravamen (TIT+CONY)Sobretasa (50%) | X39: 0.1392
W40: SR Desgravamen (TIT+CONY ) Sobretasa (10 | X40: 0.1092
W41: CR Desgravamen (TIT+CONY ) Sobretasa (10 | X41: 0.1856
W42: SR SD Titul.Sobretasa100%+Cony.Sobretasa | X42: 0.0956
W43: CR SD Titul.Sobretasa100%+Cony.Sobretasa | X43: 0.1625
W44: SR SD Titul.Sobretasa50%+Cony.Sobretasa1 | X44: 0.0956
V45: Colaborador | W45: CR SD Titul.Sobretasa50%+Cony.Sobretasa1 | X45: 0.1625
V46: Colaborador | W46: CR Desgravamen TIT Sobretasa(100%)+CONY | X46: 0.13
V47: Colaborador | W47: CR Desgravamen (TIT+CONY)Sobretasa (50%) | X47: 0.1392
W48: CR SD. HIPOT. WP(Tit + Cony)Sobretasa (N | X48: 0.1392
W49: CR Desgravamen TIT + CONY Sobretasa (100 | X49: 0.1392
W50: CR SD Titul.Sobretasa50%+Cony.Sobretasa1 | X50: 0.1625
W51: CR SD Titul.Sobretasa100%+Cony.Sobretasa | X51: 0.1625
V52: CV | W52: CR Desgravamen (TIT+CONY ) Sobretasa (10 | X52: 0.18
V53: CV | W53: Seguro del Bien Hipotecario | X53: 0.028
V54: CV | W54: Seguro del Bien Lib.Disp. Garantía Hipotecaria | X54: 0.028
V55: LDGH | W55: Seguro del Bien Exonerado | X55: 0

Sheet datos (hidden)
A1: Tarifa | B1: Tipo de Seguro | C1: Nombre Seguro | D1: TASA | F1: Nombre Seguro | G1: TASA
A2: Exonerado | B2: Exonerado | C2: SD. Exonerado | D2: 0 | F2: SD. Exonerado | G2: 0
A3: Titular | B3: Sin Retorno | C3: SR Titular Premium | D3: 0.02 | F3: Endosado | G3: 0
A4: Titular | B4: Sin Retorno | C4: SR SD. Hipotecario CV/BF Titular CAMPAØA | D4: 0.0285 | F4: SR Titular Premium | G4: 0.025
A5: Titular | B5: Sin Retorno | C5: SR Degravamen TIT Sobretasa 50% | D5: 0.0428 | F5: CR Titular Premium | G5: 0.047
A6: Titular | B6: Sin Retorno | C6: SR SD. HIPOT. WP Tit Sobretasa (Nvo) | D6: 0.0428 | F6: SR Titular + Cony. Premium | G6: 0.0425
A7: Titular | B7: Sin Retorno | C7: SR Desgravamen TIT Sobretasa (100%) | D7: 0.057 | F7: CR Titular + Cony. Premium | G7: 0.0799
A8: Titular + Cónyuge | B8: Sin Retorno | C8: SR Titular + Cony. Premium | D8: 0.047 | F8: SR SD. Hipotecario CV/BF Titular CAMPAØA | G8: 0.0285
A9: Titular + Cónyuge | B9: Sin Retorno | C9: SR SD. HIPOT. WP Tit Sobretasa + Cony (N | D9: 0.05 | F9: CR SD. Hipotecario CV/BF Titular CAMPAØA | G9: 0.0485
A10: Titular + Cónyuge | B10: Sin Retorno | C10: SR SD. Hipotecario CV/BF Tit.+ Cony.CAMP | D10: 0.0546 | F10: SR SD. Hipotecario CV/BF Tit.+ Cony.CAMP | G10: 0.0546
A11: Titular + Cónyuge | B11: Sin Retorno | C11: SR Desgravamen TIT+ CONY Sobretasa (50%) | D11: 0.06 | F11: CR SD. Hipotecario CV/BF Tit.+ Cony.CAMP | G11: 0.0928
A12: Titular + Cónyuge | B12: Sin Retorno | C12: SR Degravamen TIT Sobretasa(50%)+CONY | D12: 0.0683 | F12: SR Desgravamen TIT Sobretasa (100%) | G12: 0.057
A13: Titular + Cónyuge | B13: Sin Retorno | C13: SR SD. HIPOT. WP Tit + Cony Sobretasa (N | D13: 0.0683 | F13: CR Desgravamen TIT Sobretasa (100%) | G13: 0.0969
A14: Titular + Cónyuge | B14: Sin Retorno | C14: SR Desgravamen TIT Sobretasa(100%)+CONY | D14: 0.08 | F14: SR Desgravamen TIT + CONY Sobretasa (100 | G14: 0.0819
A15: Titular + Cónyuge | B15: Sin Retorno | C15: SR Desgravamen (TIT+CONY)Sobretasa (50%) | D15: 0.0819 | F15: CR Desgravamen TIT + CONY Sobretasa (100 | G15: 0.1392
A16: Titular + Cónyuge | B16: Sin Retorno | C16: SR SD. HIPOT. WP(Tit + Cony)Sobretasa (N | D16: 0.0819 | F16: SR Degravamen TIT Sobretasa 50% | G16: 0.0428
A17: Titular + Cónyuge | B17: Sin Retorno | C17: SR Desgravamen TIT + CONY Sobretasa (100 | D17: 0.0819 | F17: CR Degravamen TIT Sobretasa 50% | G17: 0.0728
A18: Titular + Cónyuge | B18: Sin Retorno | C18: SR SD Titul.Sobretasa50%+Cony.Sobretasa1 | D18: 0.0956 | F18: SR Degravamen TIT Sobretasa(50%)+CONY | G18: 0.0683
A19: Titular + Cónyuge | B19: Sin Retorno | C19: SR SD Titul.Sobretasa100%+Cony.Sobretasa | D19: 0.0956 | F19: CR Degravamen TIT Sobretasa(50%)+CONY | G19: 0.1161
A20: Titular + Cónyuge | B20: Sin Retorno | C20: SR Desgravamen (TIT+CONY ) Sobretasa (10 | D20: 0.1 | F20: SR Desgravamen TIT+ CONY Sobretasa (50%) | G20: 0.0683
A21: Titular | B21: Con Retorno | C21: CR Titular Premium | D21: 0.04 | F21: CR Desgravamen TIT+ CONY Sobretasa (50%) | G21: 0.11
A22: Titular | B22: Con Retorno | C22: CR SD. Hipotecario CV/BF Titular CAMPAØA | D22: 0.0485 | F22: SR Desgravamen TIT Sobretasa(100%)+CONY | G22: 0.0819
A23: Titular | B23: Con Retorno | C23: CR Degravamen TIT Sobretasa 50% | D23: 0.0728 | F23: CR Desgravamen TIT Sobretasa(100%)+CONY | G23: 0.13
A24: Titular | B24: Con Retorno | C24: CR SD. HIPOT. WP Tit Sobretasa (Nvo) | D24: 0.0728 | F24: SR Desgravamen (TIT+CONY)Sobretasa (50%) | G24: 0.0819
A25: Titular | B25: Con Retorno | C25: CR Desgravamen TIT Sobretasa (100%) | D25: 0.0969 | F25: CR Desgravamen (TIT+CONY)Sobretasa (50%) | G25: 0.1392
A26: Titular + Cónyuge | B26: Con Retorno | C26: CR Titular + Cony. Premium | D26: 0.0799 | F26: SR Desgravamen (TIT+CONY ) Sobretasa (10 | G26: 0.1092
A27: Titular + Cónyuge | B27: Con Retorno | C27: CR SD. Hipotecario CV/BF Tit.+ Cony.CAMP | D27: 0.09 | F27: CR Desgravamen (TIT+CONY ) Sobretasa (10 | G27: 0.1856
A28: Titular + Cónyuge | B28: Con Retorno | C28: CR SD. HIPOT. WP Tit Sobretasa + Cony (N | D28: 0.09 | F28: SR SD Titul.Sobretasa100%+Cony.Sobretasa | G28: 0.0956
A29: Titular + Cónyuge | B29: Con Retorno | C29: CR Desgravamen TIT+ CONY Sobretasa (50%) | D29: 0.11 | F29: CR SD Titul.Sobretasa100%+Cony.Sobretasa | G29: 0.1625
A30: Titular + Cónyuge | B30: Con Retorno | C30: CR Degravamen TIT Sobretasa(50%)+CONY | D30: 0.1161 | F30: SR SD Titul.Sobretasa50%+Cony.Sobretasa1 | G30: 0.0956
A31: Titular + Cónyuge | B31: Con Retorno | C31: CR SD. HIPOT. WP Tit + Cony Sobretasa (N | D31: 0.1161 | F31: CR SD Titul.Sobretasa50%+Cony.Sobretasa1 | G31: 0.1625
A32: Titular + Cónyuge | B32: Con Retorno | C32: CR Desgravamen TIT Sobretasa(100%)+CONY | D32: 0.13
A33: Titular + Cónyuge | B33: Con Retorno | C33: CR Desgravamen (TIT+CONY)Sobretasa (50%) | D33: 0.1392
A34: Titular + Cónyuge | B34: Con Retorno | C34: CR SD. HIPOT. WP(Tit + Cony)Sobretasa (N | D34: 0.1392
A35: Titular + Cónyuge | B35: Con Retorno | C35: CR Desgravamen TIT + CONY Sobretasa (100 | D35: 0.1392
A36: Titular + Cónyuge | B36: Con Retorno | C36: CR SD Titul.Sobretasa50%+Cony.Sobretasa1 | D36: 0.1625
A37: Titular + Cónyuge | B37: Con Retorno | C37: CR SD Titul.Sobretasa100%+Cony.Sobretasa | D37: 0.1625
A38: Titular + Cónyuge | B38: Con Retorno | C38: CR Desgravamen (TIT+CONY ) Sobretasa (10 | D38: 0.18

Sheet Simulador Cronograma (hidden)
B1: simulacion con Cuota simple | AB1: simulacion con CD | AS1: simulacion a 180 | BJ1: simulacion a 180 con CD | CA1: simulacion a 240 | CR1: simulacion a 240 con CD
B3: MAF | C3: ='Simulación Cliente'!E9*(1+C12*I12*'Simulación Cliente'!$Z$14)+'Simulador para calculos'!$F$11+'Simulador para calculos'!I8 -> 102639.9204 | AB3: MAF | AC3: =+'Simulación Cliente'!$E$10 -> 102639.9204 | AS3: MAF | AT3: =+'Simulación Cliente'!$E$10 -> 102639.9204 | BJ3: MAF | BK3: =+'Simulación Cliente'!$E$10 -> 102639.9204 | CA3: MAF | CB3: =+'Simulación Cliente'!$E$10 -> 102639.9204 | CR3: MAF | CS3: =+'Simulación Cliente'!$E$10 -> 102639.9204
B4: Monto del Bien | C4: =+'Simulación Cliente'!$E$19 -> 0 | D4: =C4*'Simulador para calculos'!J12 -> 0 | AB4: Monto del Bien | AC4: =+'Simulación Cliente'!$E$7 -> 100000 | AS4: Monto del Bien | AT4: =+'Simulación Cliente'!$E$7 -> 100000 | BJ4: Monto del Bien | BK4: =+'Simulación Cliente'!$E$7 -> 100000 | CA4: Monto del Bien | CB4: =+'Simulación Cliente'!$E$7 -> 100000 | CR4: Monto del Bien | CS4: =+'Simulación Cliente'!$E$7 -> 100000
B5: Moneda | C5: Soles | AB5: Moneda | AC5: Soles | AS5: Moneda | AT5: Soles | BJ5: Moneda | BK5: Soles | CA5: Moneda | CB5: Soles | CR5: Moneda | CS5: Soles
B6: Plazo | C6: =+'Simulación Cliente'!$E$17 -> 24 | AB6: Plazo | AC6: =+'Simulación Cliente'!$E$17 -> 24 | AS6: Plazo | AT6: 180 | BJ6: Plazo | BK6: 180 | CA6: Plazo | CB6: 240 | CR6: Plazo | CS6: 240
B7: Fecha de Desembolso | C7: ='Simulación Cliente'!E12 -> 2023-10-24 | AB7: Fecha de Desembolso | AC7: 2022-09-01 | AS7: Fecha de Desembolso | AT7: 2022-09-01 | BJ7: Fecha de Desembolso | BK7: 2022-09-01 | CA7: Fecha de Desembolso | CB7: 2022-09-01 | CR7: Fecha de Desembolso | CS7: 2022-09-01
B8: Fecha de 1er Pago | C8: ='Simulación Cliente'!E13 -> 2023-11-24 | AB8: Fecha de 1er Pago | AC8: 2022-10-01 | AS8: Fecha de 1er Pago | AT8: 2022-10-01 | BJ8: Fecha de 1er Pago | BK8: 2022-10-01 | CA8: Fecha de 1er Pago | CB8: 2022-10-01 | CR8: Fecha de 1er Pago | CS8: 2022-10-01
B9: Cuota Julio | C9: 1 | AB9: Cuota Julio | AC9: 2 | AS9: Cuota Julio | AT9: 1 | BJ9: Cuota Julio | BK9: 2 | CA9: Cuota Julio | CB9: 1 | CR9: Cuota Julio | CS9: 2
B10: Cuota Diciembre | C10: 1 | AB10: Cuota Diciembre | AC10: 2 | AS10: Cuota Diciembre | AT10: 1 | BJ10: Cuota Diciembre | BK10: 2 | CA10: Cuota Diciembre | CB10: 1 | CR10: Cuota Diciembre | CS10: 2
B11: TEA | C11: =+'Simulación Cliente'!$E$20 -> 0.1956 | H11: seg desg/exon/end | I11: seg vida | J11: Natural | AB11: TEA | AC11: =+'Simulación Cliente'!$E$20 -> 0.1956 | AS11: TEA | AT11: =+'Simulación Cliente'!$E$20 -> 0.1956 | BJ11: TEA | BK11: =+'Simulación Cliente'!$E$20 -> 0.1956 | CA11: TEA | CB11: =+'Simulación Cliente'!$E$20 -> 0.1956 | CR11: TEA | CS11: =+'Simulación Cliente'!$E$20 -> 0.1956
B12: Seguro de Desgravamen/Vida | C12: =+'Simulación Cliente'!$F$18 -> 0.002 | H12: =NOT(OR('Simulación Cliente'!$E$18='Simulación Cliente'!$Q$20,'Simulación Cliente'!$E$18='Simulación Cliente'!$Q$21)) -> TRUE | I12: =OR('Simulación Cliente'!$E$18='Simulación Cliente'!$Q$20,'Simulación Cliente'!$E$18='Simulación Cliente'!$Q$21) -> FALSE | J12: =('Simulación Cliente'!$E$16="Natural") -> TRUE | AB12: Seguro de Desgravamen | AC12: =+'Simulación Cliente'!$F$18 -> 0.002 | AS12: Seguro de Desgravamen | AT12: =+'Simulación Cliente'!$F$18 -> 0.002 | BJ12: Seguro de Desgravamen | BK12: =+'Simulación Cliente'!$F$18 -> 0.002 | CA12: Seguro de Desgravamen | CB12: =+'Simulación Cliente'!$F$18 -> 0.002 | CR12: Seguro de Desgravamen | CS12: =+'Simulación Cliente'!$F$18 -> 0.002
B13: TEA Total | C13: =(1+(((1+C11)^(30/360)-1)+C12*H12+C16+C14))^12-1 -> 0.2282294004 | AB13: TCEA | AC13: =(1+(((1+AC11)^(30/360)-1)+AC12+AC16))^12-1 -> 0.2241787808 | AS13: TCEA | AT13: =(1+(((1+AT11)^(30/360)-1)+AT12+AT16))^12-1 -> 0.2241787808 | BJ13: TCEA | BK13: =(1+(((1+BK11)^(30/360)-1)+BK12+BK16))^12-1 -> 0.2241787808 | CA13: TCEA | CB13: =(1+(((1+CB11)^(30/360)-1)+CB12+CB16))^12-1 -> 0.2241787808 | CR13: TCEA | CS13: =(1+(((1+CS11)^(30/360)-1)+CS12+CS16))^12-1 -> 0.2241787808
B14: Seguro del Bien | C14: =+'Simulación Cliente'!$F$19 -> 0.00028 | AB14: Seguro del Bien | AC14: =+'Simulación Cliente'!$F$19 -> 0.00028 | AS14: Seguro del Bien | AT14: =+'Simulación Cliente'!$F$19 -> 0.00028 | BJ14: Seguro del Bien | BK14: =+'Simulación Cliente'!$F$19 -> 0.00028 | CA14: Seguro del Bien | CB14: =+'Simulación Cliente'!$F$19 -> 0.00028 | CR14: Seguro del Bien | CS14: =+'Simulación Cliente'!$F$19 -> 0.00028
B15: Portes | U15: Seg desg | V15: ='Simulador para calculos'!$F$6*'Simulador Cronograma'!J12 -> 2639.920448 | AB15: Portes | AC15: =+'Simulación Cliente'!$E$19 -> 0 | AS15: Portes | AT15: =+'Simulación Cliente'!$E$19 -> 0 | BJ15: Portes | BK15: =+'Simulación Cliente'!$E$19 -> 0 | CA15: Portes | CB15: =+'Simulación Cliente'!$E$19 -> 0 | CR15: Portes | CS15: =+'Simulación Cliente'!$E$19 -> 0
B16: % Portes | C16: =C15/C3 -> 0 | U16: Seg vida | V16: ='Simulación Cliente'!$E$9*I12*C12*'Simulación Cliente'!$E$17 -> 0 | AB16: % Portes | AC16: =AC15/AC3 -> 0 | AS16: % Portes | AT16: =AT15/AT3 -> 0 | BJ16: % Portes | BK16: =BK15/BK3 -> 0 | CA16: % Portes | CB16: =CB15/CB3 -> 0 | CR16: % Portes | CS16: =CS15/CS3 -> 0
B17: VALOR CUOTA | C17: =(C3+(C14*D4)*Q20)/P20 -> 5139.050855 | U17: Seg bien | V17: ='Simulador para calculos'!I8 -> 0 | AB17: VALOR CUOTA | AC17: =(AC3+(AC14*AC4)*AO20)/AN20 -> 4530.503191 | AS17: VALOR CUOTA | AT17: =(AT3+(AT14*AT4)*BF20)/BE20 -> 1883.495948 | BJ17: VALOR CUOTA | BK17: =(BK3+(BK14*BK4)*BW20)/BV20 -> 1614.38013 | CA17: VALOR CUOTA | CB17: =(CB3+(CB14*CB4)*CN20)/CM20 -> 1827.769804 | CR17: VALOR CUOTA | CS17: =(CS3+(CS14*CS4)*DE20)/DD20 -> 1566.616221
V19: ='Simulación Cliente'!$E$10-V15-V16-V17-'Simulador Cronograma'!$V$20 -> 0
P20: =SUM(P22:P381) -> 19.97254422 | Q20: =SUM(Q22:Q381) -> 19.97254422 | V20: =SUM(V22:V381) -> 100000 | AN20: =SUM(AN22:AN381) -> 22.77595293 | AO20: =SUM(AO22:AO381) -> 19.52167719 | BE20: =SUM(BE22:BE381) -> 55.31670418 | BF20: =SUM(BF22:BF381) -> 55.31670418 | BV20: =SUM(BV22:BV381) -> 64.53795252 | BW20: =SUM(BW22:BW381) -> 55.31670418 | CM20: =SUM(CM22:CM381) -> 57.02947132 | CN20: =SUM(CN22:CN381) -> 57.02947132 | DD20: =SUM(DD22:DD381) -> 66.53623538 | DE20: =SUM(DE22:DE381) -> 57.02947132
B21: N° Cuota | C21: Fecha de pago Simul | D21: Día | E21: Fecha Pago | F21: Días | G21: Dias Acumulados | H21: Saldo Inicial | I21: Amortización | J21: Interés | K21: Seguro Desgravamen | L21: Seguro del Bien | M21: Portes | N21: VALOR CUOTA | O21: Saldo Final | P21: Factor Cronograma | Q21: Factor Cronograma 2 | S21: Vector i,1 Cuota | T21: Vector i,2 Días Acum | U21: Vector i,3 Factor | V21: Vector i,4 Calculo VA | AB21: N° Cuota | AC21: Fecha de pago | AD21: Días | AE21: Dias Acumulados | AF21: Saldo Inicial | AG21: Amortización | AH21: Interés | AI21: Seguro Desgravamen | AJ21: Seguro del Bien | AK21: Portes | AL21: VALOR CUOTA | AM21: Saldo Final | AN21: Factor Cronograma | AO21: Factor Cronograma 2 | AS21: N° Cuota | AT21: Fecha de pago | AU21: Días | AV21: Dias Acumulados | AW21: Saldo Inicial | AX21: Amortización | AY21: Interés | AZ21: Seguro Desgravamen | BA21: Seguro del Bien | BB21: Portes | BC21: VALOR CUOTA | BD21: Saldo Final | BE21: Factor Cronograma | BF21: Factor Cronograma 2 | BJ21: N° Cuota | BK21: Fecha de pago | BL21: Días | BM21: Dias Acumulados | BN21: Saldo Inicial | BO21: Amortización | BP21: Interés | BQ21: Seguro Desgravamen | BR21: Seguro del Bien | BS21: Portes | BT21: VALOR CUOTA | BU21: Saldo Final | BV21: Factor Cronograma | BW21: Factor Cronograma 2 | CA21: N° Cuota | CB21: Fecha de pago | CC21: Días | CD21: Dias Acumulados | CE21: Saldo Inicial | CF21: Amortización | CG21: Interés | CH21: Seguro Desgravamen | CI21: Seguro del Bien | CJ21: Portes | CK21: VALOR CUOTA | CL21: Saldo Final | CM21: Factor Cronograma | CN21: Factor Cronograma 2 | CR21: N° Cuota | CS21: Fecha de pago | CT21: Días | CU21: Dias Acumulados | CV21: Saldo Inicial | CW21: Amortización | CX21: Interés | CY21: Seguro Desgravamen | CZ21: Seguro del Bien | DA21: Portes | DB21: VALOR CUOTA | DC21: Saldo Final | DD21: Factor Cronograma | DE21: Factor Cronograma 2
B22: 1 | C22: =C8 -> 2023-11-24 | D22: =IF(B22<=$C$6,WEEKDAY(C22,2),"") -> 5 | E22: =C8 -> 2023-11-24 | F22: =E22-C7 -> 31 | G22: =F22 -> 31 | H22: =C3 -> 102639.9204 | I22: =IF(B22>C$6,"",N22-M22-L22-K22-J22) -> 3547.87268 | J22: =IF(B22>C$6,"",((1+C$11)^(F22/360)-1)*H22) -> 1591.178175 | K22: =IF(B22>C$6,"",0) -> 0 | L22: =IF(B22>C$6,"",D$4*C$14) -> 0 | M22: =IF(B22>C$6,"",C$15) -> 0 | N22: =IF(B22>C$6,"",IF(B22=C$6,H22+J22+K22+L22+M22,IF(AND(C$9=2,MONTH(C22)=7),2*C$17,IF(AND(C$10=2,MONTH(C22)=12),2*C$17,C$17)))) -> 5139.050855 | O22: =IF(B22>C$6,"",H22-I22) -> 99092.04777 | P22: =IFERROR(IF(AND(MONTH(C22)=7,C$9=2),2/(1+C$11)^(G22/360),IF(AND(MONTH(C22)=12,C$10=2),2/(1+C$11)^(G22/360),1/(1+C$11)^(G22/360))),"") -> 0.9847341322 | Q22: =IFERROR(1/(1+C$11)^(G22/360),"") -> 0.9847341322 | S22: =IFERROR((I22+J22+K22+L22+M22)*$J$12+('Simulador para calculos'!I22+'Simulador para calculos'!J22+'Simulador para calculos'!K22+'Simulador para calculos'!L22+'Simulador para calculos'!M22)*NOT($J$12),"") -> 5139.050855 | T22: =G22 -> 31 | U22: =IFERROR((1+'Simulación Cliente'!$E$21)^(T22/360),"") -> 1.017799039 | V22: =IFERROR(ROUND(S22/U22,2),"") -> 5049.18 | AB22: 1 | AC22: =AC8 -> 2022-10-01 | AD22: =AC22-AC7 -> 30 | AE22: =AD22 -> 30 | AF22: =AC3 -> 102639.9204 | AG22: =IF(AB22>AC$6,"",AL22-AK22-AJ22-AI22-AH22) -> 2757.756491 | AH22: =IF(AB22>AC$6,"",((1+AC$11)^(AD22/360)-1)*AF22) -> 1539.466859 | AI22: =IF(AB22>AC$6,"",((1+AC$12)^(AD22/30)-1)*AF22) -> 205.2798409 | AJ22: =IF(AB22>AC$6,"",AC$4*AC$14) -> 28 | AK22: =IF(AB22>AC$6,"",AC$15) -> 0 | AL22: =IF(AB22>AC$6,"",IF(AB22=AC$6,AF22+AH22+AI22+AJ22+AK22,IF(AND(AC$9=2,MONTH(AC22)=7),2*AC$17,IF(AND(AC$10=2,MONTH(AC22)=12),2*AC$17,AC$17)))) -> 4530.503191 | AM22: =IF(AB22>AC$6,"",AF22-AG22) -> 99882.16396 | AN22: =IFERROR(IF(AND(MONTH(AC22)=7,AC$9=2),2/(1+AC$13)^(AE22/360),IF(AND(MONTH(AC22)=12,AC$10=2),2/(1+AC$13)^(AE22/360),1/(1+AC$13)^(AE22/360))),"") -> 0.983285412 | AO22: =IFERROR(1/(1+AC$13)^(AE22/360),"") -> 0.983285412 | AS22: 1 | AT22: =AT8 -> 2022-10-01 | AU22: =AT22-AT7 -> 30 | AV22: =AU22 -> 30 | AW22: =AT3 -> 102639.9204 | AX22: =IF(AS22>AT$6,"",BC22-BB22-BA22-AZ22-AY22) -> 110.7492478 | AY22: =IF(AS22>AT$6,"",((1+AT$11)^(AU22/360)-1)*AW22) -> 1539.466859 | AZ22: =IF(AS22>AT$6,"",((1+AT$12)^(AU22/30)-1)*AW22) -> 205.2798409 | BA22: =IF(AS22>AT$6,"",AT$4*AT$14) -> 28 | BB22: =IF(AS22>AT$6,"",AT$15) -> 0 | BC22: =IF(AS22>AT$6,"",IF(AS22=AT$6,AW22+AY22+AZ22+BA22+BB22,IF(AND(AT$9=2,MONTH(AT22)=7),2*AT$17,IF(AND(AT$10=2,MONTH(AT22)=12),2*AT$17,AT$17)))) -> 1883.495948 | BD22: =IF(AS22>AT$6,"",AW22-AX22) -> 102529.1712 | BE22: =IFERROR(IF(AND(MONTH(AT22)=7,AT$9=2),2/(1+AT$13)^(AV22/360),IF(AND(MONTH(AT22)=12,AT$10=2),2/(1+AT$13)^(AV22/360),1/(1+AT$13)^(AV22/360))),"") -> 0.983285412 | BF22: =IFERROR(1/(1+AT$13)^(AV22/360),"") -> 0.983285412 | BJ22: 1 | BK22: =BK8 -> 2022-10-01 | BL22: =BK22-BK7 -> 30 | BM22: =BL22 -> 30 | BN22: =BK3 -> 102639.9204 | BO22: =IF(BJ22>BK$6,"",BT22-BS22-BR22-BQ22-BP22) -> -158.3665703 | BP22: =IF(BJ22>BK$6,"",((1+BK$11)^(BL22/360)-1)*BN22) -> 1539.466859 | BQ22: =IF(BJ22>BK$6,"",((1+BK$12)^(BL22/30)-1)*BN22) -> 205.2798409 | BR22: =IF(BJ22>BK$6,"",BK$4*BK$14) -> 28 | BS22: =IF(BJ22>BK$6,"",BK$15) -> 0 | BT22: =IF(BJ22>BK$6,"",IF(BJ22=BK$6,BN22+BP22+BQ22+BR22+BS22,IF(AND(BK$9=2,MONTH(BK22)=7),2*BK$17,IF(AND(BK$10=2,MONTH(BK22)=12),2*BK$17,BK$17)))) -> 1614.38013 | BU22: =IF(BJ22>BK$6,"",BN22-BO22) -> 102798.287 | BV22: =IFERROR(IF(AND(MONTH(BK22)=7,BK$9=2),2/(1+BK$13)^(BM22/360),IF(AND(MONTH(BK22)=12,BK$10=2),2/(1+BK$13)^(BM22/360),1/(1+BK$13)^(BM22/360))),"") -> 0.983285412 | BW22: =IFERROR(1/(1+BK$13)^(BM22/360),"") -> 0.983285412 | CA22: 1 | CB22: =CB8 -> 2022-10-01 | CC22: =CB22-CB7 -> 30 | CD22: =CC22 -> 30 | CE22: =CB3 -> 102639.9204 | CF22: =IF(CA22>CB$6,"",CK22-CJ22-CI22-CH22-CG22) -> 55.02310438 | CG22: =IF(CA22>CB$6,"",((1+CB$11)^(CC22/360)-1)*CE22) -> 1539.466859 | CH22: =IF(CA22>CB$6,"",((1+CB$12)^(CC22/30)-1)*CE22) -> 205.2798409 | CI22: =IF(CA22>CB$6,"",CB$4*CB$14) -> 28 | CJ22: =IF(CA22>CB$6,"",CB$15) -> 0 | CK22: =IF(CA22>CB$6,"",IF(CA22=CB$6,CE22+CG22+CH22+CI22+CJ22,IF(AND(CB$9=2,MONTH(CB22)=7),2*CB$17,IF(AND(CB$10=2,MONTH(CB22)=12),2*CB$17,CB$17)))) -> 1827.769804 | CL22: =IF(CA22>CB$6,"",CE22-CF22) -> 102584.8973 | CM22: =IFERROR(IF(AND(MONTH(CB22)=7,CB$9=2),2/(1+CB$13)^(CD22/360),IF(AND(MONTH(CB22)=12,CB$10=2),2/(1+CB$13)^(CD22/360),1/(1+CB$13)^(CD22/360))),"") -> 0.983285412 | CN22: =IFERROR(1/(1+CB$13)^(CD22/360),"") -> 0.983285412 | CR22: 1 | CS22: =CS8 -> 2022-10-01 | CT22: =CS22-CS7 -> 30 | CU22: =CT22 -> 30 | CV22: =CS3 -> 102639.9204 | CW22: =IF(CR22>CS$6,"",DB22-DA22-CZ22-CY22-CX22) -> -206.1304789 | CX22: =IF(CR22>CS$6,"",((1+CS$11)^(CT22/360)-1)*CV22) -> 1539.466859 | CY22: =IF(CR22>CS$6,"",((1+CS$12)^(CT22/30)-1)*CV22) -> 205.2798409 | CZ22: =IF(CR22>CS$6,"",CS$4*CS$14) -> 28 | DA22: =IF(CR22>CS$6,"",CS$15) -> 0 | DB22: =IF(CR22>CS$6,"",IF(CR22=CS$6,CV22+CX22+CY22+CZ22+DA22,IF(AND(CS$9=2,MONTH(CS22)=7),2*CS$17,IF(AND(CS$10=2,MONTH(CS22)=12),2*CS$17,CS$17)))) -> 1566.616221 | DC22: =IF(CR22>CS$6,"",CV22-CW22) -> 102846.0509 | DD22: =IFERROR(IF(AND(MONTH(CS22)=7,CS$9=2),2/(1+CS$13)^(CU22/360),IF(AND(MONTH(CS22)=12,CS$10=2),2/(1+CS$13)^(CU22/360),1/(1+CS$13)^(CU22/360))),"") -> 0.983285412 | DE22: =IFERROR(1/(1+CS$13)^(CU22/360),"") -> 0.983285412
B23: 2 | C23: =IF(B23>C$6,"",EDATE(C$22,B22)) -> 2023-12-24 | D23: =IF(B23<=$C$6,WEEKDAY(C23,2),"") -> 7 | E23: =IF(D23=7,C23+1,C23) -> 2023-12-25 | F23: =IF(B23>C$6,"",E23-E22) -> 31 | G23: =IFERROR(F23+G22,"") -> 62 | H23: =IF(B23>C$6,"",O22) -> 99092.04777 | I23: =IF(B23>C$6,"",N23-M23-L23-K23-J23) -> 3602.873673 | J23: =IF(B23>C$6,"",((1+C$11)^(F23/360)-1)*H23) -> 1536.177182 | K23: =IF(B23>C$6,"",0) -> 0 | L23: =IF(B23>C$6,"",D$4*C$14) -> 0 | M23: 0 | N23: =IF(B23>C$6,"",IF(B23=C$6,H23+J23+K23+L23+M23,IF(AND(C$9=2,MONTH(C23)=7),2*C$17,IF(AND(C$10=2,MONTH(C23)=12),2*C$17,C$17)))) -> 5139.050855 | O23: =IF(B23>C$6,"",H23-I23) -> 95489.17409 | P23: 0.9697013111 | Q23: 0.9697013111 | S23: =IFERROR((I23+J23+K23+L23+M23)*$J$12+('Simulador para calculos'!I23+'Simulador para calculos'!J23+'Simulador para calculos'!K23+'Simulador para calculos'!L23+'Simulador para calculos'!M23)*NOT($J$12),"") -> 5139.050855 | T23: 62 | U23: =IFERROR((1+'Simulación Cliente'!$E$21)^(T23/360),"") -> 1.035914883 | V23: =IFERROR(ROUND(S23/U23,2),"") -> 4960.88 | AB23: 2 | AC23: =IF(AB23>AC$6,"",EDATE(AC$22,AB22)) -> 2022-11-01 | AD23: =IF(AB23>AC$6,"",AC23-AC22) -> 31 | AE23: =IFERROR(AD23+AE22,"") -> 61 | AF23: =IF(AB23>AC$6,"",AM22) -> 99882.16396 | AG23: 2747.647196 | AH23: =IF(AB23>AC$6,"",((1+AC$11)^(AD23/360)-1)*AF23) -> 1548.425979 | AI23: 206.4300152 | AJ23: 28 | AK23: 0 | AL23: 4530.503191 | AM23: 97134.51676 | AN23: =IFERROR(IF(AND(MONTH(AC23)=7,AC$9=2),2/(1+AC$13)^(AE23/360),IF(AND(MONTH(AC23)=12,AC$10=2),2/(1+AC$13)^(AE23/360),1/(1+AC$13)^(AE23/360))),"") -> 0.966307118 | AO23: =IFERROR(1/(1+AC$13)^(AE23/360),"") -> 0.966307118 | AS23: 2 | AT23: =IF(AS23>AT$6,"",EDATE(AT$22,AS22)) -> 2022-11-01 | AU23: =IF(AS23>AT$6,"",AT23-AT22) -> 31 | AV23: =IFERROR(AU23+AV22,"") -> 61 | AW23: =IF(AS23>AT$6,"",BD22) -> 102529.1712 | AX23: 54.13398723 | AY23: =IF(AS23>AT$6,"",((1+AT$11)^(AU23/360)-1)*AW23) -> 1589.461282 | AZ23: 211.9006791 | BA23: 28 | BB23: 0 | BC23: 1883.495948 | BD23: 102475.0372 | BE23: =IFERROR(IF(AND(MONTH(AT23)=7,AT$9=2),2/(1+AT$13)^(AV23/360),IF(AND(MONTH(AT23)=12,AT$10=2),2/(1+AT$13)^(AV23/360),1/(1+AT$13)^(AV23/360))),"") -> 0.966307118 | BF23: =IFERROR(1/(1+AT$13)^(AV23/360),"") -> 0.966307118 | BJ23: 2 | BK23: =IF(BJ23>BK$6,"",EDATE(BK$22,BJ22)) -> 2022-11-01 | BL23: =IF(BJ23>BK$6,"",BK23-BK22) -> 31 | BM23: =IFERROR(BL23+BM22,"") -> 61 | BN23: =IF(BJ23>BK$6,"",BU22) -> 102798.287 | BO23: -219.7099975 | BP23: =IF(BJ23>BK$6,"",((1+BK$11)^(BL23/360)-1)*BN23) -> 1593.633257 | BQ23: 212.4568703 | BR23: 28 | BS23: 0 | BT23: 1614.38013 | BU23: 103017.997 | BV23: =IFERROR(IF(AND(MONTH(BK23)=7,BK$9=2),2/(1+BK$13)^(BM23/360),IF(AND(MONTH(BK23)=12,BK$10=2),2/(1+BK$13)^(BM23/360),1/(1+BK$13)^(BM23/360))),"") -> 0.966307118 | BW23: =IFERROR(1/(1+BK$13)^(BM23/360),"") -> 0.966307118 | CA23: 2 | CB23: =IF(CA23>CB$6,"",EDATE(CB$22,CA22)) -> 2022-11-01 | CC23: =IF(CA23>CB$6,"",CB23-CB22) -> 31 | CD23: =IFERROR(CC23+CD22,"") -> 61 | CE23: =IF(CA23>CB$6,"",CL22) -> 102584.8973 | CF23: -2.571223469 | CG23: =IF(CA23>CB$6,"",((1+CB$11)^(CC23/360)-1)*CE23) -> 1590.325178 | CH23: 212.0158503 | CI23: 28 | CJ23: 0 | CK23: 1827.769804 | CL23: 102587.4686 | CM23: =IFERROR(IF(AND(MONTH(CB23)=7,CB$9=2),2/(1+CB$13)^(CD23/360),IF(AND(MONTH(CB23)=12,CB$10=2),2/(1+CB$13)^(CD23/360),1/(1+CB$13)^(CD23/360))),"") -> 0.966307118 | CN23: =IFERROR(1/(1+CB$13)^(CD23/360),"") -> 0.966307118 | CR23: 2 | CS23: =IF(CR23>CS$6,"",EDATE(CS$22,CR22)) -> 2022-11-01 | CT23: =IF(CR23>CS$6,"",CS23-CS22) -> 31 | CU23: =IFERROR(CT23+CU22,"") -> 61 | CV23: =IF(CR23>CS$6,"",DC22) -> 102846.0509 | CW23: -268.3130827 | CX23: =IF(CR23>CS$6,"",((1+CS$11)^(CT23/360)-1)*CV23) -> 1594.373718 | CY23: 212.5555856 | CZ23: 28 | DA23: 0 | DB23: 1566.616221 | DC23: 103114.364 | DD23: =IFERROR(IF(AND(MONTH(CS23)=7,CS$9=2),2/(1+CS$13)^(CU23/360),IF(AND(MONTH(CS23)=12,CS$10=2),2/(1+CS$13)^(CU23/360),1/(1+CS$13)^(CU23/360))),"") -> 0.966307118 | DE23: =IFERROR(1/(1+CS$13)^(CU23/360),"") -> 0.966307118
B24: 3 | C24: =IF(B24>C$6,"",EDATE(C$22,B23)) -> 2024-01-24 | D24: 3 | E24: 2024-01-24 | F24: =IF(B24>C$6,"",E24-E23) -> 30 | G24: 92 | H24: 95489.17409 | I24: =IF(B24>C$6,"",N24-M24-L24-K24-J24) -> 3706.835999 | J24: =IF(B24>C$6,"",((1+C$11)^(F24/360)-1)*H24) -> 1432.214856 | K24: 0 | L24: 0 | M24: 0 | N24: 5139.050855 | O24: 91782.3381 | P24: 0.9553719598 | Q24: 0.9553719598 | S24: =IFERROR((I24+J24+K24+L24+M24)*$J$12+('Simulador para calculos'!I24+'Simulador para calculos'!J24+'Simulador para calculos'!K24+'Simulador para calculos'!L24+'Simulador para calculos'!M24)*NOT($J$12),"") -> 5139.050855 | T24: 92 | U24: =IFERROR((1+'Simulación Cliente'!$E$21)^(T24/360),"") -> 1.053753298 | V24: 4876.9 | AB24: 3 | AC24: 2022-12-01 | AD24: =IF(AB24>AC$6,"",AC24-AC23) -> 30 | AE24: 91 | AF24: 97134.51676 | AG24: =IF(AB24>AC$6,"",AL24-AK24-AJ24-AI24-AH24) -> 7381.844466 | AH24: =IF(AB24>AC$6,"",((1+AC$11)^(AD24/360)-1)*AF24) -> 1456.892881 | AI24: 194.2690335 | AJ24: 28 | AK24: 0 | AL24: 9061.006381 | AM24: 89752.67229 | AN24: 1.900311385 | AO24: 0.9501556927 | AS24: 3 | AT24: 2022-12-01 | AU24: =IF(AS24>AT$6,"",AT24-AT23) -> 30 | AV24: 91 | AW24: 102475.0372 | AX24: =IF(AS24>AT$6,"",BC24-BB24-BA24-AZ24-AY24) -> 113.5520508 | AY24: =IF(AS24>AT$6,"",((1+AT$11)^(AU24/360)-1)*AW24) -> 1536.993823 | AZ24: 204.9500744 | BA24: 28 | BB24: 0 | BC24: 1883.495948 | BD24: 102361.4852 | BE24: 0.9501556927 | BF24: 0.9501556927 | BJ24: 3 | BK24: 2022-12-01 | BL24: =IF(BJ24>BK$6,"",BK24-BK23) -> 30 | BM24: 91 | BN24: 103017.997 | BO24: =IF(BJ24>BK$6,"",BT24-BS24-BR24-BQ24-BP24) -> 1449.586744 | BP24: =IF(BJ24>BK$6,"",((1+BK$11)^(BL24/360)-1)*BN24) -> 1545.137522 | BQ24: 206.035994 | BR24: 28 | BS24: 0 | BT24: 3228.760259 | BU24: 101568.4103 | BV24: 1.900311385 | BW24: 0.9501556927 | CA24: 3 | CB24: 2022-12-01 | CC24: =IF(CA24>CB$6,"",CB24-CB23) -> 30 | CD24: 91 | CE24: 102587.4686 | CF24: =IF(CA24>CB$6,"",CK24-CJ24-CI24-CH24-CG24) -> 55.91471893 | CG24: =IF(CA24>CB$6,"",((1+CB$11)^(CC24/360)-1)*CE24) -> 1538.680148 | CH24: 205.1749371 | CI24: 28 | CJ24: 0 | CK24: 1827.769804 | CL24: 102531.5538 | CM24: 0.9501556927 | CN24: 0.9501556927 | CR24: 3 | CS24: 2022-12-01 | CT24: =IF(CR24>CS$6,"",CS24-CS23) -> 30 | CU24: 91 | CV24: 103114.364 | CW24: =IF(CR24>CS$6,"",DB24-DA24-CZ24-CY24-CX24) -> 1352.420812 | CX24: =IF(CR24>CS$6,"",((1+CS$11)^(CT24/360)-1)*CV24) -> 1546.582903 | CY24: 206.228728 | CZ24: 28 | DA24: 0 | DB24: 3133.232442 | DC24: 101761.9432 | DD24: 1.900311385 | DE24: 0.9501556927
B25: 4 | C25: 2024-02-24 | D25: 6 | E25: 2024-02-24 | F25: 31 | G25: 123 | H25: 91782.3381 | I25: 3716.192648 | J25: 1422.858207 | K25: 0 | L25: 0 | M25: 0 | N25: 5139.050855 | O25: 88066.14545 | P25: 0.9407873778 | Q25: 0.9407873778 | S25: =IFERROR((I25+J25+K25+L25+M25)*$J$12+('Simulador para calculos'!I25+'Simulador para calculos'!J25+'Simulador para calculos'!K25+'Simulador para calculos'!L25+'Simulador para calculos'!M25)*NOT($J$12),"") -> 5139.050855 | T25: 123 | U25: =IFERROR((1+'Simulación Cliente'!$E$21)^(T25/360),"") -> 1.072509094 | V25: 4791.62 | AB25: 4 | AC25: 2023-01-01 | AD25: =IF(AB25>AC$6,"",AC25-AC24) -> 31 | AE25: 122 | AF25: 89752.67229 | AG25: =IF(AB25>AC$6,"",AL25-AK25-AJ25-AI25-AH25) -> 2925.614898 | AH25: 1391.393258 | AI25: 185.4950351 | AJ25: 28 | AK25: 0 | AL25: 4530.503191 | AM25: 86827.0574 | AN25: 0.9337494462 | AO25: 0.9337494462 | AS25: 4 | AT25: 2023-01-01 | AU25: =IF(AS25>AT$6,"",AT25-AT24) -> 31 | AV25: 122 | AW25: 102361.4852 | AX25: =IF(AS25>AT$6,"",BC25-BB25-BA25-AZ25-AY25) -> 57.08010731 | AY25: 1586.861724 | AZ25: 211.5541164 | BA25: 28 | BB25: 0 | BC25: 1883.495948 | BD25: 102304.4051 | BE25: 0.9337494462 | BF25: 0.9337494462 | BJ25: 4 | BK25: 2023-01-01 | BL25: =IF(BJ25>BK$6,"",BK25-BK24) -> 31 | BM25: 122 | BN25: 101568.4103 | BO25: =IF(BJ25>BK$6,"",BT25-BS25-BR25-BQ25-BP25) -> -198.1019696 | BP25: 1574.567059 | BQ25: 209.9150403 | BR25: 28 | BS25: 0 | BT25: 1614.38013 | BU25: 101766.5122 | BV25: 0.9337494462 | BW25: 0.9337494462 | CA25: 4 | CB25: 2023-01-01 | CC25: =IF(CA25>CB$6,"",CB25-CB24) -> 31 | CD25: 122 | CE25: 102531.5538 | CF25: =IF(CA25>CB$6,"",CK25-CJ25-CI25-CH25-CG25) -> -1.634017575 | CG25: 1589.498219 | CH25: 211.9056034 | CI25: 28 | CJ25: 0 | CK25: 1827.769804 | CL25: 102533.1879 | CM25: 0.9337494462 | CN25: 0.9337494462 | CR25: 4 | CS25: 2023-01-01 | CT25: =IF(CR25>CS$6,"",CS25-CS24) -> 31 | CU25: 122 | CV25: 101761.9432 | CW25: =IF(CR25>CS$6,"",DB25-DA25-CZ25-CY25-CX25) -> -249.266109 | CX25: 1577.567308 | CY25: 210.3150217 | CZ25: 28 | DA25: 0 | DB25: 1566.616221 | DC25: 102011.2093 | DD25: 0.9337494462 | DE25: 0.9337494462
B26: 5 | C26: 2024-03-24 | D26: 7 | E26: 2024-03-25 | F26: 30 | G26: 153 | H26: 88066.14545 | I26: 3818.171886 | J26: 1320.878969 | K26: 0 | L26: 0 | M26: 0 | N26: 5139.050855 | O26: 84247.97356 | P26: 0.92688529 | Q26: 0.92688529 | S26: =IFERROR((I26+J26+K26+L26+M26)*$J$12+('Simulador para calculos'!I26+'Simulador para calculos'!J26+'Simulador para calculos'!K26+'Simulador para calculos'!L26+'Simulador para calculos'!M26)*NOT($J$12),"") -> 5139.050855 | T26: 153 | U26: =IFERROR((1+'Simulación Cliente'!$E$21)^(T26/360),"") -> 1.090977659 | V26: 4710.5 | AB26: 5 | AC26: 2023-02-01 | AD26: 31 | AE26: 153 | AF26: 86827.0574 | AG26: 2977.015795 | AH26: 1346.038833 | AI26: 179.4485629 | AJ26: 28 | AK26: 0 | AL26: 4530.503191 | AM26: 83850.0416 | AN26: 0.9176264849 | AO26: 0.9176264849 | AS26: 5 | AT26: 2023-02-01 | AU26: 31 | AV26: 153 | AW26: 102304.4051 | AX26: 58.08296272 | AY26: 1585.976838 | AZ26: 211.4361469 | BA26: 28 | BB26: 0 | BC26: 1883.495948 | BD26: 102246.3221 | BE26: 0.9176264849 | BF26: 0.9176264849 | BJ26: 5 | BK26: 2023-02-01 | BL26: 31 | BM26: 153 | BN26: 101766.5122 | BO26: -201.5824752 | BP26: 1577.63814 | BQ26: 210.3244647 | BR26: 28 | BS26: 0 | BT26: 1614.38013 | BU26: 101968.0947 | BV26: 0.9176264849 | BW26: 0.9176264849 | CA26: 5 | CB26: 2023-02-01 | CC26: 31 | CD26: 153 | CE26: 102533.1879 | CF26: -1.66272606 | CG26: 1589.52355 | CH26: 211.9089804 | CI26: 28 | CJ26: 0 | CK26: 1827.769804 | CL26: 102534.8506 | CM26: 0.9176264849 | CN26: 0.9176264849 | CR26: 5 | CS26: 2023-02-01 | CT26: 31 | CU26: 153 | CV26: 102011.2093 | CW26: -253.6455308 | CX26: 1581.431563 | CY26: 210.8301888 | CZ26: 28 | DA26: 0 | DB26: 1566.616221 | DC26: 102264.8548 | DD26: 0.9176264849 | DE26: 0.9176264849
B27: 6 | C27: 2024-04-24 | D27: 3 | E27: 2024-04-24 | F27: 30 | G27: 183 | H27: 84247.97356 | I27: 3875.439556 | J27: 1263.611299 | K27: 0 | L27: 0 | M27: 0 | N27: 5139.050855 | O27: 80372.53401 | P27: 0.9131886344 | Q27: 0.9131886344 | S27: =IFERROR((I27+J27+K27+L27+M27)*$J$12+('Simulador para calculos'!I27+'Simulador para calculos'!J27+'Simulador para calculos'!K27+'Simulador para calculos'!L27+'Simulador para calculos'!M27)*NOT($J$12),"") -> 5139.050855 | T27: 183 | U27: =IFERROR((1+'Simulación Cliente'!$E$21)^(T27/360),"") -> 1.109764252 | V27: 4630.76 | AB27: 6 | AC27: 2023-03-01 | AD27: 28 | AE27: 181 | AF27: 83850.0416 | AG27: 3172.777308 | AH27: 1173.216232 | AI27: 156.5096504 | AJ27: 28 | AK27: 0 | AL27: 4530.503191 | AM27: 80677.26429 | AN27: 0.9033032293 | AO27: 0.9033032293 | AS27: 6 | AT27: 2023-03-01 | AU27: 28 | AV27: 181 | AW27: 102246.3221 | AX27: 234.0348458 | AY27: 1430.614016 | AZ27: 190.8470863 | BA27: 28 | BB27: 0 | BC27: 1883.495948 | BD27: 102012.2872 | BE27: 0.9033032293 | BF27: 0.9033032293 | BJ27: 6 | BK27: 2023-03-01 | BL27: 28 | BM27: 181 | BN27: 101968.0947 | BO27: -30.66873675 | BP27: 1426.721103 | BQ27: 190.3277631 | BR27: 28 | BS27: 0 | BT27: 1614.38013 | BU27: 101998.7635 | BV27: 0.9033032293 | BW27: 0.9033032293 | CA27: 6 | CB27: 2023-03-01 | CC27: 28 | CD27: 181 | CE27: 102534.8506 | CF27: 173.7331075 | CG27: 1434.65106 | CH27: 191.3856369 | CI27: 28 | CJ27: 0 | CK27: 1827.769804 | CL27: 102361.1175 | CM27: 0.9033032293 | CN27: 0.9033032293 | CR27: 6 | CS27: 2023-03-01 | CT27: 28 | CU27: 181 | CV27: 102264.8548 | CW27: -83.13878027 | CX27: 1430.873323 | CY27: 190.8816784 | CZ27: 28 | DA27: 0 | DB27: 1566.616221 | DC27: 102347.9936 | DD27: 0.9033032293 | DE27: 0.9033032293
B28: 7 | C28: 2024-05-24 | D28: 5 | E28: 2024-05-24 | F28: 30 | G28: 213 | H28: 80372.53401 | I28: 3933.566167 | J28: 1205.484688 | K28: 0 | L28: 0 | M28: 0 | N28: 5139.050855 | O28: 76438.96784 | P28: 0.8996943754 | Q28: 0.8996943754 | S28: =IFERROR((I28+J28+K28+L28+M28)*$J$12+('Simulador para calculos'!I28+'Simulador para calculos'!J28+'Simulador para calculos'!K28+'Simulador para calculos'!L28+'Simulador para calculos'!M28)*NOT($J$12),"") -> 5139.050855 | T28: 213 | U28: =IFERROR((1+'Simulación Cliente'!$E$21)^(T28/360),"") -> 1.128874349 | V28: 4552.37 | AB28: 7 | AC28: 2023-04-01 | AD28: 31 | AE28: 212 | AF28: 80677.26429 | AG28: 3085.063127 | AH28: 1250.701497 | AI28: 166.7385671 | AJ28: 28 | AK28: 0 | AL28: 4530.503191 | AM28: 77592.20117 | AN28: 0.8877059798 | AO28: 0.8877059798 | AS28: 7 | AT28: 2023-04-01 | AU28: 31 | AV28: 212 | AW28: 102012.2872 | AX28: 63.21525729 | AY28: 1581.448274 | AZ28: 210.8324166 | BA28: 28 | BB28: 0 | BC28: 1883.495948 | BD28: 101949.072 | BE28: 0.8877059798 | BF28: 0.8877059798 | BJ28: 7 | BK28: 2023-04-01 | BL28: 31 | BM28: 212 | BN28: 101998.7635 | BO28: -205.6629578 | BP28: 1581.238621 | BQ28: 210.8044665 | BR28: 28 | BS28: 0 | BT28: 1614.38013 | BU28: 102204.4264 | BV28: 0.8877059798 | BW28: 0.8877059798 | CA28: 7 | CB28: 2023-04-01 | CC28: 31 | CD28: 212 | CE28: 102361.1175 | CF28: 1.360423705 | CG28: 1586.856024 | CH28: 211.5533565 | CI28: 28 | CJ28: 0 | CK28: 1827.769804 | CL28: 102359.7571 | CM28: 0.8877059798 | CN28: 0.8877059798 | CR28: 7 | CS28: 2023-04-01 | CT28: 31 | CU28: 212 | CV28: 102347.9936 | CW28: -259.5625829 | CX28: 1586.652571 | CY28: 211.5262329 | CZ28: 28 | DA28: 0 | DB28: 1566.616221 | DC28: 102607.5562 | DD28: 0.8877059798 | DE28: 0.8877059798
B29: 8 | C29: 2024-06-24 | D29: 1 | E29: 2024-06-24 | F29: 31 | G29: 244 | H29: 76438.96784 | I29: 3954.053665 | J29: 1184.99719 | K29: 0 | L29: 0 | M29: 0 | N29: 5139.050855 | O29: 72484.91418 | P29: 0.8859597599 | Q29: 0.8859597599 | S29: =IFERROR((I29+J29+K29+L29+M29)*$J$12+('Simulador para calculos'!I29+'Simulador para calculos'!J29+'Simulador para calculos'!K29+'Simulador para calculos'!L29+'Simulador para calculos'!M29)*NOT($J$12),"") -> 5139.050855 | T29: 244 | U29: =IFERROR((1+'Simulación Cliente'!$E$21)^(T29/360),"") -> 1.148967228 | V29: 4472.76 | AB29: 8 | AC29: 2023-05-01 | AD29: 30 | AE29: 242 | AF29: 77592.20117 | AG29: 3183.535518 | AH29: 1163.78327 | AI29: 155.1844023 | AJ29: 28 | AK29: 0 | AL29: 4530.503191 | AM29: 74408.66565 | AN29: 0.8728683401 | AO29: 0.8728683401 | AS29: 8 | AT29: 2023-05-01 | AU29: 30 | AV29: 242 | AW29: 101949.072 | AX29: 122.4927835 | AY29: 1529.10502 | AZ29: 203.898144 | BA29: 28 | BB29: 0 | BC29: 1883.495948 | BD29: 101826.5792 | BE29: 0.8728683401 | BF29: 0.8728683401 | BJ29: 8 | BK29: 2023-05-01 | BL29: 30 | BM29: 242 | BN29: 102204.4264 | BO29: -150.9637316 | BP29: 1532.935008 | BQ29: 204.4088528 | BR29: 28 | BS29: 0 | BT29: 1614.38013 | BU29: 102355.3901 | BV29: 0.8728683401 | BW29: 0.8728683401 | CA29: 8 | CB29: 2023-05-01 | CC29: 30 | CD29: 242 | CE29: 102359.7571 | CF29: 59.78552181 | CG29: 1535.264768 | CH29: 204.7195141 | CI29: 28 | CJ29: 0 | CK29: 1827.769804 | CL29: 102299.9715 | CM29: 0.8728683401 | CN29: 0.8728683401 | CR29: 8 | CS29: 2023-05-01 | CT29: 30 | CU29: 242 | CV29: 102607.5562 | CW29: -205.5803283 | CX29: 1538.981437 | CY29: 205.2151124 | CZ29: 28 | DA29: 0 | DB29: 1566.616221 | DC29: 102813.1365 | DD29: 0.8728683401 | DE29: 0.8728683401
B30: 9 | C30: 2024-07-24 | D30: 3 | E30: 2024-07-24 | F30: 30 | G30: 274 | H30: 72484.91418 | I30: 4051.870324 | J30: 1087.18053 | K30: 0 | L30: 0 | M30: 0 | N30: 5139.050855 | O30: 68433.04385 | P30: 0.8728678641 | Q30: 0.8728678641 | S30: =IFERROR((I30+J30+K30+L30+M30)*$J$12+('Simulador para calculos'!I30+'Simulador para calculos'!J30+'Simulador para calculos'!K30+'Simulador para calculos'!L30+'Simulador para calculos'!M30)*NOT($J$12),"") -> 5139.050855 | T30: 274 | U30: =IFERROR((1+'Simulación Cliente'!$E$21)^(T30/360),"") -> 1.168752399 | V30: 4397.04 | AB30: 9 | AC30: 2023-06-01 | AD30: 31 | AE30: 273 | AF30: 74408.66565 | AG30: 3195.197784 | AH30: 1153.522375 | AI30: 153.7830316 | AJ30: 28 | AK30: 0 | AL30: 4530.503191 | AM30: 71213.46786 | AN30: 0.8577966069 | AO30: 0.8577966069 | AS30: 9 | AT30: 2023-06-01 | AU30: 31 | AV30: 273 | AW30: 101826.5792 | AX30: 66.47801067 | AY30: 1578.56933 | AZ30: 210.4486072 | BA30: 28 | BB30: 0 | BC30: 1883.495948 | BD30: 101760.1012 | BE30: 0.8577966069 | BF30: 0.8577966069 | BJ30: 9 | BK30: 2023-06-01 | BL30: 31 | BM30: 273 | BN30: 102355.3901 | BO30: -211.9286258 | BP30: 1586.767236 | BQ30: 211.5415196 | BR30: 28 | BS30: 0 | BT30: 1614.38013 | BU30: 102567.3188 | BV30: 0.8577966069 | BW30: 0.8577966069 | CA30: 9 | CB30: 2023-06-01 | CC30: 31 | CD30: 273 | CE30: 102299.9715 | CF30: 2.434712895 | CG30: 1585.908108 | CH30: 211.426984 | CI30: 28 | CJ30: 0 | CK30: 1827.769804 | CL30: 102297.5368 | CM30: 0.8577966069 | CN30: 0.8577966069 | CR30: 9 | CS30: 2023-06-01 | CT30: 31 | CU30: 273 | CV30: 102813.1365 | CW30: -267.734801 | CX30: 1593.863462 | CY30: 212.4875603 | CZ30: 28 | DA30: 0 | DB30: 1566.616221 | DC30: 103080.8713 | DD30: 0.8577966069 | DE30: 0.8577966069
B31: 10 | C31: 2024-08-24 | D31: 6 | E31: 2024-08-24 | F31: 31 | G31: 305 | H31: 68433.04385 | I31: =IF(B31>C$6,"",N31-M31-L31-K31-J31) -> 4078.16572 | J31: 1060.885135 | K31: 0 | L31: 0 | M31: 0 | N31: 5139.050855 | O31: 64354.87813 | P31: 0.8595427786 | Q31: 0.8595427786 | S31: =IFERROR((I31+J31+K31+L31+M31)*$J$12+('Simulador para calculos'!I31+'Simulador para calculos'!J31+'Simulador para calculos'!K31+'Simulador para calculos'!L31+'Simulador para calculos'!M31)*NOT($J$12),"") -> 5139.050855 | T31: 305 | U31: =IFERROR((1+'Simulación Cliente'!$E$21)^(T31/360),"") -> 1.189555068 | V31: 4320.15 | AB31: 10 | AC31: 2023-07-01 | AD31: 30 | AE31: 303 | AF31: 71213.46786 | AG31: 7822.468975 | AH31: 1068.11047 | AI31: 142.4269357 | AJ31: 28 | AK31: 0 | AL31: 9061.006381 | AM31: 63390.99889 | AN31: 1.68691778 | AO31: 0.8434588901 | AS31: 10 | AT31: 2023-07-01 | AU31: 30 | AV31: 303 | AW31: 101760.1012 | AX31: 125.7050441 | AY31: 1526.270701 | AZ31: 203.5202024 | BA31: 28 | BB31: 0 | BC31: 1883.495948 | BD31: 101634.3962 | BE31: 0.8434588901 | BF31: 0.8434588901 | BJ31: 10 | BK31: 2023-07-01 | BL31: 30 | BM31: 303 | BN31: 102567.3188 | BO31: 1457.247695 | BP31: 1538.377927 | BQ31: 205.1346375 | BR31: 28 | BS31: 0 | BT31: 3228.760259 | BU31: 101110.0711 | BV31: 1.68691778 | BW31: 0.8434588901 | CA31: 10 | CB31: 2023-07-01 | CC31: 30 | CD31: 303 | CE31: 102297.5368 | CF31: 60.84318581 | CG31: 1534.331545 | CH31: 204.5950737 | CI31: 28 | CJ31: 0 | CK31: 1827.769804 | CL31: 102236.6936 | CM31: 0.8434588901 | CN31: 0.8434588901 | CR31: 10 | CS31: 2023-07-01 | CT31: 30 | CU31: 303 | CV31: 103080.8713 | CW31: 1352.990144 | CX31: 1546.080555 | CY31: 206.1617427 | CZ31: 28 | DA31: 0 | DB31: 3133.232442 | DC31: 101727.8812 | DD31: 1.68691778 | DE31: 0.8434588901
B32: 11 | C32: 2024-09-24 | D32: 2 | E32: 2024-09-24 | F32: 31 | G32: 336 | H32: 64354.87813 | I32: 4141.387596 | J32: 997.6632589 | K32: 0 | L32: 0 | M32: 0 | N32: 5139.050855 | O32: 60213.49053 | P32: 0.8464211122 | Q32: 0.8464211122 | S32: =IFERROR((I32+J32+K32+L32+M32)*$J$12+('Simulador para calculos'!I32+'Simulador para calculos'!J32+'Simulador para calculos'!K32+'Simulador para calculos'!L32+'Simulador para calculos'!M32)*NOT($J$12),"") -> 5139.050855 | T32: 336 | U32: =IFERROR((1+'Simulación Cliente'!$E$21)^(T32/360),"") -> 1.210728005 | V32: 4244.6 | AB32: 11 | AC32: 2023-08-01 | AD32: 31 | AE32: 334 | AF32: 63390.99889 | AG32: 3388.770067 | AH32: 982.7206946 | AI32: 131.0124285 | AJ32: 28 | AK32: 0 | AL32: 4530.503191 | AM32: 60002.22882 | AN32: 0.8288949671 | AO32: 0.8288949671 | AS32: 11 | AT32: 2023-08-01 | AU32: 31 | AV32: 334 | AW32: 101634.3962 | AX32: 69.85452528 | AY32: 1575.590007 | AZ32: 210.0514157 | BA32: 28 | BB32: 0 | BC32: 1883.495948 | BD32: 101564.5416 | BE32: 0.8288949671 | BF32: 0.8288949671 | BJ32: 11 | BK32: 2023-08-01 | BL32: 31 | BM32: 334 | BN32: 101110.0711 | BO32: -190.0492878 | BP32: 1567.461643 | BQ32: 208.9677744 | BR32: 28 | BS32: 0 | BT32: 1614.38013 | BU32: 101300.1204 | BV32: 0.8288949671 | BW32: 0.8288949671 | CA32: 11 | CB32: 2023-08-01 | CC32: 31 | CD32: 334 | CE32: 102236.6936 | CF32: 3.546458931 | CG32: 1584.92714 | CH32: 211.2962053 | CI32: 28 | CJ32: 0 | CK32: 1827.769804 | CL32: 102233.1472 | CM32: 0.8288949671 | CN32: 0.8288949671 | CR32: 11 | CS32: 2023-08-01 | CT32: 31 | CU32: 334 | CV32: 101727.8812 | CW32: -248.6676646 | CX32: 1577.039261 | CY32: 210.2446245 | CZ32: 28 | DA32: 0 | DB32: 1566.616221 | DC32: 101976.5489 | DD32: 0.8288949671 | DE32: 0.8288949671
B33: 12 | C33: 2024-10-24 | D33: 4 | E33: 2024-10-24 | F33: 30 | G33: 366 | H33: 60213.49053 | I33: 4235.925904 | J33: 903.1249512 | K33: 0 | L33: 0 | M33: 0 | N33: =IF(B33>C$6,"",IF(B33=C$6,H33+J33+K33+L33+M33,IF(AND(C$9=2,MONTH(C33)=7),2*C$17,IF(AND(C$10=2,MONTH(C33)=12),2*C$17,C$17)))) -> 5139.050855 | O33: 55977.56463 | P33: 0.833913482 | Q33: 0.833913482 | S33: =IFERROR((I33+J33+K33+L33+M33)*$J$12+('Simulador para calculos'!I33+'Simulador para calculos'!J33+'Simulador para calculos'!K33+'Simulador para calculos'!L33+'Simulador para calculos'!M33)*NOT($J$12),"") -> 5139.050855 | T33: 366 | U33: =IFERROR((1+'Simulación Cliente'!$E$21)^(T33/360),"") -> 1.231576695 | V33: 4172.74 | AB33: 12 | AC33: 2023-09-01 | AD33: 31 | AE33: 365 | AF33: 60002.22882 | AG33: 3448.30826 | AH33: 930.1861939 | AI33: 124.0087371 | AJ33: 28 | AK33: 0 | AL33: 4530.503191 | AM33: 56553.92056 | AN33: 0.8145825178 | AO33: 0.8145825178 | AS33: 12 | AT33: 2023-09-01 | AU33: 31 | AV33: 365 | AW33: 101564.5416 | AX33: 71.0818178 | AY33: 1574.507085 | AZ33: 209.9070449 | BA33: 28 | BB33: 0 | BC33: 1883.495948 | BD33: 101493.4598 | BE33: 0.8145825178 | BF33: 0.8145825178 | BJ33: 12 | BK33: 2023-09-01 | BL33: 31 | BM33: 365 | BN33: 101300.1204 | BO33: -193.3883137 | BP33: 1570.407887 | BQ33: 209.360556 | BR33: 28 | BS33: 0 | BT33: 1614.38013 | BU33: 101493.5087 | BV33: 0.8145825178 | BW33: 0.8145825178 | CA33: 12 | CB33: 2023-09-01 | CC33: 31 | CD33: 365 | CE33: 102233.1472 | CF33: 3.6087676 | CG33: 1584.872161 | CH33: 211.2888757 | CI33: 28 | CJ33: 0 | CK33: 1827.769804 | CL33: 102229.5384 | CM33: 0.8145825178 | CN33: 0.8145825178 | CR33: 12 | CS33: 2023-09-01 | CT33: 31 | CU33: 365 | CV33: 101976.5489 | CW33: -253.0365721 | CX33: 1580.894238 | CY33: 210.7585548 | CZ33: 28 | DA33: 0 | DB33: 1566.616221 | DC33: 102229.5854 | DD33: 0.8145825178 | DE33: 0.8145825178
B34: 13 | C34: 2024-11-24 | D34: 7 | E34: 2024-11-25 | F34: 32 | G34: 398 | H34: 55977.56463 | I34: 4243.04091 | J34: 896.0099448 | K34: 0 | L34: 0 | M34: 0 | N34: 5139.050855 | O34: 51734.52372 | P34: 0.8207756622 | Q34: 0.8207756622 | S34: =IFERROR((I34+J34+K34+L34+M34)*$J$12+('Simulador para calculos'!I34+'Simulador para calculos'!J34+'Simulador para calculos'!K34+'Simulador para calculos'!L34+'Simulador para calculos'!M34)*NOT($J$12),"") -> 5139.050855 | T34: 398 | U34: =IFERROR((1+'Simulación Cliente'!$E$21)^(T34/360),"") -> 1.25421116 | V34: 4097.44 | AB34: 13 | AC34: 2023-10-01 | AD34: 30 | AE34: 395 | AF34: 56553.92056 | AG34: 3541.159243 | AH34: 848.2361062 | AI34: 113.1078411 | AJ34: 28 | AK34: 0 | AL34: 4530.503191 | AM34: 53012.76132 | AN34: 0.8009671067 | AO34: 0.8009671067 | AS34: 13 | AT34: 2023-10-01 | AU34: 30 | AV34: 395 | AW34: 101493.4598 | AX34: 130.2376049 | AY34: 1522.271423 | AZ34: 202.9869196 | BA34: 28 | BB34: 0 | BC34: 1883.495948 | BD34: 101363.2222 | BE34: 0.8009671067 | BF34: 0.8009671067 | BJ34: 13 | BK34: 2023-10-01 | BL34: 30 | BM34: 395 | BN34: 101493.5087 | BO34: -138.879044 | BP34: 1522.272156 | BQ34: 202.9870174 | BR34: 28 | BS34: 0 | BT34: 1614.38013 | BU34: 101632.3877 | BV34: 0.8009671067 | BW34: 0.8009671067 | CA34: 13 | CB34: 2023-10-01 | CC34: 30 | CD34: 395 | CE34: 102229.5384 | CF34: 61.99907141 | CG34: 1533.311656 | CH34: 204.4590768 | CI34: 28 | CJ34: 0 | CK34: 1827.769804 | CL34: 102167.5393 | CM34: 0.8009671067 | CN34: 0.8009671067 | CR34: 13 | CS34: 2023-10-01 | CT34: 30 | CU34: 395 | CV34: 102229.5854 | CW34: -199.155311 | CX34: 1533.312361 | CY34: 204.4591708 | CZ34: 28 | DA34: 0 | DB34: 1566.616221 | DC34: 102428.7407 | DD34: 0.8009671067 | DE34: 0.8009671067
B35: 14 | C35: 2024-12-24 | D35: 2 | E35: 2024-12-24 | F35: 29 | G35: 427 | H35: 51734.52372 | I35: 4389.151095 | J35: 749.89976 | K35: 0 | L35: 0 | M35: 0 | N35: 5139.050855 | O35: 47345.37263 | P35: 0.8090483833 | Q35: 0.8090483833 | S35: =IFERROR((I35+J35+K35+L35+M35)*$J$12+('Simulador para calculos'!I35+'Simulador para calculos'!J35+'Simulador para calculos'!K35+'Simulador para calculos'!L35+'Simulador para calculos'!M35)*NOT($J$12),"") -> 5139.050855 | T35: 427 | U35: =IFERROR((1+'Simulación Cliente'!$E$21)^(T35/360),"") -> 1.275082756 | V35: 4030.37 | AB35: 14 | AC35: 2023-11-01 | AD35: 31 | AE35: 426 | AF35: 53012.76132 | AG35: 3571.108051 | AH35: 821.8317827 | AI35: 109.5633564 | AJ35: 28 | AK35: 0 | AL35: 4530.503191 | AM35: 49441.65327 | AN35: 0.7871368852 | AO35: 0.7871368852 | AS35: 14 | AT35: 2023-11-01 | AU35: 31 | AV35: 426 | AW35: 101363.2222 | AX35: 74.61885166 | AY35: 1571.386125 | AZ35: 209.4909709 | BA35: 28 | BB35: 0 | BC35: 1883.495948 | BD35: 101288.6034 | BE35: 0.7871368852 | BF35: 0.7871368852 | BJ35: 14 | BK35: 2023-11-01 | BL35: 31 | BM35: 426 | BN35: 101632.3877 | BO35: -199.2260062 | BP35: 1575.558871 | BQ35: 210.0472648 | BR35: 28 | BS35: 0 | BT35: 1614.38013 | BU35: 101831.6137 | BV35: 0.7871368852 | BW35: 0.7871368852 | CA35: 14 | CB35: 2023-11-01 | CC35: 31 | CD35: 426 | CE35: 102167.5393 | CF35: 4.76144897 | CG35: 1583.855074 | CH35: 211.1532816 | CI35: 28 | CJ35: 0 | CK35: 1827.769804 | CL35: 102162.7779 | CM35: 0.7871368852 | CN35: 0.7871368852 | CR35: 14 | CS35: 2023-11-01 | CT35: 31 | CU35: 426 | CV35: 102428.7407 | CW35: -260.9812502 | CX35: 1587.904355 | CY35: 211.6931158 | CZ35: 28 | DA35: 0 | DB35: 1566.616221 | DC35: 102689.722 | DD35: 0.7871368852 | DE35: 0.7871368852
B36: 15 | C36: 2025-01-24 | D36: 5 | E36: 2025-01-24 | F36: 31 | G36: 458 | H36: 47345.37263 | I36: 4405.077921 | J36: 733.9729344 | K36: 0 | L36: 0 | M36: 0 | N36: 5139.050855 | O36: 42940.29471 | P36: 0.7966975576 | Q36: 0.7966975576 | S36: =IFERROR((I36+J36+K36+L36+M36)*$J$12+('Simulador para calculos'!I36+'Simulador para calculos'!J36+'Simulador para calculos'!K36+'Simulador para calculos'!L36+'Simulador para calculos'!M36)*NOT($J$12),"") -> 5139.050855 | T36: 458 | U36: =IFERROR((1+'Simulación Cliente'!$E$21)^(T36/360),"") -> 1.297778003 | V36: 3959.88 | AB36: 15 | AC36: 2023-12-01 | AD36: 30 | AE36: 456 | AF36: 49441.65327 | AG36: 8192.561835 | AH36: 741.5612399 | AI36: 98.88330654 | AJ36: 28 | AK36: 0 | AL36: 9061.006381 | AM36: 41249.09143 | AN36: 1.547960433 | AO36: 0.7739802165 | AS36: 15 | AT36: 2023-12-01 | AU36: 30 | AV36: 456 | AW36: 101288.6034 | AX36: 133.7199013 | AY36: 1519.19884 | AZ36: 202.5772067 | BA36: 28 | BB36: 0 | BC36: 1883.495948 | BD36: 101154.8834 | BE36: 0.7739802165 | BF36: 0.7739802165 | BJ36: 15 | BK36: 2023-12-01 | BL36: 30 | BM36: 456 | BN36: 101831.6137 | BO36: 1469.753735 | BP36: 1527.343297 | BQ36: 203.6632275 | BR36: 28 | BS36: 0 | BT36: 3228.760259 | BU36: 100361.86 | BV36: 1.547960433 | BW36: 0.7739802165 | CA36: 15 | CB36: 2023-12-01 | CC36: 30 | CD36: 456 | CE36: 102162.7779 | CF36: 63.13391443 | CG36: 1532.310334 | CH36: 204.3255558 | CI36: 28 | CJ36: 0 | CK36: 1827.769804 | CL36: 102099.644 | CM36: 0.7739802165 | CN36: 0.7739802165 | CR36: 15 | CS36: 2023-12-01 | CT36: 30 | CU36: 456 | CV36: 102689.722 | CW36: 1359.63918 | CX36: 1540.213818 | CY36: 205.379444 | CZ36: 28 | DA36: 0 | DB36: 3133.232442 | DC36: 101330.0828 | DD36: 1.547960433 | DE36: 0.7739802165
B37: 16 | C37: 2025-02-24 | D37: 1 | E37: 2025-02-24 | F37: 31 | G37: 489 | H37: 42940.29471 | I37: 4473.367761 | J37: 665.6830934 | K37: 0 | L37: 0 | M37: 0 | N37: 5139.050855 | O37: 38466.92694 | P37: 0.784535278 | Q37: 0.784535278 | S37: =IFERROR((I37+J37+K37+L37+M37)*$J$12+('Simulador para calculos'!I37+'Simulador para calculos'!J37+'Simulador para calculos'!K37+'Simulador para calculos'!L37+'Simulador para calculos'!M37)*NOT($J$12),"") -> 5139.050855 | T37: 489 | U37: =IFERROR((1+'Simulación Cliente'!$E$21)^(T37/360),"") -> 1.320877204 | V37: 3890.63 | AB37: 16 | AC37: 2024-01-01 | AD37: 31 | AE37: 487 | AF37: 41249.09143 | AG37: 3777.78706 | AH37: 639.4651685 | AI37: 85.25096207 | AJ37: 28 | AK37: 0 | AL37: 4530.503191 | AM37: 37471.30437 | AN37: 0.7606159749 | AO37: 0.7606159749 | AS37: 16 | AT37: 2024-01-01 | AU37: 31 | AV37: 487 | AW37: 101154.8834 | AX37: 78.27920997 | AY37: 1568.156348 | AZ37: 209.0603898 | BA37: 28 | BB37: 0 | BC37: 1883.495948 | BD37: 101076.6042 | BE37: 0.7606159749 | BF37: 0.7606159749 | BJ37: 16 | BK37: 2024-01-01 | BL37: 31 | BM37: 487 | BN37: 100361.86 | BO37: -176.9037706 | BP37: 1555.86248 | BQ37: 207.42142 | BR37: 28 | BS37: 0 | BT37: 1614.38013 | BU37: 100538.7638 | BV37: 0.7606159749 | BW37: 0.7606159749 | CA37: 16 | CB37: 2024-01-01 | CC37: 31 | CD37: 487 | CE37: 102099.644 | CF37: 5.954320457 | CG37: 1582.802524 | CH37: 211.0129599 | CI37: 28 | CJ37: 0 | CK37: 1827.769804 | CL37: 102093.6897 | CM37: 0.7606159749 | CN37: 0.7606159749 | CR37: 16 | CS37: 2024-01-01 | CT37: 31 | CU37: 487 | CV37: 101330.0828 | CW37: -241.6786402 | CX37: 1570.872381 | CY37: 209.4224805 | CZ37: 28 | DA37: 0 | DB37: 1566.616221 | DC37: 101571.7614 | DD37: 0.7606159749 | DE37: 0.7606159749
B38: 17 | C38: 2025-03-24 | D38: 1 | E38: 2025-03-24 | F38: 28 | G38: 517 | H38: 38466.92694 | I38: 4600.827829 | J38: 538.2230256 | K38: 0 | L38: 0 | M38: 0 | N38: 5139.050855 | O38: 33866.09911 | P38: 0.7737096575 | Q38: 0.7737096575 | S38: =IFERROR((I38+J38+K38+L38+M38)*$J$12+('Simulador para calculos'!I38+'Simulador para calculos'!J38+'Simulador para calculos'!K38+'Simulador para calculos'!L38+'Simulador para calculos'!M38)*NOT($J$12),"") -> 5139.050855 | T38: 517 | U38: =IFERROR((1+'Simulación Cliente'!$E$21)^(T38/360),"") -> 1.342094184 | V38: 3829.13 | AB38: 17 | AC38: 2024-02-01 | AD38: 31 | AE38: 518 | AF38: 37471.30437 | AG38: 3844.159994 | AH38: 580.8999212 | AI38: 77.4432754 | AJ38: 28 | AK38: 0 | AL38: 4530.503191 | AM38: 33627.14438 | AN38: 0.7474824925 | AO38: 0.7474824925 | AS38: 17 | AT38: 2024-02-01 | AU38: 31 | AV38: 518 | AW38: 101076.6042 | AX38: 79.65451799 | AY38: 1566.942823 | AZ38: 208.8986073 | BA38: 28 | BB38: 0 | BC38: 1883.495948 | BD38: 100996.9497 | BE38: 0.7474824925 | BF38: 0.7474824925 | BJ38: 17 | BK38: 2024-02-01 | BL38: 31 | BM38: 518 | BN38: 100538.7638 | BO38: -180.0118394 | BP38: 1558.604936 | BQ38: 207.7870333 | BR38: 28 | BS38: 0 | BT38: 1614.38013 | BU38: 100718.7756 | BV38: 0.7474824925 | BW38: 0.7474824925 | CA38: 17 | CB38: 2024-02-01 | CC38: 31 | CD38: 518 | CE38: 102093.6897 | CF38: 6.058933478 | CG38: 1582.710217 | CH38: 211.0006539 | CI38: 28 | CJ38: 0 | CK38: 1827.769804 | CL38: 102087.6307 | CM38: 0.7474824925 | CN38: 0.7474824925 | CR38: 17 | CS38: 2024-02-01 | CT38: 31 | CU38: 518 | CV38: 101571.7614 | CW38: -245.9247558 | CX38: 1574.619011 | CY38: 209.9219663 | CZ38: 28 | DA38: 0 | DB38: 1566.616221 | DC38: 101817.6862 | DD38: 0.7474824925 | DE38: 0.7474824925
B39: 18 | C39: 2025-04-24 | D39: 4 | E39: 2025-04-24 | F39: 31 | G39: 548 | H39: 33866.09911 | I39: 4614.040727 | J39: 525.010128 | K39: 0 | L39: 0 | M39: 0 | N39: =IF(B39>C$6,"",IF(B39=C$6,H39+J39+K39+L39+M39,IF(AND(C$9=2,MONTH(C39)=7),2*C$17,IF(AND(C$10=2,MONTH(C39)=12),2*C$17,C$17)))) -> 5139.050855 | O39: 29252.05839 | P39: 0.7618983082 | Q39: 0.7618983082 | S39: =IFERROR((I39+J39+K39+L39+M39)*$J$12+('Simulador para calculos'!I39+'Simulador para calculos'!J39+'Simulador para calculos'!K39+'Simulador para calculos'!L39+'Simulador para calculos'!M39)*NOT($J$12),"") -> 5139.050855 | T39: 548 | U39: =IFERROR((1+'Simulación Cliente'!$E$21)^(T39/360),"") -> 1.36598217 | V39: 3762.17 | AB39: 18 | AC39: 2024-03-01 | AD39: 29 | AE39: 547 | AF39: 33627.14438 | AG39: 3950.062324 | AH39: 487.4305529 | AI39: 65.01031354 | AJ39: 28 | AK39: 0 | AL39: 4530.503191 | AM39: 29677.08206 | AN39: 0.7354017087 | AO39: 0.7354017087 | AS39: 18 | AT39: 2024-03-01 | AU39: 29 | AV39: 547 | AW39: 100996.9497 | AX39: 196.2755936 | AY39: 1463.966089 | AZ39: 195.2542652 | BA39: 28 | BB39: 0 | BC39: 1883.495948 | BD39: 100800.6741 | BE39: 0.7354017087 | BF39: 0.7354017087 | BJ39: 18 | BK39: 2024-03-01 | BL39: 29 | BM39: 547 | BN39: 100718.7756 | BO39: -68.2702631 | BP39: 1459.933913 | BQ39: 194.7164799 | BR39: 28 | BS39: 0 | BT39: 1614.38013 | BU39: 100787.0459 | BV39: 0.7354017087 | BW39: 0.7354017087 | CA39: 18 | CB39: 2024-03-01 | CC39: 29 | CD39: 547 | CE39: 102087.6307 | CF39: 122.6312841 | CG39: 1479.775675 | CH39: 197.3628449 | CI39: 28 | CJ39: 0 | CK39: 1827.769804 | CL39: 101964.9994 | CM39: 0.7354017087 | CN39: 0.7354017087 | CR39: 18 | CS39: 2024-03-01 | CT39: 29 | CU39: 547 | CV39: 101817.6862 | CW39: -134.087537 | CX39: 1475.862789 | CY39: 196.8409696 | CZ39: 28 | DA39: 0 | DB39: 1566.616221 | DC39: 101951.7737 | DD39: 0.7354017087 | DE39: 0.7354017087
B40: 19 | C40: 2025-05-24 | D40: 6 | E40: 2025-05-24 | F40: 30 | G40: 578 | H40: 29252.05839 | I40: 4700.307584 | J40: 438.7432712 | K40: 0 | L40: 0 | M40: 0 | N40: 5139.050855 | O40: =IF(B40>C$6,"",H40-I40) -> 24551.7508 | P40: 0.750639678 | Q40: 0.750639678 | S40: =IFERROR((I40+J40+K40+L40+M40)*$J$12+('Simulador para calculos'!I40+'Simulador para calculos'!J40+'Simulador para calculos'!K40+'Simulador para calculos'!L40+'Simulador para calculos'!M40)*NOT($J$12),"") -> 5139.050855 | T40: 578 | U40: =IFERROR((1+'Simulación Cliente'!$E$21)^(T40/360),"") -> 1.38950433 | V40: 3698.48 | AB40: 19 | AC40: 2024-04-01 | AD40: 31 | AE40: 578 | AF40: 29677.08206 | AG40: 3981.098735 | AH40: 460.0697765 | AI40: 61.33467935 | AJ40: 28 | AK40: 0 | AL40: 4530.503191 | AM40: 25695.98332 | AN40: 0.7227035985 | AO40: 0.7227035985 | AS40: 19 | AT40: 2024-04-01 | AU40: 31 | AV40: 578 | AW40: 100800.6741 | AX40: 84.50240665 | AY40: 1562.665208 | AZ40: 208.3283328 | BA40: 28 | BB40: 0 | BC40: 1883.495948 | BD40: 100716.1717 | BE40: 0.7227035985 | BF40: 0.7227035985 | BJ40: 19 | BK40: 2024-04-01 | BL40: 31 | BM40: 578 | BN40: 100787.0459 | BO40: -184.3739729 | BP40: 1562.453936 | BQ40: 208.3001668 | BR40: 28 | BS40: 0 | BT40: 1614.38013 | BU40: 100971.4198 | BV40: 0.7227035985 | BW40: 0.7227035985 | CA40: 19 | CB40: 2024-04-01 | CC40: 31 | CD40: 578 | CE40: 101964.9994 | CF40: 8.31992574 | CG40: 1580.715193 | CH40: 210.7346852 | CI40: 28 | CJ40: 0 | CK40: 1827.769804 | CL40: 101956.6795 | CM40: 0.7227035985 | CN40: 0.7227035985 | CR40: 19 | CS40: 2024-04-01 | CT40: 31 | CU40: 578 | CV40: 101951.7737 | CW40: -252.6012917 | CX40: 1580.510162 | CY40: 210.7073512 | CZ40: 28 | DA40: 0 | DB40: 1566.616221 | DC40: 102204.375 | DD40: 0.7227035985 | DE40: 0.7227035985
B41: 20 | C41: 2025-06-24 | D41: 2 | E41: 2025-06-24 | F41: 31 | G41: 609 | H41: 24551.7508 | I41: 4758.436666 | J41: 380.6141885 | K41: 0 | L41: 0 | M41: 0 | N41: =IF(B41>C$6,"",IF(B41=C$6,H41+J41+K41+L41+M41,IF(AND(C$9=2,MONTH(C41)=7),2*C$17,IF(AND(C$10=2,MONTH(C41)=12),2*C$17,C$17)))) -> 5139.050855 | O41: =IF(B41>C$6,"",H41-I41) -> 19793.31414 | P41: 0.7391805119 | Q41: 0.7391805119 | S41: =IFERROR((I41+J41+K41+L41+M41)*$J$12+('Simulador para calculos'!I41+'Simulador para calculos'!J41+'Simulador para calculos'!K41+'Simulador para calculos'!L41+'Simulador para calculos'!M41)*NOT($J$12),"") -> 5139.050855 | T41: 609 | U41: =IFERROR((1+'Simulación Cliente'!$E$21)^(T41/360),"") -> 1.414236172 | V41: 3633.8 | AB41: 20 | AC41: 2024-05-01 | AD41: 30 | AE41: 608 | AF41: 25695.98332 | AG41: 4065.704507 | AH41: 385.4067166 | AI41: 51.39196664 | AJ41: 28 | AK41: 0 | AL41: 4530.503191 | AM41: 21630.27881 | AN41: 0.7106239057 | AO41: 0.7106239057 | AS41: 20 | AT41: 2024-05-01 | AU41: 30 | AV41: 608 | AW41: 100716.1717 | AX41: 143.4505031 | AY41: 1510.613101 | AZ41: 201.4323434 | BA41: 28 | BB41: 0 | BC41: 1883.495948 | BD41: 100572.7212 | BE41: 0.7106239057 | BF41: 0.7106239057 | BJ41: 20 | BK41: 2024-05-01 | BL41: 30 | BM41: 608 | BN41: 100971.4198 | BO41: -130.0042049 | BP41: 1514.441495 | BQ41: 201.9428397 | BR41: 28 | BS41: 0 | BT41: 1614.38013 | BU41: 101101.424 | BV41: 0.7106239057 | BW41: 0.7106239057 | CA41: 20 | CB41: 2024-05-01 | CC41: 30 | CD41: 608 | CE41: 101956.6795 | CF41: 66.63732191 | CG41: 1529.219123 | CH41: 203.913359 | CI41: 28 | CJ41: 0 | CK41: 1827.769804 | CL41: 101890.0422 | CM41: 0.7106239057 | CN41: 0.7106239057 | CR41: 20 | CS41: 2024-05-01 | CT41: 30 | CU41: 608 | CV41: 102204.375 | CW41: -198.7267667 | CX41: 1532.934238 | CY41: 204.4087501 | CZ41: 28 | DA41: 0 | DB41: 1566.616221 | DC41: 102403.1018 | DD41: 0.7106239057 | DE41: 0.7106239057
B42: 21 | C42: 2025-07-24 | D42: 4 | E42: 2025-07-24 | F42: 30 | G42: 639 | H42: 19793.31414 | I42: 4842.176588 | J42: 296.874267 | K42: 0 | L42: 0 | M42: 0 | N42: 5139.050855 | O42: 14951.13755 | P42: 0.7282575843 | Q42: 0.7282575843 | S42: =IFERROR((I42+J42+K42+L42+M42)*$J$12+('Simulador para calculos'!I42+'Simulador para calculos'!J42+'Simulador para calculos'!K42+'Simulador para calculos'!L42+'Simulador para calculos'!M42)*NOT($J$12),"") -> 5139.050855 | T42: 639 | U42: =IFERROR((1+'Simulación Cliente'!$E$21)^(T42/360),"") -> 1.438589264 | V42: 3572.29 | AB42: 21 | AC42: 2024-06-01 | AD42: 31 | AE42: 639 | AF42: 21630.27881 | AG42: 4122.475136 | AH42: 335.3239891 | AI42: 44.70406534 | AJ42: 28 | AK42: 0 | AL42: 4530.503191 | AM42: 17507.80368 | AN42: 0.6983536314 | AO42: 0.6983536314 | AS42: 21 | AT42: 2024-06-01 | AU42: 31 | AV42: 639 | AW42: 100572.7212 | AX42: 88.50737125 | AY42: 1559.131362 | AZ42: 207.8572144 | BA42: 28 | BB42: 0 | BC42: 1883.495948 | BD42: 100484.2138 | BE42: 0.6983536314 | BF42: 0.6983536314 | BJ42: 21 | BK42: 2024-06-01 | BL42: 31 | BM42: 639 | BN42: 101101.424 | BO42: -189.8973658 | BP42: 1567.327592 | BQ42: 208.9499033 | BR42: 28 | BS42: 0 | BT42: 1614.38013 | BU42: 101291.3214 | BV42: 0.6983536314 | BW42: 0.6983536314 | CA42: 21 | CB42: 2024-06-01 | CC42: 31 | CD42: 639 | CE42: 101890.0422 | CF42: 9.636869328 | CG42: 1579.553167 | CH42: 210.5797684 | CI42: 28 | CJ42: 0 | CK42: 1827.769804 | CL42: 101880.4053 | CM42: 0.6983536314 | CN42: 0.6983536314 | CR42: 21 | CS42: 2024-06-01 | CT42: 31 | CU42: 639 | CV42: 102403.1018 | CW42: -260.530793 | CX42: 1587.506887 | CY42: 211.6401269 | CZ42: 28 | DA42: 0 | DB42: 1566.616221 | DC42: 102663.6326 | DD42: 0.6983536314 | DE42: 0.6983536314
B43: 22 | C43: 2025-08-24 | D43: 7 | E43: 2025-08-25 | F43: 32 | G43: 671 | H43: 14951.13755 | I43: 4899.734121 | J43: 239.3167337 | K43: 0 | L43: 0 | M43: 0 | N43: 5139.050855 | O43: 10051.40343 | P43: 0.7167843115 | Q43: 0.7167843115 | S43: =IFERROR((I43+J43+K43+L43+M43)*$J$12+('Simulador para calculos'!I43+'Simulador para calculos'!J43+'Simulador para calculos'!K43+'Simulador para calculos'!L43+'Simulador para calculos'!M43)*NOT($J$12),"") -> 5139.050855 | T43: 671 | U43: =IFERROR((1+'Simulación Cliente'!$E$21)^(T43/360),"") -> 1.465028299 | V43: 3507.82 | AB43: 22 | AC43: 2024-07-01 | AD43: 30 | AE43: 669 | AF43: 17507.80368 | AG43: 8735.396226 | AH43: 262.5945482 | AI43: 35.01560735 | AJ43: 28 | AK43: 0 | AL43: 9061.006381 | AM43: 8772.407452 | AN43: 1.373361876 | AO43: 0.6866809382 | AS43: 22 | AT43: 2024-07-01 | AU43: 30 | AV43: 669 | AW43: 100484.2138 | AX43: 147.3934888 | AY43: 1507.134031 | AZ43: 200.9684277 | BA43: 28 | BB43: 0 | BC43: 1883.495948 | BD43: 100336.8204 | BE43: 0.6866809382 | BF43: 0.6866809382 | BJ43: 22 | BK43: 2024-07-01 | BL43: 30 | BM43: 669 | BN43: 101291.3214 | BO43: 1478.938009 | BP43: 1519.239607 | BQ43: 202.5826428 | BR43: 28 | BS43: 0 | BT43: 3228.760259 | BU43: 99812.3834 | BV43: 1.373361876 | BW43: 0.6866809382 | CA43: 22 | CB43: 2024-07-01 | CC43: 30 | CD43: 669 | CE43: 101880.4053 | CF43: 67.93388511 | CG43: 1528.075109 | CH43: 203.7608106 | CI43: 28 | CJ43: 0 | CK43: 1827.769804 | CL43: 101812.4714 | CM43: 0.6866809382 | CN43: 0.6866809382 | CR43: 22 | CS43: 2024-07-01 | CT43: 30 | CU43: 669 | CV43: 102663.6326 | CW43: 1360.082666 | CX43: 1539.822511 | CY43: 205.3272652 | CZ43: 28 | DA43: 0 | DB43: 3133.232442 | DC43: 101303.5499 | DD43: 1.373361876 | DE43: 0.6866809382
B44: 23 | C44: 2025-09-24 | D44: 3 | E44: 2025-09-24 | F44: 30 | G44: 701 | H44: 10051.40343 | I44: 4988.292725 | J44: 150.75813 | K44: 0 | L44: 0 | M44: 0 | N44: 5139.050855 | O44: 5063.110703 | P44: 0.7061923343 | Q44: 0.7061923343 | S44: =IFERROR((I44+J44+K44+L44+M44)*$J$12+('Simulador para calculos'!I44+'Simulador para calculos'!J44+'Simulador para calculos'!K44+'Simulador para calculos'!L44+'Simulador para calculos'!M44)*NOT($J$12),"") -> 5139.050855 | T44: 701 | U44: =IFERROR((1+'Simulación Cliente'!$E$21)^(T44/360),"") -> 1.49025603 | V44: 3448.43 | AB44: 23 | AC44: 2024-08-01 | AD44: 31 | AE44: 700 | AF44: 8772.407452 | AG44: 4348.378458 | AH44: 135.9944865 | AI44: 18.130246 | AJ44: 28 | AK44: 0 | AL44: 4530.503191 | AM44: 4424.028994 | AN44: 0.6748240849 | AO44: 0.6748240849 | AS44: 23 | AT44: 2024-08-01 | AU44: 31 | AV44: 700 | AW44: 100336.8204 | AX44: 92.65197547 | AY44: 1555.474303 | AZ44: 207.3696697 | BA44: 28 | BB44: 0 | BC44: 1883.495948 | BD44: 100244.1684 | BE44: 0.6748240849 | BF44: 0.6748240849 | BJ44: 23 | BK44: 2024-08-01 | BL44: 31 | BM44: 700 | BN44: 99812.3834 | BO44: -167.2498719 | BP44: 1547.344204 | BQ44: 206.2857972 | BR44: 28 | BS44: 0 | BT44: 1614.38013 | BU44: 99979.63327 | BV44: 0.6748240849 | BW44: 0.6748240849 | CA44: 23 | CB44: 2024-08-01 | CC44: 31 | CD44: 700 | CE44: 101812.4714 | CF44: 10.9997303 | CG44: 1578.350624 | CH44: 210.4194502 | CI44: 28 | CJ44: 0 | CK44: 1827.769804 | CL44: 101801.4717 | CM44: 0.6748240849 | CN44: 0.6748240849 | CR44: 23 | CS44: 2024-08-01 | CT44: 31 | CU44: 700 | CV44: 101303.5499 | CW44: -241.212477 | CX44: 1570.461054 | CY44: 209.367644 | CZ44: 28 | DA44: 0 | DB44: 1566.616221 | DC44: 101544.7624 | DD44: 0.6748240849 | DE44: 0.6748240849
B45: 24 | C45: 2025-10-24 | D45: 5 | E45: 2025-10-24 | F45: 30 | G45: 731 | H45: 5063.110703 | I45: 5063.110703 | J45: 75.94015172 | K45: 0 | L45: 0 | M45: 0 | N45: 5139.050855 | O45: 0 | P45: 0.6957568756 | Q45: 0.6957568756 | S45: =IFERROR((I45+J45+K45+L45+M45)*$J$12+('Simulador para calculos'!I45+'Simulador para calculos'!J45+'Simulador para calculos'!K45+'Simulador para calculos'!L45+'Simulador para calculos'!M45)*NOT($J$12),"") -> 5139.050855 | T45: 731 | U45: =IFERROR((1+'Simulación Cliente'!$E$21)^(T45/360),"") -> 1.515918181 | V45: 3390.06 | AB45: 24 | AC45: 2024-09-01 | AD45: 31 | AE45: 731 | AF45: 4424.028994 | AG45: 4424.028994 | AH45: 68.58363051 | AI45: 9.143297824 | AJ45: 28 | AK45: 0 | AL45: 4529.755922 | AM45: 0 | AN45: 0.6631719627 | AO45: 0.6631719627 | AS45: 24 | AT45: 2024-09-01 | AU45: 31 | AV45: 731 | AW45: 100244.1684 | AX45: 94.27980238 | AY45: 1554.037963 | AZ45: 207.1781826 | BA45: 28 | BB45: 0 | BC45: 1883.495948 | BD45: 100149.8886 | BE45: 0.6631719627 | BF45: 0.6631719627 | BJ45: 24 | BK45: 2024-09-01 | BL45: 31 | BM45: 731 | BN45: 99979.63327 | BO45: -170.1883288 | BP45: 1549.937 | BQ45: 206.6314585 | BR45: 28 | BS45: 0 | BT45: 1614.38013 | BU45: 100149.8216 | BV45: 0.6631719627 | BW45: 0.6631719627 | CA45: 24 | CB45: 2024-09-01 | CC45: 31 | CD45: 731 | CE45: 101801.4717 | CF45: 11.19298746 | CG45: 1578.1801 | CH45: 210.3967167 | CI45: 28 | CJ45: 0 | CK45: 1827.769804 | CL45: 101790.2787 | CM45: 0.6631719627 | CN45: 0.6631719627 | CR45: 24 | CS45: 2024-09-01 | CT45: 31 | CU45: 731 | CV45: 101544.7624 | CW45: -245.4504025 | CX45: 1574.200457 | CY45: 209.8661664 | CZ45: 28 | DA45: 0 | DB45: 1566.616221 | DC45: 101790.2128 | DD45: 0.6631719627 | DE45: 0.6631719627
B46: 25 | S46: =IFERROR((I46+J46+K46+L46+M46)*$J$12+('Simulador para calculos'!I46+'Simulador para calculos'!J46+'Simulador para calculos'!K46+'Simulador para calculos'!L46+'Simulador para calculos'!M46)*NOT($J$12),"") ->  | U46: =IFERROR((1+'Simulación Cliente'!$E$21)^(T46/360),"") ->  | AB46: 25 | AS46: 25 | AT46: 2024-10-01 | AU46: 30 | AV46: 761 | AW46: 100149.8886 | AX46: 153.0765885 | AY46: 1502.119582 | AZ46: 200.2997772 | BA46: 28 | BB46: 0 | BC46: 1883.495948 | BD46: 99996.81199 | BE46: 0.6520873166 | BF46: 0.6520873166 | BJ46: 25 | BK46: 2024-10-01 | BL46: 30 | BM46: 761 | BN46: 100149.8216 | BO46: -116.038091 | BP46: 1502.118578 | BQ46: 200.2996432 | BR46: 28 | BS46: 0 | BT46: 1614.38013 | BU46: 100265.8597 | BV46: 0.6520873166 | BW46: 0.6520873166 | CA46: 25 | CB46: 2024-10-01 | CC46: 30 | CD46: 761 | CE46: 101790.2787 | CF46: 69.4659215 | CG46: 1526.723325 | CH46: 203.5805574 | CI46: 28 | CJ46: 0 | CK46: 1827.769804 | CL46: 101720.8128 | CM46: 0.6520873166 | CN46: 0.6520873166 | CR46: 25 | CS46: 2024-10-01 | CT46: 30 | CU46: 761 | CV46: 101790.2128 | CW46: -191.6865412 | CX46: 1526.722337 | CY46: 203.5804256 | CZ46: 28 | DA46: 0 | DB46: 1566.616221 | DC46: 101981.8993 | DD46: 0.6520873166 | DE46: 0.6520873166
B47: 26 | S47: =IFERROR((I47+J47+K47+L47+M47)*$J$12+('Simulador para calculos'!I47+'Simulador para calculos'!J47+'Simulador para calculos'!K47+'Simulador para calculos'!L47+'Simulador para calculos'!M47)*NOT($J$12),"") ->  | U47: =IFERROR((1+'Simulación Cliente'!$E$21)^(T47/360),"") ->  | AB47: 26 | AS47: 26 | AT47: 2024-11-01 | AU47: 31 | AV47: 792 | AW47: 99996.81199 | AX47: 98.62567184 | AY47: 1550.203314 | AZ47: 206.6669624 | BA47: 28 | BB47: 0 | BC47: 1883.495948 | BD47: 99898.18632 | BE47: 0.640827788 | BF47: 0.640827788 | BJ47: 26 | BK47: 2024-11-01 | BL47: 31 | BM47: 792 | BN47: 100265.8597 | BO47: -175.2171161 | BP47: 1554.374233 | BQ47: 207.2230128 | BR47: 28 | BS47: 0 | BT47: 1614.38013 | BU47: 100441.0768 | BV47: 0.640827788 | BW47: 0.640827788 | CA47: 26 | CB47: 2024-11-01 | CC47: 31 | CD47: 792 | CE47: 101720.8128 | CF47: 12.61010503 | CG47: 1576.929683 | CH47: 210.230016 | CI47: 28 | CJ47: 0 | CK47: 1827.769804 | CL47: 101708.2027 | CM47: 0.640827788 | CN47: 0.640827788 | CR47: 26 | CS47: 2024-11-01 | CT47: 31 | CU47: 792 | CV47: 101981.8993 | CW47: -253.1305763 | CX47: 1580.977185 | CY47: 210.7696129 | CZ47: 28 | DA47: 0 | DB47: 1566.616221 | DC47: 102235.0299 | DD47: 0.640827788 | DE47: 0.640827788
B48: 27 | S48: =IFERROR((I48+J48+K48+L48+M48)*$J$12+('Simulador para calculos'!I48+'Simulador para calculos'!J48+'Simulador para calculos'!K48+'Simulador para calculos'!L48+'Simulador para calculos'!M48)*NOT($J$12),"") ->  | U48: =IFERROR((1+'Simulación Cliente'!$E$21)^(T48/360),"") ->  | AB48: 27 | AS48: 27 | AT48: 2024-12-01 | AU48: 30 | AV48: 822 | AW48: 99898.18632 | AX48: 157.3552034 | AY48: 1498.344372 | AZ48: 199.7963726 | BA48: 28 | BB48: 0 | BC48: 1883.495948 | BD48: 99740.83112 | BE48: 0.6301166156 | BF48: 0.6301166156 | BJ48: 27 | BK48: 2024-12-01 | BL48: 30 | BM48: 822 | BN48: 100441.0768 | BO48: 1493.391075 | BP48: 1506.487031 | BQ48: 200.8821536 | BR48: 28 | BS48: 0 | BT48: 3228.760259 | BU48: 98947.68573 | BV48: 1.260233231 | BW48: 0.6301166156 | CA48: 27 | CB48: 2024-12-01 | CC48: 30 | CD48: 822 | CE48: 101708.2027 | CF48: 70.86110843 | CG48: 1525.492291 | CH48: 203.4164054 | CI48: 28 | CJ48: 0 | CK48: 1827.769804 | CL48: 101637.3416 | CM48: 0.6301166156 | CN48: 0.6301166156 | CR48: 27 | CS48: 2024-12-01 | CT48: 30 | CU48: 822 | CV48: 102235.0299 | CW48: 1367.368361 | CX48: 1533.394022 | CY48: 204.4700598 | CZ48: 28 | DA48: 0 | DB48: 3133.232442 | DC48: 100867.6616 | DD48: 1.260233231 | DE48: 0.6301166156
B49: 28 | S49: =IFERROR((I49+J49+K49+L49+M49)*$J$12+('Simulador para calculos'!I49+'Simulador para calculos'!J49+'Simulador para calculos'!K49+'Simulador para calculos'!L49+'Simulador para calculos'!M49)*NOT($J$12),"") ->  | U49: =IFERROR((1+'Simulación Cliente'!$E$21)^(T49/360),"") ->  | AB49: 28 | AS49: 28 | AT49: 2025-01-01 | AU49: 31 | AV49: 853 | AW49: 99740.83112 | AX49: 103.1230671 | AY49: 1546.234963 | AZ49: 206.1379176 | BA49: 28 | BB49: 0 | BC49: 1883.495948 | BD49: 99637.70805 | BE49: 0.6192364529 | BF49: 0.6192364529 | BJ49: 28 | BK49: 2025-01-01 | BL49: 31 | BM49: 853 | BN49: 98947.68573 | BO49: -152.0577713 | BP49: 1533.939205 | BQ49: 204.4986959 | BR49: 28 | BS49: 0 | BT49: 1614.38013 | BU49: 99099.7435 | BV49: 0.6192364529 | BW49: 0.6192364529 | CA49: 28 | CB49: 2025-01-01 | CC49: 31 | CD49: 853 | CE49: 101637.3416 | CF49: 14.07663272 | CG49: 1575.635669 | CH49: 210.0575031 | CI49: 28 | CJ49: 0 | CK49: 1827.769804 | CL49: 101623.265 | CM49: 0.6192364529 | CN49: 0.6192364529 | CR49: 28 | CS49: 2025-01-01 | CT49: 31 | CU49: 853 | CV49: 100867.6616 | CW49: -233.5542398 | CX49: 1563.703683 | CY49: 208.4667781 | CZ49: 28 | DA49: 0 | DB49: 1566.616221 | DC49: 101101.2158 | DD49: 0.6192364529 | DE49: 0.6192364529
B50: 29 | S50: =IFERROR((I50+J50+K50+L50+M50)*$J$12+('Simulador para calculos'!I50+'Simulador para calculos'!J50+'Simulador para calculos'!K50+'Simulador para calculos'!L50+'Simulador para calculos'!M50)*NOT($J$12),"") ->  | U50: =IFERROR((1+'Simulación Cliente'!$E$21)^(T50/360),"") ->  | AB50: 29 | AS50: 29 | AT50: 2025-02-01 | AU50: 31 | AV50: 884 | AW50: 99637.70805 | AX50: 104.9348634 | AY50: 1544.636295 | AZ50: 205.9247895 | BA50: 28 | BB50: 0 | BC50: 1883.495948 | BD50: 99532.77319 | BE50: 0.608544157 | BF50: 0.608544157 | BJ50: 29 | BK50: 2025-02-01 | BL50: 31 | BM50: 884 | BN50: 99099.7435 | BO50: -154.7293142 | BP50: 1536.296485 | BQ50: 204.812959 | BR50: 28 | BS50: 0 | BT50: 1614.38013 | BU50: 99254.47282 | BV50: 0.608544157 | BW50: 0.608544157 | CA50: 29 | CB50: 2025-02-01 | CC50: 31 | CD50: 884 | CE50: 101623.265 | CF50: 14.32394878 | CG50: 1575.417445 | CH50: 210.0284104 | CI50: 28 | CJ50: 0 | CK50: 1827.769804 | CL50: 101608.941 | CM50: 0.608544157 | CN50: 0.608544157 | CR50: 29 | CS50: 2025-02-01 | CT50: 31 | CU50: 884 | CV50: 101101.2158 | CW50: -237.6576156 | CX50: 1567.324364 | CY50: 208.9494729 | CZ50: 28 | DA50: 0 | DB50: 1566.616221 | DC50: 101338.8734 | DD50: 0.608544157 | DE50: 0.608544157
B51: 30 | S51: =IFERROR((I51+J51+K51+L51+M51)*$J$12+('Simulador para calculos'!I51+'Simulador para calculos'!J51+'Simulador para calculos'!K51+'Simulador para calculos'!L51+'Simulador para calculos'!M51)*NOT($J$12),"") ->  | U51: =IFERROR((1+'Simulación Cliente'!$E$21)^(T51/360),"") ->  | AB51: 30 | AS51: 30 | AT51: 2025-03-01 | AU51: 28 | AV51: 912 | AW51: 99532.77319 | AX51: 277.0673374 | AY51: 1392.646478 | AZ51: 185.7821324 | BA51: 28 | BB51: 0 | BC51: 1883.495948 | BD51: 99255.70585 | BE51: 0.5990453755 | BF51: 0.5990453755 | BJ51: 30 | BK51: 2025-03-01 | BL51: 28 | BM51: 912 | BN51: 99254.47282 | BO51: 12.36491244 | BP51: 1388.752544 | BQ51: 185.262673 | BR51: 28 | BS51: 0 | BT51: 1614.38013 | BU51: 99242.1079 | BV51: 0.5990453755 | BW51: 0.5990453755 | CA51: 30 | CB51: 2025-03-01 | CC51: 28 | CD51: 912 | CE51: 101608.941 | CF51: 188.4165343 | CG51: 1421.695883 | CH51: 189.6573875 | CI51: 28 | CJ51: 0 | CK51: 1827.769804 | CL51: 101420.5245 | CM51: 0.5990453755 | CN51: 0.5990453755 | CR51: 30 | CS51: 2025-03-01 | CT51: 28 | CU51: 912 | CV51: 101338.8734 | CW51: -68.45421431 | CX51: 1417.917141 | CY51: 189.1532949 | CZ51: 28 | DA51: 0 | DB51: 1566.616221 | DC51: 101407.3276 | DD51: 0.5990453755 | DE51: 0.5990453755
B52: 31 | S52: =IFERROR((I52+J52+K52+L52+M52)*$J$12+('Simulador para calculos'!I52+'Simulador para calculos'!J52+'Simulador para calculos'!K52+'Simulador para calculos'!L52+'Simulador para calculos'!M52)*NOT($J$12),"") ->  | U52: =IFERROR((1+'Simulación Cliente'!$E$21)^(T52/360),"") ->  | AB52: 31 | AS52: 31 | AT52: 2025-04-01 | AU52: 31 | AV52: 943 | AW52: 99255.70585 | AX52: 111.6463605 | AY52: 1538.714295 | AZ52: 205.135292 | BA52: 28 | BB52: 0 | BC52: 1883.495948 | BD52: 99144.05949 | BE52: 0.5887017169 | BF52: 0.5887017169 | BJ52: 31 | BK52: 2025-04-01 | BL52: 31 | BM52: 943 | BN52: 99242.1079 | BO52: -157.2305518 | BP52: 1538.503493 | BQ52: 205.1071886 | BR52: 28 | BS52: 0 | BT52: 1614.38013 | BU52: 99399.33846 | BV52: 0.5887017169 | BW52: 0.5887017169 | CA52: 31 | CB52: 2025-04-01 | CC52: 31 | CD52: 943 | CE52: 101420.5245 | CF52: 17.88594962 | CG52: 1572.274455 | CH52: 209.6093995 | CI52: 28 | CJ52: 0 | CK52: 1827.769804 | CL52: 101402.6385 | CM52: 0.5887017169 | CN52: 0.5887017169 | CR52: 31 | CS52: 2025-04-01 | CT52: 31 | CU52: 943 | CV52: 101407.3276 | CW52: -243.0357748 | CX52: 1572.069871 | CY52: 209.5821251 | CZ52: 28 | DA52: 0 | DB52: 1566.616221 | DC52: 101650.3634 | DD52: 0.5887017169 | DE52: 0.5887017169
B53: 32 | S53: =IFERROR((I53+J53+K53+L53+M53)*$J$12+('Simulador para calculos'!I53+'Simulador para calculos'!J53+'Simulador para calculos'!K53+'Simulador para calculos'!L53+'Simulador para calculos'!M53)*NOT($J$12),"") ->  | U53: =IFERROR((1+'Simulación Cliente'!$E$21)^(T53/360),"") ->  | AB53: 32 | AS53: 32 | AT53: 2025-05-01 | AU53: 30 | AV53: 973 | AW53: 99144.05949 | AX53: 170.1743901 | AY53: 1487.033439 | AZ53: 198.288119 | BA53: 28 | BB53: 0 | BC53: 1883.495948 | BD53: 98973.8851 | BE53: 0.5788618103 | BF53: 0.5788618103 | BJ53: 32 | BK53: 2025-05-01 | BL53: 30 | BM53: 973 | BN53: 99399.33846 | BO53: -103.2808424 | BP53: 1490.862295 | BQ53: 198.7986769 | BR53: 28 | BS53: 0 | BT53: 1614.38013 | BU53: 99502.6193 | BV53: 0.5788618103 | BW53: 0.5788618103 | CA53: 32 | CB53: 2025-05-01 | CC53: 30 | CD53: 973 | CE53: 101402.6385 | CF53: 76.05530658 | CG53: 1520.909221 | CH53: 202.805277 | CI53: 28 | CJ53: 0 | CK53: 1827.769804 | CL53: 101326.5832 | CM53: 0.5788618103 | CN53: 0.5788618103 | CR53: 32 | CS53: 2025-05-01 | CT53: 30 | CU53: 973 | CV53: 101650.3634 | CW53: -189.3092812 | CX53: 1524.624776 | CY53: 203.3007268 | CZ53: 28 | DA53: 0 | DB53: 1566.616221 | DC53: 101839.6727 | DD53: 0.5788618103 | DE53: 0.5788618103
B54: 33 | S54: =IFERROR((I54+J54+K54+L54+M54)*$J$12+('Simulador para calculos'!I54+'Simulador para calculos'!J54+'Simulador para calculos'!K54+'Simulador para calculos'!L54+'Simulador para calculos'!M54)*NOT($J$12),"") ->  | U54: =IFERROR((1+'Simulación Cliente'!$E$21)^(T54/360),"") ->  | AB54: 33 | AS54: 33 | AT54: 2025-06-01 | AU54: 31 | AV54: 1004 | AW54: 98973.8851 | AX54: 116.5977433 | AY54: 1534.345361 | AZ54: 204.552843 | BA54: 28 | BB54: 0 | BC54: 1883.495948 | BD54: 98857.28735 | BE54: 0.5688666594 | BF54: 0.5688666594 | BJ54: 33 | BK54: 2025-06-01 | BL54: 31 | BM54: 1004 | BN54: 99502.6193 | BO54: -161.807545 | BP54: 1542.542078 | BQ54: 205.6455968 | BR54: 28 | BS54: 0 | BT54: 1614.38013 | BU54: 99664.42684 | BV54: 0.5688666594 | BW54: 0.5688666594 | CA54: 33 | CB54: 2025-06-01 | CC54: 31 | CD54: 1004 | CE54: 101326.5832 | CF54: 19.53642825 | CG54: 1570.818128 | CH54: 209.4152478 | CI54: 28 | CJ54: 0 | CK54: 1827.769804 | CL54: 101307.0468 | CM54: 0.5688666594 | CN54: 0.5688666594 | CR54: 33 | CS54: 2025-06-01 | CT54: 31 | CU54: 1004 | CV54: 101839.6727 | CW54: -250.6317588 | CX54: 1578.772312 | CY54: 210.475668 | CZ54: 28 | DA54: 0 | DB54: 1566.616221 | DC54: 102090.3044 | DD54: 0.5688666594 | DE54: 0.5688666594
B55: 34 | S55: =IFERROR((I55+J55+K55+L55+M55)*$J$12+('Simulador para calculos'!I55+'Simulador para calculos'!J55+'Simulador para calculos'!K55+'Simulador para calculos'!L55+'Simulador para calculos'!M55)*NOT($J$12),"") ->  | U55: =IFERROR((1+'Simulación Cliente'!$E$21)^(T55/360),"") ->  | AB55: 34 | AS55: 34 | AT55: 2025-07-01 | AU55: 30 | AV55: 1034 | AW55: 98857.28735 | AX55: 175.0491477 | AY55: 1482.732225 | AZ55: 197.7145747 | BA55: 28 | BB55: 0 | BC55: 1883.495948 | BD55: 98682.23821 | BE55: 0.5593582876 | BF55: 0.5593582876 | BJ55: 34 | BK55: 2025-07-01 | BL55: 30 | BM55: 1034 | BN55: 99664.42684 | BO55: 1506.593125 | BP55: 1494.83828 | BQ55: 199.3288537 | BR55: 28 | BS55: 0 | BT55: 3228.760259 | BU55: 98157.83372 | BV55: 1.118716575 | BW55: 0.5593582876 | CA55: 34 | CB55: 2025-07-01 | CC55: 30 | CD55: 1034 | CE55: 101307.0468 | CF55: 77.68024318 | CG55: 1519.475468 | CH55: 202.6140936 | CI55: 28 | CJ55: 0 | CK55: 1827.769804 | CL55: 101229.3665 | CM55: 0.5593582876 | CN55: 0.5593582876 | CR55: 34 | CS55: 2025-07-01 | CT55: 30 | CU55: 1034 | CV55: 102090.3044 | CW55: 1369.828508 | CX55: 1531.223326 | CY55: 204.1806089 | CZ55: 28 | DA55: 0 | DB55: 3133.232442 | DC55: 100720.4759 | DD55: 1.118716575 | DE55: 0.5593582876
B56: 35 | S56: =IFERROR((I56+J56+K56+L56+M56)*$J$12+('Simulador para calculos'!I56+'Simulador para calculos'!J56+'Simulador para calculos'!K56+'Simulador para calculos'!L56+'Simulador para calculos'!M56)*NOT($J$12),"") ->  | U56: =IFERROR((1+'Simulación Cliente'!$E$21)^(T56/360),"") ->  | AB56: 35 | AS56: 35 | AT56: 2025-08-01 | AU56: 31 | AV56: 1065 | AW56: 98682.23821 | AX56: 121.7217642 | AY56: 1529.824098 | AZ56: 203.950086 | BA56: 28 | BB56: 0 | BC56: 1883.495948 | BD56: 98560.51644 | BE56: 0.5496999022 | BF56: 0.5496999022 | BJ56: 35 | BK56: 2025-08-01 | BL56: 31 | BM56: 1065 | BN56: 98157.83372 | BO56: -138.1806536 | BP56: 1521.694503 | BQ56: 202.8662806 | BR56: 28 | BS56: 0 | BT56: 1614.38013 | BU56: 98296.01437 | BV56: 0.5496999022 | BW56: 0.5496999022 | CA56: 35 | CB56: 2025-08-01 | CC56: 31 | CD56: 1065 | CE56: 101229.3665 | CF56: 21.2444535 | CG56: 1569.311024 | CH56: 209.2143266 | CI56: 28 | CJ56: 0 | CK56: 1827.769804 | CL56: 101208.1221 | CM56: 0.5496999022 | CN56: 0.5496999022 | CR56: 35 | CS56: 2025-08-01 | CT56: 31 | CU56: 1065 | CV56: 100720.4759 | CW56: -230.9682969 | CX56: 1561.421934 | CY56: 208.1625843 | CZ56: 28 | DA56: 0 | DB56: 1566.616221 | DC56: 100951.4442 | DD56: 0.5496999022 | DE56: 0.5496999022
B57: 36 | S57: =IFERROR((I57+J57+K57+L57+M57)*$J$12+('Simulador para calculos'!I57+'Simulador para calculos'!J57+'Simulador para calculos'!K57+'Simulador para calculos'!L57+'Simulador para calculos'!M57)*NOT($J$12),"") ->  | U57: =IFERROR((1+'Simulación Cliente'!$E$21)^(T57/360),"") ->  | AB57: 36 | AS57: 36 | AT57: 2025-09-01 | AU57: 31 | AV57: 1096 | AW57: 98560.51644 | AX57: 123.8603259 | AY57: 1527.937103 | AZ57: 203.6985193 | BA57: 28 | BB57: 0 | BC57: 1883.495948 | BD57: 98436.65612 | BE57: 0.5402082872 | BF57: 0.5402082872 | BJ57: 36 | BK57: 2025-09-01 | BL57: 31 | BM57: 1096 | BN57: 98296.01437 | BO57: -140.6083858 | BP57: 1523.836652 | BQ57: 203.1518635 | BR57: 28 | BS57: 0 | BT57: 1614.38013 | BU57: 98436.62276 | BV57: 0.5402082872 | BW57: 0.5402082872 | CA57: 36 | CB57: 2025-09-01 | CC57: 31 | CD57: 1096 | CE57: 101208.1221 | CF57: 21.61770289 | CG57: 1568.981682 | CH57: 209.1704199 | CI57: 28 | CJ57: 0 | CK57: 1827.769804 | CL57: 101186.5044 | CM57: 0.5402082872 | CN57: 0.5402082872 | CR57: 36 | CS57: 2025-09-01 | CT57: 31 | CU57: 1096 | CV57: 100951.4442 | CW57: -235.0262396 | CX57: 1565.002526 | CY57: 208.6399347 | CZ57: 28 | DA57: 0 | DB57: 1566.616221 | DC57: 101186.4705 | DD57: 0.5402082872 | DE57: 0.5402082872
B58: 37 | S58: =IFERROR((I58+J58+K58+L58+M58)*$J$12+('Simulador para calculos'!I58+'Simulador para calculos'!J58+'Simulador para calculos'!K58+'Simulador para calculos'!L58+'Simulador para calculos'!M58)*NOT($J$12),"") ->  | U58: =IFERROR((1+'Simulación Cliente'!$E$21)^(T58/360),"") ->  | AB58: 37 | AS58: 37 | AT58: 2025-10-01 | AU58: 30 | AV58: 1126 | AW58: 98436.65612 | AX58: 182.199338 | AY58: 1476.423298 | AZ58: 196.8733122 | BA58: 28 | BB58: 0 | BC58: 1883.495948 | BD58: 98254.45678 | BE58: 0.5311789282 | BF58: 0.5311789282 | BJ58: 37 | BK58: 2025-10-01 | BL58: 30 | BM58: 1126 | BN58: 98436.62276 | BO58: -86.91591311 | BP58: 1476.422797 | BQ58: 196.8732455 | BR58: 28 | BS58: 0 | BT58: 1614.38013 | BU58: 98523.53867 | BV58: 0.5311789282 | BW58: 0.5311789282 | CA58: 37 | CB58: 2025-10-01 | CC58: 30 | CD58: 1126 | CE58: 101186.5044 | CF58: 79.72930901 | CG58: 1517.667487 | CH58: 202.3730088 | CI58: 28 | CJ58: 0 | CK58: 1827.769804 | CL58: 101106.7751 | CM58: 0.5311789282 | CN58: 0.5311789282 | CR58: 37 | CS58: 2025-10-01 | CT58: 30 | CU58: 1126 | CV58: 101186.4705 | CW58: -181.4236977 | CX58: 1517.666978 | CY58: 202.3729409 | CZ58: 28 | DA58: 0 | DB58: 1566.616221 | DC58: 101367.8942 | DD58: 0.5311789282 | DE58: 0.5311789282
B59: 38 | S59: =IFERROR((I59+J59+K59+L59+M59)*$J$12+('Simulador para calculos'!I59+'Simulador para calculos'!J59+'Simulador para calculos'!K59+'Simulador para calculos'!L59+'Simulador para calculos'!M59)*NOT($J$12),"") ->  | U59: =IFERROR((1+'Simulación Cliente'!$E$21)^(T59/360),"") ->  | AB59: 38 | AS59: 38 | AT59: 2025-11-01 | AU59: 31 | AV59: 1157 | AW59: 98254.45678 | AX59: 129.2375686 | AY59: 1523.192404 | AZ59: 203.065975 | BA59: 28 | BB59: 0 | BC59: 1883.495948 | BD59: 98125.21921 | BE59: 0.5220071131 | BF59: 0.5220071131 | BJ59: 38 | BK59: 2025-11-01 | BL59: 31 | BM59: 1157 | BN59: 98523.53867 | BO59: -144.6058201 | BP59: 1527.363854 | BQ59: 203.6220961 | BR59: 28 | BS59: 0 | BT59: 1614.38013 | BU59: 98668.14449 | BV59: 0.5220071131 | BW59: 0.5220071131 | CA59: 38 | CB59: 2025-11-01 | CC59: 31 | CD59: 1157 | CE59: 101106.7751 | CF59: 23.39829519 | CG59: 1567.410547 | CH59: 208.9609625 | CI59: 28 | CJ59: 0 | CK59: 1827.769804 | CL59: 101083.3768 | CM59: 0.5220071131 | CN59: 0.5220071131 | CR59: 38 | CS59: 2025-11-01 | CT59: 31 | CU59: 1157 | CV59: 101367.8942 | CW59: -242.342958 | CX59: 1571.458553 | CY59: 209.5006266 | CZ59: 28 | DA59: 0 | DB59: 1566.616221 | DC59: 101610.2371 | DD59: 0.5220071131 | DE59: 0.5220071131
B60: 39 | S60: =IFERROR((I60+J60+K60+L60+M60)*$J$12+('Simulador para calculos'!I60+'Simulador para calculos'!J60+'Simulador para calculos'!K60+'Simulador para calculos'!L60+'Simulador para calculos'!M60)*NOT($J$12),"") ->  | U60: =IFERROR((1+'Simulación Cliente'!$E$21)^(T60/360),"") ->  | AB60: 39 | AS60: 39 | AT60: 2025-12-01 | AU60: 30 | AV60: 1187 | AW60: 98125.21921 | AX60: 187.493365 | AY60: 1471.752144 | AZ60: 196.2504384 | BA60: 28 | BB60: 0 | BC60: 1883.495948 | BD60: 97937.72585 | BE60: 0.5132819793 | BF60: 0.5132819793 | BJ60: 39 | BK60: 2025-12-01 | BL60: 30 | BM60: 1187 | BN60: 98668.14449 | BO60: 1523.528645 | BP60: 1479.895326 | BQ60: 197.336289 | BR60: 28 | BS60: 0 | BT60: 3228.760259 | BU60: 97144.61585 | BV60: 1.026563959 | BW60: 0.5132819793 | CA60: 39 | CB60: 2025-12-01 | CC60: 30 | CD60: 1187 | CE60: 101083.3768 | CF60: 81.48234571 | CG60: 1516.120705 | CH60: 202.1667536 | CI60: 28 | CJ60: 0 | CK60: 1827.769804 | CL60: 101001.8944 | CM60: 0.5132819793 | CN60: 0.5132819793 | CR60: 39 | CS60: 2025-12-01 | CT60: 30 | CU60: 1187 | CV60: 101610.2371 | CW60: 1377.989035 | CX60: 1524.022933 | CY60: 203.2204743 | CZ60: 28 | DA60: 0 | DB60: 3133.232442 | DC60: 100232.2481 | DD60: 1.026563959 | DE60: 0.5132819793
B61: 40 | S61: =IFERROR((I61+J61+K61+L61+M61)*$J$12+('Simulador para calculos'!I61+'Simulador para calculos'!J61+'Simulador para calculos'!K61+'Simulador para calculos'!L61+'Simulador para calculos'!M61)*NOT($J$12),"") ->  | U61: =IFERROR((1+'Simulación Cliente'!$E$21)^(T61/360),"") ->  | AB61: 40 | AS61: 40 | AT61: 2026-01-01 | AU61: 31 | AV61: 1218 | AW61: 97937.72585 | AX61: 134.8022976 | AY61: 1518.282274 | AZ61: 202.4113759 | BA61: 28 | BB61: 0 | BC61: 1883.495948 | BD61: 97802.92355 | BE61: 0.504419189 | BF61: 0.504419189 | BJ61: 40 | BK61: 2026-01-01 | BL61: 31 | BM61: 1218 | BN61: 97144.61585 | BO61: -120.3791625 | BP61: 1505.987065 | BQ61: 200.7722273 | BR61: 28 | BS61: 0 | BT61: 1614.38013 | BU61: 97264.99501 | BV61: 0.504419189 | BW61: 0.504419189 | CA61: 40 | CB61: 2026-01-01 | CC61: 31 | CD61: 1218 | CE61: 101001.8944 | CF61: 25.24097074 | CG61: 1565.784632 | CH61: 208.7442019 | CI61: 28 | CJ61: 0 | CK61: 1827.769804 | CL61: 100976.6535 | CM61: 0.504419189 | CN61: 0.504419189 | CR61: 40 | CS61: 2026-01-01 | CT61: 31 | CU61: 1218 | CV61: 100232.2481 | CW61: -222.3904936 | CX61: 1553.853168 | CY61: 207.1535465 | CZ61: 28 | DA61: 0 | DB61: 1566.616221 | DC61: 100454.6386 | DD61: 0.504419189 | DE61: 0.504419189
B62: 41 | S62: =IFERROR((I62+J62+K62+L62+M62)*$J$12+('Simulador para calculos'!I62+'Simulador para calculos'!J62+'Simulador para calculos'!K62+'Simulador para calculos'!L62+'Simulador para calculos'!M62)*NOT($J$12),"") ->  | U62: =IFERROR((1+'Simulación Cliente'!$E$21)^(T62/360),"") ->  | AB62: 41 | AS62: 41 | AT62: 2026-02-01 | AU62: 31 | AV62: 1249 | AW62: 97802.92355 | AX62: 137.1706746 | AY62: 1516.192498 | AZ62: 202.1327752 | BA62: 28 | BB62: 0 | BC62: 1883.495948 | BD62: 97665.75287 | BE62: 0.4957094316 | BF62: 0.4957094316 | BJ62: 41 | BK62: 2026-02-01 | BL62: 31 | BM62: 1249 | BN62: 97264.99501 | BO62: -122.4941356 | BP62: 1507.853246 | BQ62: 201.0210192 | BR62: 28 | BS62: 0 | BT62: 1614.38013 | BU62: 97387.48914 | BV62: 0.4957094316 | BW62: 0.4957094316 | CA62: 41 | CB62: 2026-02-01 | CC62: 31 | CD62: 1249 | CE62: 100976.6535 | CF62: 25.68443599 | CG62: 1565.393333 | CH62: 208.6920355 | CI62: 28 | CJ62: 0 | CK62: 1827.769804 | CL62: 100950.969 | CM62: 0.4957094316 | CN62: 0.4957094316 | CR62: 41 | CS62: 2026-02-01 | CT62: 31 | CU62: 1249 | CV62: 100454.6386 | CW62: -226.2977306 | CX62: 1557.300783 | CY62: 207.6131688 | CZ62: 28 | DA62: 0 | DB62: 1566.616221 | DC62: 100680.9363 | DD62: 0.4957094316 | DE62: 0.4957094316
B63: 42 | S63: =IFERROR((I63+J63+K63+L63+M63)*$J$12+('Simulador para calculos'!I63+'Simulador para calculos'!J63+'Simulador para calculos'!K63+'Simulador para calculos'!L63+'Simulador para calculos'!M63)*NOT($J$12),"") ->  | U63: =IFERROR((1+'Simulación Cliente'!$E$21)^(T63/360),"") ->  | AB63: 42 | AS63: 42 | AT63: 2026-03-01 | AU63: 28 | AV63: 1277 | AW63: 97665.75287 | AX63: 306.6752563 | AY63: 1366.523431 | AZ63: 182.29726 | BA63: 28 | BB63: 0 | BC63: 1883.495948 | BD63: 97359.07762 | BE63: 0.4879718903 | BF63: 0.4879718903 | BJ63: 42 | BK63: 2026-03-01 | BL63: 28 | BM63: 1277 | BN63: 97387.48914 | BO63: 41.9722503 | BP63: 1362.63001 | BQ63: 181.777869 | BR63: 28 | BS63: 0 | BT63: 1614.38013 | BU63: 97345.51689 | BV63: 0.4879718903 | BW63: 0.4879718903 | CA63: 42 | CB63: 2026-03-01 | CC63: 28 | CD63: 1277 | CE63: 100950.969 | CF63: 198.8509044 | CG63: 1412.489645 | CH63: 188.429255 | CI63: 28 | CJ63: 0 | CK63: 1827.769804 | CL63: 100752.1181 | CM63: 0.4879718903 | CN63: 0.4879718903 | CR63: 42 | CS63: 2026-03-01 | CT63: 28 | CU63: 1277 | CV63: 100680.9363 | CW63: -58.02039734 | CX63: 1408.711391 | CY63: 187.9252275 | CZ63: 28 | DA63: 0 | DB63: 1566.616221 | DC63: 100738.9567 | DD63: 0.4879718903 | DE63: 0.4879718903
B64: 43 | S64: =IFERROR((I64+J64+K64+L64+M64)*$J$12+('Simulador para calculos'!I64+'Simulador para calculos'!J64+'Simulador para calculos'!K64+'Simulador para calculos'!L64+'Simulador para calculos'!M64)*NOT($J$12),"") ->  | U64: =IFERROR((1+'Simulación Cliente'!$E$21)^(T64/360),"") ->  | AB64: 43 | AS64: 43 | AT64: 2026-04-01 | AU64: 31 | AV64: 1308 | AW64: 97359.07762 | AX64: 144.9687204 | AY64: 1509.311764 | AZ64: 201.215463 | BA64: 28 | BB64: 0 | BC64: 1883.495948 | BD64: 97214.1089 | BE64: 0.4795461268 | BF64: 0.4795461268 | BJ64: 43 | BK64: 2026-04-01 | BL64: 31 | BM64: 1308 | BN64: 97345.51689 | BO64: -123.9088458 | BP64: 1509.101539 | BQ64: 201.1874366 | BR64: 28 | BS64: 0 | BT64: 1614.38013 | BU64: 97469.42574 | BV64: 0.4795461268 | BW64: 0.4795461268 | CA64: 43 | CB64: 2026-04-01 | CC64: 31 | CD64: 1308 | CE64: 100752.1181 | CF64: 29.6293564 | CG64: 1561.912468 | CH64: 208.2279804 | CI64: 28 | CJ64: 0 | CK64: 1827.769804 | CL64: 100722.4888 | CM64: 0.4795461268 | CN64: 0.4795461268 | CR64: 43 | CS64: 2026-04-01 | CT64: 31 | CU64: 1308 | CV64: 100738.9567 | CW64: -231.2929906 | CX64: 1561.708432 | CY64: 208.2007792 | CZ64: 28 | DA64: 0 | DB64: 1566.616221 | DC64: 100970.2497 | DD64: 0.4795461268 | DE64: 0.4795461268
B65: 44 | S65: =IFERROR((I65+J65+K65+L65+M65)*$J$12+('Simulador para calculos'!I65+'Simulador para calculos'!J65+'Simulador para calculos'!K65+'Simulador para calculos'!L65+'Simulador para calculos'!M65)*NOT($J$12),"") ->  | U65: =IFERROR((1+'Simulación Cliente'!$E$21)^(T65/360),"") ->  | AB65: 44 | AS65: 44 | AT65: 2026-05-01 | AU65: 30 | AV65: 1338 | AW65: 97214.1089 | AX65: 202.9810691 | AY65: 1458.086661 | AZ65: 194.4282178 | BA65: 28 | BB65: 0 | BC65: 1883.495948 | BD65: 97011.12783 | BE65: 0.4715307109 | BF65: 0.4715307109 | BJ65: 44 | BK65: 2026-05-01 | BL65: 30 | BM65: 1338 | BN65: 97469.42574 | BO65: -70.47480718 | BP65: 1461.916085 | BQ65: 194.9388515 | BR65: 28 | BS65: 0 | BT65: 1614.38013 | BU65: 97539.90055 | BV65: 0.4715307109 | BW65: 0.4715307109 | CA65: 44 | CB65: 2026-05-01 | CC65: 30 | CD65: 1338 | CE65: 100722.4888 | CF65: 87.616978 | CG65: 1510.707849 | CH65: 201.4449775 | CI65: 28 | CJ65: 0 | CK65: 1827.769804 | CL65: 100634.8718 | CM65: 0.4715307109 | CN65: 0.4715307109 | CR65: 44 | CS65: 2026-05-01 | CT65: 30 | CU65: 1338 | CV65: 100970.2497 | CW65: -177.7482227 | CX65: 1514.423944 | CY65: 201.9404994 | CZ65: 28 | DA65: 0 | DB65: 1566.616221 | DC65: 101147.9979 | DD65: 0.4715307109 | DE65: 0.4715307109
B66: 45 | S66: =IFERROR((I66+J66+K66+L66+M66)*$J$12+('Simulador para calculos'!I66+'Simulador para calculos'!J66+'Simulador para calculos'!K66+'Simulador para calculos'!L66+'Simulador para calculos'!M66)*NOT($J$12),"") ->  | U66: =IFERROR((1+'Simulación Cliente'!$E$21)^(T66/360),"") ->  | AB66: 45 | AS66: 45 | AT66: 2026-06-01 | AU66: 31 | AV66: 1369 | AW66: 97011.12783 | AX66: 151.0819418 | AY66: 1503.917663 | AZ66: 200.4963429 | BA66: 28 | BB66: 0 | BC66: 1883.495948 | BD66: 96860.04589 | BE66: 0.4633888358 | BF66: 0.4633888358 | BJ66: 45 | BK66: 2026-06-01 | BL66: 31 | BM66: 1369 | BN66: 97539.90055 | BO66: -127.3240233 | BP66: 1512.114977 | BQ66: 201.5891762 | BR66: 28 | BS66: 0 | BT66: 1614.38013 | BU66: 97667.22457 | BV66: 0.4633888358 | BW66: 0.4633888358 | CA66: 45 | CB66: 2026-06-01 | CC66: 31 | CD66: 1369 | CE66: 100634.8718 | CF66: 31.68928807 | CG66: 1560.094853 | CH66: 207.9856632 | CI66: 28 | CJ66: 0 | CK66: 1827.769804 | CL66: 100603.1825 | CM66: 0.4633888358 | CN66: 0.4633888358 | CR66: 45 | CS66: 2026-06-01 | CT66: 31 | CU66: 1369 | CV66: 101147.9979 | CW66: -238.4795432 | CX66: 1568.049605 | CY66: 209.0461592 | CZ66: 28 | DA66: 0 | DB66: 1566.616221 | DC66: 101386.4775 | DD66: 0.4633888358 | DE66: 0.4633888358
B67: 46 | S67: =IFERROR((I67+J67+K67+L67+M67)*$J$12+('Simulador para calculos'!I67+'Simulador para calculos'!J67+'Simulador para calculos'!K67+'Simulador para calculos'!L67+'Simulador para calculos'!M67)*NOT($J$12),"") ->  | U67: =IFERROR((1+'Simulación Cliente'!$E$21)^(T67/360),"") ->  | AB67: 46 | AS67: 46 | AT67: 2026-07-01 | AU67: 30 | AV67: 1399 | AW67: 96860.04589 | AX67: 208.9996851 | AY67: 1452.776171 | AZ67: 193.7200918 | BA67: 28 | BB67: 0 | BC67: 1883.495948 | BD67: 96651.0462 | BE67: 0.4556434823 | BF67: 0.4556434823 | BJ67: 46 | BK67: 2026-07-01 | BL67: 30 | BM67: 1399 | BN67: 97667.22457 | BO67: 1540.542997 | BP67: 1464.882814 | BQ67: 195.3344491 | BR67: 28 | BS67: 0 | BT67: 3228.760259 | BU67: 96126.68157 | BV67: 0.9112869646 | BW67: 0.4556434823 | CA67: 46 | CB67: 2026-07-01 | CC67: 30 | CD67: 1399 | CE67: 100603.1825 | CF67: 89.64503115 | CG67: 1508.918408 | CH67: 201.206365 | CI67: 28 | CJ67: 0 | CK67: 1827.769804 | CL67: 100513.5375 | CM67: 0.4556434823 | CN67: 0.4556434823 | CR67: 46 | CS67: 2026-07-01 | CT67: 30 | CU67: 1399 | CV67: 101386.4775 | CW67: 1381.792662 | CX67: 1520.666826 | CY67: 202.7729549 | CZ67: 28 | DA67: 0 | DB67: 3133.232442 | DC67: 100004.6848 | DD67: 0.9112869646 | DE67: 0.4556434823
B68: 47 | S68: =IFERROR((I68+J68+K68+L68+M68)*$J$12+('Simulador para calculos'!I68+'Simulador para calculos'!J68+'Simulador para calculos'!K68+'Simulador para calculos'!L68+'Simulador para calculos'!M68)*NOT($J$12),"") ->  | U68: =IFERROR((1+'Simulación Cliente'!$E$21)^(T68/360),"") ->  | AB68: 47 | AS68: 47 | AT68: 2026-08-01 | AU68: 31 | AV68: 1430 | AW68: 96651.0462 | AX68: 157.4083105 | AY68: 1498.335488 | AZ68: 199.7521494 | BA68: 28 | BB68: 0 | BC68: 1883.495948 | BD68: 96493.63789 | BE68: 0.4477759304 | BF68: 0.4477759304 | BJ68: 47 | BK68: 2026-08-01 | BL68: 31 | BM68: 1430 | BN68: 96126.68157 | BO68: -102.4948077 | BP68: 1490.206511 | BQ68: 198.6684264 | BR68: 28 | BS68: 0 | BT68: 1614.38013 | BU68: 96229.17638 | BV68: 0.4477759304 | BW68: 0.4477759304 | CA68: 47 | CB68: 2026-08-01 | CC68: 31 | CD68: 1430 | CE68: 100513.5375 | CF68: 33.82104262 | CG68: 1558.213865 | CH68: 207.7348972 | CI68: 28 | CJ68: 0 | CK68: 1827.769804 | CL68: 100479.7164 | CM68: 0.4477759304 | CN68: 0.4477759304 | CR68: 47 | CS68: 2026-08-01 | CT68: 31 | CU68: 1430 | CV68: 100004.6848 | CW68: -218.3923744 | CX68: 1550.325362 | CY68: 206.6832334 | CZ68: 28 | DA68: 0 | DB68: 1566.616221 | DC68: 100223.0772 | DD68: 0.4477759304 | DE68: 0.4477759304
B69: 48 | S69: =IFERROR((I69+J69+K69+L69+M69)*$J$12+('Simulador para calculos'!I69+'Simulador para calculos'!J69+'Simulador para calculos'!K69+'Simulador para calculos'!L69+'Simulador para calculos'!M69)*NOT($J$12),"") ->  | U69: =IFERROR((1+'Simulación Cliente'!$E$21)^(T69/360),"") ->  | AB69: 48 | AS69: 48 | AT69: 2026-09-01 | AU69: 31 | AV69: 1461 | AW69: 96493.63789 | AX69: 160.1738585 | AY69: 1495.895261 | AZ69: 199.426828 | BA69: 28 | BB69: 0 | BC69: 1883.495948 | BD69: 96333.46403 | BE69: 0.4400442267 | BF69: 0.4400442267 | BJ69: 48 | BK69: 2026-09-01 | BL69: 31 | BM69: 1461 | BN69: 96229.17638 | BO69: -104.2955659 | BP69: 1491.79544 | BQ69: 198.880256 | BR69: 28 | BS69: 0 | BT69: 1614.38013 | BU69: 96333.47195 | BV69: 0.4400442267 | BW69: 0.4400442267 | CA69: 48 | CB69: 2026-09-01 | CC69: 31 | CD69: 1461 | CE69: 100479.7164 | CF69: 34.41525341 | CG69: 1557.689553 | CH69: 207.6649981 | CI69: 28 | CJ69: 0 | CK69: 1827.769804 | CL69: 100445.3012 | CM69: 0.4400442267 | CN69: 0.4400442267 | CR69: 48 | CS69: 2026-09-01 | CT69: 31 | CU69: 1461 | CV69: 100223.0772 | CW69: -222.2293675 | CX69: 1553.710996 | CY69: 207.1345927 | CZ69: 28 | DA69: 0 | DB69: 1566.616221 | DC69: 100445.3066 | DD69: 0.4400442267 | DE69: 0.4400442267
B70: 49 | S70: =IFERROR((I70+J70+K70+L70+M70)*$J$12+('Simulador para calculos'!I70+'Simulador para calculos'!J70+'Simulador para calculos'!K70+'Simulador para calculos'!L70+'Simulador para calculos'!M70)*NOT($J$12),"") ->  | U70: =IFERROR((1+'Simulación Cliente'!$E$21)^(T70/360),"") ->  | AB70: 49 | AS70: 49 | AT70: 2026-10-01 | AU70: 30 | AV70: 1491 | AW70: 96333.46403 | AX70: 217.9508997 | AY70: 1444.87812 | AZ70: 192.6669281 | BA70: 28 | BB70: 0 | BC70: 1883.495948 | BD70: 96115.51313 | BE70: 0.4326890688 | BF70: 0.4326890688 | BJ70: 49 | BK70: 2026-10-01 | BL70: 30 | BM70: 1491 | BN70: 96333.47195 | BO70: -51.16505301 | BP70: 1444.878239 | BQ70: 192.6669439 | BR70: 28 | BS70: 0 | BT70: 1614.38013 | BU70: 96384.637 | BV70: 0.4326890688 | BW70: 0.4326890688 | CA70: 49 | CB70: 2026-10-01 | CC70: 30 | CD70: 1491 | CE70: 100445.3012 | CF70: 92.32881075 | CG70: 1506.550391 | CH70: 200.8906024 | CI70: 28 | CJ70: 0 | CK70: 1827.769804 | CL70: 100352.9724 | CM70: 0.4326890688 | CN70: 0.4326890688 | CR70: 49 | CS70: 2026-10-01 | CT70: 30 | CU70: 1491 | CV70: 100445.3066 | CW70: -168.8248639 | CX70: 1506.550472 | CY70: 200.8906131 | CZ70: 28 | DA70: 0 | DB70: 1566.616221 | DC70: 100614.1314 | DD70: 0.4326890688 | DE70: 0.4326890688
B71: 50 | S71: =IFERROR((I71+J71+K71+L71+M71)*$J$12+('Simulador para calculos'!I71+'Simulador para calculos'!J71+'Simulador para calculos'!K71+'Simulador para calculos'!L71+'Simulador para calculos'!M71)*NOT($J$12),"") ->  | U71: =IFERROR((1+'Simulación Cliente'!$E$21)^(T71/360),"") ->  | AB71: 50 | AS71: 50 | AT71: 2026-11-01 | AU71: 31 | AV71: 1522 | AW71: 96115.51313 | AX71: 166.8172318 | AY71: 1490.033372 | AZ71: 198.6453442 | BA71: 28 | BB71: 0 | BC71: 1883.495948 | BD71: 95948.6959 | BE71: 0.4252178685 | BF71: 0.4252178685 | BJ71: 50 | BK71: 2026-11-01 | BL71: 31 | BM71: 1522 | BN71: 96384.637 | BO71: -107.0268944 | BP71: 1494.205472 | BQ71: 199.201552 | BR71: 28 | BS71: 0 | BT71: 1614.38013 | BU71: 96491.66389 | BV71: 0.4252178685 | BW71: 0.4252178685 | CA71: 50 | CB71: 2026-11-01 | CC71: 31 | CD71: 1522 | CE71: 100352.9724 | CF71: 36.64205319 | CG71: 1555.7247 | CH71: 207.4030516 | CI71: 28 | CJ71: 0 | CK71: 1827.769804 | CL71: 100316.3303 | CM71: 0.4252178685 | CN71: 0.4252178685 | CR71: 50 | CS71: 2026-11-01 | CT71: 31 | CU71: 1522 | CV71: 100614.1314 | CW71: -229.0999021 | CX71: 1559.773325 | CY71: 207.9427983 | CZ71: 28 | DA71: 0 | DB71: 1566.616221 | DC71: 100843.2313 | DD71: 0.4252178685 | DE71: 0.4252178685
B72: 51 | S72: =IFERROR((I72+J72+K72+L72+M72)*$J$12+('Simulador para calculos'!I72+'Simulador para calculos'!J72+'Simulador para calculos'!K72+'Simulador para calculos'!L72+'Simulador para calculos'!M72)*NOT($J$12),"") ->  | U72: =IFERROR((1+'Simulación Cliente'!$E$21)^(T72/360),"") ->  | AB72: 51 | AS72: 51 | AT72: 2026-12-01 | AU72: 30 | AV72: 1552 | AW72: 95948.6959 | AX72: 224.4914633 | AY72: 1439.107093 | AZ72: 191.8973918 | BA72: 28 | BB72: 0 | BC72: 1883.495948 | BD72: 95724.20444 | BE72: 0.418110527 | BF72: 0.418110527 | BJ72: 51 | BK72: 2026-12-01 | BL72: 30 | BM72: 1552 | BN72: 96491.66389 | BO72: 1560.526017 | BP72: 1447.250915 | BQ72: 192.9833278 | BR72: 28 | BS72: 0 | BT72: 3228.760259 | BU72: 94931.13788 | BV72: 0.8362210541 | BW72: 0.418110527 | CA72: 51 | CB72: 2026-12-01 | CC72: 30 | CD72: 1552 | CE72: 100316.3303 | CF72: 94.52114964 | CG72: 1504.615994 | CH72: 200.6326606 | CI72: 28 | CJ72: 0 | CK72: 1827.769804 | CL72: 100221.8092 | CM72: 0.418110527 | CN72: 0.418110527 | CR72: 51 | CS72: 2026-12-01 | CT72: 30 | CU72: 1552 | CV72: 100843.2313 | CW72: 1391.027148 | CX72: 1512.518832 | CY72: 201.6864626 | CZ72: 28 | DA72: 0 | DB72: 3133.232442 | DC72: 99452.20417 | DD72: 0.8362210541 | DE72: 0.418110527
B73: 52 | S73: =IFERROR((I73+J73+K73+L73+M73)*$J$12+('Simulador para calculos'!I73+'Simulador para calculos'!J73+'Simulador para calculos'!K73+'Simulador para calculos'!L73+'Simulador para calculos'!M73)*NOT($J$12),"") ->  | U73: =IFERROR((1+'Simulación Cliente'!$E$21)^(T73/360),"") ->  | AB73: 52 | AS73: 52 | AT73: 2027-01-01 | AU73: 31 | AV73: 1583 | AW73: 95724.20444 | AX73: 173.6922371 | AY73: 1483.967098 | AZ73: 197.8366126 | BA73: 28 | BB73: 0 | BC73: 1883.495948 | BD73: 95550.5122 | BE73: 0.410891053 | BF73: 0.410891053 | BJ73: 52 | BK73: 2027-01-01 | BL73: 31 | BM73: 1583 | BN73: 94931.13788 | BO73: -81.4899862 | BP73: 1471.672562 | BQ73: 196.1975538 | BR73: 28 | BS73: 0 | BT73: 1614.38013 | BU73: 95012.62786 | BV73: 0.410891053 | BW73: 0.410891053 | CA73: 52 | CB73: 2027-01-01 | CC73: 31 | CD73: 1583 | CE73: 100221.8092 | CF73: 38.94649398 | CG73: 1553.691338 | CH73: 207.131972 | CI73: 28 | CJ73: 0 | CK73: 1827.769804 | CL73: 100182.8627 | CM73: 0.410891053 | CN73: 0.410891053 | CR73: 52 | CS73: 2027-01-01 | CT73: 31 | CU73: 1583 | CV73: 99452.20417 | CW73: -208.6856968 | CX73: 1541.760516 | CY73: 205.541402 | CZ73: 28 | DA73: 0 | DB73: 1566.616221 | DC73: 99660.88987 | DD73: 0.410891053 | DE73: 0.410891053
B74: 53 | S74: =IFERROR((I74+J74+K74+L74+M74)*$J$12+('Simulador para calculos'!I74+'Simulador para calculos'!J74+'Simulador para calculos'!K74+'Simulador para calculos'!L74+'Simulador para calculos'!M74)*NOT($J$12),"") ->  | U74: =IFERROR((1+'Simulación Cliente'!$E$21)^(T74/360),"") ->  | AB74: 53 | AS74: 53 | AT74: 2027-02-01 | AU74: 31 | AV74: 1614 | AW74: 95550.5122 | AX74: 176.7438817 | AY74: 1481.274429 | AZ74: 197.4776367 | BA74: 28 | BB74: 0 | BC74: 1883.495948 | BD74: 95373.76832 | BE74: 0.4037962369 | BF74: 0.4037962369 | BJ74: 53 | BK74: 2027-02-01 | BL74: 31 | BM74: 1614 | BN74: 95012.62786 | BO74: -82.92170519 | BP74: 1472.935863 | BQ74: 196.365972 | BR74: 28 | BS74: 0 | BT74: 1614.38013 | BU74: 95095.54957 | BV74: 0.4037962369 | BW74: 0.4037962369 | CA74: 53 | CB74: 2027-02-01 | CC74: 31 | CD74: 1614 | CE74: 100182.8627 | CF74: 39.63075517 | CG74: 1553.087569 | CH74: 207.0514799 | CI74: 28 | CJ74: 0 | CK74: 1827.769804 | CL74: 100143.2319 | CM74: 0.4037962369 | CN74: 0.4037962369 | CR74: 53 | CS74: 2027-02-01 | CT74: 31 | CU74: 1614 | CV74: 99660.88987 | CW74: -212.3521507 | CX74: 1544.995672 | CY74: 205.9727002 | CZ74: 28 | DA74: 0 | DB74: 1566.616221 | DC74: 99873.24202 | DD74: 0.4037962369 | DE74: 0.4037962369
B75: 54 | S75: =IFERROR((I75+J75+K75+L75+M75)*$J$12+('Simulador para calculos'!I75+'Simulador para calculos'!J75+'Simulador para calculos'!K75+'Simulador para calculos'!L75+'Simulador para calculos'!M75)*NOT($J$12),"") ->  | U75: =IFERROR((1+'Simulación Cliente'!$E$21)^(T75/360),"") ->  | AB75: 54 | AS75: 54 | AT75: 2027-03-01 | AU75: 28 | AV75: 1642 | AW75: 95373.76832 | AX75: 343.02242 | AY75: 1334.454354 | AZ75: 178.0191739 | BA75: 28 | BB75: 0 | BC75: 1883.495948 | BD75: 95030.7459 | BE75: 0.397493371 | BF75: 0.397493371 | BJ75: 54 | BK75: 2027-03-01 | BL75: 28 | BM75: 1642 | BN75: 95095.54957 | BO75: 78.31870065 | BP75: 1330.561562 | BQ75: 177.4998668 | BR75: 28 | BS75: 0 | BT75: 1614.38013 | BU75: 95017.23087 | BV75: 0.397493371 | BW75: 0.397493371 | CA75: 54 | CB75: 2027-03-01 | CC75: 28 | CD75: 1642 | CE75: 100143.2319 | CF75: 211.6603071 | CG75: 1401.187918 | CH75: 186.9215795 | CI75: 28 | CJ75: 0 | CK75: 1827.769804 | CL75: 99931.57161 | CM75: 0.397493371 | CN75: 0.397493371 | CR75: 54 | CS75: 2027-03-01 | CT75: 28 | CU75: 1642 | CV75: 99873.24202 | CW75: -45.21167363 | CX75: 1397.410263 | CY75: 186.4176319 | CZ75: 28 | DA75: 0 | DB75: 1566.616221 | DC75: 99918.45369 | DD75: 0.397493371 | DE75: 0.397493371
B76: 55 | S76: =IFERROR((I76+J76+K76+L76+M76)*$J$12+('Simulador para calculos'!I76+'Simulador para calculos'!J76+'Simulador para calculos'!K76+'Simulador para calculos'!L76+'Simulador para calculos'!M76)*NOT($J$12),"") ->  | U76: =IFERROR((1+'Simulación Cliente'!$E$21)^(T76/360),"") ->  | AB76: 55 | AS76: 55 | AT76: 2027-04-01 | AU76: 31 | AV76: 1673 | AW76: 95030.7459 | AX76: 185.8757925 | AY76: 1473.216738 | AZ76: 196.4034172 | BA76: 28 | BB76: 0 | BC76: 1883.495948 | BD76: 94844.87011 | BE76: 0.3906298914 | BF76: 0.3906298914 | BJ76: 55 | BK76: 2027-04-01 | BL76: 31 | BM76: 1673 | BN76: 95017.23087 | BO76: -83.00257658 | BP76: 1473.007221 | BQ76: 196.3754852 | BR76: 28 | BS76: 0 | BT76: 1614.38013 | BU76: 95100.23345 | BV76: 0.3906298914 | BW76: 0.3906298914 | CA76: 55 | CB76: 2027-04-01 | CC76: 31 | CD76: 1673 | CE76: 99931.57161 | CF76: 44.0457539 | CG76: 1549.191923 | CH76: 206.5321277 | CI76: 28 | CJ76: 0 | CK76: 1827.769804 | CL76: 99887.52585 | CM76: 0.3906298914 | CN76: 0.3906298914 | CR76: 55 | CS76: 2027-04-01 | CT76: 31 | CU76: 1673 | CV76: 99918.45369 | CW76: -216.8773573 | CX76: 1548.988562 | CY76: 206.5050165 | CZ76: 28 | DA76: 0 | DB76: 1566.616221 | DC76: 100135.331 | DD76: 0.3906298914 | DE76: 0.3906298914
B77: 56 | S77: =IFERROR((I77+J77+K77+L77+M77)*$J$12+('Simulador para calculos'!I77+'Simulador para calculos'!J77+'Simulador para calculos'!K77+'Simulador para calculos'!L77+'Simulador para calculos'!M77)*NOT($J$12),"") ->  | U77: =IFERROR((1+'Simulación Cliente'!$E$21)^(T77/360),"") ->  | AB77: 56 | AS77: 56 | AT77: 2027-05-01 | AU77: 30 | AV77: 1703 | AW77: 94844.87011 | AX77: 243.2550828 | AY77: 1422.551125 | AZ77: 189.6897402 | BA77: 28 | BB77: 0 | BC77: 1883.495948 | BD77: 94601.61502 | BE77: 0.3841006738 | BF77: 0.3841006738 | BJ77: 56 | BK77: 2027-05-01 | BL77: 30 | BM77: 1703 | BN77: 95100.23345 | BO77: -30.20158385 | BP77: 1426.381247 | BQ77: 190.2004669 | BR77: 28 | BS77: 0 | BT77: 1614.38013 | BU77: 95130.43503 | BV77: 0.3841006738 | BW77: 0.3841006738 | CA77: 56 | CB77: 2027-05-01 | CC77: 30 | CD77: 1703 | CE77: 99887.52585 | CF77: 101.8102742 | CG77: 1498.184478 | CH77: 199.7750517 | CI77: 28 | CJ77: 0 | CK77: 1827.769804 | CL77: 99785.71558 | CM77: 0.3841006738 | CN77: 0.3841006738 | CR77: 56 | CS77: 2027-05-01 | CT77: 30 | CU77: 1703 | CV77: 100135.331 | CW77: -163.5556788 | CX77: 1501.901238 | CY77: 200.2706621 | CZ77: 28 | DA77: 0 | DB77: 1566.616221 | DC77: 100298.8867 | DD77: 0.3841006738 | DE77: 0.3841006738
B78: 57 | S78: =IFERROR((I78+J78+K78+L78+M78)*$J$12+('Simulador para calculos'!I78+'Simulador para calculos'!J78+'Simulador para calculos'!K78+'Simulador para calculos'!L78+'Simulador para calculos'!M78)*NOT($J$12),"") ->  | U78: =IFERROR((1+'Simulación Cliente'!$E$21)^(T78/360),"") ->  | AB78: 57 | AS78: 57 | AT78: 2027-06-01 | AU78: 31 | AV78: 1734 | AW78: 94601.61502 | AX78: 193.4153056 | AY78: 1466.564125 | AZ78: 195.5165172 | BA78: 28 | BB78: 0 | BC78: 1883.495948 | BD78: 94408.19972 | BE78: 0.3774684446 | BF78: 0.3774684446 | BJ78: 57 | BK78: 2027-06-01 | BL78: 31 | BM78: 1734 | BN78: 95130.43503 | BO78: -84.99149023 | BP78: 1474.762172 | BQ78: 196.6094483 | BR78: 28 | BS78: 0 | BT78: 1614.38013 | BU78: 95215.42652 | BV78: 0.3774684446 | BW78: 0.3774684446 | CA78: 57 | CB78: 2027-06-01 | CC78: 31 | CD78: 1734 | CE78: 99785.71558 | CF78: 46.6083368 | CG78: 1546.930786 | CH78: 206.2306819 | CI78: 28 | CJ78: 0 | CK78: 1827.769804 | CL78: 99739.10724 | CM78: 0.3774684446 | CN78: 0.3774684446 | CR78: 57 | CS78: 2027-06-01 | CT78: 31 | CU78: 1734 | CV78: 100298.8867 | CW78: -223.5612853 | CX78: 1554.886235 | CY78: 207.2912709 | CZ78: 28 | DA78: 0 | DB78: 1566.616221 | DC78: 100522.448 | DD78: 0.3774684446 | DE78: 0.3774684446
B79: 58 | S79: =IFERROR((I79+J79+K79+L79+M79)*$J$12+('Simulador para calculos'!I79+'Simulador para calculos'!J79+'Simulador para calculos'!K79+'Simulador para calculos'!L79+'Simulador para calculos'!M79)*NOT($J$12),"") ->  | U79: =IFERROR((1+'Simulación Cliente'!$E$21)^(T79/360),"") ->  | AB79: 58 | AS79: 58 | AT79: 2027-07-01 | AU79: 30 | AV79: 1764 | AW79: 94408.19972 | AX79: 250.677918 | AY79: 1416.00163 | AZ79: 188.8163994 | BA79: 28 | BB79: 0 | BC79: 1883.495948 | BD79: 94157.5218 | BE79: 0.3711592151 | BF79: 0.3711592151 | BJ79: 58 | BK79: 2027-07-01 | BL79: 30 | BM79: 1764 | BN79: 95215.42652 | BO79: 1582.220412 | BP79: 1428.108995 | BQ79: 190.430853 | BR79: 28 | BS79: 0 | BT79: 3228.760259 | BU79: 93633.20611 | BV79: 0.7423184301 | BW79: 0.3711592151 | CA79: 58 | CB79: 2027-07-01 | CC79: 30 | CD79: 1764 | CE79: 99739.10724 | CF79: 104.3331998 | CG79: 1495.95839 | CH79: 199.4782145 | CI79: 28 | CJ79: 0 | CK79: 1827.769804 | CL79: 99634.77404 | CM79: 0.3711592151 | CN79: 0.3711592151 | CR79: 58 | CS79: 2027-07-01 | CT79: 30 | CU79: 1764 | CV79: 100522.448 | CW79: 1396.480052 | CX79: 1507.707495 | CY79: 201.044896 | CZ79: 28 | DA79: 0 | DB79: 3133.232442 | DC79: 99125.96796 | DD79: 0.7423184301 | DE79: 0.3711592151
B80: 59 | S80: =IFERROR((I80+J80+K80+L80+M80)*$J$12+('Simulador para calculos'!I80+'Simulador para calculos'!J80+'Simulador para calculos'!K80+'Simulador para calculos'!L80+'Simulador para calculos'!M80)*NOT($J$12),"") ->  | U80: =IFERROR((1+'Simulación Cliente'!$E$21)^(T80/360),"") ->  | AB80: 59 | AS80: 59 | AT80: 2027-08-01 | AU80: 31 | AV80: 1795 | AW80: 94157.5218 | AX80: 201.2176962 | AY80: 1459.679558 | AZ80: 194.5986939 | BA80: 28 | BB80: 0 | BC80: 1883.495948 | BD80: 93956.3041 | BE80: 0.3647504448 | BF80: 0.3647504448 | BJ80: 59 | BK80: 2027-08-01 | BL80: 31 | BM80: 1795 | BN80: 93633.20611 | BO80: -58.68628174 | BP80: 1451.551339 | BQ80: 193.5150721 | BR80: 28 | BS80: 0 | BT80: 1614.38013 | BU80: 93691.89239 | BV80: 0.3647504448 | BW80: 0.3647504448 | CA80: 59 | CB80: 2027-08-01 | CC80: 31 | CD80: 1795 | CE80: 99634.77404 | CF80: 49.26026833 | CG80: 1544.59081 | CH80: 205.9187257 | CI80: 28 | CJ80: 0 | CK80: 1827.769804 | CL80: 99585.51377 | CM80: 0.3647504448 | CN80: 0.3647504448 | CR80: 59 | CS80: 2027-08-01 | CT80: 31 | CU80: 1795 | CV80: 99125.96796 | CW80: -202.9539671 | CX80: 1536.70303 | CY80: 204.8671581 | CZ80: 28 | DA80: 0 | DB80: 1566.616221 | DC80: 99328.92193 | DD80: 0.3647504448 | DE80: 0.3647504448
B81: 60 | S81: =IFERROR((I81+J81+K81+L81+M81)*$J$12+('Simulador para calculos'!I81+'Simulador para calculos'!J81+'Simulador para calculos'!K81+'Simulador para calculos'!L81+'Simulador para calculos'!M81)*NOT($J$12),"") ->  | U81: =IFERROR((1+'Simulación Cliente'!$E$21)^(T81/360),"") ->  | AB81: 60 | AS81: 60 | AT81: 2027-09-01 | AU81: 31 | AV81: 1826 | AW81: 93956.3041 | AX81: 204.7529428 | AY81: 1456.560175 | AZ81: 194.1828302 | BA81: 28 | BB81: 0 | BC81: 1883.495948 | BD81: 93751.55116 | BE81: 0.3584523342 | BF81: 0.3584523342 | BJ81: 60 | BK81: 2027-09-01 | BL81: 31 | BM81: 1826 | BN81: 93691.89239 | BO81: -59.71735645 | BP81: 1452.461125 | BQ81: 193.6363611 | BR81: 28 | BS81: 0 | BT81: 1614.38013 | BU81: 93751.60975 | BV81: 0.3584523342 | BW81: 0.3584523342 | CA81: 60 | CB81: 2027-09-01 | CC81: 31 | CD81: 1826 | CE81: 99585.51377 | CF81: 50.12573494 | CG81: 1543.827152 | CH81: 205.8169177 | CI81: 28 | CJ81: 0 | CK81: 1827.769804 | CL81: 99535.38804 | CM81: 0.3584523342 | CN81: 0.3584523342 | CR81: 60 | CS81: 2027-09-01 | CT81: 31 | CU81: 1826 | CV81: 99328.92193 | CW81: -206.5197187 | CX81: 1539.84933 | CY81: 205.2866102 | CZ81: 28 | DA81: 0 | DB81: 1566.616221 | DC81: 99535.44165 | DD81: 0.3584523342 | DE81: 0.3584523342
B82: 61 | S82: =IFERROR((I82+J82+K82+L82+M82)*$J$12+('Simulador para calculos'!I82+'Simulador para calculos'!J82+'Simulador para calculos'!K82+'Simulador para calculos'!L82+'Simulador para calculos'!M82)*NOT($J$12),"") ->  | U82: =IFERROR((1+'Simulación Cliente'!$E$21)^(T82/360),"") ->  | AB82: 61 | AS82: 61 | AT82: 2027-10-01 | AU82: 30 | AV82: 1856 | AW82: 93751.55116 | AX82: 261.8400994 | AY82: 1406.152746 | AZ82: 187.5031023 | BA82: 28 | BB82: 0 | BC82: 1883.495948 | BD82: 93489.71106 | BE82: 0.3524609511 | BF82: 0.3524609511 | BJ82: 61 | BK82: 2027-10-01 | BL82: 30 | BM82: 1856 | BN82: 93751.60975 | BO82: -7.27671467 | BP82: 1406.153625 | BQ82: 187.5032195 | BR82: 28 | BS82: 0 | BT82: 1614.38013 | BU82: 93758.88646 | BV82: 0.3524609511 | BW82: 0.3524609511 | CA82: 61 | CB82: 2027-10-01 | CC82: 30 | CD82: 1856 | CE82: 99535.38804 | CF82: 107.7961644 | CG82: 1492.902864 | CH82: 199.0707761 | CI82: 28 | CJ82: 0 | CK82: 1827.769804 | CL82: 99427.59187 | CM82: 0.3524609511 | CN82: 0.3524609511 | CR82: 61 | CS82: 2027-10-01 | CT82: 30 | CU82: 1856 | CV82: 99535.44165 | CW82: -153.3583302 | CX82: 1492.903668 | CY82: 199.0708833 | CZ82: 28 | DA82: 0 | DB82: 1566.616221 | DC82: 99688.79998 | DD82: 0.3524609511 | DE82: 0.3524609511
B83: 62 | S83: =IFERROR((I83+J83+K83+L83+M83)*$J$12+('Simulador para calculos'!I83+'Simulador para calculos'!J83+'Simulador para calculos'!K83+'Simulador para calculos'!L83+'Simulador para calculos'!M83)*NOT($J$12),"") ->  | U83: =IFERROR((1+'Simulación Cliente'!$E$21)^(T83/360),"") ->  | AB83: 62 | AS83: 62 | AT83: 2027-11-01 | AU83: 31 | AV83: 1887 | AW83: 93489.71106 | AX83: 212.9506386 | AY83: 1449.326803 | AZ83: 193.2185058 | BA83: 28 | BB83: 0 | BC83: 1883.495948 | BD83: 93276.76042 | BE83: 0.3463750419 | BF83: 0.3463750419 | BJ83: 62 | BK83: 2027-11-01 | BL83: 31 | BM83: 1887 | BN83: 93758.88646 | BO83: -60.89439289 | BP83: 1453.499702 | BQ83: 193.7748201 | BR83: 28 | BS83: 0 | BT83: 1614.38013 | BU83: 93819.78085 | BV83: 0.3463750419 | BW83: 0.3463750419 | CA83: 62 | CB83: 2027-11-01 | CC83: 31 | CD83: 1887 | CE83: 99427.59187 | CF83: 52.9003063 | CG83: 1541.378963 | CH83: 205.4905349 | CI83: 28 | CJ83: 0 | CK83: 1827.769804 | CL83: 99374.69157 | CM83: 0.3463750419 | CN83: 0.3463750419 | CR83: 62 | CS83: 2027-11-01 | CT83: 31 | CU83: 1887 | CV83: 99688.79998 | CW83: -212.8425108 | CX83: 1545.428349 | CY83: 206.030383 | CZ83: 28 | DA83: 0 | DB83: 1566.616221 | DC83: 99901.64249 | DD83: 0.3463750419 | DE83: 0.3463750419
B84: 63 | S84: =IFERROR((I84+J84+K84+L84+M84)*$J$12+('Simulador para calculos'!I84+'Simulador para calculos'!J84+'Simulador para calculos'!K84+'Simulador para calculos'!L84+'Simulador para calculos'!M84)*NOT($J$12),"") ->  | U84: =IFERROR((1+'Simulación Cliente'!$E$21)^(T84/360),"") ->  | AB84: 63 | AS84: 63 | AT84: 2027-12-01 | AU84: 30 | AV84: 1917 | AW84: 93276.76042 | AX84: 269.9109315 | AY84: 1399.031495 | AZ84: 186.5535208 | BA84: 28 | BB84: 0 | BC84: 1883.495948 | BD84: 93006.84949 | BE84: 0.3405855258 | BF84: 0.3405855258 | BJ84: 63 | BK84: 2027-12-01 | BL84: 30 | BM84: 1917 | BN84: 93819.78085 | BO84: 1605.944594 | BP84: 1407.176104 | BQ84: 187.6395617 | BR84: 28 | BS84: 0 | BT84: 3228.760259 | BU84: 92213.83626 | BV84: 0.6811710517 | BW84: 0.3405855258 | CA84: 63 | CB84: 2027-12-01 | CC84: 30 | CD84: 1917 | CE84: 99374.69157 | CF84: 110.5277978 | CG84: 1490.492623 | CH84: 198.7493831 | CI84: 28 | CJ84: 0 | CK84: 1827.769804 | CL84: 99264.16377 | CM84: 0.3405855258 | CN84: 0.3405855258 | CR84: 63 | CS84: 2027-12-01 | CT84: 30 | CU84: 1917 | CV84: 99901.64249 | CW84: 1407.032947 | CX84: 1498.39621 | CY84: 199.803285 | CZ84: 28 | DA84: 0 | DB84: 3133.232442 | DC84: 98494.60954 | DD84: 0.6811710517 | DE84: 0.3405855258
B85: 64 | S85: =IFERROR((I85+J85+K85+L85+M85)*$J$12+('Simulador para calculos'!I85+'Simulador para calculos'!J85+'Simulador para calculos'!K85+'Simulador para calculos'!L85+'Simulador para calculos'!M85)*NOT($J$12),"") ->  | U85: =IFERROR((1+'Simulación Cliente'!$E$21)^(T85/360),"") ->  | AB85: 64 | AS85: 64 | AT85: 2028-01-01 | AU85: 31 | AV85: 1948 | AW85: 93006.84949 | AX85: 221.4341605 | AY85: 1441.841229 | AZ85: 192.2205586 | BA85: 28 | BB85: 0 | BC85: 1883.495948 | BD85: 92785.41533 | BE85: 0.3347046685 | BF85: 0.3347046685 | BJ85: 64 | BK85: 2028-01-01 | BL85: 31 | BM85: 1948 | BN85: 92213.83626 | BO85: -33.74899977 | BP85: 1429.547519 | BQ85: 190.58161 | BR85: 28 | BS85: 0 | BT85: 1614.38013 | BU85: 92247.58526 | BV85: 0.3347046685 | BW85: 0.3347046685 | CA85: 64 | CB85: 2028-01-01 | CC85: 31 | CD85: 1948 | CE85: 99264.16377 | CF85: 55.77161762 | CG85: 1538.845415 | CH85: 205.1527723 | CI85: 28 | CJ85: 0 | CK85: 1827.769804 | CL85: 99208.39215 | CM85: 0.3347046685 | CN85: 0.3347046685 | CR85: 64 | CS85: 2028-01-01 | CT85: 31 | CU85: 1948 | CV85: 98494.60954 | CW85: -191.8614651 | CX85: 1526.915379 | CY85: 203.5623072 | CZ85: 28 | DA85: 0 | DB85: 1566.616221 | DC85: 98686.471 | DD85: 0.3347046685 | DE85: 0.3347046685
B86: 65 | M86: =IF(B86>C$6,"",C$15) ->  | P86: =IFERROR(IF(AND(MONTH(C86)=7,C$9=2),2/(1+C$11)^(G86/360),IF(AND(MONTH(C86)=12,C$10=2),2/(1+C$11)^(G86/360),1/(1+C$11)^(G86/360))),"") ->  | Q86: =IFERROR(1/(1+C$11)^(G86/360),"") ->  | S86: =IFERROR((I86+J86+K86+L86+M86)*$J$12+('Simulador para calculos'!I86+'Simulador para calculos'!J86+'Simulador para calculos'!K86+'Simulador para calculos'!L86+'Simulador para calculos'!M86)*NOT($J$12),"") ->  | T86: =G86 ->  | U86: =IFERROR((1+'Simulación Cliente'!$E$21)^(T86/360),"") ->  | AB86: 65 | AI86: =IF(AB86>AC$6,"",((1+AC$12)^(AD86/30)-1)*AF86) ->  | AJ86: =IF(AB86>AC$6,"",AC$4*AC$14) ->  | AK86: =IF(AB86>AC$6,"",AC$15) ->  | AL86: =IF(AB86>AC$6,"",IF(AB86=AC$6,AF86+AH86+AI86+AJ86+AK86,IF(AND(AC$9=2,MONTH(AC86)=7),2*AC$17,IF(AND(AC$10=2,MONTH(AC86)=12),2*AC$17,AC$17)))) ->  | AM86: =IF(AB86>AC$6,"",AF86-AG86) ->  | AS86: 65 | AT86: 2028-02-01 | AU86: 31 | AV86: 1979 | AW86: 92785.41533 | AX86: 225.3245954 | AY86: 1438.40844 | AZ86: =IF(AS86>AT$6,"",((1+AT$12)^(AU86/30)-1)*AW86) -> 191.7629128 | BA86: =IF(AS86>AT$6,"",AT$4*AT$14) -> 28 | BB86: =IF(AS86>AT$6,"",AT$15) -> 0 | BC86: =IF(AS86>AT$6,"",IF(AS86=AT$6,AW86+AY86+AZ86+BA86+BB86,IF(AND(AT$9=2,MONTH(AT86)=7),2*AT$17,IF(AND(AT$10=2,MONTH(AT86)=12),2*AT$17,AT$17)))) -> 1883.495948 | BD86: =IF(AS86>AT$6,"",AW86-AX86) -> 92560.09073 | BE86: 0.3289253554 | BF86: 0.3289253554 | BJ86: 65 | BK86: 2028-02-01 | BL86: 31 | BM86: 1979 | BN86: 92247.58526 | BO86: -34.34194482 | BP86: 1430.070714 | BQ86: =IF(BJ86>BK$6,"",((1+BK$12)^(BL86/30)-1)*BN86) -> 190.6513603 | BR86: =IF(BJ86>BK$6,"",BK$4*BK$14) -> 28 | BS86: =IF(BJ86>BK$6,"",BK$15) -> 0 | BT86: =IF(BJ86>BK$6,"",IF(BJ86=BK$6,BN86+BP86+BQ86+BR86+BS86,IF(AND(BK$9=2,MONTH(BK86)=7),2*BK$17,IF(AND(BK$10=2,MONTH(BK86)=12),2*BK$17,BK$17)))) -> 1614.38013 | BU86: =IF(BJ86>BK$6,"",BN86-BO86) -> 92281.9272 | BV86: 0.3289253554 | BW86: 0.3289253554 | CA86: 65 | CB86: 2028-02-01 | CC86: 31 | CD86: 1979 | CE86: 99208.39215 | CF86: 56.75148383 | CG86: 1537.980813 | CH86: =IF(CA86>CB$6,"",((1+CB$12)^(CC86/30)-1)*CE86) -> 205.0375071 | CI86: =IF(CA86>CB$6,"",CB$4*CB$14) -> 28 | CJ86: =IF(CA86>CB$6,"",CB$15) -> 0 | CK86: =IF(CA86>CB$6,"",IF(CA86=CB$6,CE86+CG86+CH86+CI86+CJ86,IF(AND(CB$9=2,MONTH(CB86)=7),2*CB$17,IF(AND(CB$10=2,MONTH(CB86)=12),2*CB$17,CB$17)))) -> 1827.769804 | CL86: =IF(CA86>CB$6,"",CE86-CF86) -> 99151.64067 | CM86: 0.3289253554 | CN86: 0.3289253554 | CR86: 65 | CS86: 2028-02-01 | CT86: 31 | CU86: 1979 | CV86: 98686.471 | CW86: -195.2323296 | CX86: 1529.889717 | CY86: =IF(CR86>CS$6,"",((1+CS$12)^(CT86/30)-1)*CV86) -> 203.9588341 | CZ86: =IF(CR86>CS$6,"",CS$4*CS$14) -> 28 | DA86: =IF(CR86>CS$6,"",CS$15) -> 0 | DB86: =IF(CR86>CS$6,"",IF(CR86=CS$6,CV86+CX86+CY86+CZ86+DA86,IF(AND(CS$9=2,MONTH(CS86)=7),2*CS$17,IF(AND(CS$10=2,MONTH(CS86)=12),2*CS$17,CS$17)))) -> 1566.616221 | DC86: =IF(CR86>CS$6,"",CV86-CW86) -> 98881.70333 | DD86: 0.3289253554 | DE86: 0.3289253554
B87: 66 | D87: =IF(B87<=$C$6,WEEKDAY(C87,2),"") ->  | E87: =IF(D87=7,C87+1,C87) ->  | G87: =IFERROR(F87+G86,"") ->  | H87: =IF(B87>C$6,"",O86) ->  | I87: =IF(B87>C$6,"",N87-M87-L87-K87-J87) ->  | K87: =IF(B87>C$6,"",0) ->  | L87: =IF(B87>C$6,"",D$4*C$14) ->  | N87: =IF(B87>C$6,"",IF(B87=C$6,H87+J87+K87+L87+M87,IF(AND(C$9=2,MONTH(C87)=7),2*C$17,IF(AND(C$10=2,MONTH(C87)=12),2*C$17,C$17)))) ->  | O87: =IF(B87>C$6,"",H87-I87) ->  | S87: =IFERROR((I87+J87+K87+L87+M87)*$J$12+('Simulador para calculos'!I87+'Simulador para calculos'!J87+'Simulador para calculos'!K87+'Simulador para calculos'!L87+'Simulador para calculos'!M87)*NOT($J$12),"") ->  | U87: =IFERROR((1+'Simulación Cliente'!$E$21)^(T87/360),"") ->  | V87: =IFERROR(ROUND(S87/U87,2),"") ->  | AB87: 66 | AC87: =IF(AB87>AC$6,"",EDATE(AC$22,AB86)) ->  | AE87: =IFERROR(AD87+AE86,"") ->  | AF87: =IF(AB87>AC$6,"",AM86) ->  | AN87: =IFERROR(IF(AND(MONTH(AC87)=7,AC$9=2),2/(1+AC$13)^(AE87/360),IF(AND(MONTH(AC87)=12,AC$10=2),2/(1+AC$13)^(AE87/360),1/(1+AC$13)^(AE87/360))),"") ->  | AO87: =IFERROR(1/(1+AC$13)^(AE87/360),"") ->  | AS87: 66 | AT87: =IF(AS87>AT$6,"",EDATE(AT$22,AS86)) -> 2028-03-01 | AU87: 29 | AV87: =IFERROR(AU87+AV86,"") -> 2008 | AW87: =IF(AS87>AT$6,"",BD86) -> 92560.09073 | AX87: 334.8798604 | AY87: 1341.67254 | AZ87: 178.9435479 | BA87: 28 | BB87: 0 | BC87: 1883.495948 | BD87: 92225.21087 | BE87: =IFERROR(IF(AND(MONTH(AT87)=7,AT$9=2),2/(1+AT$13)^(AV87/360),IF(AND(MONTH(AT87)=12,AT$10=2),2/(1+AT$13)^(AV87/360),1/(1+AT$13)^(AV87/360))),"") -> 0.3236092762 | BF87: =IFERROR(1/(1+AT$13)^(AV87/360),"") -> 0.3236092762 | BJ87: 66 | BK87: =IF(BJ87>BK$6,"",EDATE(BK$22,BJ86)) -> 2028-03-01 | BL87: 29 | BM87: =IFERROR(BL87+BM86,"") -> 2008 | BN87: =IF(BJ87>BK$6,"",BU86) -> 92281.9272 | BO87: 70.33382964 | BP87: 1337.640517 | BQ87: 178.405783 | BR87: 28 | BS87: 0 | BT87: 1614.38013 | BU87: 92211.59337 | BV87: =IFERROR(IF(AND(MONTH(BK87)=7,BK$9=2),2/(1+BK$13)^(BM87/360),IF(AND(MONTH(BK87)=12,BK$10=2),2/(1+BK$13)^(BM87/360),1/(1+BK$13)^(BM87/360))),"") -> 0.3236092762 | BW87: =IFERROR(1/(1+BK$13)^(BM87/360),"") -> 0.3236092762 | CA87: 66 | CB87: =IF(CA87>CB$6,"",EDATE(CB$22,CA86)) -> 2028-03-01 | CC87: 29 | CD87: =IFERROR(CC87+CD86,"") -> 2008 | CE87: =IF(CA87>CB$6,"",CL86) -> 99151.64067 | CF87: 170.8649632 | CG87: 1437.218055 | CH87: 191.6867866 | CI87: 28 | CJ87: 0 | CK87: 1827.769804 | CL87: 98980.7757 | CM87: =IFERROR(IF(AND(MONTH(CB87)=7,CB$9=2),2/(1+CB$13)^(CD87/360),IF(AND(MONTH(CB87)=12,CB$10=2),2/(1+CB$13)^(CD87/360),1/(1+CB$13)^(CD87/360))),"") -> 0.3236092762 | CN87: =IFERROR(1/(1+CB$13)^(CD87/360),"") -> 0.3236092762 | CR87: 66 | CS87: =IF(CR87>CS$6,"",EDATE(CS$22,CR86)) -> 2028-03-01 | CT87: 29 | CU87: =IFERROR(CT87+CU86,"") -> 2008 | CV87: =IF(CR87>CS$6,"",DC86) -> 98881.70333 | CW87: -85.85397603 | CX87: 1433.305272 | CY87: 191.1649251 | CZ87: 28 | DA87: 0 | DB87: 1566.616221 | DC87: 98967.55731 | DD87: =IFERROR(IF(AND(MONTH(CS87)=7,CS$9=2),2/(1+CS$13)^(CU87/360),IF(AND(MONTH(CS87)=12,CS$10=2),2/(1+CS$13)^(CU87/360),1/(1+CS$13)^(CU87/360))),"") -> 0.3236092762 | DE87: =IFERROR(1/(1+CS$13)^(CU87/360),"") -> 0.3236092762
B88: 67 | C88: =IF(B88>C$6,"",EDATE(C$22,B87)) ->  | F88: =IF(B88>C$6,"",E88-E87) ->  | J88: =IF(B88>C$6,"",((1+C$11)^(F88/360)-1)*H88) ->  | S88: =IFERROR((I88+J88+K88+L88+M88)*$J$12+('Simulador para calculos'!I88+'Simulador para calculos'!J88+'Simulador para calculos'!K88+'Simulador para calculos'!L88+'Simulador para calculos'!M88)*NOT($J$12),"") ->  | U88: =IFERROR((1+'Simulación Cliente'!$E$21)^(T88/360),"") ->  | AB88: 67 | AH88: =IF(AB88>AC$6,"",((1+AC$11)^(AD88/360)-1)*AF88) ->  | AS88: 67 | AT88: 2028-04-01 | AU88: 31 | AV88: 2039 | AW88: 92225.21087 | AX88: 235.1669748 | AY88: =IF(AS88>AT$6,"",((1+AT$11)^(AU88/360)-1)*AW88) -> 1429.723855 | AZ88: 190.6051183 | BA88: 28 | BB88: 0 | BC88: 1883.495948 | BD88: 91990.0439 | BE88: 0.3180215462 | BF88: 0.3180215462 | BJ88: 67 | BK88: 2028-04-01 | BL88: 31 | BM88: 2039 | BN88: 92211.59337 | BO88: -33.70959393 | BP88: =IF(BJ88>BK$6,"",((1+BK$11)^(BL88/360)-1)*BN88) -> 1429.512749 | BQ88: 190.5769746 | BR88: 28 | BS88: 0 | BT88: 1614.38013 | BU88: 92245.30297 | BV88: 0.3180215462 | BW88: 0.3180215462 | CA88: 67 | CB88: 2028-04-01 | CC88: 31 | CD88: 2039 | CE88: 98980.7757 | CF88: 60.75053702 | CG88: =IF(CA88>CB$6,"",((1+CB$11)^(CC88/360)-1)*CE88) -> 1534.452183 | CH88: 204.5670841 | CI88: 28 | CJ88: 0 | CK88: 1827.769804 | CL88: 98920.02517 | CM88: 0.3180215462 | CN88: 0.3180215462 | CR88: 67 | CS88: 2028-04-01 | CT88: 31 | CU88: 2039 | CV88: 98967.55731 | CW88: -200.1708088 | CX88: =IF(CR88>CS$6,"",((1+CS$11)^(CT88/360)-1)*CV88) -> 1534.247265 | CY88: 204.5397651 | CZ88: 28 | DA88: 0 | DB88: 1566.616221 | DC88: 99167.72812 | DD88: 0.3180215462 | DE88: 0.3180215462
B89: 68 | S89: =IFERROR((I89+J89+K89+L89+M89)*$J$12+('Simulador para calculos'!I89+'Simulador para calculos'!J89+'Simulador para calculos'!K89+'Simulador para calculos'!L89+'Simulador para calculos'!M89)*NOT($J$12),"") ->  | U89: =IFERROR((1+'Simulación Cliente'!$E$21)^(T89/360),"") ->  | AB89: 68 | AD89: =IF(AB89>AC$6,"",AC89-AC88) ->  | AG89: =IF(AB89>AC$6,"",AL89-AK89-AJ89-AI89-AH89) ->  | AS89: 68 | AT89: 2028-05-01 | AU89: =IF(AS89>AT$6,"",AT89-AT88) -> 30 | AV89: 2069 | AW89: 91990.0439 | AX89: =IF(AS89>AT$6,"",BC89-BB89-BA89-AZ89-AY89) -> 291.7834583 | AY89: 1379.732402 | AZ89: 183.9800878 | BA89: 28 | BB89: 0 | BC89: 1883.495948 | BD89: 91698.26044 | BE89: 0.312705947 | BF89: 0.312705947 | BJ89: 68 | BK89: 2028-05-01 | BL89: =IF(BJ89>BK$6,"",BK89-BK88) -> 30 | BM89: 2069 | BN89: 92245.30297 | BO89: =IF(BJ89>BK$6,"",BT89-BS89-BR89-BQ89-BP89) -> 18.32856413 | BP89: 1383.56096 | BQ89: 184.4906059 | BR89: 28 | BS89: 0 | BT89: 1614.38013 | BU89: 92226.9744 | BV89: 0.312705947 | BW89: 0.312705947 | CA89: 68 | CB89: 2028-05-01 | CC89: =IF(CA89>CB$6,"",CB89-CB88) -> 30 | CD89: 2069 | CE89: 98920.02517 | CF89: =IF(CA89>CB$6,"",CK89-CJ89-CI89-CH89-CG89) -> 118.2565421 | CG89: 1483.673212 | CH89: 197.8400503 | CI89: 28 | CJ89: 0 | CK89: 1827.769804 | CL89: 98801.76863 | CM89: 0.312705947 | CN89: 0.312705947 | CR89: 68 | CS89: 2028-05-01 | CT89: =IF(CR89>CS$6,"",CS89-CS88) -> 30 | CU89: 2069 | CV89: 99167.72812 | CW89: =IF(CR89>CS$6,"",DB89-DA89-CZ89-CY89-CX89) -> -147.1076729 | CX89: 1487.388438 | CY89: 198.3354562 | CZ89: 28 | DA89: 0 | DB89: 1566.616221 | DC89: 99314.83579 | DD89: 0.312705947 | DE89: 0.312705947
B90: 69 | S90: =IFERROR((I90+J90+K90+L90+M90)*$J$12+('Simulador para calculos'!I90+'Simulador para calculos'!J90+'Simulador para calculos'!K90+'Simulador para calculos'!L90+'Simulador para calculos'!M90)*NOT($J$12),"") ->  | U90: =IFERROR((1+'Simulación Cliente'!$E$21)^(T90/360),"") ->  | AB90: 69 | AS90: 69 | AT90: 2028-06-01 | AU90: 31 | AV90: 2100 | AW90: 91698.26044 | AX90: 244.4251055 | AY90: 1421.554791 | AZ90: 189.5160512 | BA90: 28 | BB90: 0 | BC90: 1883.495948 | BD90: 91453.83534 | BE90: 0.3073064837 | BF90: 0.3073064837 | BJ90: 69 | BK90: 2028-06-01 | BL90: 31 | BM90: 2100 | BN90: 92226.9744 | BO90: -33.97982729 | BP90: 1429.751194 | BQ90: 190.6087631 | BR90: 28 | BS90: 0 | BT90: 1614.38013 | BU90: 92260.95423 | BV90: 0.3073064837 | BW90: 0.3073064837 | CA90: 69 | CB90: 2028-06-01 | CC90: 31 | CD90: 2100 | CE90: 98801.76863 | CF90: 63.89555945 | CG90: 1531.677121 | CH90: 204.1971238 | CI90: 28 | CJ90: 0 | CK90: 1827.769804 | CL90: 98737.87307 | CM90: 0.3073064837 | CN90: 0.3073064837 | CR90: 69 | CS90: 2028-06-01 | CT90: 31 | CU90: 2100 | CV90: 99314.83579 | CW90: -206.2722357 | CX90: 1539.630959 | CY90: 205.2574979 | CZ90: 28 | DA90: 0 | DB90: 1566.616221 | DC90: 99521.10803 | DD90: 0.3073064837 | DE90: 0.3073064837
B91: 70 | S91: =IFERROR((I91+J91+K91+L91+M91)*$J$12+('Simulador para calculos'!I91+'Simulador para calculos'!J91+'Simulador para calculos'!K91+'Simulador para calculos'!L91+'Simulador para calculos'!M91)*NOT($J$12),"") ->  | U91: =IFERROR((1+'Simulación Cliente'!$E$21)^(T91/360),"") ->  | AB91: 70 | AS91: 70 | AT91: 2028-07-01 | AU91: 30 | AV91: 2130 | AW91: 91453.83534 | AX91: 300.8983146 | AY91: 1371.689963 | AZ91: 182.9076707 | BA91: 28 | BB91: 0 | BC91: 1883.495948 | BD91: 91152.93702 | BE91: 0.3021699825 | BF91: 0.3021699825 | BJ91: 70 | BK91: 2028-07-01 | BL91: 30 | BM91: 2130 | BN91: 92260.95423 | BO91: 1632.442642 | BP91: 1383.795708 | BQ91: 184.5219085 | BR91: 28 | BS91: 0 | BT91: 3228.760259 | BU91: 90628.51159 | BV91: 0.6043399649 | BW91: 0.3021699825 | CA91: 70 | CB91: 2028-07-01 | CC91: 30 | CD91: 2130 | CE91: 98737.87307 | CF91: 121.3528936 | CG91: 1480.941165 | CH91: 197.4757461 | CI91: 28 | CJ91: 0 | CK91: 1827.769804 | CL91: 98616.52017 | CM91: 0.3021699825 | CN91: 0.3021699825 | CR91: 70 | CS91: 2028-07-01 | CT91: 30 | CU91: 2130 | CV91: 99521.10803 | CW91: 1413.501544 | CX91: 1492.688682 | CY91: 199.0422161 | CZ91: 28 | DA91: 0 | DB91: 3133.232442 | DC91: 98107.60648 | DD91: 0.6043399649 | DE91: 0.3021699825
B92: 71 | S92: =IFERROR((I92+J92+K92+L92+M92)*$J$12+('Simulador para calculos'!I92+'Simulador para calculos'!J92+'Simulador para calculos'!K92+'Simulador para calculos'!L92+'Simulador para calculos'!M92)*NOT($J$12),"") ->  | U92: =IFERROR((1+'Simulación Cliente'!$E$21)^(T92/360),"") ->  | AB92: 71 | AS92: 71 | AT92: 2028-08-01 | AU92: 31 | AV92: 2161 | AW92: 91152.93702 | AX92: 254.006036 | AY92: 1413.1009 | AZ92: 188.3890119 | BA92: 28 | BB92: 0 | BC92: 1883.495948 | BD92: 90898.93098 | BE92: 0.2969524426 | BF92: 0.2969524426 | BJ92: 71 | BK92: 2028-08-01 | BL92: 31 | BM92: 2161 | BN92: 90628.51159 | BO92: -5.8960139 | BP92: 1404.97098 | BQ92: 187.3051632 | BR92: 28 | BS92: 0 | BT92: 1614.38013 | BU92: 90634.4076 | BV92: 0.2969524426 | BW92: 0.2969524426 | CA92: 71 | CB92: 2028-08-01 | CC92: 31 | CD92: 2161 | CE92: 98616.52017 | CF92: 67.15023822 | CG92: 1528.805302 | CH92: 203.8142642 | CI92: 28 | CJ92: 0 | CK92: 1827.769804 | CL92: 98549.36993 | CM92: 0.2969524426 | CN92: 0.2969524426 | CR92: 71 | CS92: 2028-08-01 | CT92: 31 | CU92: 2161 | CV92: 98107.60648 | CW92: -185.0621067 | CX92: 1520.915854 | CY92: 202.7624742 | CZ92: 28 | DA92: 0 | DB92: 1566.616221 | DC92: 98292.66859 | DD92: 0.2969524426 | DE92: 0.2969524426
B93: 72 | S93: =IFERROR((I93+J93+K93+L93+M93)*$J$12+('Simulador para calculos'!I93+'Simulador para calculos'!J93+'Simulador para calculos'!K93+'Simulador para calculos'!L93+'Simulador para calculos'!M93)*NOT($J$12),"") ->  | U93: =IFERROR((1+'Simulación Cliente'!$E$21)^(T93/360),"") ->  | AB93: 72 | AS93: 72 | AT93: 2028-09-01 | AU93: 31 | AV93: 2192 | AW93: 90898.93098 | AX93: 258.4687348 | AY93: 1409.163164 | AZ93: 187.8640486 | BA93: 28 | BB93: 0 | BC93: 1883.495948 | BD93: 90640.46225 | BE93: 0.2918249935 | BF93: 0.2918249935 | BJ93: 72 | BK93: 2028-09-01 | BL93: 31 | BM93: 2192 | BN93: 90634.4076 | BO93: -5.999602518 | BP93: 1405.062383 | BQ93: 187.3173487 | BR93: 28 | BS93: 0 | BT93: 1614.38013 | BU93: 90640.40721 | BV93: 0.2918249935 | BW93: 0.2918249935 | CA93: 72 | CB93: 2028-09-01 | CC93: 31 | CD93: 2192 | CE93: 98549.36993 | CF93: 68.3300184 | CG93: 1527.764304 | CH93: 203.6754824 | CI93: 28 | CJ93: 0 | CK93: 1827.769804 | CL93: 98481.03992 | CM93: 0.2918249935 | CN93: 0.2918249935 | CR93: 72 | CS93: 2028-09-01 | CT93: 31 | CU93: 2192 | CV93: 98292.66859 | CW93: -188.3135115 | CX93: 1523.784784 | CY93: 203.1449487 | CZ93: 28 | DA93: 0 | DB93: 1566.616221 | DC93: 98480.9821 | DD93: 0.2918249935 | DE93: 0.2918249935
B94: 73 | S94: =IFERROR((I94+J94+K94+L94+M94)*$J$12+('Simulador para calculos'!I94+'Simulador para calculos'!J94+'Simulador para calculos'!K94+'Simulador para calculos'!L94+'Simulador para calculos'!M94)*NOT($J$12),"") ->  | U94: =IFERROR((1+'Simulación Cliente'!$E$21)^(T94/360),"") ->  | AB94: 73 | AS94: 73 | AT94: 2028-10-01 | AU94: 30 | AV94: 2222 | AW94: 90640.46225 | AX94: 314.7246114 | AY94: 1359.490412 | AZ94: 181.2809245 | BA94: 28 | BB94: 0 | BC94: 1883.495948 | BD94: 90325.73764 | BE94: 0.286947259 | BF94: 0.286947259 | BJ94: 73 | BK94: 2028-10-01 | BL94: 30 | BM94: 2222 | BN94: 90640.40721 | BO94: 45.60972894 | BP94: 1359.489586 | BQ94: 181.2808144 | BR94: 28 | BS94: 0 | BT94: 1614.38013 | BU94: 90594.79748 | BV94: 0.286947259 | BW94: 0.286947259 | CA94: 73 | CB94: 2028-10-01 | CC94: 30 | CD94: 2222 | CE94: 98481.03992 | CF94: 125.718727 | CG94: 1477.088998 | CH94: 196.9620798 | CI94: 28 | CJ94: 0 | CK94: 1827.769804 | CL94: 98355.32119 | CM94: 0.286947259 | CN94: 0.286947259 | CR94: 73 | CS94: 2028-10-01 | CT94: 30 | CU94: 2222 | CV94: 98480.9821 | CW94: -135.4338735 | CX94: 1477.08813 | CY94: 196.9619642 | CZ94: 28 | DA94: 0 | DB94: 1566.616221 | DC94: 98616.41597 | DD94: 0.286947259 | DE94: 0.286947259
B95: 74 | S95: =IFERROR((I95+J95+K95+L95+M95)*$J$12+('Simulador para calculos'!I95+'Simulador para calculos'!J95+'Simulador para calculos'!K95+'Simulador para calculos'!L95+'Simulador para calculos'!M95)*NOT($J$12),"") ->  | U95: =IFERROR((1+'Simulación Cliente'!$E$21)^(T95/360),"") ->  | AB95: 74 | AS95: 74 | AT95: 2028-11-01 | AU95: 31 | AV95: 2253 | AW95: 90325.73764 | AX95: 268.5393194 | AY95: 1400.277219 | AZ95: 186.6794096 | BA95: 28 | BB95: 0 | BC95: 1883.495948 | BD95: 90057.19832 | BE95: 0.2819925684 | BF95: 0.2819925684 | BJ95: 74 | BK95: 2028-11-01 | BL95: 31 | BM95: 2253 | BN95: 90594.79748 | BO95: -5.303681795 | BP95: 1404.448326 | BQ95: 187.2354851 | BR95: 28 | BS95: 0 | BT95: 1614.38013 | BU95: 90600.10116 | BV95: 0.2819925684 | BW95: 0.2819925684 | CA95: 74 | CB95: 2028-11-01 | CC95: 31 | CD95: 2253 | CE95: 98355.32119 | CF95: 71.73931182 | CG95: 1524.756058 | CH95: 203.274435 | CI95: 28 | CJ95: 0 | CK95: 1827.769804 | CL95: 98283.58188 | CM95: 0.2819925684 | CN95: 0.2819925684 | CR95: 74 | CS95: 2028-11-01 | CT95: 31 | CU95: 2253 | CV95: 98616.41597 | CW95: -194.0015144 | CX95: 1528.803687 | CY95: 203.8140489 | CZ95: 28 | DA95: 0 | DB95: 1566.616221 | DC95: 98810.41749 | DD95: 0.2819925684 | DE95: 0.2819925684
B96: 75 | S96: =IFERROR((I96+J96+K96+L96+M96)*$J$12+('Simulador para calculos'!I96+'Simulador para calculos'!J96+'Simulador para calculos'!K96+'Simulador para calculos'!L96+'Simulador para calculos'!M96)*NOT($J$12),"") ->  | U96: =IFERROR((1+'Simulación Cliente'!$E$21)^(T96/360),"") ->  | AB96: 75 | AS96: 75 | AT96: 2028-12-01 | AU96: 30 | AV96: 2283 | AW96: 90057.19832 | AX96: 324.6393484 | AY96: 1350.742203 | AZ96: 180.1143966 | BA96: 28 | BB96: 0 | BC96: 1883.495948 | BD96: 89732.55897 | BE96: 0.2772791788 | BF96: 0.2772791788 | BJ96: 75 | BK96: 2028-12-01 | BL96: 30 | BM96: 2283 | BN96: 90600.10116 | BO96: 1660.67501 | BP96: 1358.885047 | BQ96: 181.2002023 | BR96: 28 | BS96: 0 | BT96: 3228.760259 | BU96: 88939.42615 | BV96: 0.5545583577 | BW96: 0.2772791788 | CA96: 75 | CB96: 2028-12-01 | CC96: 30 | CD96: 2283 | CE96: 98283.58188 | CF96: 129.0752598 | CG96: 1474.127381 | CH96: 196.5671638 | CI96: 28 | CJ96: 0 | CK96: 1827.769804 | CL96: 98154.50662 | CM96: 0.2772791788 | CN96: 0.2772791788 | CR96: 75 | CS96: 2028-12-01 | CT96: 30 | CU96: 2283 | CV96: 98810.41749 | CW96: 1425.58237 | CX96: 1482.029238 | CY96: 197.620835 | CZ96: 28 | DA96: 0 | DB96: 3133.232442 | DC96: 97384.83512 | DD96: 0.5545583577 | DE96: 0.2772791788
B97: 76 | S97: =IFERROR((I97+J97+K97+L97+M97)*$J$12+('Simulador para calculos'!I97+'Simulador para calculos'!J97+'Simulador para calculos'!K97+'Simulador para calculos'!L97+'Simulador para calculos'!M97)*NOT($J$12),"") ->  | U97: =IFERROR((1+'Simulación Cliente'!$E$21)^(T97/360),"") ->  | AB97: 76 | AS97: 76 | AT97: 2029-01-01 | AU97: 31 | AV97: 2314 | AW97: 89732.55897 | AX97: 278.9610313 | AY97: 1391.08145 | AZ97: 185.4534661 | BA97: 28 | BB97: 0 | BC97: 1883.495948 | BD97: 89453.59794 | BE97: 0.2724914261 | BF97: 0.2724914261 | BJ97: 76 | BK97: 2029-01-01 | BL97: 31 | BM97: 2314 | BN97: 88939.42615 | BO97: 23.77997221 | BP97: 1378.785887 | BQ97: 183.8142704 | BR97: 28 | BS97: 0 | BT97: 1614.38013 | BU97: 88915.64618 | BV97: 0.2724914261 | BW97: 0.2724914261 | CA97: 76 | CB97: 2029-01-01 | CC97: 31 | CD97: 2314 | CE97: 98154.50662 | CF97: 75.26747582 | CG97: 1521.642924 | CH97: 202.8594044 | CI97: 28 | CJ97: 0 | CK97: 1827.769804 | CL97: 98079.23914 | CM97: 0.2724914261 | CN97: 0.2724914261 | CR97: 76 | CS97: 2029-01-01 | CT97: 31 | CU97: 2314 | CV97: 97384.83512 | CW97: -172.3635466 | CX97: 1509.711071 | CY97: 201.268697 | CZ97: 28 | DA97: 0 | DB97: 1566.616221 | DC97: 97557.19867 | DD97: 0.2724914261 | DE97: 0.2724914261
B98: 77 | S98: =IFERROR((I98+J98+K98+L98+M98)*$J$12+('Simulador para calculos'!I98+'Simulador para calculos'!J98+'Simulador para calculos'!K98+'Simulador para calculos'!L98+'Simulador para calculos'!M98)*NOT($J$12),"") ->  | U98: =IFERROR((1+'Simulación Cliente'!$E$21)^(T98/360),"") ->  | AB98: 77 | AS98: 77 | AT98: 2029-02-01 | AU98: 31 | AV98: 2345 | AW98: 89453.59794 | AX98: 283.862171 | AY98: 1386.756849 | AZ98: 184.8769275 | BA98: 28 | BB98: 0 | BC98: 1883.495948 | BD98: 89169.73577 | BE98: 0.267786343 | BF98: 0.267786343 | BJ98: 77 | BK98: 2029-02-01 | BL98: 31 | BM98: 2345 | BN98: 88915.64618 | BO98: 24.19776879 | BP98: 1378.417237 | BQ98: 183.7651235 | BR98: 28 | BS98: 0 | BT98: 1614.38013 | BU98: 88891.44841 | BV98: 0.267786343 | BW98: 0.267786343 | CA98: 77 | CB98: 2029-02-01 | CC98: 31 | CD98: 2345 | CE98: 98079.23914 | CF98: 76.58986989 | CG98: 1520.476088 | CH98: 202.7038464 | CI98: 28 | CJ98: 0 | CK98: 1827.769804 | CL98: 98002.64927 | CM98: 0.267786343 | CN98: 0.267786343 | CR98: 77 | CS98: 2029-02-01 | CT98: 31 | CU98: 2345 | CV98: 97557.19867 | CW98: -175.391847 | CX98: 1512.383141 | CY98: 201.6249269 | CZ98: 28 | DA98: 0 | DB98: 1566.616221 | DC98: 97732.59051 | DD98: 0.267786343 | DE98: 0.267786343
B99: 78 | S99: =IFERROR((I99+J99+K99+L99+M99)*$J$12+('Simulador para calculos'!I99+'Simulador para calculos'!J99+'Simulador para calculos'!K99+'Simulador para calculos'!L99+'Simulador para calculos'!M99)*NOT($J$12),"") ->  | U99: =IFERROR((1+'Simulación Cliente'!$E$21)^(T99/360),"") ->  | AB99: 78 | AS99: 78 | AT99: 2029-03-01 | AU99: 28 | AV99: 2373 | AW99: 89169.73577 | AX99: 441.4083301 | AY99: 1247.648533 | AZ99: 166.4390846 | BA99: 28 | BB99: 0 | BC99: 1883.495948 | BD99: 88728.32744 | BE99: 0.263606459 | BF99: 0.263606459 | BJ99: 78 | BK99: 2029-03-01 | BL99: 28 | BM99: 2373 | BN99: 88891.44841 | BO99: 176.7056988 | BP99: 1243.754781 | BQ99: 165.9196495 | BR99: 28 | BS99: 0 | BT99: 1614.38013 | BU99: 88714.74271 | BV99: 0.263606459 | BW99: 0.263606459 | CA99: 78 | CB99: 2029-03-01 | CC99: 28 | CD99: 2373 | CE99: 98002.64927 | CF99: 245.6064815 | CG99: 1371.237231 | CH99: 182.9260914 | CI99: 28 | CJ99: 0 | CK99: 1827.769804 | CL99: 97757.04279 | CM99: 0.263606459 | CN99: 0.263606459 | CR99: 78 | CS99: 2029-03-01 | CT99: 28 | CU99: 2373 | CV99: 97732.59051 | CW99: -11.26440712 | CX99: 1367.458613 | CY99: 182.4220153 | CZ99: 28 | DA99: 0 | DB99: 1566.616221 | DC99: 97743.85492 | DD99: 0.263606459 | DE99: 0.263606459
B100: 79 | S100: =IFERROR((I100+J100+K100+L100+M100)*$J$12+('Simulador para calculos'!I100+'Simulador para calculos'!J100+'Simulador para calculos'!K100+'Simulador para calculos'!L100+'Simulador para calculos'!M100)*NOT($J$12),"") ->  | U100: =IFERROR((1+'Simulación Cliente'!$E$21)^(T100/360),"") ->  | AB100: 79 | AS100: 79 | AT100: 2029-04-01 | AU100: 31 | AV100: 2404 | AW100: 88728.32744 | AX100: 296.6046391 | AY100: 1375.513324 | AZ100: 183.3779852 | BA100: 28 | BB100: 0 | BC100: 1883.495948 | BD100: 88431.7228 | BE100: 0.2590547918 | BF100: 0.2590547918 | BJ100: 79 | BK100: 2029-04-01 | BL100: 31 | BM100: 2404 | BN100: 88714.74271 | BO100: 27.72749463 | BP100: 1375.302726 | BQ100: 183.3499091 | BR100: 28 | BS100: 0 | BT100: 1614.38013 | BU100: 88687.01521 | BV100: 0.2590547918 | BW100: 0.2590547918 | CA100: 79 | CB100: 2029-04-01 | CC100: 31 | CD100: 2404 | CE100: 97757.04279 | CF100: 82.25062228 | CG100: 1515.48123 | CH100: 202.0379518 | CI100: 28 | CJ100: 0 | CK100: 1827.769804 | CL100: 97674.79217 | CM100: 0.2590547918 | CN100: 0.2590547918 | CR100: 79 | CS100: 2029-04-01 | CT100: 31 | CU100: 2404 | CV100: 97743.85492 | CW100: -178.6712598 | CX100: 1515.276785 | CY100: 202.010696 | CZ100: 28 | DA100: 0 | DB100: 1566.616221 | DC100: 97922.52618 | DD100: 0.2590547918 | DE100: 0.2590547918
B101: 80 | S101: =IFERROR((I101+J101+K101+L101+M101)*$J$12+('Simulador para calculos'!I101+'Simulador para calculos'!J101+'Simulador para calculos'!K101+'Simulador para calculos'!L101+'Simulador para calculos'!M101)*NOT($J$12),"") ->  | U101: =IFERROR((1+'Simulación Cliente'!$E$21)^(T101/360),"") ->  | AB101: 80 | AS101: 80 | AT101: 2029-05-01 | AU101: 30 | AV101: 2434 | AW101: 88431.7228 | AX101: 352.2703426 | AY101: 1326.36216 | AZ101: 176.8634456 | BA101: 28 | BB101: 0 | BC101: 1883.495948 | BD101: 88079.45246 | BE101: 0.2547247977 | BF101: 0.2547247977 | BJ101: 80 | BK101: 2029-05-01 | BL101: 30 | BM101: 2434 | BN101: 88687.01521 | BO101: 78.81488163 | BP101: 1330.191218 | BQ101: 177.3740304 | BR101: 28 | BS101: 0 | BT101: 1614.38013 | BU101: 88608.20033 | BV101: 0.2547247977 | BW101: 0.2547247977 | CA101: 80 | CB101: 2029-05-01 | CC101: 30 | CD101: 2434 | CE101: 97674.79217 | CF101: 139.4239023 | CG101: 1464.996318 | CH101: 195.3495843 | CI101: 28 | CJ101: 0 | CK101: 1827.769804 | CL101: 97535.36826 | CM101: 0.2547247977 | CN101: 0.2547247977 | CR101: 80 | CS101: 2029-05-01 | CT101: 30 | CU101: 2434 | CV101: 97922.52618 | CW101: -125.9408407 | CX101: 1468.712009 | CY101: 195.8450524 | CZ101: 28 | DA101: 0 | DB101: 1566.616221 | DC101: 98048.46702 | DD101: 0.2547247977 | DE101: 0.2547247977
B102: 81 | S102: =IFERROR((I102+J102+K102+L102+M102)*$J$12+('Simulador para calculos'!I102+'Simulador para calculos'!J102+'Simulador para calculos'!K102+'Simulador para calculos'!L102+'Simulador para calculos'!M102)*NOT($J$12),"") ->  | U102: =IFERROR((1+'Simulación Cliente'!$E$21)^(T102/360),"") ->  | AB102: 81 | AS102: 81 | AT102: 2029-06-01 | AU102: 31 | AV102: 2465 | AW102: 88079.45246 | AX102: 308.0048942 | AY102: 1365.454121 | AZ102: 182.0369322 | BA102: 28 | BB102: 0 | BC102: 1883.495948 | BD102: 87771.44756 | BE102: 0.2503264893 | BF102: 0.2503264893 | BJ102: 81 | BK102: 2029-06-01 | BL102: 31 | BM102: 2465 | BN102: 88608.20033 | BO102: 29.59936564 | BP102: 1373.65105 | BQ102: 183.1297142 | BR102: 28 | BS102: 0 | BT102: 1614.38013 | BU102: 88578.60097 | BV102: 0.2503264893 | BW102: 0.2503264893 | CA102: 81 | CB102: 2029-06-01 | CC102: 31 | CD102: 2465 | CE102: 97535.36826 | CF102: 86.14528028 | CG102: 1512.044715 | CH102: 201.5798092 | CI102: 28 | CJ102: 0 | CK102: 1827.769804 | CL102: 97449.22298 | CM102: 0.2503264893 | CN102: 0.2503264893 | CR102: 81 | CS102: 2029-06-01 | CT102: 31 | CU102: 2465 | CV102: 98048.46702 | CW102: -184.0230699 | CX102: 1519.999042 | CY102: 202.6402486 | CZ102: 28 | DA102: 0 | DB102: 1566.616221 | DC102: 98232.49009 | DD102: 0.2503264893 | DE102: 0.2503264893
B103: 82 | S103: =IFERROR((I103+J103+K103+L103+M103)*$J$12+('Simulador para calculos'!I103+'Simulador para calculos'!J103+'Simulador para calculos'!K103+'Simulador para calculos'!L103+'Simulador para calculos'!M103)*NOT($J$12),"") ->  | U103: =IFERROR((1+'Simulación Cliente'!$E$21)^(T103/360),"") ->  | AB103: 82 | AS103: 82 | AT103: 2029-07-01 | AU103: 30 | AV103: 2495 | AW103: 87771.44756 | AX103: 363.4941729 | AY103: 1316.45888 | AZ103: 175.5428951 | BA103: 28 | BB103: 0 | BC103: 1883.495948 | BD103: 87407.95339 | BE103: 0.2461423851 | BF103: 0.2461423851 | BJ103: 82 | BK103: 2029-07-01 | BL103: 30 | BM103: 2495 | BN103: 88578.60097 | BO103: 1695.037914 | BP103: 1328.565143 | BQ103: 177.1572019 | BR103: 28 | BS103: 0 | BT103: 3228.760259 | BU103: 86883.56305 | BV103: 0.4922847703 | BW103: 0.2461423851 | CA103: 82 | CB103: 2029-07-01 | CC103: 30 | CD103: 2495 | CE103: 97449.22298 | CF103: 143.2582884 | CG103: 1461.61307 | CH103: 194.898446 | CI103: 28 | CJ103: 0 | CK103: 1827.769804 | CL103: 97305.9647 | CM103: 0.2461423851 | CN103: 0.2461423851 | CR103: 82 | CS103: 2029-07-01 | CT103: 30 | CU103: 2495 | CV103: 98232.49009 | CW103: 1435.406392 | CX103: 1473.36107 | CY103: 196.4649802 | CZ103: 28 | DA103: 0 | DB103: 3133.232442 | DC103: 96797.0837 | DD103: 0.4922847703 | DE103: 0.2461423851
B104: 83 | S104: =IFERROR((I104+J104+K104+L104+M104)*$J$12+('Simulador para calculos'!I104+'Simulador para calculos'!J104+'Simulador para calculos'!K104+'Simulador para calculos'!L104+'Simulador para calculos'!M104)*NOT($J$12),"") ->  | U104: =IFERROR((1+'Simulación Cliente'!$E$21)^(T104/360),"") ->  | AB104: 83 | AS104: 83 | AT104: 2029-08-01 | AU104: 31 | AV104: 2526 | AW104: 87407.95339 | AX104: 319.8026378 | AY104: 1355.044189 | AZ104: 180.6491212 | BA104: 28 | BB104: 0 | BC104: 1883.495948 | BD104: 87088.15075 | BE104: 0.2418922684 | BF104: 0.2418922684 | BJ104: 83 | BK104: 2029-08-01 | BL104: 31 | BM104: 2526 | BN104: 86883.56305 | BO104: 59.89997137 | BP104: 1346.914813 | BQ104: 179.5653451 | BR104: 28 | BS104: 0 | BT104: 1614.38013 | BU104: 86823.66308 | BV104: 0.2418922684 | BW104: 0.2418922684 | CA104: 83 | CB104: 2029-08-01 | CC104: 31 | CD104: 2526 | CE104: 97305.9647 | CF104: 90.17573188 | CG104: 1508.48838 | CH104: 201.1056927 | CI104: 28 | CJ104: 0 | CK104: 1827.769804 | CL104: 97215.78896 | CM104: 0.2418922684 | CN104: 0.2418922684 | CR104: 83 | CS104: 2029-08-01 | CT104: 31 | CU104: 2526 | CV104: 96797.0837 | CW104: -162.0371874 | CX104: 1500.599438 | CY104: 200.0539703 | CZ104: 28 | DA104: 0 | DB104: 1566.616221 | DC104: 96959.12089 | DD104: 0.2418922684 | DE104: 0.2418922684
B105: 84 | S105: =IFERROR((I105+J105+K105+L105+M105)*$J$12+('Simulador para calculos'!I105+'Simulador para calculos'!J105+'Simulador para calculos'!K105+'Simulador para calculos'!L105+'Simulador para calculos'!M105)*NOT($J$12),"") ->  | U105: =IFERROR((1+'Simulación Cliente'!$E$21)^(T105/360),"") ->  | AB105: 84 | AS105: 84 | AT105: 2029-09-01 | AU105: 31 | AV105: 2557 | AW105: 87088.15075 | AX105: 325.4213345 | AY105: 1350.08644 | AZ105: 179.9881738 | BA105: 28 | BB105: 0 | BC105: 1883.495948 | BD105: 86762.72942 | BE105: 0.237715538 | BF105: 0.237715538 | BJ105: 84 | BK105: 2029-09-01 | BL105: 31 | BM105: 2557 | BN105: 86823.66308 | BO105: 60.95236971 | BP105: 1345.986212 | BQ105: 179.4415477 | BR105: 28 | BS105: 0 | BT105: 1614.38013 | BU105: 86762.71071 | BV105: 0.237715538 | BW105: 0.237715538 | CA105: 84 | CB105: 2029-09-01 | CC105: 31 | CD105: 2557 | CE105: 97215.78896 | CF105: 91.76005302 | CG105: 1507.090428 | CH105: 200.9193233 | CI105: 28 | CJ105: 0 | CK105: 1827.769804 | CL105: 97124.02891 | CM105: 0.237715538 | CN105: 0.237715538 | CR105: 84 | CS105: 2029-09-01 | CT105: 31 | CU105: 2557 | CV105: 96959.12089 | CW105: -164.8840613 | CX105: 1503.111424 | CY105: 200.3888583 | CZ105: 28 | DA105: 0 | DB105: 1566.616221 | DC105: 97124.00495 | DD105: 0.237715538 | DE105: 0.237715538
B106: 85 | S106: =IFERROR((I106+J106+K106+L106+M106)*$J$12+('Simulador para calculos'!I106+'Simulador para calculos'!J106+'Simulador para calculos'!K106+'Simulador para calculos'!L106+'Simulador para calculos'!M106)*NOT($J$12),"") ->  | U106: =IFERROR((1+'Simulación Cliente'!$E$21)^(T106/360),"") ->  | AB106: 85 | AS106: 85 | AT106: 2029-10-01 | AU106: 30 | AV106: 2587 | AW106: 86762.72942 | AX106: 380.6410846 | AY106: 1301.329404 | AZ106: 173.5254588 | BA106: 28 | BB106: 0 | BC106: 1883.495948 | BD106: 86382.08833 | BE106: 0.2337422207 | BF106: 0.2337422207 | BJ106: 85 | BK106: 2029-10-01 | BL106: 30 | BM106: 2587 | BN106: 86762.71071 | BO106: 111.5255844 | BP106: 1301.329124 | BQ106: 173.5254214 | BR106: 28 | BS106: 0 | BT106: 1614.38013 | BU106: 86651.18513 | BV106: 0.2337422207 | BW106: 0.2337422207 | CA106: 85 | CB106: 2029-10-01 | CC106: 30 | CD106: 2587 | CE106: 97124.02891 | CF106: 148.7861696 | CG106: 1456.735577 | CH106: 194.2480578 | CI106: 28 | CJ106: 0 | CK106: 1827.769804 | CL106: 96975.24274 | CM106: 0.2337422207 | CN106: 0.2337422207 | CR106: 85 | CS106: 2029-10-01 | CT106: 30 | CU106: 2587 | CV106: 97124.00495 | CW106: -112.3670063 | CX106: 1456.735218 | CY106: 194.2480099 | CZ106: 28 | DA106: 0 | DB106: 1566.616221 | DC106: 97236.37195 | DD106: 0.2337422207 | DE106: 0.2337422207
B107: 86 | S107: =IFERROR((I107+J107+K107+L107+M107)*$J$12+('Simulador para calculos'!I107+'Simulador para calculos'!J107+'Simulador para calculos'!K107+'Simulador para calculos'!L107+'Simulador para calculos'!M107)*NOT($J$12),"") ->  | U107: =IFERROR((1+'Simulación Cliente'!$E$21)^(T107/360),"") ->  | AB107: 86 | AS107: 86 | AT107: 2029-11-01 | AU107: 31 | AV107: 2618 | AW107: 86382.08833 | AX107: 337.8263307 | AY107: 1339.140688 | AZ107: 178.5289295 | BA107: 28 | BB107: 0 | BC107: 1883.495948 | BD107: 86044.262 | BE107: 0.2297062164 | BF107: 0.2297062164 | BJ107: 86 | BK107: 2029-11-01 | BL107: 31 | BM107: 2618 | BN107: 86651.18513 | BO107: 63.98268022 | BP107: 1343.312368 | BQ107: 179.0850814 | BR107: 28 | BS107: 0 | BT107: 1614.38013 | BU107: 86587.20245 | BV107: 0.2297062164 | BW107: 0.2297062164 | CA107: 86 | CB107: 2029-11-01 | CC107: 31 | CD107: 2618 | CE107: 96975.24274 | CF107: 95.98627283 | CG107: 1503.361354 | CH107: 200.4221779 | CI107: 28 | CJ107: 0 | CK107: 1827.769804 | CL107: 96879.25647 | CM107: 0.2297062164 | CN107: 0.2297062164 | CR107: 86 | CS107: 2029-11-01 | CT107: 31 | CU107: 2618 | CV107: 97236.37195 | CW107: -169.7551582 | CX107: 1507.409516 | CY107: 200.9618629 | CZ107: 28 | DA107: 0 | DB107: 1566.616221 | DC107: 97406.12711 | DD107: 0.2297062164 | DE107: 0.2297062164
B108: 87 | S108: =IFERROR((I108+J108+K108+L108+M108)*$J$12+('Simulador para calculos'!I108+'Simulador para calculos'!J108+'Simulador para calculos'!K108+'Simulador para calculos'!L108+'Simulador para calculos'!M108)*NOT($J$12),"") ->  | U108: =IFERROR((1+'Simulación Cliente'!$E$21)^(T108/360),"") ->  | AB108: 87 | AS108: 87 | AT108: 2029-12-01 | AU108: 30 | AV108: 2648 | AW108: 86044.262 | AX108: 392.854107 | AY108: 1290.553317 | AZ108: 172.088524 | BA108: 28 | BB108: 0 | BC108: 1883.495948 | BD108: 85651.4079 | BE108: 0.2258667716 | BF108: 0.2258667716 | BJ108: 87 | BK108: 2029-12-01 | BL108: 30 | BM108: 2648 | BN108: 86587.20245 | BO108: 1728.889129 | BP108: 1298.696726 | BQ108: 173.1744049 | BR108: 28 | BS108: 0 | BT108: 3228.760259 | BU108: 84858.31332 | BV108: 0.4517335433 | BW108: 0.2258667716 | CA108: 87 | CB108: 2029-12-01 | CC108: 30 | CD108: 2648 | CE108: 96879.25647 | CF108: 152.9469865 | CG108: 1453.064305 | CH108: 193.7585129 | CI108: 28 | CJ108: 0 | CK108: 1827.769804 | CL108: 96726.30948 | CM108: 0.2258667716 | CN108: 0.2258667716 | CR108: 87 | CS108: 2029-12-01 | CT108: 30 | CU108: 2648 | CV108: 97406.12711 | CW108: 1449.453501 | CX108: 1460.966687 | CY108: 194.8122542 | CZ108: 28 | DA108: 0 | DB108: 3133.232442 | DC108: 95956.67361 | DD108: 0.4517335433 | DE108: 0.2258667716
B109: 88 | S109: =IFERROR((I109+J109+K109+L109+M109)*$J$12+('Simulador para calculos'!I109+'Simulador para calculos'!J109+'Simulador para calculos'!K109+'Simulador para calculos'!L109+'Simulador para calculos'!M109)*NOT($J$12),"") ->  | U109: =IFERROR((1+'Simulación Cliente'!$E$21)^(T109/360),"") ->  | AB109: 88 | AS109: 88 | AT109: 2030-01-01 | AU109: 31 | AV109: 2679 | AW109: 85651.4079 | AX109: 350.6638474 | AY109: 1327.813294 | AZ109: 177.0188063 | BA109: 28 | BB109: 0 | BC109: 1883.495948 | BD109: 85300.74405 | BE109: 0.221966752 | BF109: 0.221966752 | BJ109: 88 | BK109: 2030-01-01 | BL109: 31 | BM109: 2679 | BN109: 84858.31332 | BO109: 95.48211633 | BP109: 1315.518324 | BQ109: 175.3796896 | BR109: 28 | BS109: 0 | BT109: 1614.38013 | BU109: 84762.8312 | BV109: 0.221966752 | BW109: 0.221966752 | CA109: 88 | CB109: 2030-01-01 | CC109: 31 | CD109: 2679 | CE109: 96726.30948 | CF109: 100.3598467 | CG109: 1499.502259 | CH109: 199.9076987 | CI109: 28 | CJ109: 0 | CK109: 1827.769804 | CL109: 96625.94964 | CM109: 0.221966752 | CN109: 0.221966752 | CR109: 88 | CS109: 2030-01-01 | CT109: 31 | CU109: 2679 | CV109: 95956.67361 | CW109: -147.2718016 | CX109: 1487.570958 | CY109: 198.3170649 | CZ109: 28 | DA109: 0 | DB109: 1566.616221 | DC109: 96103.94541 | DD109: 0.221966752 | DE109: 0.221966752
B110: 89 | S110: =IFERROR((I110+J110+K110+L110+M110)*$J$12+('Simulador para calculos'!I110+'Simulador para calculos'!J110+'Simulador para calculos'!K110+'Simulador para calculos'!L110+'Simulador para calculos'!M110)*NOT($J$12),"") ->  | U110: =IFERROR((1+'Simulación Cliente'!$E$21)^(T110/360),"") ->  | AB110: 89 | AS110: 89 | AT110: 2030-02-01 | AU110: 31 | AV110: 2710 | AW110: 85300.74405 | AX110: 356.8247527 | AY110: 1322.377118 | AZ110: 176.2940769 | BA110: 28 | BB110: 0 | BC110: 1883.495948 | BD110: 84943.9193 | BE110: 0.2181340735 | BF110: 0.2181340735 | BJ110: 89 | BK110: 2030-02-01 | BL110: 31 | BM110: 2710 | BN110: 84762.8312 | BO110: 97.15966673 | BP110: 1314.03811 | BQ110: 175.1823533 | BR110: 28 | BS110: 0 | BT110: 1614.38013 | BU110: 84665.67154 | BV110: 0.2181340735 | BW110: 0.2181340735 | CA110: 89 | CB110: 2030-02-01 | CC110: 31 | CD110: 2710 | CE110: 96625.94964 | CF110: 102.1230952 | CG110: 1497.946428 | CH110: 199.7002814 | CI110: 28 | CJ110: 0 | CK110: 1827.769804 | CL110: 96523.82654 | CM110: 0.2181340735 | CN110: 0.2181340735 | CR110: 89 | CS110: 2030-02-01 | CT110: 31 | CU110: 2710 | CV110: 96103.94541 | CW110: -149.8592586 | CX110: 1489.854043 | CY110: 198.6214367 | CZ110: 28 | DA110: 0 | DB110: 1566.616221 | DC110: 96253.80467 | DD110: 0.2181340735 | DE110: 0.2181340735
B111: 90 | S111: =IFERROR((I111+J111+K111+L111+M111)*$J$12+('Simulador para calculos'!I111+'Simulador para calculos'!J111+'Simulador para calculos'!K111+'Simulador para calculos'!L111+'Simulador para calculos'!M111)*NOT($J$12),"") ->  | U111: =IFERROR((1+'Simulación Cliente'!$E$21)^(T111/360),"") ->  | AB111: 90 | AS111: 90 | AT111: 2030-03-01 | AU111: 28 | AV111: 2738 | AW111: 84943.9193 | AX111: 508.4229365 | AY111: 1188.521592 | AZ111: 158.5514194 | BA111: 28 | BB111: 0 | BC111: 1883.495948 | BD111: 84435.49636 | BE111: 0.2147292131 | BF111: 0.2147292131 | BJ111: 90 | BK111: 2030-03-01 | BL111: 28 | BM111: 2738 | BN111: 84665.67154 | BO111: 243.7196773 | BP111: 1184.628394 | BQ111: 158.0320582 | BR111: 28 | BS111: 0 | BT111: 1614.38013 | BU111: 84421.95186 | BV111: 0.2147292131 | BW111: 0.2147292131 | CA111: 90 | CB111: 2030-03-01 | CC111: 28 | CD111: 2738 | CE111: 96523.82654 | CF111: 269.0582154 | CG111: 1350.545783 | CH111: 180.1658062 | CI111: 28 | CJ111: 0 | CK111: 1827.769804 | CL111: 96254.76833 | CM111: 0.2147292131 | CN111: 0.2147292131 | CR111: 90 | CS111: 2030-03-01 | CT111: 28 | CU111: 2738 | CV111: 96253.80467 | CW111: 12.18674175 | CX111: 1346.76768 | CY111: 179.661799 | CZ111: 28 | DA111: 0 | DB111: 1566.616221 | DC111: 96241.61793 | DD111: 0.2147292131 | DE111: 0.2147292131
B112: 91 | S112: =IFERROR((I112+J112+K112+L112+M112)*$J$12+('Simulador para calculos'!I112+'Simulador para calculos'!J112+'Simulador para calculos'!K112+'Simulador para calculos'!L112+'Simulador para calculos'!M112)*NOT($J$12),"") ->  | U112: =IFERROR((1+'Simulación Cliente'!$E$21)^(T112/360),"") ->  | AB112: 91 | AS112: 91 | AT112: 2030-04-01 | AU112: 31 | AV112: 2769 | AW112: 84435.49636 | AX112: 372.0265168 | AY112: 1308.963592 | AZ112: 174.5058387 | BA112: 28 | BB112: 0 | BC112: 1883.495948 | BD112: 84063.46984 | BE112: 0.2110215046 | BF112: 0.2110215046 | BJ112: 91 | BK112: 2030-04-01 | BL112: 31 | BM112: 2769 | BN112: 84421.95186 | BO112: 103.1486655 | BP112: 1308.753618 | BQ112: 174.4778458 | BR112: 28 | BS112: 0 | BT112: 1614.38013 | BU112: 84318.80319 | BV112: 0.2110215046 | BW112: 0.2110215046 | CA112: 91 | CB112: 2030-04-01 | CC112: 31 | CD112: 2769 | CE112: 96254.76833 | CF112: 108.6444772 | CG112: 1492.192179 | CH112: 198.9331478 | CI112: 28 | CJ112: 0 | CK112: 1827.769804 | CL112: 96146.12385 | CM112: 0.2110215046 | CN112: 0.2110215046 | CR112: 91 | CS112: 2030-04-01 | CT112: 31 | CU112: 2769 | CV112: 96241.61793 | CW112: -152.2780632 | CX112: 1491.988315 | CY112: 198.9059694 | CZ112: 28 | DA112: 0 | DB112: 1566.616221 | DC112: 96393.89599 | DD112: 0.2110215046 | DE112: 0.2110215046
B113: 92 | S113: =IFERROR((I113+J113+K113+L113+M113)*$J$12+('Simulador para calculos'!I113+'Simulador para calculos'!J113+'Simulador para calculos'!K113+'Simulador para calculos'!L113+'Simulador para calculos'!M113)*NOT($J$12),"") ->  | U113: =IFERROR((1+'Simulación Cliente'!$E$21)^(T113/360),"") ->  | AB113: 92 | AS113: 92 | AT113: 2030-05-01 | AU113: 30 | AV113: 2799 | AW113: 84063.46984 | AX113: 426.5250274 | AY113: 1260.843981 | AZ113: 168.1269397 | BA113: 28 | BB113: 0 | BC113: 1883.495948 | BD113: 83636.94481 | BE113: 0.2074943671 | BF113: 0.2074943671 | BJ113: 92 | BK113: 2030-05-01 | BL113: 30 | BM113: 2799 | BN113: 84318.80319 | BO113: 153.0688705 | BP113: 1264.673653 | BQ113: 168.6376064 | BR113: 28 | BS113: 0 | BT113: 1614.38013 | BU113: 84165.73432 | BV113: 0.2074943671 | BW113: 0.2074943671 | CA113: 92 | CB113: 2030-05-01 | CC113: 30 | CD113: 2799 | CE113: 96146.12385 | CF113: 165.4092986 | CG113: 1442.068258 | CH113: 192.2922477 | CI113: 28 | CJ113: 0 | CK113: 1827.769804 | CL113: 95980.71455 | CM113: 0.2074943671 | CN113: 0.2074943671 | CR113: 92 | CS113: 2030-05-01 | CT113: 30 | CU113: 2799 | CV113: 96393.89599 | CW113: -99.95609264 | CX113: 1445.784522 | CY113: 192.787792 | CZ113: 28 | DA113: 0 | DB113: 1566.616221 | DC113: 96493.85208 | DD113: 0.2074943671 | DE113: 0.2074943671
B114: 93 | S114: =IFERROR((I114+J114+K114+L114+M114)*$J$12+('Simulador para calculos'!I114+'Simulador para calculos'!J114+'Simulador para calculos'!K114+'Simulador para calculos'!L114+'Simulador para calculos'!M114)*NOT($J$12),"") ->  | U114: =IFERROR((1+'Simulación Cliente'!$E$21)^(T114/360),"") ->  | AB114: 93 | AS114: 93 | AT114: 2030-06-01 | AU114: 31 | AV114: 2830 | AW114: 83636.94481 | AX114: 386.0564788 | AY114: 1296.584025 | AZ114: 172.8554439 | BA114: 28 | BB114: 0 | BC114: 1883.495948 | BD114: 83250.88834 | BE114: 0.2039115819 | BF114: 0.2039115819 | BJ114: 93 | BK114: 2030-06-01 | BL114: 31 | BM114: 2830 | BN114: 84165.73432 | BO114: 107.6502188 | BP114: 1304.781599 | BQ114: 173.9483119 | BR114: 28 | BS114: 0 | BT114: 1614.38013 | BU114: 84058.0841 | BV114: 0.2039115819 | BW114: 0.2039115819 | CA114: 93 | CB114: 2030-06-01 | CC114: 31 | CD114: 2830 | CE114: 95980.71455 | CF114: 113.4594001 | CG114: 1487.943653 | CH114: 198.3667511 | CI114: 28 | CJ114: 0 | CK114: 1827.769804 | CL114: 95867.25515 | CM114: 0.2039115819 | CN114: 0.2039115819 | CR114: 93 | CS114: 2030-06-01 | CT114: 31 | CU114: 2830 | CV114: 96493.85208 | CW114: -156.7096314 | CX114: 1495.898582 | CY114: 199.4272707 | CZ114: 28 | DA114: 0 | DB114: 1566.616221 | DC114: 96650.56172 | DD114: 0.2039115819 | DE114: 0.2039115819
B115: 94 | S115: =IFERROR((I115+J115+K115+L115+M115)*$J$12+('Simulador para calculos'!I115+'Simulador para calculos'!J115+'Simulador para calculos'!K115+'Simulador para calculos'!L115+'Simulador para calculos'!M115)*NOT($J$12),"") ->  | U115: =IFERROR((1+'Simulación Cliente'!$E$21)^(T115/360),"") ->  | AB115: 94 | AS115: 94 | AT115: 2030-07-01 | AU115: 30 | AV115: 2860 | AW115: 83250.88834 | AX115: 440.3378684 | AY115: 1248.656303 | AZ115: 166.5017767 | BA115: 28 | BB115: 0 | BC115: 1883.495948 | BD115: 82810.55047 | BE115: 0.2005032838 | BF115: 0.2005032838 | BJ115: 94 | BK115: 2030-07-01 | BL115: 30 | BM115: 2860 | BN115: 84058.0841 | BO115: 1771.88089 | BP115: 1260.763202 | BQ115: 168.1161682 | BR115: 28 | BS115: 0 | BT115: 3228.760259 | BU115: 82286.20321 | BV115: 0.4010065677 | BW115: 0.2005032838 | CA115: 94 | CB115: 2030-07-01 | CC115: 30 | CD115: 2860 | CE115: 95867.25515 | CF115: 170.1497079 | CG115: 1437.885586 | CH115: 191.7345103 | CI115: 28 | CJ115: 0 | CK115: 1827.769804 | CL115: 95697.10544 | CM115: 0.2005032838 | CN115: 0.2005032838 | CR115: 94 | CS115: 2030-07-01 | CT115: 30 | CU115: 2860 | CV115: 96650.56172 | CW115: 1462.297141 | CX115: 1449.634178 | CY115: 193.3011234 | CZ115: 28 | DA115: 0 | DB115: 3133.232442 | DC115: 95188.26457 | DD115: 0.4010065677 | DE115: 0.2005032838
B116: 95 | S116: =IFERROR((I116+J116+K116+L116+M116)*$J$12+('Simulador para calculos'!I116+'Simulador para calculos'!J116+'Simulador para calculos'!K116+'Simulador para calculos'!L116+'Simulador para calculos'!M116)*NOT($J$12),"") ->  | U116: =IFERROR((1+'Simulación Cliente'!$E$21)^(T116/360),"") ->  | AB116: 95 | AS116: 95 | AT116: 2030-08-01 | AU116: 31 | AV116: 2891 | AW116: 82810.55047 | AX116: 400.5756183 | AY116: 1283.772824 | AZ116: 171.1475054 | BA116: 28 | BB116: 0 | BC116: 1883.495948 | BD116: 82409.97485 | BE116: 0.197041213 | BF116: 0.197041213 | BJ116: 95 | BK116: 2030-08-01 | BL116: 31 | BM116: 2891 | BN116: 82286.20321 | BO116: 140.6721949 | BP116: 1275.644117 | BQ116: 170.0638183 | BR116: 28 | BS116: 0 | BT116: 1614.38013 | BU116: 82145.53102 | BV116: 0.197041213 | BW116: 0.197041213 | CA116: 95 | CB116: 2030-08-01 | CC116: 31 | CD116: 2891 | CE116: 95697.10544 | CF116: 118.442203 | CG116: 1483.546995 | CH116: 197.7806061 | CI116: 28 | CJ116: 0 | CK116: 1827.769804 | CL116: 95578.66324 | CM116: 0.197041213 | CN116: 0.197041213 | CR116: 95 | CS116: 2030-08-01 | CT116: 31 | CU116: 2891 | CV116: 95188.26457 | CW116: -133.7714213 | CX116: 1475.658676 | CY116: 196.7289666 | CZ116: 28 | DA116: 0 | DB116: 1566.616221 | DC116: 95322.036 | DD116: 0.197041213 | DE116: 0.197041213
B117: 96 | S117: =IFERROR((I117+J117+K117+L117+M117)*$J$12+('Simulador para calculos'!I117+'Simulador para calculos'!J117+'Simulador para calculos'!K117+'Simulador para calculos'!L117+'Simulador para calculos'!M117)*NOT($J$12),"") ->  | U117: =IFERROR((1+'Simulación Cliente'!$E$21)^(T117/360),"") ->  | AB117: 96 | AS117: 96 | AT117: 2030-09-01 | AU117: 31 | AV117: 2922 | AW117: 82409.97485 | AX117: 407.6134366 | AY117: 1277.56289 | AZ117: 170.3196215 | BA117: 28 | BB117: 0 | BC117: 1883.495948 | BD117: 82002.36141 | BE117: 0.1936389215 | BF117: 0.1936389215 | BJ117: 96 | BK117: 2030-09-01 | BL117: 31 | BM117: 2922 | BN117: 82145.53102 | BO117: 143.1437017 | BP117: 1273.463342 | BQ117: 169.773086 | BR117: 28 | BS117: 0 | BT117: 1614.38013 | BU117: 82002.38732 | BV117: 0.1936389215 | BW117: 0.1936389215 | CA117: 96 | CB117: 2030-09-01 | CC117: 31 | CD117: 2922 | CE117: 95578.66324 | CF117: 120.5231452 | CG117: 1481.710842 | CH117: 197.5358174 | CI117: 28 | CJ117: 0 | CK117: 1827.769804 | CL117: 95458.14009 | CM117: 0.1936389215 | CN117: 0.1936389215 | CR117: 96 | CS117: 2030-09-01 | CT117: 31 | CU117: 2922 | CV117: 95322.036 | CW117: -136.1216865 | CX117: 1477.732471 | CY117: 197.0054368 | CZ117: 28 | DA117: 0 | DB117: 1566.616221 | DC117: 95458.15768 | DD117: 0.1936389215 | DE117: 0.1936389215
B118: 97 | S118: =IFERROR((I118+J118+K118+L118+M118)*$J$12+('Simulador para calculos'!I118+'Simulador para calculos'!J118+'Simulador para calculos'!K118+'Simulador para calculos'!L118+'Simulador para calculos'!M118)*NOT($J$12),"") ->  | U118: =IFERROR((1+'Simulación Cliente'!$E$21)^(T118/360),"") ->  | AB118: 97 | AS118: 97 | AT118: 2030-10-01 | AU118: 30 | AV118: 2952 | AW118: 82002.36141 | AX118: 461.561221 | AY118: 1229.930004 | AZ118: 164.0047228 | BA118: 28 | BB118: 0 | BC118: 1883.495948 | BD118: 81540.80019 | BE118: 0.1904023267 | BF118: 0.1904023267 | BJ118: 97 | BK118: 2030-10-01 | BL118: 30 | BM118: 2952 | BN118: 82002.38732 | BO118: 192.4449625 | BP118: 1229.930393 | BQ118: 164.0047746 | BR118: 28 | BS118: 0 | BT118: 1614.38013 | BU118: 81809.94235 | BV118: 0.1904023267 | BW118: 0.1904023267 | CA118: 97 | CB118: 2030-10-01 | CC118: 30 | CD118: 2952 | CE118: 95458.14009 | CF118: 177.104138 | CG118: 1431.749386 | CH118: 190.9162802 | CI118: 28 | CJ118: 0 | CK118: 1827.769804 | CL118: 95281.03596 | CM118: 0.1904023267 | CN118: 0.1904023267 | CR118: 97 | CS118: 2030-10-01 | CT118: 30 | CU118: 2952 | CV118: 95458.15768 | CW118: -84.04974431 | CX118: 1431.74965 | CY118: 190.9163154 | CZ118: 28 | DA118: 0 | DB118: 1566.616221 | DC118: 95542.20743 | DD118: 0.1904023267 | DE118: 0.1904023267
B119: 98 | S119: =IFERROR((I119+J119+K119+L119+M119)*$J$12+('Simulador para calculos'!I119+'Simulador para calculos'!J119+'Simulador para calculos'!K119+'Simulador para calculos'!L119+'Simulador para calculos'!M119)*NOT($J$12),"") ->  | U119: =IFERROR((1+'Simulación Cliente'!$E$21)^(T119/360),"") ->  | AB119: 98 | AS119: 98 | AT119: 2030-11-01 | AU119: 31 | AV119: 2983 | AW119: 81540.80019 | AX119: 422.8841947 | AY119: 1264.088486 | AZ119: 168.5232674 | BA119: 28 | BB119: 0 | BC119: 1883.495948 | BD119: 81117.916 | BE119: 0.1871146681 | BF119: 0.1871146681 | BJ119: 98 | BK119: 2030-11-01 | BL119: 31 | BM119: 2983 | BN119: 81809.94235 | BO119: 149.0397471 | BP119: 1268.26087 | BQ119: 169.079513 | BR119: 28 | BS119: 0 | BT119: 1614.38013 | BU119: 81660.90261 | BV119: 0.1871146681 | BW119: 0.1871146681 | CA119: 98 | CB119: 2030-11-01 | CC119: 31 | CD119: 2983 | CE119: 95281.03596 | CF119: 125.7522372 | CG119: 1477.096867 | CH119: 196.9207006 | CI119: 28 | CJ119: 0 | CK119: 1827.769804 | CL119: 95155.28372 | CM119: 0.1871146681 | CN119: 0.1871146681 | CR119: 98 | CS119: 2030-11-01 | CT119: 31 | CU119: 2983 | CV119: 95542.20743 | CW119: -139.9899363 | CX119: 1481.145685 | CY119: 197.4604729 | CZ119: 28 | DA119: 0 | DB119: 1566.616221 | DC119: 95682.19736 | DD119: 0.1871146681 | DE119: 0.1871146681
B120: 99 | S120: =IFERROR((I120+J120+K120+L120+M120)*$J$12+('Simulador para calculos'!I120+'Simulador para calculos'!J120+'Simulador para calculos'!K120+'Simulador para calculos'!L120+'Simulador para calculos'!M120)*NOT($J$12),"") ->  | U120: =IFERROR((1+'Simulación Cliente'!$E$21)^(T120/360),"") ->  | AB120: 99 | AS120: 99 | AT120: 2030-12-01 | AU120: 30 | AV120: 3013 | AW120: 81117.916 | AX120: 476.5956561 | AY120: 1216.66446 | AZ120: 162.235832 | BA120: 28 | BB120: 0 | BC120: 1883.495948 | BD120: 80641.32034 | BE120: 0.1839871235 | BF120: 0.1839871235 | BJ120: 99 | BK120: 2030-12-01 | BL120: 30 | BM120: 3013 | BN120: 81660.90261 | BO120: 1812.629893 | BP120: 1224.808561 | BQ120: 163.3218052 | BR120: 28 | BS120: 0 | BT120: 3228.760259 | BU120: 79848.27271 | BV120: 0.3679742471 | BW120: 0.1839871235 | CA120: 99 | CB120: 2030-12-01 | CC120: 30 | CD120: 3013 | CE120: 95155.28372 | CF120: 182.252307 | CG120: 1427.20693 | CH120: 190.3105674 | CI120: 28 | CJ120: 0 | CK120: 1827.769804 | CL120: 94973.03141 | CM120: 0.1839871235 | CN120: 0.1839871235 | CR120: 99 | CS120: 2030-12-01 | CT120: 30 | CU120: 3013 | CV120: 95682.19736 | CW120: 1478.75809 | CX120: 1435.109957 | CY120: 191.3643947 | CZ120: 28 | DA120: 0 | DB120: 3133.232442 | DC120: 94203.43927 | DD120: 0.3679742471 | DE120: 0.1839871235
B121: 100 | S121: =IFERROR((I121+J121+K121+L121+M121)*$J$12+('Simulador para calculos'!I121+'Simulador para calculos'!J121+'Simulador para calculos'!K121+'Simulador para calculos'!L121+'Simulador para calculos'!M121)*NOT($J$12),"") ->  | U121: =IFERROR((1+'Simulación Cliente'!$E$21)^(T121/360),"") ->  | AB121: 100 | AS121: 100 | AT121: 2031-01-01 | AU121: 31 | AV121: 3044 | AW121: 80641.32034 | AX121: 438.6873926 | AY121: 1250.144275 | AZ121: 166.6642804 | BA121: 28 | BB121: 0 | BC121: 1883.495948 | BD121: 80202.63295 | BE121: 0.1808102357 | BF121: 0.1808102357 | BJ121: 100 | BK121: 2031-01-01 | BL121: 31 | BM121: 3044 | BN121: 79848.27271 | BO121: 183.5048367 | BP121: 1237.850032 | BQ121: 165.0252607 | BR121: 28 | BS121: 0 | BT121: 1614.38013 | BU121: 79664.76788 | BV121: 0.1808102357 | BW121: 0.1808102357 | CA121: 100 | CB121: 2031-01-01 | CC121: 31 | CD121: 3044 | CE121: 94973.03141 | CF121: 131.16365 | CG121: 1472.322018 | CH121: 196.2841366 | CI121: 28 | CJ121: 0 | CK121: 1827.769804 | CL121: 94841.86776 | CM121: 0.1808102357 | CN121: 0.1808102357 | CR121: 100 | CS121: 2031-01-01 | CT121: 31 | CU121: 3044 | CV121: 94203.43927 | CW121: -116.4687667 | CX121: 1460.391395 | CY121: 194.6935932 | CZ121: 28 | DA121: 0 | DB121: 1566.616221 | DC121: 94319.90804 | DD121: 0.1808102357 | DE121: 0.1808102357
B122: 101 | S122: =IFERROR((I122+J122+K122+L122+M122)*$J$12+('Simulador para calculos'!I122+'Simulador para calculos'!J122+'Simulador para calculos'!K122+'Simulador para calculos'!L122+'Simulador para calculos'!M122)*NOT($J$12),"") ->  | U122: =IFERROR((1+'Simulación Cliente'!$E$21)^(T122/360),"") ->  | AB122: 101 | AS122: 101 | AT122: 2031-02-01 | AU122: 31 | AV122: 3075 | AW122: 80202.63295 | AX122: 446.3948067 | AY122: 1243.343511 | AZ122: 165.7576296 | BA122: 28 | BB122: 0 | BC122: 1883.495948 | BD122: 79756.23814 | BE122: 0.1776882028 | BF122: 0.1776882028 | BJ122: 101 | BK122: 2031-02-01 | BL122: 31 | BM122: 3075 | BN122: 79664.76788 | BO122: 186.7288814 | BP122: 1235.005244 | BQ122: 164.6460048 | BR122: 28 | BS122: 0 | BT122: 1614.38013 | BU122: 79478.039 | BV122: 0.1776882028 | BW122: 0.1776882028 | CA122: 101 | CB122: 2031-02-01 | CC122: 31 | CD122: 3075 | CE122: 94841.86776 | CF122: 133.4680987 | CG122: 1470.28865 | CH122: 196.0130561 | CI122: 28 | CJ122: 0 | CK122: 1827.769804 | CL122: 94708.39966 | CM122: 0.1776882028 | CN122: 0.1776882028 | CR122: 101 | CS122: 2031-02-01 | CT122: 31 | CU122: 3075 | CV122: 94319.90804 | CW122: -118.515037 | CX122: 1462.196955 | CY122: 194.9343034 | CZ122: 28 | DA122: 0 | DB122: 1566.616221 | DC122: 94438.42308 | DD122: 0.1776882028 | DE122: 0.1776882028
B123: 102 | S123: =IFERROR((I123+J123+K123+L123+M123)*$J$12+('Simulador para calculos'!I123+'Simulador para calculos'!J123+'Simulador para calculos'!K123+'Simulador para calculos'!L123+'Simulador para calculos'!M123)*NOT($J$12),"") ->  | U123: =IFERROR((1+'Simulación Cliente'!$E$21)^(T123/360),"") ->  | AB123: 102 | AS123: 102 | AT123: 2031-03-01 | AU123: 28 | AV123: 3103 | AW123: 79756.23814 | AX123: 590.6911593 | AY123: 1115.936396 | AZ123: 148.868393 | BA123: 28 | BB123: 0 | BC123: 1883.495948 | BD123: 79165.54698 | BE123: 0.1749146631 | BF123: 0.1749146631 | BJ123: 102 | BK123: 2031-03-01 | BL123: 28 | BM123: 3103 | BN123: 79478.039 | BO123: 325.9871291 | BP123: 1112.043878 | BQ123: 148.3491226 | BR123: 28 | BS123: 0 | BT123: 1614.38013 | BU123: 79152.05187 | BV123: 0.1749146631 | BW123: 0.1749146631 | CA123: 102 | CB123: 2031-03-01 | CC123: 28 | CD123: 3103 | CE123: 94708.39966 | CF123: 297.847946 | CG123: 1325.144623 | CH123: 176.7772351 | CI123: 28 | CJ123: 0 | CK123: 1827.769804 | CL123: 94410.55172 | CM123: 0.1749146631 | CN123: 0.1749146631 | CR123: 102 | CS123: 2031-03-01 | CT123: 28 | CU123: 3103 | CV123: 94438.42308 | CW123: 40.9757542 | CX123: 1321.367155 | CY123: 176.2733124 | CZ123: 28 | DA123: 0 | DB123: 1566.616221 | DC123: 94397.44732 | DD123: 0.1749146631 | DE123: 0.1749146631
B124: 103 | S124: =IFERROR((I124+J124+K124+L124+M124)*$J$12+('Simulador para calculos'!I124+'Simulador para calculos'!J124+'Simulador para calculos'!K124+'Simulador para calculos'!L124+'Simulador para calculos'!M124)*NOT($J$12),"") ->  | U124: =IFERROR((1+'Simulación Cliente'!$E$21)^(T124/360),"") ->  | AB124: 103 | AS124: 103 | AT124: 2031-04-01 | AU124: 31 | AV124: 3134 | AW124: 79165.54698 | AX124: 464.6156427 | AY124: 1227.266058 | AZ124: 163.6142472 | BA124: 28 | BB124: 0 | BC124: 1883.495948 | BD124: 78700.93134 | BE124: 0.1718944285 | BF124: 0.1718944285 | BJ124: 103 | BK124: 2031-04-01 | BL124: 31 | BM124: 3134 | BN124: 79152.05187 | BO124: 195.7369238 | BP124: 1227.05685 | BQ124: 163.5863564 | BR124: 28 | BS124: 0 | BT124: 1614.38013 | BU124: 78956.31494 | BV124: 0.1718944285 | BW124: 0.1718944285 | CA124: 103 | CB124: 2031-04-01 | CC124: 31 | CD124: 3134 | CE124: 94410.55172 | CF124: 141.0460036 | CG124: 1463.602161 | CH124: 195.1216399 | CI124: 28 | CJ124: 0 | CK124: 1827.769804 | CL124: 94269.50571 | CM124: 0.1718944285 | CN124: 0.1718944285 | CR124: 103 | CS124: 2031-04-01 | CT124: 31 | CU124: 3134 | CV124: 94397.44732 | CW124: -119.8773451 | CX124: 1463.39901 | CY124: 195.0945565 | CZ124: 28 | DA124: 0 | DB124: 1566.616221 | DC124: 94517.32467 | DD124: 0.1718944285 | DE124: 0.1718944285
B125: 104 | S125: =IFERROR((I125+J125+K125+L125+M125)*$J$12+('Simulador para calculos'!I125+'Simulador para calculos'!J125+'Simulador para calculos'!K125+'Simulador para calculos'!L125+'Simulador para calculos'!M125)*NOT($J$12),"") ->  | U125: =IFERROR((1+'Simulación Cliente'!$E$21)^(T125/360),"") ->  | AB125: 104 | AS125: 104 | AT125: 2031-05-01 | AU125: 30 | AV125: 3164 | AW125: 78700.93134 | AX125: 517.6812882 | AY125: 1180.412797 | AZ125: 157.4018627 | BA125: 28 | BB125: 0 | BC125: 1883.495948 | BD125: 78183.25005 | BE125: 0.169021284 | BF125: 0.169021284 | BJ125: 104 | BK125: 2031-05-01 | BL125: 30 | BM125: 3164 | BN125: 78956.31494 | BO125: 244.2242771 | BP125: 1184.243223 | BQ125: 157.9126299 | BR125: 28 | BS125: 0 | BT125: 1614.38013 | BU125: 78712.09067 | BV125: 0.169021284 | BW125: 0.169021284 | CA125: 104 | CB125: 2031-05-01 | CC125: 30 | CD125: 3164 | CE125: 94269.50571 | CF125: 197.3093944 | CG125: 1413.921399 | CH125: 188.5390114 | CI125: 28 | CJ125: 0 | CK125: 1827.769804 | CL125: 94072.19632 | CM125: 0.169021284 | CN125: 0.169021284 | CR125: 104 | CS125: 2031-05-01 | CT125: 30 | CU125: 3164 | CV125: 94517.32467 | CW125: -68.05679253 | CX125: 1417.638364 | CY125: 189.0346493 | CZ125: 28 | DA125: 0 | DB125: 1566.616221 | DC125: 94585.38146 | DD125: 0.169021284 | DE125: 0.169021284
B126: 105 | S126: =IFERROR((I126+J126+K126+L126+M126)*$J$12+('Simulador para calculos'!I126+'Simulador para calculos'!J126+'Simulador para calculos'!K126+'Simulador para calculos'!L126+'Simulador para calculos'!M126)*NOT($J$12),"") ->  | U126: =IFERROR((1+'Simulación Cliente'!$E$21)^(T126/360),"") ->  | AB126: 105 | AS126: 105 | AT126: 2031-06-01 | AU126: 31 | AV126: 3195 | AW126: 78183.25005 | AX126: 481.8738757 | AY126: 1212.037973 | AZ126: 161.5840993 | BA126: 28 | BB126: 0 | BC126: 1883.495948 | BD126: 77701.37618 | BE126: 0.1661028098 | BF126: 0.1661028098 | BJ126: 105 | BK126: 2031-06-01 | BL126: 31 | BM126: 3195 | BN126: 78712.09067 | BO126: 203.4667178 | BP126: 1220.236339 | BQ126: 162.6770729 | BR126: 28 | BS126: 0 | BT126: 1614.38013 | BU126: 78508.62395 | BV126: 0.1661028098 | BW126: 0.1661028098 | CA126: 105 | CB126: 2031-06-01 | CC126: 31 | CD126: 3195 | CE126: 94072.19632 | CF126: 146.9906586 | CG126: 1458.356797 | CH126: 194.4223487 | CI126: 28 | CJ126: 0 | CK126: 1827.769804 | CL126: 93925.20566 | CM126: 0.1661028098 | CN126: 0.1661028098 | CR126: 105 | CS126: 2031-06-01 | CT126: 31 | CU126: 3195 | CV126: 94585.38146 | CW126: -123.1792093 | CX126: 1466.312464 | CY126: 195.4829667 | CZ126: 28 | DA126: 0 | DB126: 1566.616221 | DC126: 94708.56067 | DD126: 0.1661028098 | DE126: 0.1661028098
B127: 106 | S127: =IFERROR((I127+J127+K127+L127+M127)*$J$12+('Simulador para calculos'!I127+'Simulador para calculos'!J127+'Simulador para calculos'!K127+'Simulador para calculos'!L127+'Simulador para calculos'!M127)*NOT($J$12),"") ->  | U127: =IFERROR((1+'Simulación Cliente'!$E$21)^(T127/360),"") ->  | AB127: 106 | AS127: 106 | AT127: 2031-07-01 | AU127: 30 | AV127: 3225 | AW127: 77701.37618 | AX127: 534.672441 | AY127: 1165.420754 | AZ127: 155.4027524 | BA127: 28 | BB127: 0 | BC127: 1883.495948 | BD127: 77166.70373 | BE127: 0.1633264698 | BF127: 0.1633264698 | BJ127: 106 | BK127: 2031-07-01 | BL127: 30 | BM127: 3225 | BN127: 78508.62395 | BO127: 1866.214578 | BP127: 1177.528433 | BQ127: 157.0172479 | BR127: 28 | BS127: 0 | BT127: 3228.760259 | BU127: 76642.40937 | BV127: 0.3266529396 | BW127: 0.1633264698 | CA127: 106 | CB127: 2031-07-01 | CC127: 30 | CD127: 3225 | CE127: 93925.20566 | CF127: 203.1620527 | CG127: 1408.75734 | CH127: 187.8504113 | CI127: 28 | CJ127: 0 | CK127: 1827.769804 | CL127: 93722.04361 | CM127: 0.1633264698 | CN127: 0.1633264698 | CR127: 106 | CS127: 2031-07-01 | CT127: 30 | CU127: 3225 | CV127: 94708.56067 | CW127: 1495.308662 | CX127: 1420.506659 | CY127: 189.4171213 | CZ127: 28 | DA127: 0 | DB127: 3133.232442 | DC127: 93213.25201 | DD127: 0.3266529396 | DE127: 0.1633264698
B128: 107 | S128: =IFERROR((I128+J128+K128+L128+M128)*$J$12+('Simulador para calculos'!I128+'Simulador para calculos'!J128+'Simulador para calculos'!K128+'Simulador para calculos'!L128+'Simulador para calculos'!M128)*NOT($J$12),"") ->  | U128: =IFERROR((1+'Simulación Cliente'!$E$21)^(T128/360),"") ->  | AB128: 107 | AS128: 107 | AT128: 2031-08-01 | AU128: 31 | AV128: 3256 | AW128: 77166.70373 | AX128: 499.7338452 | AY128: 1196.278936 | AZ128: 159.4831669 | BA128: 28 | BB128: 0 | BC128: 1883.495948 | BD128: 76666.96989 | BE128: 0.1605063274 | BF128: 0.1605063274 | BJ128: 107 | BK128: 2031-08-01 | BL128: 31 | BM128: 3256 | BN128: 76642.40937 | BO128: 239.8294925 | BP128: 1188.151048 | BQ128: 158.3995891 | BR128: 28 | BS128: 0 | BT128: 1614.38013 | BU128: 76402.57988 | BV128: 0.1605063274 | BW128: 0.1605063274 | CA128: 107 | CB128: 2031-08-01 | CC128: 31 | CD128: 3256 | CE128: 93722.04361 | CF128: 153.1425836 | CG128: 1452.928545 | CH128: 193.6986757 | CI128: 28 | CJ128: 0 | CK128: 1827.769804 | CL128: 93568.90102 | CM128: 0.1605063274 | CN128: 0.1605063274 | CR128: 107 | CS128: 2031-08-01 | CT128: 31 | CU128: 3256 | CV128: 93213.25201 | CW128: -99.0719063 | CX128: 1445.040989 | CY128: 192.647138 | CZ128: 28 | DA128: 0 | DB128: 1566.616221 | DC128: 93312.32391 | DD128: 0.1605063274 | DE128: 0.1605063274
B129: 108 | S129: =IFERROR((I129+J129+K129+L129+M129)*$J$12+('Simulador para calculos'!I129+'Simulador para calculos'!J129+'Simulador para calculos'!K129+'Simulador para calculos'!L129+'Simulador para calculos'!M129)*NOT($J$12),"") ->  | U129: =IFERROR((1+'Simulación Cliente'!$E$21)^(T129/360),"") ->  | AB129: 108 | AS129: 108 | AT129: 2031-09-01 | AU129: 31 | AV129: 3287 | AW129: 76666.96989 | AX129: 508.5138004 | AY129: 1188.531798 | AZ129: 158.4503492 | BA129: 28 | BB129: 0 | BC129: 1883.495948 | BD129: 76158.45609 | BE129: 0.1577348802 | BF129: 0.1577348802 | BJ129: 108 | BK129: 2031-09-01 | BL129: 31 | BM129: 3287 | BN129: 76402.57988 | BO129: 244.0431199 | BP129: 1184.433085 | BQ129: 157.903925 | BR129: 28 | BS129: 0 | BT129: 1614.38013 | BU129: 76158.53676 | BV129: 0.1577348802 | BW129: 0.1577348802 | CA129: 108 | CB129: 2031-09-01 | CC129: 31 | CD129: 3287 | CE129: 93568.90102 | CF129: 155.8331859 | CG129: 1450.554448 | CH129: 193.3821705 | CI129: 28 | CJ129: 0 | CK129: 1827.769804 | CL129: 93413.06784 | CM129: 0.1577348802 | CN129: 0.1577348802 | CR129: 108 | CS129: 2031-09-01 | CT129: 31 | CU129: 3287 | CV129: 93312.32391 | CW129: -100.8125267 | CX129: 1446.576854 | CY129: 192.8518935 | CZ129: 28 | DA129: 0 | DB129: 1566.616221 | DC129: 93413.13644 | DD129: 0.1577348802 | DE129: 0.1577348802
B130: 109 | S130: =IFERROR((I130+J130+K130+L130+M130)*$J$12+('Simulador para calculos'!I130+'Simulador para calculos'!J130+'Simulador para calculos'!K130+'Simulador para calculos'!L130+'Simulador para calculos'!M130)*NOT($J$12),"") ->  | U130: =IFERROR((1+'Simulación Cliente'!$E$21)^(T130/360),"") ->  | AB130: 109 | AS130: 109 | AT130: 2031-10-01 | AU130: 30 | AV130: 3317 | AW130: 76158.45609 | AX130: 560.900099 | AY130: 1142.278937 | AZ130: 152.3169122 | BA130: 28 | BB130: 0 | BC130: 1883.495948 | BD130: 75597.55599 | BE130: 0.1550984067 | BF130: 0.1550984067 | BJ130: 109 | BK130: 2031-10-01 | BL130: 30 | BM130: 3317 | BN130: 76158.53676 | BO130: 291.7829095 | BP130: 1142.280147 | BQ130: 152.3170735 | BR130: 28 | BS130: 0 | BT130: 1614.38013 | BU130: 75866.75385 | BV130: 0.1550984067 | BW130: 0.1550984067 | CA130: 109 | CB130: 2031-10-01 | CC130: 30 | CD130: 3317 | CE130: 93413.06784 | CF130: 211.8677373 | CG130: 1401.075931 | CH130: 186.8261357 | CI130: 28 | CJ130: 0 | CK130: 1827.769804 | CL130: 93201.2001 | CM130: 0.1550984067 | CN130: 0.1550984067 | CR130: 109 | CS130: 2031-10-01 | CT130: 30 | CU130: 3317 | CV130: 93413.13644 | CW130: -49.28701214 | CX130: 1401.07696 | CY130: 186.8262729 | CZ130: 28 | DA130: 0 | DB130: 1566.616221 | DC130: 93462.42345 | DD130: 0.1550984067 | DE130: 0.1550984067
B131: 110 | S131: =IFERROR((I131+J131+K131+L131+M131)*$J$12+('Simulador para calculos'!I131+'Simulador para calculos'!J131+'Simulador para calculos'!K131+'Simulador para calculos'!L131+'Simulador para calculos'!M131)*NOT($J$12),"") ->  | U131: =IFERROR((1+'Simulación Cliente'!$E$21)^(T131/360),"") ->  | AB131: 110 | AS131: 110 | AT131: 2031-11-01 | AU131: 31 | AV131: 3348 | AW131: 75597.55599 | AX131: 527.3026144 | AY131: 1171.95318 | AZ131: 156.2401535 | BA131: 28 | BB131: 0 | BC131: 1883.495948 | BD131: 75070.25338 | BE131: 0.1524203375 | BF131: 0.1524203375 | BJ131: 110 | BK131: 2031-11-01 | BL131: 31 | BM131: 3348 | BN131: 75866.75385 | BO131: 253.4571883 | BP131: 1176.126427 | BQ131: 156.7965143 | BR131: 28 | BS131: 0 | BT131: 1614.38013 | BU131: 75613.29666 | BV131: 0.1524203375 | BW131: 0.1524203375 | CA131: 110 | CB131: 2031-11-01 | CC131: 31 | CD131: 3348 | CE131: 93201.2001 | CF131: 162.2934201 | CG131: 1444.854154 | CH131: 192.6222299 | CI131: 28 | CJ131: 0 | CK131: 1827.769804 | CL131: 93038.90668 | CM131: 0.1524203375 | CN131: 0.1524203375 | CR131: 110 | CS131: 2031-11-01 | CT131: 31 | CU131: 3348 | CV131: 93462.42345 | CW131: -103.4496649 | CX131: 1448.903777 | CY131: 193.1621095 | CZ131: 28 | DA131: 0 | DB131: 1566.616221 | DC131: 93565.87312 | DD131: 0.1524203375 | DE131: 0.1524203375
B132: 111 | S132: =IFERROR((I132+J132+K132+L132+M132)*$J$12+('Simulador para calculos'!I132+'Simulador para calculos'!J132+'Simulador para calculos'!K132+'Simulador para calculos'!L132+'Simulador para calculos'!M132)*NOT($J$12),"") ->  | U132: =IFERROR((1+'Simulación Cliente'!$E$21)^(T132/360),"") ->  | AB132: 111 | AS132: 111 | AT132: 2031-12-01 | AU132: 30 | AV132: 3378 | AW132: 75070.25338 | AX132: 579.3981462 | AY132: 1125.957295 | AZ132: 150.1405068 | BA132: 28 | BB132: 0 | BC132: 1883.495948 | BD132: 74490.85523 | BE132: 0.1498726944 | BF132: 0.1498726944 | BJ132: 111 | BK132: 2031-12-01 | BL132: 30 | BM132: 3378 | BN132: 75613.29666 | BO132: 1915.43142 | BP132: 1134.102246 | BQ132: 151.2265933 | BR132: 28 | BS132: 0 | BT132: 3228.760259 | BU132: 73697.86524 | BV132: 0.2997453887 | BW132: 0.1498726944 | CA132: 111 | CB132: 2031-12-01 | CC132: 30 | CD132: 3378 | CE132: 93038.90668 | CF132: 218.227996 | CG132: 1395.463995 | CH132: 186.0778134 | CI132: 28 | CJ132: 0 | CK132: 1827.769804 | CL132: 92820.67868 | CM132: 0.1498726944 | CN132: 0.1498726944 | CR132: 111 | CS132: 2031-12-01 | CT132: 30 | CU132: 3378 | CV132: 93565.87312 | CW132: 1514.732882 | CX132: 1403.367814 | CY132: 187.1317462 | CZ132: 28 | DA132: 0 | DB132: 3133.232442 | DC132: 92051.14024 | DD132: 0.2997453887 | DE132: 0.1498726944
B133: 112 | S133: =IFERROR((I133+J133+K133+L133+M133)*$J$12+('Simulador para calculos'!I133+'Simulador para calculos'!J133+'Simulador para calculos'!K133+'Simulador para calculos'!L133+'Simulador para calculos'!M133)*NOT($J$12),"") ->  | U133: =IFERROR((1+'Simulación Cliente'!$E$21)^(T133/360),"") ->  | AB133: 112 | AS133: 112 | AT133: 2032-01-01 | AU133: 31 | AV133: 3409 | AW133: 74490.85523 | AX133: 546.7465309 | AY133: 1154.796521 | AZ133: 153.9528958 | BA133: 28 | BB133: 0 | BC133: 1883.495948 | BD133: 73944.1087 | BE133: 0.147284857 | BF133: 0.147284857 | BJ133: 112 | BK133: 2032-01-01 | BL133: 31 | BM133: 3409 | BN133: 73697.86524 | BO133: 291.5629624 | BP133: 1142.503172 | BQ133: 152.3139952 | BR133: 28 | BS133: 0 | BT133: 1614.38013 | BU133: 73406.30228 | BV133: 0.147284857 | BW133: 0.147284857 | CA133: 112 | CB133: 2032-01-01 | CC133: 31 | CD133: 3409 | CE133: 92820.67868 | CF133: 168.9789009 | CG133: 1438.955111 | CH133: 191.8357928 | CI133: 28 | CJ133: 0 | CK133: 1827.769804 | CL133: 92651.69978 | CM133: 0.147284857 | CN133: 0.147284857 | CR133: 112 | CS133: 2032-01-01 | CT133: 31 | CU133: 3409 | CV133: 92051.14024 | CW133: -78.65445909 | CX133: 1427.02532 | CY133: 190.2453604 | CZ133: 28 | DA133: 0 | DB133: 1566.616221 | DC133: 92129.79469 | DD133: 0.147284857 | DE133: 0.147284857
B134: 113 | S134: =IFERROR((I134+J134+K134+L134+M134)*$J$12+('Simulador para calculos'!I134+'Simulador para calculos'!J134+'Simulador para calculos'!K134+'Simulador para calculos'!L134+'Simulador para calculos'!M134)*NOT($J$12),"") ->  | U134: =IFERROR((1+'Simulación Cliente'!$E$21)^(T134/360),"") ->  | AB134: 113 | AS134: 113 | AT134: 2032-02-01 | AU134: 31 | AV134: 3440 | AW134: 73944.1087 | AX134: 556.3524645 | AY134: 1146.320568 | AZ134: 152.8229153 | BA134: 28 | BB134: 0 | BC134: 1883.495948 | BD134: 73387.75623 | BE134: 0.1447417037 | BF134: 0.1447417037 | BJ134: 113 | BK134: 2032-02-01 | BL134: 31 | BM134: 3440 | BN134: 73406.30228 | BO134: 296.6855087 | BP134: 1137.983209 | BQ134: 151.7114117 | BR134: 28 | BS134: 0 | BT134: 1614.38013 | BU134: 73109.61677 | BV134: 0.1447417037 | BW134: 0.1447417037 | CA134: 113 | CB134: 2032-02-01 | CC134: 31 | CD134: 3440 | CE134: 92651.69978 | CF134: 171.9477356 | CG134: 1436.335511 | CH134: 191.4865581 | CI134: 28 | CJ134: 0 | CK134: 1827.769804 | CL134: 92479.75205 | CM134: 0.1447417037 | CN134: 0.1447417037 | CR134: 113 | CS134: 2032-02-01 | CT134: 31 | CU134: 3440 | CV134: 92129.79469 | CW134: -80.03635996 | CX134: 1428.244663 | CY134: 190.4079183 | CZ134: 28 | DA134: 0 | DB134: 1566.616221 | DC134: 92209.83105 | DD134: 0.1447417037 | DE134: 0.1447417037
B135: 114 | S135: =IFERROR((I135+J135+K135+L135+M135)*$J$12+('Simulador para calculos'!I135+'Simulador para calculos'!J135+'Simulador para calculos'!K135+'Simulador para calculos'!L135+'Simulador para calculos'!M135)*NOT($J$12),"") ->  | U135: =IFERROR((1+'Simulación Cliente'!$E$21)^(T135/360),"") ->  | AB135: 114 | AS135: 114 | AT135: 2032-03-01 | AU135: 29 | AV135: 3469 | AW135: 73387.75623 | AX135: 649.8510325 | AY135: 1063.766646 | AZ135: 141.8782692 | BA135: 28 | BB135: 0 | BC135: 1883.495948 | BD135: 72737.9052 | BE135: 0.1424023937 | BF135: 0.1424023937 | BJ135: 114 | BK135: 2032-03-01 | BL135: 29 | BM135: 3469 | BN135: 73109.61677 | BO135: 385.3046065 | BP135: 1059.734972 | BQ135: 141.3405508 | BR135: 28 | BS135: 0 | BT135: 1614.38013 | BU135: 72724.31216 | BV135: 0.1424023937 | BW135: 0.1424023937 | CA135: 114 | CB135: 2032-03-01 | CC135: 29 | CD135: 3469 | CE135: 92479.75205 | CF135: 280.4735546 | CG135: 1340.508018 | CH135: 178.7882316 | CI135: 28 | CJ135: 0 | CK135: 1827.769804 | CL135: 92199.27849 | CM135: 0.1424023937 | CN135: 0.1424023937 | CR135: 114 | CS135: 2032-03-01 | CT135: 29 | CU135: 3469 | CV135: 92209.83105 | CW135: 23.75434695 | CX135: 1336.595472 | CY135: 178.2664017 | CZ135: 28 | DA135: 0 | DB135: 1566.616221 | DC135: 92186.07671 | DD135: 0.1424023937 | DE135: 0.1424023937
B136: 115 | S136: =IFERROR((I136+J136+K136+L136+M136)*$J$12+('Simulador para calculos'!I136+'Simulador para calculos'!J136+'Simulador para calculos'!K136+'Simulador para calculos'!L136+'Simulador para calculos'!M136)*NOT($J$12),"") ->  | U136: =IFERROR((1+'Simulación Cliente'!$E$21)^(T136/360),"") ->  | AB136: 115 | AS136: 115 | AT136: 2032-04-01 | AU136: 31 | AV136: 3500 | AW136: 72737.9052 | AX136: 577.5445708 | AY136: 1127.621365 | AZ136: 150.3300117 | BA136: 28 | BB136: 0 | BC136: 1883.495948 | BD136: 72160.36063 | BE136: 0.1399435454 | BF136: 0.1399435454 | BJ136: 115 | BK136: 2032-04-01 | BL136: 31 | BM136: 3500 | BN136: 72724.31216 | BO136: 308.6675723 | BP136: 1127.410639 | BQ136: 150.3019185 | BR136: 28 | BS136: 0 | BT136: 1614.38013 | BU136: 72415.64459 | BV136: 0.1399435454 | BW136: 0.1399435454 | CA136: 115 | CB136: 2032-04-01 | CC136: 31 | CD136: 3500 | CE136: 92199.27849 | CF136: 179.8964442 | CG136: 1429.321837 | CH136: 190.551523 | CI136: 28 | CJ136: 0 | CK136: 1827.769804 | CL136: 92019.38205 | CM136: 0.1399435454 | CN136: 0.1399435454 | CR136: 115 | CS136: 2032-04-01 | CT136: 31 | CU136: 3500 | CV136: 92186.07671 | CW136: -81.02519344 | CX136: 1429.117176 | CY136: 190.5242384 | CZ136: 28 | DA136: 0 | DB136: 1566.616221 | DC136: 92267.1019 | DD136: 0.1399435454 | DE136: 0.1399435454
B137: 116 | S137: =IFERROR((I137+J137+K137+L137+M137)*$J$12+('Simulador para calculos'!I137+'Simulador para calculos'!J137+'Simulador para calculos'!K137+'Simulador para calculos'!L137+'Simulador para calculos'!M137)*NOT($J$12),"") ->  | U137: =IFERROR((1+'Simulación Cliente'!$E$21)^(T137/360),"") ->  | AB137: 116 | AS137: 116 | AT137: 2032-05-01 | AU137: 30 | AV137: 3530 | AW137: 72160.36063 | AX137: 628.8625821 | AY137: 1082.312645 | AZ137: 144.3207213 | BA137: 28 | BB137: 0 | BC137: 1883.495948 | BD137: 71531.49805 | BE137: 0.1376044467 | BF137: 0.1376044467 | BJ137: 116 | BK137: 2032-05-01 | BL137: 30 | BM137: 3530 | BN137: 72415.64459 | BO137: 355.4072648 | BP137: 1086.141576 | BQ137: 144.8312892 | BR137: 28 | BS137: 0 | BT137: 1614.38013 | BU137: 72060.23733 | BV137: 0.1376044467 | BW137: 0.1376044467 | CA137: 116 | CB137: 2032-05-01 | CC137: 30 | CD137: 3530 | CE137: 92019.38205 | CF137: 235.558604 | CG137: 1380.172436 | CH137: 184.0387641 | CI137: 28 | CJ137: 0 | CK137: 1827.769804 | CL137: 91783.82344 | CM137: 0.1376044467 | CN137: 0.1376044467 | CR137: 116 | CS137: 2032-05-01 | CT137: 30 | CU137: 3530 | CV137: 92267.1019 | CW137: -29.80589824 | CX137: 1383.887916 | CY137: 184.5342038 | CZ137: 28 | DA137: 0 | DB137: 1566.616221 | DC137: 92296.9078 | DD137: 0.1376044467 | DE137: 0.1376044467
B138: 117 | S138: =IFERROR((I138+J138+K138+L138+M138)*$J$12+('Simulador para calculos'!I138+'Simulador para calculos'!J138+'Simulador para calculos'!K138+'Simulador para calculos'!L138+'Simulador para calculos'!M138)*NOT($J$12),"") ->  | U138: =IFERROR((1+'Simulación Cliente'!$E$21)^(T138/360),"") ->  | AB138: 117 | AS138: 117 | AT138: 2032-06-01 | AU138: 31 | AV138: 3561 | AW138: 71531.49805 | AX138: 598.7402552 | AY138: 1108.919005 | AZ138: 147.8366872 | BA138: 28 | BB138: 0 | BC138: 1883.495948 | BD138: 70932.75779 | BE138: 0.135228444 | BF138: 0.135228444 | BJ138: 117 | BK138: 2032-06-01 | BL138: 31 | BM138: 3561 | BN138: 72060.23733 | BO138: 320.3348777 | BP138: 1117.115801 | BQ138: 148.9294514 | BR138: 28 | BS138: 0 | BT138: 1614.38013 | BU138: 71739.90245 | BV138: 0.135228444 | BW138: 0.135228444 | CA138: 117 | CB138: 2032-06-01 | CC138: 31 | CD138: 3561 | CE138: 91783.82344 | CF138: 187.1956831 | CG138: 1422.881234 | CH138: 189.6928873 | CI138: 28 | CJ138: 0 | CK138: 1827.769804 | CL138: 91596.62776 | CM138: 0.135228444 | CN138: 0.135228444 | CR138: 117 | CS138: 2032-06-01 | CT138: 31 | CU138: 3561 | CV138: 92296.9078 | CW138: -82.97241403 | CX138: 1430.835338 | CY138: 190.7532969 | CZ138: 28 | DA138: 0 | DB138: 1566.616221 | DC138: 92379.88021 | DD138: 0.135228444 | DE138: 0.135228444
B139: 118 | S139: =IFERROR((I139+J139+K139+L139+M139)*$J$12+('Simulador para calculos'!I139+'Simulador para calculos'!J139+'Simulador para calculos'!K139+'Simulador para calculos'!L139+'Simulador para calculos'!M139)*NOT($J$12),"") ->  | U139: =IFERROR((1+'Simulación Cliente'!$E$21)^(T139/360),"") ->  | AB139: 118 | AS139: 118 | AT139: 2032-07-01 | AU139: 30 | AV139: 3591 | AW139: 70932.75779 | AX139: 649.7302522 | AY139: 1063.90018 | AZ139: 141.8655156 | BA139: 28 | BB139: 0 | BC139: 1883.495948 | BD139: 70283.02754 | BE139: 0.1329681563 | BF139: 0.1329681563 | BJ139: 118 | BK139: 2032-07-01 | BL139: 30 | BM139: 3591 | BN139: 71739.90245 | BO139: 1981.274142 | BP139: 1076.006312 | BQ139: 143.4798049 | BR139: 28 | BS139: 0 | BT139: 3228.760259 | BU139: 69758.62831 | BV139: 0.2659363125 | BW139: 0.1329681563 | CA139: 118 | CB139: 2032-07-01 | CC139: 30 | CD139: 3591 | CE139: 91596.62776 | CF139: 242.7448835 | CG139: 1373.831665 | CH139: 183.1932555 | CI139: 28 | CJ139: 0 | CK139: 1827.769804 | CL139: 91353.88288 | CM139: 0.1329681563 | CN139: 0.1329681563 | CR139: 118 | CS139: 2032-07-01 | CT139: 30 | CU139: 3591 | CV139: 92379.88021 | CW139: 1534.893237 | CX139: 1385.579445 | CY139: 184.7597604 | CZ139: 28 | DA139: 0 | DB139: 3133.232442 | DC139: 90844.98698 | DD139: 0.2659363125 | DE139: 0.1329681563
B140: 119 | S140: =IFERROR((I140+J140+K140+L140+M140)*$J$12+('Simulador para calculos'!I140+'Simulador para calculos'!J140+'Simulador para calculos'!K140+'Simulador para calculos'!L140+'Simulador para calculos'!M140)*NOT($J$12),"") ->  | U140: =IFERROR((1+'Simulación Cliente'!$E$21)^(T140/360),"") ->  | AB140: 119 | AS140: 119 | AT140: 2032-08-01 | AU140: 31 | AV140: 3622 | AW140: 70283.02754 | AX140: 620.6749617 | AY140: 1089.564557 | AZ140: 145.2564289 | BA140: 28 | BB140: 0 | BC140: 1883.495948 | BD140: 69662.35258 | BE140: 0.130672208 | BF140: 0.130672208 | BJ140: 119 | BK140: 2032-08-01 | BL140: 31 | BM140: 3622 | BN140: 69758.62831 | BO140: 360.7724516 | BP140: 1081.435044 | BQ140: 144.1726343 | BR140: 28 | BS140: 0 | BT140: 1614.38013 | BU140: 69397.85585 | BV140: 0.130672208 | BW140: 0.130672208 | CA140: 119 | CB140: 2032-08-01 | CC140: 31 | CD140: 3622 | CE140: 91353.88288 | CF140: 194.749422 | CG140: 1416.216069 | CH140: 188.8043138 | CI140: 28 | CJ140: 0 | CK140: 1827.769804 | CL140: 91159.13346 | CM140: 0.130672208 | CN140: 0.130672208 | CR140: 119 | CS140: 2032-08-01 | CT140: 31 | CU140: 3622 | CV140: 90844.98698 | CW140: -57.46323543 | CX140: 1408.326896 | CY140: 187.7525606 | CZ140: 28 | DA140: 0 | DB140: 1566.616221 | DC140: 90902.45021 | DD140: 0.130672208 | DE140: 0.130672208
B141: 120 | S141: =IFERROR((I141+J141+K141+L141+M141)*$J$12+('Simulador para calculos'!I141+'Simulador para calculos'!J141+'Simulador para calculos'!K141+'Simulador para calculos'!L141+'Simulador para calculos'!M141)*NOT($J$12),"") ->  | U141: =IFERROR((1+'Simulación Cliente'!$E$21)^(T141/360),"") ->  | AB141: 120 | AS141: 120 | AT141: 2032-09-01 | AU141: 31 | AV141: 3653 | AW141: 69662.35258 | AX141: 631.5797633 | AY141: 1079.942527 | AZ141: 143.9736579 | BA141: 28 | BB141: 0 | BC141: 1883.495948 | BD141: 69030.77282 | BE141: 0.1284159036 | BF141: 0.1284159036 | BJ141: 120 | BK141: 2032-09-01 | BL141: 31 | BM141: 3653 | BN141: 69397.85585 | BO141: 367.1109576 | BP141: 1075.842159 | BQ141: 143.4270131 | BR141: 28 | BS141: 0 | BT141: 1614.38013 | BU141: 69030.7449 | BV141: 0.1284159036 | BW141: 0.1284159036 | CA141: 120 | CB141: 2032-09-01 | CC141: 31 | CD141: 3653 | CE141: 91159.13346 | CF141: 198.1710257 | CG141: 1413.19696 | CH141: 188.4018183 | CI141: 28 | CJ141: 0 | CK141: 1827.769804 | CL141: 90960.96243 | CM141: 0.1284159036 | CN141: 0.1284159036 | CR141: 120 | CS141: 2032-09-01 | CT141: 31 | CU141: 3653 | CV141: 90902.45021 | CW141: -58.47282212 | CX141: 1409.217721 | CY141: 187.8713219 | CZ141: 28 | DA141: 0 | DB141: 1566.616221 | DC141: 90960.92303 | DD141: 0.1284159036 | DE141: 0.1284159036
B142: 121 | S142: =IFERROR((I142+J142+K142+L142+M142)*$J$12+('Simulador para calculos'!I142+'Simulador para calculos'!J142+'Simulador para calculos'!K142+'Simulador para calculos'!L142+'Simulador para calculos'!M142)*NOT($J$12),"") ->  | U142: =IFERROR((1+'Simulación Cliente'!$E$21)^(T142/360),"") ->  | AB142: 121 | AS142: 121 | AT142: 2032-10-01 | AU142: 30 | AV142: 3683 | AW142: 69030.77282 | AX142: 682.0615517 | AY142: 1035.372851 | AZ142: 138.0615456 | BA142: 28 | BB142: 0 | BC142: 1883.495948 | BD142: 68348.71126 | BE142: 0.1262694847 | BF142: 0.1262694847 | BJ142: 121 | BK142: 2032-10-01 | BL142: 30 | BM142: 3683 | BN142: 69030.7449 | BO142: 412.9462081 | BP142: 1035.372432 | BQ142: 138.0614898 | BR142: 28 | BS142: 0 | BT142: 1614.38013 | BU142: 68617.79869 | BV142: 0.1262694847 | BW142: 0.1262694847 | CA142: 121 | CB142: 2032-10-01 | CC142: 30 | CD142: 3683 | CE142: 90960.96243 | CF142: 253.5503769 | CG142: 1364.297503 | CH142: 181.9219249 | CI142: 28 | CJ142: 0 | CK142: 1827.769804 | CL142: 90707.41205 | CM142: 0.1262694847 | CN142: 0.1262694847 | CR142: 121 | CS142: 2032-10-01 | CT142: 30 | CU142: 3683 | CV142: 90960.92303 | CW142: -7.602536651 | CX142: 1364.296912 | CY142: 181.9218461 | CZ142: 28 | DA142: 0 | DB142: 1566.616221 | DC142: 90968.52557 | DD142: 0.1262694847 | DE142: 0.1262694847
B143: 122 | S143: =IFERROR((I143+J143+K143+L143+M143)*$J$12+('Simulador para calculos'!I143+'Simulador para calculos'!J143+'Simulador para calculos'!K143+'Simulador para calculos'!L143+'Simulador para calculos'!M143)*NOT($J$12),"") ->  | U143: =IFERROR((1+'Simulación Cliente'!$E$21)^(T143/360),"") ->  | AB143: 122 | AS143: 122 | AT143: 2032-11-01 | AU143: 31 | AV143: 3714 | AW143: 68348.71126 | AX143: 654.6594728 | AY143: 1059.577766 | AZ143: 141.2587087 | BA143: 28 | BB143: 0 | BC143: 1883.495948 | BD143: 67694.05179 | BE143: 0.1240892017 | BF143: 0.1240892017 | BJ143: 122 | BK143: 2032-11-01 | BL143: 31 | BM143: 3714 | BN143: 68617.79869 | BO143: 380.815987 | BP143: 1063.749301 | BQ143: 141.8148412 | BR143: 28 | BS143: 0 | BT143: 1614.38013 | BU143: 68236.9827 | BV143: 0.1240892017 | BW143: 0.1240892017 | CA143: 122 | CB143: 2032-11-01 | CC143: 31 | CD143: 3714 | CE143: 90707.41205 | CF143: 206.1074378 | CG143: 1406.194137 | CH143: 187.4682296 | CI143: 28 | CJ143: 0 | CK143: 1827.769804 | CL143: 90501.30462 | CM143: 0.1240892017 | CN143: 0.1240892017 | CR143: 122 | CS143: 2032-11-01 | CT143: 31 | CU143: 3714 | CV143: 90968.52557 | CW143: -59.63371747 | CX143: 1410.242056 | CY143: 188.0078822 | CZ143: 28 | DA143: 0 | DB143: 1566.616221 | DC143: 91028.15929 | DD143: 0.1240892017 | DE143: 0.1240892017
B144: 123 | S144: =IFERROR((I144+J144+K144+L144+M144)*$J$12+('Simulador para calculos'!I144+'Simulador para calculos'!J144+'Simulador para calculos'!K144+'Simulador para calculos'!L144+'Simulador para calculos'!M144)*NOT($J$12),"") ->  | U144: =IFERROR((1+'Simulación Cliente'!$E$21)^(T144/360),"") ->  | AB144: 123 | AS144: 123 | AT144: 2032-12-01 | AU144: 30 | AV144: 3744 | AW144: 67694.05179 | AX144: 704.7840907 | AY144: 1015.323754 | AZ144: 135.3881036 | BA144: 28 | BB144: 0 | BC144: 1883.495948 | BD144: 66989.2677 | BE144: 0.1220151018 | BF144: 0.1220151018 | BJ144: 123 | BK144: 2032-12-01 | BL144: 30 | BM144: 3744 | BN144: 68236.9827 | BO144: 2040.819275 | BP144: 1023.467019 | BQ144: 136.4739654 | BR144: 28 | BS144: 0 | BT144: 3228.760259 | BU144: 66196.16343 | BV144: 0.2440302037 | BW144: 0.1220151018 | CA144: 123 | CB144: 2032-12-01 | CC144: 30 | CD144: 3744 | CE144: 90501.30462 | CF144: 261.3639689 | CG144: 1357.403226 | CH144: 181.0026092 | CI144: 28 | CJ144: 0 | CK144: 1827.769804 | CL144: 90239.94065 | CM144: 0.1220151018 | CN144: 0.1220151018 | CR144: 123 | CS144: 2032-12-01 | CT144: 30 | CU144: 3744 | CV144: 91028.15929 | CW144: 1557.870755 | CX144: 1365.305369 | CY144: 182.0563186 | CZ144: 28 | DA144: 0 | DB144: 3133.232442 | DC144: 89470.28853 | DD144: 0.2440302037 | DE144: 0.1220151018
B145: 124 | S145: =IFERROR((I145+J145+K145+L145+M145)*$J$12+('Simulador para calculos'!I145+'Simulador para calculos'!J145+'Simulador para calculos'!K145+'Simulador para calculos'!L145+'Simulador para calculos'!M145)*NOT($J$12),"") ->  | U145: =IFERROR((1+'Simulación Cliente'!$E$21)^(T145/360),"") ->  | AB145: 124 | AS145: 124 | AT145: 2033-01-01 | AU145: 31 | AV145: 3775 | AW145: 66989.2677 | AX145: 678.5438942 | AY145: 1038.502955 | AZ145: 138.4490984 | BA145: 28 | BB145: 0 | BC145: 1883.495948 | BD145: 66310.72381 | BE145: 0.1199082789 | BF145: 0.1199082789 | BJ145: 124 | BK145: 2033-01-01 | BL145: 31 | BM145: 3775 | BN145: 66196.16343 | BO145: 423.3623335 | BP145: 1026.207835 | BQ145: 136.8099617 | BR145: 28 | BS145: 0 | BT145: 1614.38013 | BU145: 65772.80109 | BV145: 0.1199082789 | BW145: 0.1199082789 | CA145: 124 | CB145: 2033-01-01 | CC145: 31 | CD145: 3775 | CE145: 90239.94065 | CF145: 214.3205658 | CG145: 1398.947149 | CH145: 186.5020899 | CI145: 28 | CJ145: 0 | CK145: 1827.769804 | CL145: 90025.62008 | CM145: 0.1199082789 | CN145: 0.1199082789 | CR145: 124 | CS145: 2033-01-01 | CT145: 31 | CU145: 3775 | CV145: 89470.28853 | CW145: -33.31079712 | CX145: 1387.015596 | CY145: 184.9114225 | CZ145: 28 | DA145: 0 | DB145: 1566.616221 | DC145: 89503.59933 | DD145: 0.1199082789 | DE145: 0.1199082789
B146: 125 | S146: =IFERROR((I146+J146+K146+L146+M146)*$J$12+('Simulador para calculos'!I146+'Simulador para calculos'!J146+'Simulador para calculos'!K146+'Simulador para calculos'!L146+'Simulador para calculos'!M146)*NOT($J$12),"") ->  | U146: =IFERROR((1+'Simulación Cliente'!$E$21)^(T146/360),"") ->  | AB146: 125 | AS146: 125 | AT146: 2033-02-01 | AU146: 31 | AV146: 3806 | AW146: 66310.72381 | AX146: 690.4654102 | AY146: 1027.98381 | AZ146: 137.0467277 | BA146: 28 | BB146: 0 | BC146: 1883.495948 | BD146: 65620.2584 | BE146: 0.1178378342 | BF146: 0.1178378342 | BJ146: 125 | BK146: 2033-02-01 | BL146: 31 | BM146: 3806 | BN146: 65772.80109 | BO146: 430.8004976 | BP146: 1019.644648 | BQ146: 135.9349837 | BR146: 28 | BS146: 0 | BT146: 1614.38013 | BU146: 65342.0006 | BV146: 0.1178378342 | BW146: 0.1178378342 | CA146: 125 | CB146: 2033-02-01 | CC146: 31 | CD146: 3806 | CE146: 90025.62008 | CF146: 218.0860202 | CG146: 1395.624638 | CH146: 186.0591459 | CI146: 28 | CJ146: 0 | CK146: 1827.769804 | CL146: 89807.53406 | CM146: 0.1178378342 | CN146: 0.1178378342 | CR146: 125 | CS146: 2033-02-01 | CT146: 31 | CU146: 3806 | CV146: 89503.59933 | CW146: -33.89604327 | CX146: 1387.531997 | CY146: 184.9802671 | CZ146: 28 | DA146: 0 | DB146: 1566.616221 | DC146: 89537.49537 | DD146: 0.1178378342 | DE146: 0.1178378342
B147: 126 | S147: =IFERROR((I147+J147+K147+L147+M147)*$J$12+('Simulador para calculos'!I147+'Simulador para calculos'!J147+'Simulador para calculos'!K147+'Simulador para calculos'!L147+'Simulador para calculos'!M147)*NOT($J$12),"") ->  | U147: =IFERROR((1+'Simulación Cliente'!$E$21)^(T147/360),"") ->  | AB147: 126 | AS147: 126 | AT147: 2033-03-01 | AU147: 28 | AV147: 3834 | AW147: 65620.2584 | AX147: 814.8649078 | AY147: 918.1480513 | AZ147: 122.4829887 | BA147: 28 | BB147: 0 | BC147: 1883.495948 | BD147: 64805.39349 | BE147: 0.1159985004 | BF147: 0.1159985004 | BJ147: 126 | BK147: 2033-03-01 | BL147: 28 | BM147: 3834 | BN147: 65342.0006 | BO147: 550.1618078 | BP147: 914.2547131 | BQ147: 121.9636088 | BR147: 28 | BS147: 0 | BT147: 1614.38013 | BU147: 64791.83879 | BV147: 0.1159985004 | BW147: 0.1159985004 | CA147: 126 | CB147: 2033-03-01 | CC147: 28 | CD147: 3834 | CE147: 89807.53406 | CF147: 375.5677385 | CG147: 1256.572504 | CH147: 167.6295621 | CI147: 28 | CJ147: 0 | CK147: 1827.769804 | CL147: 89431.96632 | CM147: 0.1159985004 | CN147: 0.1159985004 | CR147: 126 | CS147: 2033-03-01 | CT147: 28 | CU147: 3834 | CV147: 89537.49537 | CW147: 118.6965316 | CX147: 1252.794166 | CY147: 167.1255235 | CZ147: 28 | DA147: 0 | DB147: 1566.616221 | DC147: 89418.79884 | DD147: 0.1159985004 | DE147: 0.1159985004
B148: 127 | S148: =IFERROR((I148+J148+K148+L148+M148)*$J$12+('Simulador para calculos'!I148+'Simulador para calculos'!J148+'Simulador para calculos'!K148+'Simulador para calculos'!L148+'Simulador para calculos'!M148)*NOT($J$12),"") ->  | U148: =IFERROR((1+'Simulación Cliente'!$E$21)^(T148/360),"") ->  | AB148: 127 | AS148: 127 | AT148: 2033-04-01 | AU148: 31 | AV148: 3865 | AW148: 64805.39349 | AX148: 716.9129543 | AY148: 1004.647386 | AZ148: 133.935608 | BA148: 28 | BB148: 0 | BC148: 1883.495948 | BD148: 64088.48053 | BE148: 0.1139955655 | BF148: 0.1139955655 | BJ148: 127 | BK148: 2033-04-01 | BL148: 31 | BM148: 3865 | BN148: 64791.83879 | BO148: 448.0352822 | BP148: 1004.437253 | BQ148: 133.9075941 | BR148: 28 | BS148: 0 | BT148: 1614.38013 | BU148: 64343.80351 | BV148: 0.1139955655 | BW148: 0.1139955655 | CA148: 127 | CB148: 2033-04-01 | CC148: 31 | CD148: 3865 | CE148: 89431.96632 | CF148: 228.5160791 | CG148: 1386.421505 | CH148: 184.8322206 | CI148: 28 | CJ148: 0 | CK148: 1827.769804 | CL148: 89203.45024 | CM148: 0.1139955655 | CN148: 0.1139955655 | CR148: 127 | CS148: 2033-04-01 | CT148: 31 | CU148: 3865 | CV148: 89418.79884 | CW148: -32.4061612 | CX148: 1386.217375 | CY148: 184.8050069 | CZ148: 28 | DA148: 0 | DB148: 1566.616221 | DC148: 89451.205 | DD148: 0.1139955655 | DE148: 0.1139955655
B149: 128 | S149: =IFERROR((I149+J149+K149+L149+M149)*$J$12+('Simulador para calculos'!I149+'Simulador para calculos'!J149+'Simulador para calculos'!K149+'Simulador para calculos'!L149+'Simulador para calculos'!M149)*NOT($J$12),"") ->  | U149: =IFERROR((1+'Simulación Cliente'!$E$21)^(T149/360),"") ->  | AB149: 128 | AS149: 128 | AT149: 2033-05-01 | AU149: 30 | AV149: 3895 | AW149: 64088.48053 | AX149: 766.074167 | AY149: 961.2448198 | AZ149: 128.1769611 | BA149: 28 | BB149: 0 | BC149: 1883.495948 | BD149: 63322.40637 | BE149: 0.1120901766 | BF149: 0.1120901766 | BJ149: 128 | BK149: 2033-05-01 | BL149: 30 | BM149: 3895 | BN149: 64343.80351 | BO149: 492.6181865 | BP149: 965.0743361 | BQ149: 128.687607 | BR149: 28 | BS149: 0 | BT149: 1614.38013 | BU149: 63851.18532 | BV149: 0.1120901766 | BW149: 0.1120901766 | CA149: 128 | CB149: 2033-05-01 | CC149: 30 | CD149: 3895 | CE149: 89203.45024 | CF149: 283.4258248 | CG149: 1337.937079 | CH149: 178.4069005 | CI149: 28 | CJ149: 0 | CK149: 1827.769804 | CL149: 88920.02442 | CM149: 0.1120901766 | CN149: 0.1120901766 | CR149: 128 | CS149: 2033-05-01 | CT149: 30 | CU149: 3895 | CV149: 89451.205 | CW149: 18.06072907 | CX149: 1341.653082 | CY149: 178.90241 | CZ149: 28 | DA149: 0 | DB149: 1566.616221 | DC149: 89433.14427 | DD149: 0.1120901766 | DE149: 0.1120901766
B150: 129 | M150: =IF(B150>C$6,"",C$15) ->  | P150: =IFERROR(IF(AND(MONTH(C150)=7,C$9=2),2/(1+C$11)^(G150/360),IF(AND(MONTH(C150)=12,C$10=2),2/(1+C$11)^(G150/360),1/(1+C$11)^(G150/360))),"") ->  | Q150: =IFERROR(1/(1+C$11)^(G150/360),"") ->  | S150: =IFERROR((I150+J150+K150+L150+M150)*$J$12+('Simulador para calculos'!I150+'Simulador para calculos'!J150+'Simulador para calculos'!K150+'Simulador para calculos'!L150+'Simulador para calculos'!M150)*NOT($J$12),"") ->  | T150: =G150 ->  | U150: =IFERROR((1+'Simulación Cliente'!$E$21)^(T150/360),"") ->  | AB150: 129 | AI150: =IF(AB150>AC$6,"",((1+AC$12)^(AD150/30)-1)*AF150) ->  | AJ150: =IF(AB150>AC$6,"",AC$4*AC$14) ->  | AK150: =IF(AB150>AC$6,"",AC$15) ->  | AL150: =IF(AB150>AC$6,"",IF(AB150=AC$6,AF150+AH150+AI150+AJ150+AK150,IF(AND(AC$9=2,MONTH(AC150)=7),2*AC$17,IF(AND(AC$10=2,MONTH(AC150)=12),2*AC$17,AC$17)))) ->  | AM150: =IF(AB150>AC$6,"",AF150-AG150) ->  | AS150: 129 | AT150: 2033-06-01 | AU150: 31 | AV150: 3926 | AW150: 63322.40637 | AX150: 742.9679448 | AY150: 981.6573371 | AZ150: =IF(AS150>AT$6,"",((1+AT$12)^(AU150/30)-1)*AW150) -> 130.8706659 | BA150: =IF(AS150>AT$6,"",AT$4*AT$14) -> 28 | BB150: =IF(AS150>AT$6,"",AT$15) -> 0 | BC150: =IF(AS150>AT$6,"",IF(AS150=AT$6,AW150+AY150+AZ150+BA150+BB150,IF(AND(AT$9=2,MONTH(AT150)=7),2*AT$17,IF(AND(AT$10=2,MONTH(AT150)=12),2*AT$17,AT$17)))) -> 1883.495948 | BD150: =IF(AS150>AT$6,"",AW150-AX150) -> 62579.43842 | BE150: 0.1101547264 | BF150: 0.1101547264 | BJ150: 129 | BK150: 2033-06-01 | BL150: 31 | BM150: 3926 | BN150: 63851.18532 | BO150: 464.5618703 | BP150: 989.8547473 | BQ150: =IF(BJ150>BK$6,"",((1+BK$12)^(BL150/30)-1)*BN150) -> 131.9635121 | BR150: =IF(BJ150>BK$6,"",BK$4*BK$14) -> 28 | BS150: =IF(BJ150>BK$6,"",BK$15) -> 0 | BT150: =IF(BJ150>BK$6,"",IF(BJ150=BK$6,BN150+BP150+BQ150+BR150+BS150,IF(AND(BK$9=2,MONTH(BK150)=7),2*BK$17,IF(AND(BK$10=2,MONTH(BK150)=12),2*BK$17,BK$17)))) -> 1614.38013 | BU150: =IF(BJ150>BK$6,"",BN150-BO150) -> 63386.62345 | BV150: 0.1101547264 | BW150: 0.1101547264 | CA150: 129 | CB150: 2033-06-01 | CC150: 31 | CD150: 3926 | CE150: 88920.02442 | CF150: 237.510521 | CG150: 1378.485111 | CH150: =IF(CA150>CB$6,"",((1+CB$12)^(CC150/30)-1)*CE150) -> 183.7741721 | CI150: =IF(CA150>CB$6,"",CB$4*CB$14) -> 28 | CJ150: =IF(CA150>CB$6,"",CB$15) -> 0 | CK150: =IF(CA150>CB$6,"",IF(CA150=CB$6,CE150+CG150+CH150+CI150+CJ150,IF(AND(CB$9=2,MONTH(CB150)=7),2*CB$17,IF(AND(CB$10=2,MONTH(CB150)=12),2*CB$17,CB$17)))) -> 1827.769804 | CL150: =IF(CA150>CB$6,"",CE150-CF150) -> 88682.5139 | CM150: 0.1101547264 | CN150: 0.1101547264 | CR150: 129 | CS150: 2033-06-01 | CT150: 31 | CU150: 3926 | CV150: 89433.14427 | CW150: -32.65819987 | CX150: 1386.439766 | CY150: =IF(CR150>CS$6,"",((1+CS$12)^(CT150/30)-1)*CV150) -> 184.8346552 | CZ150: =IF(CR150>CS$6,"",CS$4*CS$14) -> 28 | DA150: =IF(CR150>CS$6,"",CS$15) -> 0 | DB150: =IF(CR150>CS$6,"",IF(CR150=CS$6,CV150+CX150+CY150+CZ150+DA150,IF(AND(CS$9=2,MONTH(CS150)=7),2*CS$17,IF(AND(CS$10=2,MONTH(CS150)=12),2*CS$17,CS$17)))) -> 1566.616221 | DC150: =IF(CR150>CS$6,"",CV150-CW150) -> 89465.80247 | DD150: 0.1101547264 | DE150: 0.1101547264
B151: 130 | D151: =IF(B151<=$C$6,WEEKDAY(C151,2),"") ->  | E151: =IF(D151=7,C151+1,C151) ->  | G151: =IFERROR(F151+G150,"") ->  | H151: =IF(B151>C$6,"",O150) ->  | I151: =IF(B151>C$6,"",N151-M151-L151-K151-J151) ->  | K151: =IF(B151>C$6,"",0) ->  | L151: =IF(B151>C$6,"",D$4*C$14) ->  | N151: =IF(B151>C$6,"",IF(B151=C$6,H151+J151+K151+L151+M151,IF(AND(C$9=2,MONTH(C151)=7),2*C$17,IF(AND(C$10=2,MONTH(C151)=12),2*C$17,C$17)))) ->  | O151: =IF(B151>C$6,"",H151-I151) ->  | S151: =IFERROR((I151+J151+K151+L151+M151)*$J$12+('Simulador para calculos'!I151+'Simulador para calculos'!J151+'Simulador para calculos'!K151+'Simulador para calculos'!L151+'Simulador para calculos'!M151)*NOT($J$12),"") ->  | U151: =IFERROR((1+'Simulación Cliente'!$E$21)^(T151/360),"") ->  | V151: =IFERROR(ROUND(S151/U151,2),"") ->  | AB151: 130 | AC151: =IF(AB151>AC$6,"",EDATE(AC$22,AB150)) ->  | AE151: =IFERROR(AD151+AE150,"") ->  | AF151: =IF(AB151>AC$6,"",AM150) ->  | AN151: =IFERROR(IF(AND(MONTH(AC151)=7,AC$9=2),2/(1+AC$13)^(AE151/360),IF(AND(MONTH(AC151)=12,AC$10=2),2/(1+AC$13)^(AE151/360),1/(1+AC$13)^(AE151/360))),"") ->  | AO151: =IFERROR(1/(1+AC$13)^(AE151/360),"") ->  | AS151: 130 | AT151: =IF(AS151>AT$6,"",EDATE(AT$22,AS150)) -> 2033-07-01 | AU151: 30 | AV151: =IFERROR(AU151+AV150,"") -> 3956 | AW151: =IF(AS151>AT$6,"",BD150) -> 62579.43842 | AX151: 791.7259429 | AY151: 938.611128 | AZ151: 125.1588768 | BA151: 28 | BB151: 0 | BC151: 1883.495948 | BD151: 61787.71248 | BE151: =IFERROR(IF(AND(MONTH(AT151)=7,AT$9=2),2/(1+AT$13)^(AV151/360),IF(AND(MONTH(AT151)=12,AT$10=2),2/(1+AT$13)^(AV151/360),1/(1+AT$13)^(AV151/360))),"") -> 0.1083135355 | BF151: =IFERROR(1/(1+AT$13)^(AV151/360),"") -> 0.1083135355 | BJ151: 130 | BK151: =IF(BJ151>BK$6,"",EDATE(BK$22,BJ150)) -> 2033-07-01 | BL151: 30 | BM151: =IFERROR(BL151+BM150,"") -> 3956 | BN151: =IF(BJ151>BK$6,"",BU150) -> 63386.62345 | BO151: 2123.269147 | BP151: 950.7178658 | BQ151: 126.7732469 | BR151: 28 | BS151: 0 | BT151: 3228.760259 | BU151: 61263.3543 | BV151: =IFERROR(IF(AND(MONTH(BK151)=7,BK$9=2),2/(1+BK$13)^(BM151/360),IF(AND(MONTH(BK151)=12,BK$10=2),2/(1+BK$13)^(BM151/360),1/(1+BK$13)^(BM151/360))),"") -> 0.2166270711 | BW151: =IFERROR(1/(1+BK$13)^(BM151/360),"") -> 0.1083135355 | CA151: 130 | CB151: =IF(CA151>CB$6,"",EDATE(CB$22,CA150)) -> 2033-07-01 | CC151: 30 | CD151: =IFERROR(CC151+CD150,"") -> 3956 | CE151: =IF(CA151>CB$6,"",CL150) -> 88682.5139 | CF151: 292.281073 | CG151: 1330.123704 | CH151: 177.3650278 | CI151: 28 | CJ151: 0 | CK151: 1827.769804 | CL151: 88390.23282 | CM151: =IFERROR(IF(AND(MONTH(CB151)=7,CB$9=2),2/(1+CB$13)^(CD151/360),IF(AND(MONTH(CB151)=12,CB$10=2),2/(1+CB$13)^(CD151/360),1/(1+CB$13)^(CD151/360))),"") -> 0.1083135355 | CN151: =IFERROR(1/(1+CB$13)^(CD151/360),"") -> 0.1083135355 | CR151: 130 | CS151: =IF(CR151>CS$6,"",EDATE(CS$22,CR150)) -> 2033-07-01 | CT151: 30 | CU151: =IFERROR(CT151+CU150,"") -> 3956 | CV151: =IF(CR151>CS$6,"",DC150) -> 89465.80247 | CW151: 1584.428812 | CX151: 1341.872025 | CY151: 178.9316049 | CZ151: 28 | DA151: 0 | DB151: 3133.232442 | DC151: 87881.37366 | DD151: =IFERROR(IF(AND(MONTH(CS151)=7,CS$9=2),2/(1+CS$13)^(CU151/360),IF(AND(MONTH(CS151)=12,CS$10=2),2/(1+CS$13)^(CU151/360),1/(1+CS$13)^(CU151/360))),"") -> 0.2166270711 | DE151: =IFERROR(1/(1+CS$13)^(CU151/360),"") -> 0.1083135355
B152: 131 | C152: =IF(B152>C$6,"",EDATE(C$22,B151)) ->  | F152: =IF(B152>C$6,"",E152-E151) ->  | J152: =IF(B152>C$6,"",((1+C$11)^(F152/360)-1)*H152) ->  | S152: =IFERROR((I152+J152+K152+L152+M152)*$J$12+('Simulador para calculos'!I152+'Simulador para calculos'!J152+'Simulador para calculos'!K152+'Simulador para calculos'!L152+'Simulador para calculos'!M152)*NOT($J$12),"") ->  | U152: =IFERROR((1+'Simulación Cliente'!$E$21)^(T152/360),"") ->  | AB152: 131 | AH152: =IF(AB152>AC$6,"",((1+AC$11)^(AD152/360)-1)*AF152) ->  | AS152: 131 | AT152: 2033-08-01 | AU152: 31 | AV152: 3987 | AW152: 61787.71248 | AX152: 769.9313852 | AY152: =IF(AS152>AT$6,"",((1+AT$11)^(AU152/360)-1)*AW152) -> 957.8657031 | AZ152: 127.6988595 | BA152: 28 | BB152: 0 | BC152: 1883.495948 | BD152: 61017.78109 | BE152: 0.1064432962 | BF152: 0.1064432962 | BJ152: 131 | BK152: 2033-08-01 | BL152: 31 | BM152: 3987 | BN152: 61263.3543 | BO152: 510.0281537 | BP152: =IF(BJ152>BK$6,"",((1+BK$11)^(BL152/360)-1)*BN152) -> 949.7368261 | BQ152: 126.6151499 | BR152: 28 | BS152: 0 | BT152: 1614.38013 | BU152: 60753.32615 | BV152: 0.1064432962 | BW152: 0.1064432962 | CA152: 131 | CB152: 2033-08-01 | CC152: 31 | CD152: 3987 | CE152: 88390.23282 | CF152: 246.8185688 | CG152: =IF(CA152>CB$6,"",((1+CB$11)^(CC152/360)-1)*CE152) -> 1370.272003 | CH152: 182.679233 | CI152: 28 | CJ152: 0 | CK152: 1827.769804 | CL152: 88143.41426 | CM152: 0.1064432962 | CN152: 0.1064432962 | CR152: 131 | CS152: 2033-08-01 | CT152: 31 | CU152: 3987 | CV152: 87881.37366 | CW152: -5.394734073 | CX152: =IF(CR152>CS$6,"",((1+CS$11)^(CT152/360)-1)*CV152) -> 1362.383399 | CY152: 181.6275557 | CZ152: 28 | DA152: 0 | DB152: 1566.616221 | DC152: 87886.7684 | DD152: 0.1064432962 | DE152: 0.1064432962
B153: 132 | S153: =IFERROR((I153+J153+K153+L153+M153)*$J$12+('Simulador para calculos'!I153+'Simulador para calculos'!J153+'Simulador para calculos'!K153+'Simulador para calculos'!L153+'Simulador para calculos'!M153)*NOT($J$12),"") ->  | U153: =IFERROR((1+'Simulación Cliente'!$E$21)^(T153/360),"") ->  | AB153: 132 | AD153: =IF(AB153>AC$6,"",AC153-AC152) ->  | AG153: =IF(AB153>AC$6,"",AL153-AK153-AJ153-AI153-AH153) ->  | AS153: 132 | AT153: 2033-09-01 | AU153: =IF(AS153>AT$6,"",AT153-AT152) -> 31 | AV153: 4018 | AW153: 61017.78109 | AX153: =IF(AS153>AT$6,"",BC153-BB153-BA153-AZ153-AY153) -> 783.4585121 | AY153: 945.9298208 | AZ153: 126.107615 | BA153: 28 | BB153: 0 | BC153: 1883.495948 | BD153: 60234.32258 | BE153: 0.1046053501 | BF153: 0.1046053501 | BJ153: 132 | BK153: 2033-09-01 | BL153: =IF(BJ153>BK$6,"",BK153-BK152) -> 31 | BM153: 4018 | BN153: 60753.32615 | BO153: =IF(BJ153>BK$6,"",BT153-BS153-BR153-BQ153-BP153) -> 518.9889724 | BP153: 941.8301007 | BQ153: 125.5610566 | BR153: 28 | BS153: 0 | BT153: 1614.38013 | BU153: 60234.33718 | BV153: 0.1046053501 | BW153: 0.1046053501 | CA153: 132 | CB153: 2033-09-01 | CC153: =IF(CA153>CB$6,"",CB153-CB152) -> 31 | CD153: 4018 | CE153: 88143.41426 | CF153: =IF(CA153>CB$6,"",CK153-CJ153-CI153-CH153-CG153) -> 251.1549891 | CG153: 1366.445691 | CH153: 182.1691243 | CI153: 28 | CJ153: 0 | CK153: 1827.769804 | CL153: 87892.25927 | CM153: 0.1046053501 | CN153: 0.1046053501 | CR153: 132 | CS153: 2033-09-01 | CT153: =IF(CR153>CS$6,"",CS153-CS152) -> 31 | CU153: 4018 | CV153: 87886.7684 | CW153: =IF(CR153>CS$6,"",DB153-DA153-CZ153-CY153-CX153) -> -5.489515574 | CX153: 1362.467031 | CY153: 181.6387052 | CZ153: 28 | DA153: 0 | DB153: 1566.616221 | DC153: 87892.25791 | DD153: 0.1046053501 | DE153: 0.1046053501
B154: 133 | S154: =IFERROR((I154+J154+K154+L154+M154)*$J$12+('Simulador para calculos'!I154+'Simulador para calculos'!J154+'Simulador para calculos'!K154+'Simulador para calculos'!L154+'Simulador para calculos'!M154)*NOT($J$12),"") ->  | U154: =IFERROR((1+'Simulación Cliente'!$E$21)^(T154/360),"") ->  | AB154: 133 | AS154: 133 | AT154: 2033-10-01 | AU154: 30 | AV154: 4048 | AW154: 60234.32258 | AX154: 831.5898975 | AY154: 903.4374052 | AZ154: 120.4686452 | BA154: 28 | BB154: 0 | BC154: 1883.495948 | BD154: 59402.73269 | BE154: 0.1028569148 | BF154: 0.1028569148 | BJ154: 133 | BK154: 2033-10-01 | BL154: 30 | BM154: 4048 | BN154: 60234.33718 | BO154: 562.4738313 | BP154: 903.4376241 | BQ154: 120.4686744 | BR154: 28 | BS154: 0 | BT154: 1614.38013 | BU154: 59671.86334 | BV154: 0.1028569148 | BW154: 0.1028569148 | CA154: 133 | CB154: 2033-10-01 | CC154: 30 | CD154: 4048 | CE154: 87892.25927 | CF154: 305.7143858 | CG154: 1318.2709 | CH154: 175.7845185 | CI154: 28 | CJ154: 0 | CK154: 1827.769804 | CL154: 87586.54488 | CM154: 0.1028569148 | CN154: 0.1028569148 | CR154: 133 | CS154: 2033-10-01 | CT154: 30 | CU154: 4048 | CV154: 87892.25791 | CW154: 44.56082553 | CX154: 1318.27088 | CY154: 175.7845158 | CZ154: 28 | DA154: 0 | DB154: 1566.616221 | DC154: 87847.69709 | DD154: 0.1028569148 | DE154: 0.1028569148
B155: 134 | S155: =IFERROR((I155+J155+K155+L155+M155)*$J$12+('Simulador para calculos'!I155+'Simulador para calculos'!J155+'Simulador para calculos'!K155+'Simulador para calculos'!L155+'Simulador para calculos'!M155)*NOT($J$12),"") ->  | U155: =IFERROR((1+'Simulación Cliente'!$E$21)^(T155/360),"") ->  | AB155: 134 | AS155: 134 | AT155: 2033-11-01 | AU155: 31 | AV155: 4079 | AW155: 59402.73269 | AX155: 811.8337221 | AY155: 920.8924886 | AZ155: 122.7697371 | BA155: 28 | BB155: 0 | BC155: 1883.495948 | BD155: 58590.89896 | BE155: 0.1010808944 | BF155: 0.1010808944 | BJ155: 134 | BK155: 2033-11-01 | BL155: 31 | BM155: 4079 | BN155: 59671.86334 | BO155: 537.9894767 | BP155: 925.064694 | BQ155: 123.325959 | BR155: 28 | BS155: 0 | BT155: 1614.38013 | BU155: 59133.87387 | BV155: 0.1010808944 | BW155: 0.1010808944 | CA155: 134 | CB155: 2033-11-01 | CC155: 31 | CD155: 4079 | CE155: 87586.54488 | CF155: 260.9387736 | CG155: 1357.812808 | CH155: 181.0182226 | CI155: 28 | CJ155: 0 | CK155: 1827.769804 | CL155: 87325.60611 | CM155: 0.1010808944 | CN155: 0.1010808944 | CR155: 134 | CS155: 2033-11-01 | CT155: 31 | CU155: 4079 | CV155: 87847.69709 | CW155: -4.803061458 | CX155: 1361.861327 | CY155: 181.5579551 | CZ155: 28 | DA155: 0 | DB155: 1566.616221 | DC155: 87852.50015 | DD155: 0.1010808944 | DE155: 0.1010808944
B156: 135 | S156: =IFERROR((I156+J156+K156+L156+M156)*$J$12+('Simulador para calculos'!I156+'Simulador para calculos'!J156+'Simulador para calculos'!K156+'Simulador para calculos'!L156+'Simulador para calculos'!M156)*NOT($J$12),"") ->  | U156: =IFERROR((1+'Simulación Cliente'!$E$21)^(T156/360),"") ->  | AB156: 135 | AS156: 135 | AT156: 2033-12-01 | AU156: 30 | AV156: 4109 | AW156: 58590.89896 | AX156: 859.5259863 | AY156: 878.7881636 | AZ156: 117.1817979 | BA156: 28 | BB156: 0 | BC156: 1883.495948 | BD156: 57731.37298 | BE156: 0.09939136887 | BF156: 0.09939136887 | BJ156: 135 | BK156: 2033-12-01 | BL156: 30 | BM156: 4109 | BN156: 59133.87387 | BO156: 2195.560422 | BP156: 886.9320891 | BQ156: 118.2677477 | BR156: 28 | BS156: 0 | BT156: 3228.760259 | BU156: 56938.31345 | BV156: 0.1987827377 | BW156: 0.09939136887 | CA156: 135 | CB156: 2033-12-01 | CC156: 30 | CD156: 4109 | CE156: 87325.60611 | CF156: 315.346761 | CG156: 1309.771831 | CH156: 174.6512122 | CI156: 28 | CJ156: 0 | CK156: 1827.769804 | CL156: 87010.25935 | CM156: 0.09939136887 | CN156: 0.09939136887 | CR156: 135 | CS156: 2033-12-01 | CT156: 30 | CU156: 4109 | CV156: 87852.50015 | CW156: 1611.852878 | CX156: 1317.674564 | CY156: 175.7050003 | CZ156: 28 | DA156: 0 | DB156: 3133.232442 | DC156: 86240.64727 | DD156: 0.1987827377 | DE156: 0.09939136887
B157: 136 | S157: =IFERROR((I157+J157+K157+L157+M157)*$J$12+('Simulador para calculos'!I157+'Simulador para calculos'!J157+'Simulador para calculos'!K157+'Simulador para calculos'!L157+'Simulador para calculos'!M157)*NOT($J$12),"") ->  | U157: =IFERROR((1+'Simulación Cliente'!$E$21)^(T157/360),"") ->  | AB157: 136 | AS157: 136 | AT157: 2034-01-01 | AU157: 31 | AV157: 4140 | AW157: 57731.37298 | AX157: 841.1982802 | AY157: 894.982189 | AZ157: 119.3154786 | BA157: 28 | BB157: 0 | BC157: 1883.495948 | BD157: 56890.1747 | BE157: 0.09767518772 | BF157: 0.09767518772 | BJ157: 136 | BK157: 2034-01-01 | BL157: 31 | BM157: 4140 | BN157: 56938.31345 | BO157: 586.0159334 | BP157: 882.6877619 | BQ157: 117.6764343 | BR157: 28 | BS157: 0 | BT157: 1614.38013 | BU157: 56352.29751 | BV157: 0.09767518772 | BW157: 0.09767518772 | CA157: 136 | CB157: 2034-01-01 | CC157: 31 | CD157: 4140 | CE157: 87010.25935 | CF157: 271.0636856 | CG157: 1348.878926 | CH157: 179.8271928 | CI157: 28 | CJ157: 0 | CK157: 1827.769804 | CL157: 86739.19566 | CM157: 0.09767518772 | CN157: 0.09767518772 | CR157: 136 | CS157: 2034-01-01 | CT157: 31 | CU157: 4140 | CV157: 86240.64727 | CW157: 23.4316192 | CX157: 1336.947994 | CY157: 178.2366082 | CZ157: 28 | DA157: 0 | DB157: 1566.616221 | DC157: 86217.21565 | DD157: 0.09767518772 | DE157: 0.09767518772
B158: 137 | S158: =IFERROR((I158+J158+K158+L158+M158)*$J$12+('Simulador para calculos'!I158+'Simulador para calculos'!J158+'Simulador para calculos'!K158+'Simulador para calculos'!L158+'Simulador para calculos'!M158)*NOT($J$12),"") ->  | U158: =IFERROR((1+'Simulación Cliente'!$E$21)^(T158/360),"") ->  | AB158: 137 | AS158: 137 | AT158: 2034-02-01 | AU158: 31 | AV158: 4171 | AW158: 56890.1747 | AX158: 855.9775139 | AY158: 881.9414896 | AZ158: 117.5769443 | BA158: 28 | BB158: 0 | BC158: 1883.495948 | BD158: 56034.19718 | BE158: 0.0959886397 | BF158: 0.0959886397 | BJ158: 137 | BK158: 2034-02-01 | BL158: 31 | BM158: 4171 | BN158: 56352.29751 | BO158: 596.3118014 | BP158: 873.6030339 | BQ158: 116.4652944 | BR158: 28 | BS158: 0 | BT158: 1614.38013 | BU158: 55755.98571 | BV158: 0.0959886397 | BW158: 0.0959886397 | CA158: 137 | CB158: 2034-02-01 | CC158: 31 | CD158: 4171 | CE158: 86739.19566 | CF158: 275.8260747 | CG158: 1344.676754 | CH158: 179.2669759 | CI158: 28 | CJ158: 0 | CK158: 1827.769804 | CL158: 86463.36959 | CM158: 0.0959886397 | CN158: 0.0959886397 | CR158: 137 | CS158: 2034-02-01 | CT158: 31 | CU158: 4171 | CV158: 86217.21565 | CW158: 23.84329548 | CX158: 1336.584744 | CY158: 178.1881813 | CZ158: 28 | DA158: 0 | DB158: 1566.616221 | DC158: 86193.37236 | DD158: 0.0959886397 | DE158: 0.0959886397
B159: 138 | S159: =IFERROR((I159+J159+K159+L159+M159)*$J$12+('Simulador para calculos'!I159+'Simulador para calculos'!J159+'Simulador para calculos'!K159+'Simulador para calculos'!L159+'Simulador para calculos'!M159)*NOT($J$12),"") ->  | U159: =IFERROR((1+'Simulación Cliente'!$E$21)^(T159/360),"") ->  | AB159: 138 | AS159: 138 | AT159: 2034-03-01 | AU159: 28 | AV159: 4199 | AW159: 56034.19718 | AX159: 966.8843161 | AY159: 784.0214319 | AZ159: 104.5901999 | BA159: 28 | BB159: 0 | BC159: 1883.495948 | BD159: 55067.31287 | BE159: 0.09449035054 | BF159: 0.09449035054 | BJ159: 138 | BK159: 2034-03-01 | BL159: 28 | BM159: 4199 | BN159: 55755.98571 | BO159: 702.1804813 | BP159: 780.1287419 | BQ159: 104.0709064 | BR159: 28 | BS159: 0 | BT159: 1614.38013 | BU159: 55053.80523 | BV159: 0.09449035054 | BW159: 0.09449035054 | CA159: 138 | CB159: 2034-03-01 | CC159: 28 | CD159: 4199 | CE159: 86463.36959 | CF159: 428.6007719 | CG159: 1209.781495 | CH159: 161.3875377 | CI159: 28 | CJ159: 0 | CK159: 1827.769804 | CL159: 86034.76881 | CM159: 0.09449035054 | CN159: 0.09449035054 | CR159: 138 | CS159: 2034-03-01 | CT159: 28 | CU159: 4199 | CV159: 86193.37236 | CW159: 171.7289075 | CX159: 1206.003737 | CY159: 160.8835764 | CZ159: 28 | DA159: 0 | DB159: 1566.616221 | DC159: 86021.64345 | DD159: 0.09449035054 | DE159: 0.09449035054
B160: 139 | S160: =IFERROR((I160+J160+K160+L160+M160)*$J$12+('Simulador para calculos'!I160+'Simulador para calculos'!J160+'Simulador para calculos'!K160+'Simulador para calculos'!L160+'Simulador para calculos'!M160)*NOT($J$12),"") ->  | U160: =IFERROR((1+'Simulación Cliente'!$E$21)^(T160/360),"") ->  | AB160: 139 | AS160: 139 | AT160: 2034-04-01 | AU160: 31 | AV160: 4230 | AW160: 55067.31287 | AX160: 888.0038526 | AY160: 853.6825243 | AZ160: 113.809571 | BA160: 28 | BB160: 0 | BC160: 1883.495948 | BD160: 54179.30901 | BE160: 0.09285879479 | BF160: 0.09285879479 | BJ160: 139 | BK160: 2034-04-01 | BL160: 31 | BM160: 4230 | BN160: 55053.80523 | BO160: 619.1253536 | BP160: 853.4731217 | BQ160: 113.7816543 | BR160: 28 | BS160: 0 | BT160: 1614.38013 | BU160: 54434.67988 | BV160: 0.09285879479 | BW160: 0.09285879479 | CA160: 139 | CB160: 2034-04-01 | CC160: 31 | CD160: 4230 | CE160: 86034.76881 | CF160: 288.2023352 | CG160: 1333.756357 | CH160: 177.8111119 | CI160: 28 | CJ160: 0 | CK160: 1827.769804 | CL160: 85746.56648 | CM160: 0.09285879479 | CN160: 0.09285879479 | CR160: 139 | CS160: 2034-04-01 | CT160: 31 | CU160: 4230 | CV160: 86021.64345 | CW160: 27.27935493 | CX160: 1333.552881 | CY160: 177.7839852 | CZ160: 28 | DA160: 0 | DB160: 1566.616221 | DC160: 85994.36409 | DD160: 0.09285879479 | DE160: 0.09285879479
B161: 140 | S161: =IFERROR((I161+J161+K161+L161+M161)*$J$12+('Simulador para calculos'!I161+'Simulador para calculos'!J161+'Simulador para calculos'!K161+'Simulador para calculos'!L161+'Simulador para calculos'!M161)*NOT($J$12),"") ->  | U161: =IFERROR((1+'Simulación Cliente'!$E$21)^(T161/360),"") ->  | AB161: 140 | AS161: 140 | AT161: 2034-05-01 | AU161: 30 | AV161: 4260 | AW161: 54179.30901 | AX161: 934.5173442 | AY161: 812.6199856 | AZ161: 108.358618 | BA161: 28 | BB161: 0 | BC161: 1883.495948 | BD161: 53244.79167 | BE161: 0.0913066983 | BF161: 0.0913066983 | BJ161: 140 | BK161: 2034-05-01 | BL161: 30 | BM161: 4260 | BN161: 54434.67988 | BO161: 661.0605497 | BP161: 816.4502202 | BQ161: 108.8693598 | BR161: 28 | BS161: 0 | BT161: 1614.38013 | BU161: 53773.61933 | BV161: 0.0913066983 | BW161: 0.0913066983 | CA161: 140 | CB161: 2034-05-01 | CC161: 30 | CD161: 4260 | CE161: 85746.56648 | CF161: 342.1884048 | CG161: 1286.088267 | CH161: 171.493133 | CI161: 28 | CJ161: 0 | CK161: 1827.769804 | CL161: 85404.37807 | CM161: 0.0913066983 | CN161: 0.0913066983 | CR161: 140 | CS161: 2034-05-01 | CT161: 30 | CU161: 4260 | CV161: 85994.36409 | CW161: 76.82258064 | CX161: 1289.804912 | CY161: 171.9887282 | CZ161: 28 | DA161: 0 | DB161: 1566.616221 | DC161: 85917.54151 | DD161: 0.0913066983 | DE161: 0.0913066983
B162: 141 | S162: =IFERROR((I162+J162+K162+L162+M162)*$J$12+('Simulador para calculos'!I162+'Simulador para calculos'!J162+'Simulador para calculos'!K162+'Simulador para calculos'!L162+'Simulador para calculos'!M162)*NOT($J$12),"") ->  | U162: =IFERROR((1+'Simulación Cliente'!$E$21)^(T162/360),"") ->  | AB162: 141 | AS162: 141 | AT162: 2034-06-01 | AU162: 31 | AV162: 4291 | AW162: 53244.79167 | AX162: 920.0242066 | AY162: 825.4288395 | AZ162: 110.0429017 | BA162: 28 | BB162: 0 | BC162: 1883.495948 | BD162: 52324.76746 | BE162: 0.08973011438 | BF162: 0.08973011438 | BJ162: 141 | BK162: 2034-06-01 | BL162: 31 | BM162: 4291 | BN162: 53773.61933 | BO162: 641.6172763 | BP162: 833.6270048 | BQ162: 111.1358486 | BR162: 28 | BS162: 0 | BT162: 1614.38013 | BU162: 53132.00205 | BV162: 0.08973011438 | BW162: 0.08973011438 | CA162: 141 | CB162: 2034-06-01 | CC162: 31 | CD162: 4291 | CE162: 85404.37807 | CF162: 299.2778358 | CG162: 1323.983708 | CH162: 176.508261 | CI162: 28 | CJ162: 0 | CK162: 1827.769804 | CL162: 85105.10024 | CM162: 0.08973011438 | CN162: 0.08973011438 | CR162: 141 | CS162: 2034-06-01 | CT162: 31 | CU162: 4291 | CV162: 85917.54151 | CW162: 29.1083492 | CX162: 1331.939038 | CY162: 177.5688341 | CZ162: 28 | DA162: 0 | DB162: 1566.616221 | DC162: 85888.43316 | DD162: 0.08973011438 | DE162: 0.08973011438
B163: 142 | S163: =IFERROR((I163+J163+K163+L163+M163)*$J$12+('Simulador para calculos'!I163+'Simulador para calculos'!J163+'Simulador para calculos'!K163+'Simulador para calculos'!L163+'Simulador para calculos'!M163)*NOT($J$12),"") ->  | U163: =IFERROR((1+'Simulación Cliente'!$E$21)^(T163/360),"") ->  | AB163: 142 | AS163: 142 | AT163: 2034-07-01 | AU163: 30 | AV163: 4321 | AW163: 52324.76746 | AX163: 966.0421665 | AY163: 784.8042464 | AZ163: 104.6495349 | BA163: 28 | BB163: 0 | BC163: 1883.495948 | BD163: 51358.7253 | BE163: 0.08823031249 | BF163: 0.08823031249 | BJ163: 142 | BK163: 2034-07-01 | BL163: 30 | BM163: 4321 | BN163: 53132.00205 | BO163: 2297.584528 | BP163: 796.9117275 | BQ163: 106.2640041 | BR163: 28 | BS163: 0 | BT163: 3228.760259 | BU163: 50834.41752 | BV163: 0.176460625 | BW163: 0.08823031249 | CA163: 142 | CB163: 2034-07-01 | CC163: 30 | CD163: 4321 | CE163: 85105.10024 | CF163: 353.0925063 | CG163: 1276.467098 | CH163: 170.2102005 | CI163: 28 | CJ163: 0 | CK163: 1827.769804 | CL163: 84752.00773 | CM163: 0.08823031249 | CN163: 0.08823031249 | CR163: 142 | CS163: 2034-07-01 | CT163: 30 | CU163: 4321 | CV163: 85888.43316 | CW163: 1645.239491 | CX163: 1288.216085 | CY163: 171.7768663 | CZ163: 28 | DA163: 0 | DB163: 3133.232442 | DC163: 84243.19367 | DD163: 0.176460625 | DE163: 0.08823031249
B164: 143 | S164: =IFERROR((I164+J164+K164+L164+M164)*$J$12+('Simulador para calculos'!I164+'Simulador para calculos'!J164+'Simulador para calculos'!K164+'Simulador para calculos'!L164+'Simulador para calculos'!M164)*NOT($J$12),"") ->  | U164: =IFERROR((1+'Simulación Cliente'!$E$21)^(T164/360),"") ->  | AB164: 143 | AS164: 143 | AT164: 2034-08-01 | AU164: 31 | AV164: 4352 | AW164: 51358.7253 | AX164: 953.1610025 | AY164: 796.190044 | AZ164: 106.1449014 | BA164: 28 | BB164: 0 | BC164: 1883.495948 | BD164: 50405.56429 | BE164: 0.08670684822 | BF164: 0.08670684822 | BJ164: 143 | BK164: 2034-08-01 | BL164: 31 | BM164: 4352 | BN164: 50834.41752 | BO164: 693.2568854 | BP164: 788.0619484 | BQ164: 105.0612959 | BR164: 28 | BS164: 0 | BT164: 1614.38013 | BU164: 50141.16064 | BV164: 0.08670684822 | BW164: 0.08670684822 | CA164: 143 | CB164: 2034-08-01 | CC164: 31 | CD164: 4352 | CE164: 84752.00773 | CF164: 310.7395018 | CG164: 1313.870319 | CH164: 175.159984 | CI164: 28 | CJ164: 0 | CK164: 1827.769804 | CL164: 84441.26823 | CM164: 0.08670684822 | CN164: 0.08670684822 | CR164: 143 | CS164: 2034-08-01 | CT164: 31 | CU164: 4352 | CV164: 84243.19367 | CW164: 58.52540654 | CX164: 1305.982415 | CY164: 174.1083999 | CZ164: 28 | DA164: 0 | DB164: 1566.616221 | DC164: 84184.66827 | DD164: 0.08670684822 | DE164: 0.08670684822
B165: 144 | S165: =IFERROR((I165+J165+K165+L165+M165)*$J$12+('Simulador para calculos'!I165+'Simulador para calculos'!J165+'Simulador para calculos'!K165+'Simulador para calculos'!L165+'Simulador para calculos'!M165)*NOT($J$12),"") ->  | U165: =IFERROR((1+'Simulación Cliente'!$E$21)^(T165/360),"") ->  | AB165: 144 | AS165: 144 | AT165: 2034-09-01 | AU165: 31 | AV165: 4383 | AW165: 50405.56429 | AX165: 969.9073387 | AY165: 781.4136395 | AZ165: 104.1749697 | BA165: 28 | BB165: 0 | BC165: 1883.495948 | BD165: 49435.65696 | BE165: 0.08520968946 | BF165: 0.08520968946 | BJ165: 144 | BK165: 2034-09-01 | BL165: 31 | BM165: 4383 | BN165: 50141.16064 | BO165: 705.4368979 | BP165: 777.3147145 | BQ165: 103.6285173 | BR165: 28 | BS165: 0 | BT165: 1614.38013 | BU165: 49435.72374 | BV165: 0.08520968946 | BW165: 0.08520968946 | CA165: 144 | CB165: 2034-09-01 | CC165: 31 | CD165: 4383 | CE165: 84441.26823 | CF165: 316.1989658 | CG165: 1309.053071 | CH165: 174.5177677 | CI165: 28 | CJ165: 0 | CK165: 1827.769804 | CL165: 84125.06926 | CM165: 0.08520968946 | CN165: 0.08520968946 | CR165: 144 | CS165: 2034-09-01 | CT165: 31 | CU165: 4383 | CV165: 84184.66827 | CW165: 59.5536548 | CX165: 1305.075123 | CY165: 173.9874434 | CZ165: 28 | DA165: 0 | DB165: 1566.616221 | DC165: 84125.11461 | DD165: 0.08520968946 | DE165: 0.08520968946
B166: 145 | S166: =IFERROR((I166+J166+K166+L166+M166)*$J$12+('Simulador para calculos'!I166+'Simulador para calculos'!J166+'Simulador para calculos'!K166+'Simulador para calculos'!L166+'Simulador para calculos'!M166)*NOT($J$12),"") ->  | U166: =IFERROR((1+'Simulación Cliente'!$E$21)^(T166/360),"") ->  | AB166: 145 | AS166: 145 | AT166: 2034-10-01 | AU166: 30 | AV166: 4413 | AW166: 49435.65696 | AX166: 1015.153331 | AY166: 741.4713029 | AZ166: 98.87131391 | BA166: 28 | BB166: 0 | BC166: 1883.495948 | BD166: 48420.50362 | BE166: 0.08378544461 | BF166: 0.08378544461 | BJ166: 145 | BK166: 2034-10-01 | BL166: 30 | BM166: 4413 | BN166: 49435.72374 | BO166: 746.0363777 | BP166: 741.4723045 | BQ166: 98.87144748 | BR166: 28 | BS166: 0 | BT166: 1614.38013 | BU166: 48689.68736 | BV166: 0.08378544461 | BW166: 0.08378544461 | CA166: 145 | CB166: 2034-10-01 | CC166: 30 | CD166: 4413 | CE166: 84125.06926 | CF166: 369.7517729 | CG166: 1261.767893 | CH166: 168.2501385 | CI166: 28 | CJ166: 0 | CK166: 1827.769804 | CL166: 83755.31749 | CM166: 0.08378544461 | CN166: 0.08378544461 | CR166: 145 | CS166: 2034-10-01 | CT166: 30 | CU166: 4413 | CV166: 84125.11461 | CW166: 108.5974188 | CX166: 1261.768573 | CY166: 168.2502292 | CZ166: 28 | DA166: 0 | DB166: 1566.616221 | DC166: 84016.51719 | DD166: 0.08378544461 | DE166: 0.08378544461
B167: 146 | S167: =IFERROR((I167+J167+K167+L167+M167)*$J$12+('Simulador para calculos'!I167+'Simulador para calculos'!J167+'Simulador para calculos'!K167+'Simulador para calculos'!L167+'Simulador para calculos'!M167)*NOT($J$12),"") ->  | U167: =IFERROR((1+'Simulación Cliente'!$E$21)^(T167/360),"") ->  | AB167: 146 | AS167: 146 | AT167: 2034-11-01 | AU167: 31 | AV167: 4444 | AW167: 48420.50362 | AX167: 1004.783391 | AY167: 750.6401821 | AZ167: 100.0723743 | BA167: 28 | BB167: 0 | BC167: 1883.495948 | BD167: 47415.72023 | BE167: 0.08233872944 | BF167: 0.08233872944 | BJ167: 146 | BK167: 2034-11-01 | BL167: 31 | BM167: 4444 | BN167: 48689.68736 | BO167: 730.9382134 | BP167: 754.8132104 | BQ167: 100.6287059 | BR167: 28 | BS167: 0 | BT167: 1614.38013 | BU167: 47958.74915 | BV167: 0.08233872944 | BW167: 0.08233872944 | CA167: 146 | CB167: 2034-11-01 | CC167: 31 | CD167: 4444 | CE167: 83755.31749 | CF167: 328.2506147 | CG167: 1298.419101 | CH167: 173.1000889 | CI167: 28 | CJ167: 0 | CK167: 1827.769804 | CL167: 83427.06688 | CM167: 0.08233872944 | CN167: 0.08233872944 | CR167: 146 | CS167: 2034-11-01 | CT167: 31 | CU167: 4444 | CV167: 84016.51719 | CW167: 62.50794521 | CX167: 1302.468356 | CY167: 173.6399196 | CZ167: 28 | DA167: 0 | DB167: 1566.616221 | DC167: 83954.00925 | DD167: 0.08233872944 | DE167: 0.08233872944
B168: 147 | S168: =IFERROR((I168+J168+K168+L168+M168)*$J$12+('Simulador para calculos'!I168+'Simulador para calculos'!J168+'Simulador para calculos'!K168+'Simulador para calculos'!L168+'Simulador para calculos'!M168)*NOT($J$12),"") ->  | U168: =IFERROR((1+'Simulación Cliente'!$E$21)^(T168/360),"") ->  | AB168: 147 | AS168: 147 | AT168: 2034-12-01 | AU168: 30 | AV168: 4474 | AW168: 47415.72023 | AX168: 1049.489659 | AY168: 711.1748488 | AZ168: 94.83144047 | BA168: 28 | BB168: 0 | BC168: 1883.495948 | BD168: 46366.23057 | BE168: 0.08096247151 | BF168: 0.08096247151 | BJ168: 147 | BK168: 2034-12-01 | BL168: 30 | BM168: 4474 | BN168: 47958.74915 | BO168: 2385.523177 | BP168: 719.3195844 | BQ168: 95.91749829 | BR168: 28 | BS168: 0 | BT168: 3228.760259 | BU168: 45573.22597 | BV168: 0.161924943 | BW168: 0.08096247151 | CA168: 147 | CB168: 2034-12-01 | CC168: 30 | CD168: 4474 | CE168: 83427.06688 | CF168: 381.6169162 | CG168: 1251.298754 | CH168: 166.8541338 | CI168: 28 | CJ168: 0 | CK168: 1827.769804 | CL168: 83045.44996 | CM168: 0.08096247151 | CN168: 0.08096247151 | CR168: 147 | CS168: 2034-12-01 | CT168: 30 | CU168: 4474 | CV168: 83954.00925 | CW168: 1678.122211 | CX168: 1259.202213 | CY168: 167.9080185 | CZ168: 28 | DA168: 0 | DB168: 3133.232442 | DC168: 82275.88704 | DD168: 0.161924943 | DE168: 0.08096247151
B169: 148 | S169: =IFERROR((I169+J169+K169+L169+M169)*$J$12+('Simulador para calculos'!I169+'Simulador para calculos'!J169+'Simulador para calculos'!K169+'Simulador para calculos'!L169+'Simulador para calculos'!M169)*NOT($J$12),"") ->  | U169: =IFERROR((1+'Simulación Cliente'!$E$21)^(T169/360),"") ->  | AB169: 148 | AS169: 148 | AT169: 2035-01-01 | AU169: 31 | AV169: 4505 | AW169: 46366.23057 | AX169: 1040.875455 | AY169: 718.793758 | AZ169: 95.82673525 | BA169: 28 | BB169: 0 | BC169: 1883.495948 | BD169: 45325.35512 | BE169: 0.07956450034 | BF169: 0.07956450034 | BJ169: 148 | BK169: 2035-01-01 | BL169: 31 | BM169: 4505 | BN169: 45573.22597 | BO169: 785.6921428 | BP169: 706.5001824 | BQ169: 94.18780447 | BR169: 28 | BS169: 0 | BT169: 1614.38013 | BU169: 44787.53383 | BV169: 0.07956450034 | BW169: 0.07956450034 | CA169: 148 | CB169: 2035-01-01 | CC169: 31 | CD169: 4505 | CE169: 83045.44996 | CF169: 340.7224639 | CG169: 1287.41436 | CH169: 171.6329805 | CI169: 28 | CJ169: 0 | CK169: 1827.769804 | CL169: 82704.7275 | CM169: 0.07956450034 | CN169: 0.07956450034 | CR169: 148 | CS169: 2035-01-01 | CT169: 31 | CU169: 4505 | CV169: 82275.88704 | CW169: 93.08953399 | CX169: 1275.48419 | CY169: 170.0424975 | CZ169: 28 | DA169: 0 | DB169: 1566.616221 | DC169: 82182.7975 | DD169: 0.07956450034 | DE169: 0.07956450034
B170: 149 | S170: =IFERROR((I170+J170+K170+L170+M170)*$J$12+('Simulador para calculos'!I170+'Simulador para calculos'!J170+'Simulador para calculos'!K170+'Simulador para calculos'!L170+'Simulador para calculos'!M170)*NOT($J$12),"") ->  | U170: =IFERROR((1+'Simulación Cliente'!$E$21)^(T170/360),"") ->  | AB170: 149 | AS170: 149 | AT170: 2035-02-01 | AU170: 31 | AV170: 4536 | AW170: 45325.35512 | AX170: 1059.162869 | AY170: 702.6575578 | AZ170: 93.67552098 | BA170: 28 | BB170: 0 | BC170: 1883.495948 | BD170: 44266.19225 | BE170: 0.07819066781 | BF170: 0.07819066781 | BJ170: 149 | BK170: 2035-02-01 | BL170: 31 | BM170: 4536 | BN170: 44787.53383 | BO170: 799.4961746 | BP170: 694.3199685 | BQ170: 92.56398662 | BR170: 28 | BS170: 0 | BT170: 1614.38013 | BU170: 43988.03765 | BV170: 0.07819066781 | BW170: 0.07819066781 | CA170: 149 | CB170: 2035-02-01 | CC170: 31 | CD170: 4536 | CE170: 82704.7275 | CF170: 346.7087065 | CG170: 1282.132301 | CH170: 170.9287973 | CI170: 28 | CJ170: 0 | CK170: 1827.769804 | CL170: 82358.01879 | CM170: 0.07819066781 | CN170: 0.07819066781 | CR170: 149 | CS170: 2035-02-01 | CT170: 31 | CU170: 4536 | CV170: 82182.7975 | CW170: 94.72504848 | CX170: 1274.041067 | CY170: 169.850106 | CZ170: 28 | DA170: 0 | DB170: 1566.616221 | DC170: 82088.07245 | DD170: 0.07819066781 | DE170: 0.07819066781
B171: 150 | S171: =IFERROR((I171+J171+K171+L171+M171)*$J$12+('Simulador para calculos'!I171+'Simulador para calculos'!J171+'Simulador para calculos'!K171+'Simulador para calculos'!L171+'Simulador para calculos'!M171)*NOT($J$12),"") ->  | U171: =IFERROR((1+'Simulación Cliente'!$E$21)^(T171/360),"") ->  | AB171: 150 | AS171: 150 | AT171: 2035-03-01 | AU171: 28 | AV171: 4564 | AW171: 44266.19225 | AX171: 1153.505818 | AY171: 619.3654086 | AZ171: 82.62472077 | BA171: 28 | BB171: 0 | BC171: 1883.495948 | BD171: 43112.68643 | BE171: 0.07697018765 | BF171: 0.07697018765 | BJ171: 150 | BK171: 2035-03-01 | BL171: 28 | BM171: 4564 | BN171: 43988.03765 | BO171: 888.8010818 | BP171: 615.4735144 | BQ171: 82.10553344 | BR171: 28 | BS171: 0 | BT171: 1614.38013 | BU171: 43099.23657 | BV171: 0.07697018765 | BW171: 0.07697018765 | CA171: 150 | CB171: 2035-03-01 | CC171: 28 | CD171: 4564 | CE171: 82358.01879 | CF171: 493.7049878 | CG171: 1152.34009 | CH171: 153.7247267 | CI171: 28 | CJ171: 0 | CK171: 1827.769804 | CL171: 81864.3138 | CM171: 0.07697018765 | CN171: 0.07697018765 | CR171: 150 | CS171: 2035-03-01 | CT171: 28 | CU171: 4564 | CV171: 82088.07245 | CW171: 236.8323163 | CX171: 1148.563044 | CY171: 153.2208604 | CZ171: 28 | DA171: 0 | DB171: 1566.616221 | DC171: 81851.24014 | DD171: 0.07697018765 | DE171: 0.07697018765
B172: 151 | S172: =IFERROR((I172+J172+K172+L172+M172)*$J$12+('Simulador para calculos'!I172+'Simulador para calculos'!J172+'Simulador para calculos'!K172+'Simulador para calculos'!L172+'Simulador para calculos'!M172)*NOT($J$12),"") ->  | U172: =IFERROR((1+'Simulación Cliente'!$E$21)^(T172/360),"") ->  | AB172: 151 | AS172: 151 | AT172: 2035-04-01 | AU172: 31 | AV172: 4595 | AW172: 43112.68643 | AX172: 1098.037827 | AY172: 668.3556009 | AZ172: 89.10252003 | BA172: 28 | BB172: 0 | BC172: 1883.495948 | BD172: 42014.64861 | BE172: 0.07564115087 | BF172: 0.07564115087 | BJ172: 151 | BK172: 2035-04-01 | BL172: 31 | BM172: 4595 | BN172: 43099.23657 | BO172: 829.1583129 | BP172: 668.1470941 | BQ172: 89.07472273 | BR172: 28 | BS172: 0 | BT172: 1614.38013 | BU172: 42270.07826 | BV172: 0.07564115087 | BW172: 0.07564115087 | CA172: 151 | CB172: 2035-04-01 | CC172: 31 | CD172: 4595 | CE172: 81864.3138 | CF172: 361.4741556 | CG172: 1269.103764 | CH172: 169.1918844 | CI172: 28 | CJ172: 0 | CK172: 1827.769804 | CL172: 81502.83965 | CM172: 0.07564115087 | CN172: 0.07564115087 | CR172: 151 | CS172: 2035-04-01 | CT172: 31 | CU172: 4595 | CV172: 81851.24014 | CW172: 100.550267 | CX172: 1268.90109 | CY172: 169.1648646 | CZ172: 28 | DA172: 0 | DB172: 1566.616221 | DC172: 81750.68987 | DD172: 0.07564115087 | DE172: 0.07564115087
B173: 152 | S173: =IFERROR((I173+J173+K173+L173+M173)*$J$12+('Simulador para calculos'!I173+'Simulador para calculos'!J173+'Simulador para calculos'!K173+'Simulador para calculos'!L173+'Simulador para calculos'!M173)*NOT($J$12),"") ->  | U173: =IFERROR((1+'Simulación Cliente'!$E$21)^(T173/360),"") ->  | AB173: 152 | AS173: 152 | AT173: 2035-05-01 | AU173: 30 | AV173: 4625 | AW173: 42014.64861 | AX173: 1141.300933 | AY173: 630.1657176 | AZ173: 84.02929721 | BA173: 28 | BB173: 0 | BC173: 1883.495948 | BD173: 40873.34767 | BE173: 0.0743768402 | BF173: 0.0743768402 | BJ173: 152 | BK173: 2035-05-01 | BL173: 30 | BM173: 4625 | BN173: 42270.07826 | BO173: 867.8431391 | BP173: 633.9968341 | BQ173: 84.54015652 | BR173: 28 | BS173: 0 | BT173: 1614.38013 | BU173: 41402.23512 | BV173: 0.0743768402 | BW173: 0.0743768402 | CA173: 152 | CB173: 2035-05-01 | CC173: 30 | CD173: 4625 | CE173: 81502.83965 | CF173: 414.3263055 | CG173: 1222.43782 | CH173: 163.0056793 | CI173: 28 | CJ173: 0 | CK173: 1827.769804 | CL173: 81088.51334 | CM173: 0.0743768402 | CN173: 0.0743768402 | CR173: 152 | CS173: 2035-05-01 | CT173: 30 | CU173: 4625 | CV173: 81750.68987 | CW173: 148.959587 | CX173: 1226.155254 | CY173: 163.5013797 | CZ173: 28 | DA173: 0 | DB173: 1566.616221 | DC173: 81601.73028 | DD173: 0.0743768402 | DE173: 0.0743768402
B174: 153 | S174: =IFERROR((I174+J174+K174+L174+M174)*$J$12+('Simulador para calculos'!I174+'Simulador para calculos'!J174+'Simulador para calculos'!K174+'Simulador para calculos'!L174+'Simulador para calculos'!M174)*NOT($J$12),"") ->  | U174: =IFERROR((1+'Simulación Cliente'!$E$21)^(T174/360),"") ->  | AB174: 153 | AS174: 153 | AT174: 2035-06-01 | AU174: 31 | AV174: 4656 | AW174: 40873.34767 | AX174: 1137.381358 | AY174: 633.6401905 | AZ174: 84.4743991 | BA174: 28 | BB174: 0 | BC174: 1883.495948 | BD174: 39735.96631 | BE174: 0.07309258249 | BF174: 0.07309258249 | BJ174: 153 | BK174: 2035-06-01 | BL174: 31 | BM174: 4656 | BN174: 41402.23512 | BO174: 858.9733775 | BP174: 641.8392826 | BQ174: 85.56746956 | BR174: 28 | BS174: 0 | BT174: 1614.38013 | BU174: 40543.26174 | BV174: 0.07309258249 | BW174: 0.07309258249 | CA174: 153 | CB174: 2035-06-01 | CC174: 31 | CD174: 4656 | CE174: 81088.51334 | CF174: 375.1043978 | CG174: 1257.076897 | CH174: 167.5885101 | CI174: 28 | CJ174: 0 | CK174: 1827.769804 | CL174: 80713.40894 | CM174: 0.07309258249 | CN174: 0.07309258249 | CR174: 153 | CS174: 2035-06-01 | CT174: 31 | CU174: 4656 | CV174: 81601.73028 | CW174: 104.9339712 | CX174: 1265.033056 | CY174: 168.6491938 | CZ174: 28 | DA174: 0 | DB174: 1566.616221 | DC174: 81496.79631 | DD174: 0.07309258249 | DE174: 0.07309258249
B175: 154 | S175: =IFERROR((I175+J175+K175+L175+M175)*$J$12+('Simulador para calculos'!I175+'Simulador para calculos'!J175+'Simulador para calculos'!K175+'Simulador para calculos'!L175+'Simulador para calculos'!M175)*NOT($J$12),"") ->  | U175: =IFERROR((1+'Simulación Cliente'!$E$21)^(T175/360),"") ->  | AB175: 154 | AS175: 154 | AT175: 2035-07-01 | AU175: 30 | AV175: 4686 | AW175: 39735.96631 | AX175: 1180.035603 | AY175: 595.9884126 | AZ175: 79.47193263 | BA175: 28 | BB175: 0 | BC175: 1883.495948 | BD175: 38555.93071 | BE175: 0.0718708701 | BF175: 0.0718708701 | BJ175: 154 | BK175: 2035-07-01 | BL175: 30 | BM175: 4686 | BN175: 40543.26174 | BO175: 2511.57693 | BP175: 608.0968062 | BQ175: 81.08652348 | BR175: 28 | BS175: 0 | BT175: 3228.760259 | BU175: 38031.68481 | BV175: 0.1437417402 | BW175: 0.0718708701 | CA175: 154 | CB175: 2035-07-01 | CC175: 30 | CD175: 4686 | CE175: 80713.40894 | CF175: 427.7456126 | CG175: 1210.597374 | CH175: 161.4268179 | CI175: 28 | CJ175: 0 | CK175: 1827.769804 | CL175: 80285.66333 | CM175: 0.0718708701 | CN175: 0.0718708701 | CR175: 154 | CS175: 2035-07-01 | CT175: 30 | CU175: 4686 | CV175: 81496.79631 | CW175: 1719.891672 | CX175: 1222.347177 | CY175: 162.9935926 | CZ175: 28 | DA175: 0 | DB175: 3133.232442 | DC175: 79776.90464 | DD175: 0.1437417402 | DE175: 0.0718708701
B176: 155 | S176: =IFERROR((I176+J176+K176+L176+M176)*$J$12+('Simulador para calculos'!I176+'Simulador para calculos'!J176+'Simulador para calculos'!K176+'Simulador para calculos'!L176+'Simulador para calculos'!M176)*NOT($J$12),"") ->  | U176: =IFERROR((1+'Simulación Cliente'!$E$21)^(T176/360),"") ->  | AB176: 155 | AS176: 155 | AT176: 2035-08-01 | AU176: 31 | AV176: 4717 | AW176: 38555.93071 | AX176: 1178.096666 | AY176: 597.7143707 | AZ176: 79.68491117 | BA176: 28 | BB176: 0 | BC176: 1883.495948 | BD176: 37377.83405 | BE176: 0.07062988273 | BF176: 0.07062988273 | BJ176: 155 | BK176: 2035-08-01 | BL176: 31 | BM176: 4717 | BN176: 38031.68481 | BO176: 918.1914618 | BP176: 589.5872343 | BQ176: 78.60143355 | BR176: 28 | BS176: 0 | BT176: 1614.38013 | BU176: 37113.49335 | BV176: 0.07062988273 | BW176: 0.07062988273 | CA176: 155 | CB176: 2035-08-01 | CC176: 31 | CD176: 4717 | CE176: 80285.66333 | CF176: 389.2098807 | CG176: 1244.630692 | CH176: 165.9292314 | CI176: 28 | CJ176: 0 | CK176: 1827.769804 | CL176: 79896.45345 | CM176: 0.07062988273 | CN176: 0.07062988273 | CR176: 155 | CS176: 2035-08-01 | CT176: 31 | CU176: 4717 | CV176: 79776.90464 | CW176: 136.9948126 | CX176: 1236.743647 | CY176: 164.8777618 | CZ176: 28 | DA176: 0 | DB176: 1566.616221 | DC176: 79639.90983 | DD176: 0.07062988273 | DE176: 0.07062988273
B177: 156 | S177: =IFERROR((I177+J177+K177+L177+M177)*$J$12+('Simulador para calculos'!I177+'Simulador para calculos'!J177+'Simulador para calculos'!K177+'Simulador para calculos'!L177+'Simulador para calculos'!M177)*NOT($J$12),"") ->  | U177: =IFERROR((1+'Simulación Cliente'!$E$21)^(T177/360),"") ->  | AB177: 156 | AS177: 156 | AT177: 2035-09-01 | AU177: 31 | AV177: 4748 | AW177: 37377.83405 | AX177: 1198.794956 | AY177: 579.4508949 | AZ177: 77.25009695 | BA177: 28 | BB177: 0 | BC177: 1883.495948 | BD177: 36179.03909 | BE177: 0.06941032338 | BF177: 0.06941032338 | BJ177: 156 | BK177: 2035-09-01 | BL177: 31 | BM177: 4748 | BN177: 37113.49335 | BO177: 934.323409 | BP177: 575.352946 | BQ177: 76.70377465 | BR177: 28 | BS177: 0 | BT177: 1614.38013 | BU177: 36179.16994 | BV177: 0.06941032338 | BW177: 0.06941032338 | CA177: 156 | CB177: 2035-09-01 | CC177: 31 | CD177: 4748 | CE177: 79896.45345 | CF177: 396.0480114 | CG177: 1238.596955 | CH177: 165.1248376 | CI177: 28 | CJ177: 0 | CK177: 1827.769804 | CL177: 79500.40544 | CM177: 0.06941032338 | CN177: 0.06941032338 | CR177: 156 | CS177: 2035-09-01 | CT177: 31 | CU177: 4748 | CV177: 79639.90983 | CW177: 139.4017105 | CX177: 1234.619881 | CY177: 164.5946297 | CZ177: 28 | DA177: 0 | DB177: 1566.616221 | DC177: 79500.50812 | DD177: 0.06941032338 | DE177: 0.06941032338
B178: 157 | S178: =IFERROR((I178+J178+K178+L178+M178)*$J$12+('Simulador para calculos'!I178+'Simulador para calculos'!J178+'Simulador para calculos'!K178+'Simulador para calculos'!L178+'Simulador para calculos'!M178)*NOT($J$12),"") ->  | U178: =IFERROR((1+'Simulación Cliente'!$E$21)^(T178/360),"") ->  | AB178: 157 | AS178: 157 | AT178: 2035-10-01 | AU178: 30 | AV178: 4778 | AW178: 36179.03909 | AX178: 1240.498793 | AY178: 542.6390768 | AZ178: 72.35807818 | BA178: 28 | BB178: 0 | BC178: 1883.495948 | BD178: 34938.5403 | BE178: 0.06825015843 | BF178: 0.06825015843 | BJ178: 157 | BK178: 2035-10-01 | BL178: 30 | BM178: 4778 | BN178: 36179.16994 | BO178: 971.3807504 | BP178: 542.6410394 | BQ178: 72.35833988 | BR178: 28 | BS178: 0 | BT178: 1614.38013 | BU178: 35207.78919 | BV178: 0.06825015843 | BW178: 0.06825015843 | CA178: 157 | CB178: 2035-10-01 | CC178: 30 | CD178: 4778 | CE178: 79500.40544 | CF178: 448.3651128 | CG178: 1192.403881 | CH178: 159.0008109 | CI178: 28 | CJ178: 0 | CK178: 1827.769804 | CL178: 79052.04033 | CM178: 0.06825015843 | CN178: 0.06825015843 | CR178: 157 | CS178: 2035-10-01 | CT178: 30 | CU178: 4778 | CV178: 79500.50812 | CW178: 187.2097841 | CX178: 1192.405421 | CY178: 159.0010162 | CZ178: 28 | DA178: 0 | DB178: 1566.616221 | DC178: 79313.29833 | DD178: 0.06825015843 | DE178: 0.06825015843
B179: 158 | S179: =IFERROR((I179+J179+K179+L179+M179)*$J$12+('Simulador para calculos'!I179+'Simulador para calculos'!J179+'Simulador para calculos'!K179+'Simulador para calculos'!L179+'Simulador para calculos'!M179)*NOT($J$12),"") ->  | U179: =IFERROR((1+'Simulación Cliente'!$E$21)^(T179/360),"") ->  | AB179: 158 | AS179: 158 | AT179: 2035-11-01 | AU179: 31 | AV179: 4809 | AW179: 34938.5403 | AX179: 1241.651549 | AY179: 541.6356768 | AZ179: 72.20872194 | BA179: 28 | BB179: 0 | BC179: 1883.495948 | BD179: 33696.88875 | BE179: 0.06707168954 | BF179: 0.06707168954 | BJ179: 158 | BK179: 2035-11-01 | BL179: 31 | BM179: 4809 | BN179: 35207.78919 | BO179: 967.8052263 | BP179: 545.8097152 | BQ179: 72.76518819 | BR179: 28 | BS179: 0 | BT179: 1614.38013 | BU179: 34239.98396 | BV179: 0.06707168954 | BW179: 0.06707168954 | CA179: 158 | CB179: 2035-11-01 | CC179: 31 | CD179: 4809 | CE179: 79052.04033 | CF179: 410.8837275 | CG179: 1225.506418 | CH179: 163.379659 | CI179: 28 | CJ179: 0 | CK179: 1827.769804 | CL179: 78641.1566 | CM179: 0.06707168954 | CN179: 0.06707168954 | CR179: 158 | CS179: 2035-11-01 | CT179: 31 | CU179: 4809 | CV179: 79313.29833 | CW179: 145.1400337 | CX179: 1229.556577 | CY179: 163.9196102 | CZ179: 28 | DA179: 0 | DB179: 1566.616221 | DC179: 79168.1583 | DD179: 0.06707168954 | DE179: 0.06707168954
B180: 159 | S180: =IFERROR((I180+J180+K180+L180+M180)*$J$12+('Simulador para calculos'!I180+'Simulador para calculos'!J180+'Simulador para calculos'!K180+'Simulador para calculos'!L180+'Simulador para calculos'!M180)*NOT($J$12),"") ->  | U180: =IFERROR((1+'Simulación Cliente'!$E$21)^(T180/360),"") ->  | AB180: 159 | AS180: 159 | AT180: 2035-12-01 | AU180: 30 | AV180: 4839 | AW180: 33696.88875 | AX180: 1282.692158 | AY180: 505.4100126 | AZ180: 67.3937775 | BA180: 28 | BB180: 0 | BC180: 1883.495948 | BD180: 32414.19659 | BE180: 0.06595061389 | BF180: 0.06595061389 | BJ180: 159 | BK180: 2035-12-01 | BL180: 30 | BM180: 4839 | BN180: 34239.98396 | BO180: 2618.724549 | BP180: 513.5557426 | BQ180: 68.47996793 | BR180: 28 | BS180: 0 | BT180: 3228.760259 | BU180: 31621.25942 | BV180: 0.1319012278 | BW180: 0.06595061389 | CA180: 159 | CB180: 2035-12-01 | CC180: 30 | CD180: 4839 | CE180: 78641.1566 | CF180: 462.9712385 | CG180: 1179.516253 | CH180: 157.2823132 | CI180: 28 | CJ180: 0 | CK180: 1827.769804 | CL180: 78178.18536 | CM180: 0.06595061389 | CN180: 0.06595061389 | CR180: 159 | CS180: 2035-12-01 | CT180: 30 | CU180: 4839 | CV180: 79168.1583 | CW180: 1759.475525 | CX180: 1187.420601 | CY180: 158.3363166 | CZ180: 28 | DA180: 0 | DB180: 3133.232442 | DC180: 77408.68277 | DD180: 0.1319012278 | DE180: 0.06595061389
B181: 160 | S181: =IFERROR((I181+J181+K181+L181+M181)*$J$12+('Simulador para calculos'!I181+'Simulador para calculos'!J181+'Simulador para calculos'!K181+'Simulador para calculos'!L181+'Simulador para calculos'!M181)*NOT($J$12),"") ->  | U181: =IFERROR((1+'Simulación Cliente'!$E$21)^(T181/360),"") ->  | AB181: 160 | AS181: 160 | AT181: 2036-01-01 | AU181: 31 | AV181: 4870 | AW181: 32414.19659 | AX181: 1286.002407 | AY181: 502.5019694 | AZ181: 66.99157116 | BA181: 28 | BB181: 0 | BC181: 1883.495948 | BD181: 31128.19418 | BE181: 0.06481185102 | BF181: 0.06481185102 | BJ181: 160 | BK181: 2036-01-01 | BL181: 31 | BM181: 4870 | BN181: 31621.25942 | BO181: 1030.817911 | BP181: 490.2094392 | BQ181: 65.35277974 | BR181: 28 | BS181: 0 | BT181: 1614.38013 | BU181: 30590.44151 | BV181: 0.06481185102 | BW181: 0.06481185102 | CA181: 160 | CB181: 2036-01-01 | CC181: 31 | CD181: 4870 | CE181: 78178.18536 | CF181: 426.2367151 | CG181: 1211.959457 | CH181: 161.5736319 | CI181: 28 | CJ181: 0 | CK181: 1827.769804 | CL181: 77751.94864 | CM181: 0.06481185102 | CN181: 0.06481185102 | CR181: 160 | CS181: 2036-01-01 | CT181: 31 | CU181: 4870 | CV181: 77408.68277 | CW181: 178.6027251 | CX181: 1200.030222 | CY181: 159.9832736 | CZ181: 28 | DA181: 0 | DB181: 1566.616221 | DC181: 77230.08005 | DD181: 0.06481185102 | DE181: 0.06481185102
B182: 161 | S182: =IFERROR((I182+J182+K182+L182+M182)*$J$12+('Simulador para calculos'!I182+'Simulador para calculos'!J182+'Simulador para calculos'!K182+'Simulador para calculos'!L182+'Simulador para calculos'!M182)*NOT($J$12),"") ->  | U182: =IFERROR((1+'Simulación Cliente'!$E$21)^(T182/360),"") ->  | AB182: 161 | AS182: 161 | AT182: 2036-02-01 | AU182: 31 | AV182: 4901 | AW182: 31128.19418 | AX182: 1308.596522 | AY182: 482.5656819 | AZ182: 64.33374432 | BA182: 28 | BB182: 0 | BC182: 1883.495948 | BD182: 29819.59766 | BE182: 0.06369275106 | BF182: 0.06369275106 | BJ182: 161 | BK182: 2036-02-01 | BL182: 31 | BM182: 4901 | BN182: 30590.44151 | BO182: 1048.928622 | BP182: 474.2291563 | BQ182: 63.22235176 | BR182: 28 | BS182: 0 | BT182: 1614.38013 | BU182: 29541.51288 | BV182: 0.06369275106 | BW182: 0.06369275106 | CA182: 161 | CB182: 2036-02-01 | CC182: 31 | CD182: 4901 | CE182: 77751.94864 | CF182: 433.72538 | CG182: 1205.351711 | CH182: 160.6927133 | CI182: 28 | CJ182: 0 | CK182: 1827.769804 | CL182: 77318.22326 | CM182: 0.06369275106 | CN182: 0.06369275106 | CR182: 161 | CS182: 2036-02-01 | CT182: 31 | CU182: 4901 | CV182: 77230.08005 | CW182: 181.7406433 | CX182: 1197.261429 | CY182: 159.614149 | CZ182: 28 | DA182: 0 | DB182: 1566.616221 | DC182: 77048.3394 | DD182: 0.06369275106 | DE182: 0.06369275106
B183: 162 | S183: =IFERROR((I183+J183+K183+L183+M183)*$J$12+('Simulador para calculos'!I183+'Simulador para calculos'!J183+'Simulador para calculos'!K183+'Simulador para calculos'!L183+'Simulador para calculos'!M183)*NOT($J$12),"") ->  | U183: =IFERROR((1+'Simulación Cliente'!$E$21)^(T183/360),"") ->  | AB183: 162 | AS183: 162 | AT183: 2036-03-01 | AU183: 29 | AV183: 4930 | AW183: 29819.59766 | AX183: 1365.60706 | AY183: 432.2395863 | AZ183: 57.64930176 | BA183: 28 | BB183: 0 | BC183: 1883.495948 | BD183: 28453.9906 | BE183: 0.06266335122 | BF183: 0.06266335122 | BJ183: 162 | BK183: 2036-03-01 | BL183: 29 | BM183: 4930 | BN183: 29541.51288 | BO183: 1101.059735 | BP183: 428.2087053 | BQ183: 57.1116891 | BR183: 28 | BS183: 0 | BT183: 1614.38013 | BU183: 28440.45315 | BV183: 0.06266335122 | BW183: 0.06266335122 | CA183: 162 | CB183: 2036-03-01 | CC183: 29 | CD183: 4930 | CE183: 77318.22326 | CF183: 529.5535242 | CG183: 1120.739361 | CH183: 149.476919 | CI183: 28 | CJ183: 0 | CK183: 1827.769804 | CL183: 76788.66974 | CM183: 0.06266335122 | CN183: 0.06266335122 | CR183: 162 | CS183: 2036-03-01 | CT183: 29 | CU183: 4930 | CV183: 77048.3394 | CW183: 272.8337064 | CX183: 1116.827354 | CY183: 148.9551609 | CZ183: 28 | DA183: 0 | DB183: 1566.616221 | DC183: 76775.5057 | DD183: 0.06266335122 | DE183: 0.06266335122
B184: 163 | S184: =IFERROR((I184+J184+K184+L184+M184)*$J$12+('Simulador para calculos'!I184+'Simulador para calculos'!J184+'Simulador para calculos'!K184+'Simulador para calculos'!L184+'Simulador para calculos'!M184)*NOT($J$12),"") ->  | U184: =IFERROR((1+'Simulación Cliente'!$E$21)^(T184/360),"") ->  | AB184: 163 | AS184: 163 | AT184: 2036-04-01 | AU184: 31 | AV184: 4961 | AW184: 28453.9906 | AX184: 1355.580307 | AY184: 441.1087678 | AZ184: 58.80687281 | BA184: 28 | BB184: 0 | BC184: 1883.495948 | BD184: 27098.41029 | BE184: 0.0615813492 | BF184: 0.0615813492 | BJ184: 163 | BK184: 2036-04-01 | BL184: 31 | BM184: 4961 | BN184: 28440.45315 | BO184: 1086.702332 | BP184: 440.898903 | BQ184: 58.77889448 | BR184: 28 | BS184: 0 | BT184: 1614.38013 | BU184: 27353.75082 | BV184: 0.0615813492 | BW184: 0.0615813492 | CA184: 163 | CB184: 2036-04-01 | CC184: 31 | CD184: 4961 | CE184: 76788.66974 | CF184: 450.6494803 | CG184: 1190.418453 | CH184: 158.7018706 | CI184: 28 | CJ184: 0 | CK184: 1827.769804 | CL184: 76338.02026 | CM184: 0.0615813492 | CN184: 0.0615813492 | CR184: 163 | CS184: 2036-04-01 | CT184: 31 | CU184: 4961 | CV184: 76775.5057 | CW184: 189.7271796 | CX184: 1190.214378 | CY184: 158.674664 | CZ184: 28 | DA184: 0 | DB184: 1566.616221 | DC184: 76585.77852 | DD184: 0.0615813492 | DE184: 0.0615813492
B185: 164 | S185: =IFERROR((I185+J185+K185+L185+M185)*$J$12+('Simulador para calculos'!I185+'Simulador para calculos'!J185+'Simulador para calculos'!K185+'Simulador para calculos'!L185+'Simulador para calculos'!M185)*NOT($J$12),"") ->  | U185: =IFERROR((1+'Simulación Cliente'!$E$21)^(T185/360),"") ->  | AB185: 164 | AS185: 164 | AT185: 2036-05-01 | AU185: 30 | AV185: 4991 | AW185: 27098.41029 | AX185: 1394.857809 | AY185: 406.4413184 | AZ185: 54.19682059 | BA185: 28 | BB185: 0 | BC185: 1883.495948 | BD185: 25703.55249 | BE185: 0.06055204232 | BF185: 0.06055204232 | BJ185: 164 | BK185: 2036-05-01 | BL185: 30 | BM185: 4991 | BN185: 27353.75082 | BO185: 1121.40153 | BP185: 410.2710979 | BQ185: 54.70750163 | BR185: 28 | BS185: 0 | BT185: 1614.38013 | BU185: 26232.34929 | BV185: 0.06055204232 | BW185: 0.06055204232 | CA185: 164 | CB185: 2036-05-01 | CC185: 30 | CD185: 4991 | CE185: 76338.02026 | CF185: 502.1215955 | CG185: 1144.972168 | CH185: 152.6760405 | CI185: 28 | CJ185: 0 | CK185: 1827.769804 | CL185: 75835.89866 | CM185: 0.06055204232 | CN185: 0.06055204232 | CR185: 164 | CS185: 2036-05-01 | CT185: 30 | CU185: 4991 | CV185: 76585.77852 | CW185: 236.7564403 | CX185: 1148.688224 | CY185: 153.171557 | CZ185: 28 | DA185: 0 | DB185: 1566.616221 | DC185: 76349.02208 | DD185: 0.06055204232 | DE185: 0.06055204232
B186: 165 | S186: =IFERROR((I186+J186+K186+L186+M186)*$J$12+('Simulador para calculos'!I186+'Simulador para calculos'!J186+'Simulador para calculos'!K186+'Simulador para calculos'!L186+'Simulador para calculos'!M186)*NOT($J$12),"") ->  | U186: =IFERROR((1+'Simulación Cliente'!$E$21)^(T186/360),"") ->  | AB186: 165 | AS186: 165 | AT186: 2036-06-01 | AU186: 31 | AV186: 5022 | AW186: 25703.55249 | AX186: 1403.903478 | AY186: 398.4700256 | AZ186: 53.12244469 | BA186: 28 | BB186: 0 | BC186: 1883.495948 | BD186: 24299.64901 | BE186: 0.05950649606 | BF186: 0.05950649606 | BJ186: 165 | BK186: 2036-06-01 | BL186: 31 | BM186: 5022 | BN186: 26232.34929 | BO186: 1125.497089 | BP186: 406.6677125 | BQ186: 54.21532781 | BR186: 28 | BS186: 0 | BT186: 1614.38013 | BU186: 25106.8522 | BV186: 0.05950649606 | BW186: 0.05950649606 | CA186: 165 | CB186: 2036-06-01 | CC186: 31 | CD186: 5022 | CE186: 75835.89866 | CF186: 467.3889658 | CG186: 1175.648094 | CH186: 156.7327448 | CI186: 28 | CJ186: 0 | CK186: 1827.769804 | CL186: 75368.5097 | CM186: 0.05950649606 | CN186: 0.05950649606 | CR186: 165 | CS186: 2036-06-01 | CT186: 31 | CU186: 5022 | CV186: 76349.02208 | CW186: 197.2201824 | CX186: 1183.602804 | CY186: 157.7932352 | CZ186: 28 | DA186: 0 | DB186: 1566.616221 | DC186: 76151.8019 | DD186: 0.05950649606 | DE186: 0.05950649606
B187: 166 | S187: =IFERROR((I187+J187+K187+L187+M187)*$J$12+('Simulador para calculos'!I187+'Simulador para calculos'!J187+'Simulador para calculos'!K187+'Simulador para calculos'!L187+'Simulador para calculos'!M187)*NOT($J$12),"") ->  | U187: =IFERROR((1+'Simulación Cliente'!$E$21)^(T187/360),"") ->  | AB187: 166 | AS187: 166 | AT187: 2036-07-01 | AU187: 30 | AV187: 5052 | AW187: 24299.64901 | AX187: 1442.433153 | AY187: 364.463497 | AZ187: 48.59929802 | BA187: 28 | BB187: 0 | BC187: 1883.495948 | BD187: 22857.21585 | BE187: 0.0585118695 | BF187: 0.0585118695 | BJ187: 166 | BK187: 2036-07-01 | BL187: 30 | BM187: 5052 | BN187: 25106.8522 | BO187: 2773.976048 | BP187: 376.5705071 | BQ187: 50.21370439 | BR187: 28 | BS187: 0 | BT187: 3228.760259 | BU187: 22332.87615 | BV187: 0.117023739 | BW187: 0.0585118695 | CA187: 166 | CB187: 2036-07-01 | CC187: 30 | CD187: 5052 | CE187: 75368.5097 | CF187: 518.6020287 | CG187: 1130.430756 | CH187: 150.7370194 | CI187: 28 | CJ187: 0 | CK187: 1827.769804 | CL187: 74849.90767 | CM187: 0.0585118695 | CN187: 0.0585118695 | CR187: 166 | CS187: 2036-07-01 | CT187: 30 | CU187: 5052 | CV187: 76151.8019 | CW187: 1810.749706 | CX187: 1142.179132 | CY187: 152.3036038 | CZ187: 28 | DA187: 0 | DB187: 3133.232442 | DC187: 74341.05219 | DD187: 0.117023739 | DE187: 0.0585118695
B188: 167 | S188: =IFERROR((I188+J188+K188+L188+M188)*$J$12+('Simulador para calculos'!I188+'Simulador para calculos'!J188+'Simulador para calculos'!K188+'Simulador para calculos'!L188+'Simulador para calculos'!M188)*NOT($J$12),"") ->  | U188: =IFERROR((1+'Simulación Cliente'!$E$21)^(T188/360),"") ->  | AB188: 167 | AS188: 167 | AT188: 2036-08-01 | AU188: 31 | AV188: 5083 | AW188: 22857.21585 | AX188: 1453.911514 | AY188: 354.3446141 | AZ188: 47.23981969 | BA188: 28 | BB188: 0 | BC188: 1883.495948 | BD188: 21403.30434 | BE188: 0.05750155071 | BF188: 0.05750155071 | BJ188: 167 | BK188: 2036-08-01 | BL188: 31 | BM188: 5083 | BN188: 22332.87615 | BO188: 1194.007958 | BP188: 346.2160235 | BQ188: 46.1561482 | BR188: 28 | BS188: 0 | BT188: 1614.38013 | BU188: 21138.86819 | BV188: 0.05750155071 | BW188: 0.05750155071 | CA188: 167 | CB188: 2036-08-01 | CC188: 31 | CD188: 5083 | CE188: 74849.90767 | CF188: 484.7121008 | CG188: 1160.362741 | CH188: 154.6949622 | CI188: 28 | CJ188: 0 | CK188: 1827.769804 | CL188: 74365.19557 | CM188: 0.05750155071 | CN188: 0.05750155071 | CR188: 167 | CS188: 2036-08-01 | CT188: 31 | CU188: 5083 | CV188: 74341.05219 | CW188: 232.4987332 | CX188: 1152.474195 | CY188: 153.6432925 | CZ188: 28 | DA188: 0 | DB188: 1566.616221 | DC188: 74108.55346 | DD188: 0.05750155071 | DE188: 0.05750155071
B189: 168 | S189: =IFERROR((I189+J189+K189+L189+M189)*$J$12+('Simulador para calculos'!I189+'Simulador para calculos'!J189+'Simulador para calculos'!K189+'Simulador para calculos'!L189+'Simulador para calculos'!M189)*NOT($J$12),"") ->  | U189: =IFERROR((1+'Simulación Cliente'!$E$21)^(T189/360),"") ->  | AB189: 168 | AS189: 168 | AT189: 2036-09-01 | AU189: 31 | AV189: 5114 | AW189: 21403.30434 | AX189: 1479.455668 | AY189: 331.8053111 | AZ189: 44.23496914 | BA189: 28 | BB189: 0 | BC189: 1883.495948 | BD189: 19923.84867 | BE189: 0.056508677 | BF189: 0.056508677 | BJ189: 168 | BK189: 2036-09-01 | BL189: 31 | BM189: 5114 | BN189: 21138.86819 | BO189: 1214.985798 | BP189: 327.7058825 | BQ189: 43.68844956 | BR189: 28 | BS189: 0 | BT189: 1614.38013 | BU189: 19923.88239 | BV189: 0.056508677 | BW189: 0.056508677 | CA189: 168 | CB189: 2036-09-01 | CC189: 31 | CD189: 5114 | CE189: 74365.19557 | CF189: 493.2281351 | CG189: 1152.848479 | CH189: 153.6931905 | CI189: 28 | CJ189: 0 | CK189: 1827.769804 | CL189: 73871.96743 | CM189: 0.056508677 | CN189: 0.056508677 | CR189: 168 | CS189: 2036-09-01 | CT189: 31 | CU189: 5114 | CV189: 74108.55346 | CW189: 236.5835646 | CX189: 1148.869877 | CY189: 153.1627791 | CZ189: 28 | DA189: 0 | DB189: 1566.616221 | DC189: 73871.96989 | DD189: 0.056508677 | DE189: 0.056508677
B190: 169 | S190: =IFERROR((I190+J190+K190+L190+M190)*$J$12+('Simulador para calculos'!I190+'Simulador para calculos'!J190+'Simulador para calculos'!K190+'Simulador para calculos'!L190+'Simulador para calculos'!M190)*NOT($J$12),"") ->  | U190: =IFERROR((1+'Simulación Cliente'!$E$21)^(T190/360),"") ->  | AB190: 169 | AS190: 169 | AT190: 2036-10-01 | AU190: 30 | AV190: 5144 | AW190: 19923.84867 | AX190: 1516.816133 | AY190: 298.8321172 | AZ190: 39.84769735 | BA190: 28 | BB190: 0 | BC190: 1883.495948 | BD190: 18407.03254 | BE190: 0.05556415775 | BF190: 0.05556415775 | BJ190: 169 | BK190: 2036-10-01 | BL190: 30 | BM190: 5144 | BN190: 19923.88239 | BO190: 1247.699742 | BP190: 298.832623 | BQ190: 39.84776479 | BR190: 28 | BS190: 0 | BT190: 1614.38013 | BU190: 18676.18265 | BV190: 0.05556415775 | BW190: 0.05556415775 | CA190: 169 | CB190: 2036-10-01 | CC190: 30 | CD190: 5144 | CE190: 73871.96743 | CF190: 544.0413233 | CG190: 1107.984546 | CH190: 147.7439349 | CI190: 28 | CJ190: 0 | CK190: 1827.769804 | CL190: 73327.92611 | CM190: 0.05556415775 | CN190: 0.05556415775 | CR190: 169 | CS190: 2036-10-01 | CT190: 30 | CU190: 5144 | CV190: 73871.96989 | CW190: 282.8876982 | CX190: 1107.984583 | CY190: 147.7439398 | CZ190: 28 | DA190: 0 | DB190: 1566.616221 | DC190: 73589.08219 | DD190: 0.05556415775 | DE190: 0.05556415775
B191: 170 | S191: =IFERROR((I191+J191+K191+L191+M191)*$J$12+('Simulador para calculos'!I191+'Simulador para calculos'!J191+'Simulador para calculos'!K191+'Simulador para calculos'!L191+'Simulador para calculos'!M191)*NOT($J$12),"") ->  | U191: =IFERROR((1+'Simulación Cliente'!$E$21)^(T191/360),"") ->  | AB191: 170 | AS191: 170 | AT191: 2036-11-01 | AU191: 31 | AV191: 5175 | AW191: 18407.03254 | AX191: 1532.097954 | AY191: 285.3555255 | AZ191: 38.04246781 | BA191: 28 | BB191: 0 | BC191: 1883.495948 | BD191: 16874.93459 | BE191: 0.05460473681 | BF191: 0.05460473681 | BJ191: 170 | BK191: 2036-11-01 | BL191: 31 | BM191: 5175 | BN191: 18676.18265 | BO191: 1258.253367 | BP191: 289.5280325 | BQ191: 38.5987299 | BR191: 28 | BS191: 0 | BT191: 1614.38013 | BU191: 17417.92928 | BV191: 0.05460473681 | BW191: 0.05460473681 | CA191: 170 | CB191: 2036-11-01 | CC191: 31 | CD191: 5175 | CE191: 73327.92611 | CF191: 511.4521949 | CG191: 1136.768181 | CH191: 151.5494289 | CI191: 28 | CJ191: 0 | CK191: 1827.769804 | CL191: 72816.47392 | CM191: 0.05460473681 | CN191: 0.05460473681 | CR191: 170 | CS191: 2036-11-01 | CT191: 31 | CU191: 5175 | CV191: 73589.08219 | CW191: 245.7102917 | CX191: 1140.81676 | CY191: 152.0891694 | CZ191: 28 | DA191: 0 | DB191: 1566.616221 | DC191: 73343.3719 | DD191: 0.05460473681 | DE191: 0.05460473681
B192: 171 | S192: =IFERROR((I192+J192+K192+L192+M192)*$J$12+('Simulador para calculos'!I192+'Simulador para calculos'!J192+'Simulador para calculos'!K192+'Simulador para calculos'!L192+'Simulador para calculos'!M192)*NOT($J$12),"") ->  | U192: =IFERROR((1+'Simulación Cliente'!$E$21)^(T192/360),"") ->  | AB192: 171 | AS192: 171 | AT192: 2036-12-01 | AU192: 30 | AV192: 5205 | AW192: 16874.93459 | AX192: 1568.643753 | AY192: 253.1023254 | AZ192: 33.74986917 | BA192: 28 | BB192: 0 | BC192: 1883.495948 | BD192: 15306.29083 | BE192: 0.05369204114 | BF192: 0.05369204114 | BJ192: 171 | BK192: 2036-12-01 | BL192: 30 | BM192: 5205 | BN192: 17417.92928 | BO192: 2904.677853 | BP192: 261.2465478 | BQ192: 34.83585857 | BR192: 28 | BS192: 0 | BT192: 3228.760259 | BU192: 14513.25143 | BV192: 0.1073840823 | BW192: 0.05369204114 | CA192: 171 | CB192: 2036-12-01 | CC192: 30 | CD192: 5205 | CE192: 72816.47392 | CF192: 561.9833562 | CG192: 1092.1535 | CH192: 145.6329478 | CI192: 28 | CJ192: 0 | CK192: 1827.769804 | CL192: 72254.49056 | CM192: 0.05369204114 | CN192: 0.05369204114 | CR192: 171 | CS192: 2036-12-01 | CT192: 30 | CU192: 5205 | CV192: 73343.3719 | CW192: 1858.489406 | CX192: 1100.056293 | CY192: 146.6867438 | CZ192: 28 | DA192: 0 | DB192: 3133.232442 | DC192: 71484.8825 | DD192: 0.1073840823 | DE192: 0.05369204114
B193: 172 | S193: =IFERROR((I193+J193+K193+L193+M193)*$J$12+('Simulador para calculos'!I193+'Simulador para calculos'!J193+'Simulador para calculos'!K193+'Simulador para calculos'!L193+'Simulador para calculos'!M193)*NOT($J$12),"") ->  | U193: =IFERROR((1+'Simulación Cliente'!$E$21)^(T193/360),"") ->  | AB193: 172 | AS193: 172 | AT193: 2037-01-01 | AU193: 31 | AV193: 5236 | AW193: 15306.29083 | AX193: 1586.575701 | AY193: 237.2861924 | AZ193: 31.63405481 | BA193: 28 | BB193: 0 | BC193: 1883.495948 | BD193: 13719.71513 | BE193: 0.05276494586 | BF193: 0.05276494586 | BJ193: 172 | BK193: 2037-01-01 | BL193: 31 | BM193: 5236 | BN193: 14513.25143 | BO193: 1331.393 | BP193: 224.9920774 | BQ193: 29.99505212 | BR193: 28 | BS193: 0 | BT193: 1614.38013 | BU193: 13181.85843 | BV193: 0.05276494586 | BW193: 0.05276494586 | CA193: 172 | CB193: 2037-01-01 | CC193: 31 | CD193: 5236 | CE193: 72254.49056 | CF193: 530.3116662 | CG193: 1120.127217 | CH193: 149.3309215 | CI193: 28 | CJ193: 0 | CK193: 1827.769804 | CL193: 71724.17889 | CM193: 0.05276494586 | CN193: 0.05276494586 | CR193: 172 | CS193: 2037-01-01 | CT193: 31 | CU193: 5236 | CV193: 71484.8825 | CW193: 282.6795294 | CX193: 1108.196347 | CY193: 147.7403452 | CZ193: 28 | DA193: 0 | DB193: 1566.616221 | DC193: 71202.20297 | DD193: 0.05276494586 | DE193: 0.05276494586
B194: 173 | S194: =IFERROR((I194+J194+K194+L194+M194)*$J$12+('Simulador para calculos'!I194+'Simulador para calculos'!J194+'Simulador para calculos'!K194+'Simulador para calculos'!L194+'Simulador para calculos'!M194)*NOT($J$12),"") ->  | U194: =IFERROR((1+'Simulación Cliente'!$E$21)^(T194/360),"") ->  | AB194: 173 | AS194: 173 | AT194: 2037-02-01 | AU194: 31 | AV194: 5267 | AW194: 13719.71513 | AX194: 1614.450666 | AY194: 212.6902592 | AZ194: 28.35502247 | BA194: 28 | BB194: 0 | BC194: 1883.495948 | BD194: 12105.26447 | BE194: 0.05185385864 | BF194: 0.05185385864 | BJ194: 173 | BK194: 2037-02-01 | BL194: 31 | BM194: 5267 | BN194: 13181.85843 | BO194: 1354.784594 | BP194: 204.352121 | BQ194: 27.24341492 | BR194: 28 | BS194: 0 | BT194: 1614.38013 | BU194: 11827.07384 | BV194: 0.05185385864 | BW194: 0.05185385864 | CA194: 173 | CB194: 2037-02-01 | CC194: 31 | CD194: 5267 | CE194: 71724.17889 | CF194: 539.6288513 | CG194: 1111.906046 | CH194: 148.2349075 | CI194: 28 | CJ194: 0 | CK194: 1827.769804 | CL194: 71184.55004 | CM194: 0.05185385864 | CN194: 0.05185385864 | CR194: 173 | CS194: 2037-02-01 | CT194: 31 | CU194: 5267 | CV194: 71202.20297 | CW194: 287.6460003 | CX194: 1103.814099 | CY194: 147.1561213 | CZ194: 28 | DA194: 0 | DB194: 1566.616221 | DC194: 70914.55697 | DD194: 0.05185385864 | DE194: 0.05185385864
B195: 174 | S195: =IFERROR((I195+J195+K195+L195+M195)*$J$12+('Simulador para calculos'!I195+'Simulador para calculos'!J195+'Simulador para calculos'!K195+'Simulador para calculos'!L195+'Simulador para calculos'!M195)*NOT($J$12),"") ->  | U195: =IFERROR((1+'Simulación Cliente'!$E$21)^(T195/360),"") ->  | AB195: 174 | AS195: 174 | AT195: 2037-03-01 | AU195: 28 | AV195: 5295 | AW195: 12105.26447 | AX195: 1663.526055 | AY195: 169.3749042 | AZ195: 22.59498831 | BA195: 28 | BB195: 0 | BC195: 1883.495948 | BD195: 10441.73841 | BE195: 0.05104447042 | BF195: 0.05104447042 | BJ195: 174 | BK195: 2037-03-01 | BL195: 28 | BM195: 5295 | BN195: 11827.07384 | BO195: 1398.82189 | BP195: 165.4825059 | BQ195: 22.07573373 | BR195: 28 | BS195: 0 | BT195: 1614.38013 | BU195: 10428.25195 | BV195: 0.05104447042 | BW195: 0.05104447042 | CA195: 174 | CB195: 2037-03-01 | CC195: 28 | CD195: 5295 | CE195: 71184.55004 | CF195: 670.8981091 | CG195: 996.0027208 | CH195: 132.8689745 | CI195: 28 | CJ195: 0 | CK195: 1827.769804 | CL195: 70513.65193 | CM195: 0.05104447042 | CN195: 0.05104447042 | CR195: 174 | CS195: 2037-03-01 | CT195: 28 | CU195: 5295 | CV195: 70914.55697 | CW195: 414.0261788 | CX195: 992.2250213 | CY195: 132.365021 | CZ195: 28 | DA195: 0 | DB195: 1566.616221 | DC195: 70500.53079 | DD195: 0.05104447042 | DE195: 0.05104447042
B196: 175 | S196: =IFERROR((I196+J196+K196+L196+M196)*$J$12+('Simulador para calculos'!I196+'Simulador para calculos'!J196+'Simulador para calculos'!K196+'Simulador para calculos'!L196+'Simulador para calculos'!M196)*NOT($J$12),"") ->  | U196: =IFERROR((1+'Simulación Cliente'!$E$21)^(T196/360),"") ->  | AB196: 175 | AS196: 175 | AT196: 2037-04-01 | AU196: 31 | AV196: 5326 | AW196: 10441.73841 | AX196: 1672.042301 | AY196: 161.8733354 | AZ196: 21.58031157 | BA196: 28 | BB196: 0 | BC196: 1883.495948 | BD196: 8769.696109 | BE196: 0.05016309048 | BF196: 0.05016309048 | BJ196: 175 | BK196: 2037-04-01 | BL196: 31 | BM196: 5326 | BN196: 10428.25195 | BO196: 1403.16343 | BP196: 161.6642611 | BQ196: 21.55243862 | BR196: 28 | BS196: 0 | BT196: 1614.38013 | BU196: 9025.088517 | BV196: 0.05016309048 | BW196: 0.05016309048 | CA196: 175 | CB196: 2037-04-01 | CC196: 31 | CD196: 5326 | CE196: 70513.65193 | CF196: 560.8969177 | CG196: 1093.139818 | CH196: 145.7330685 | CI196: 28 | CJ196: 0 | CK196: 1827.769804 | CL196: 69952.75502 | CM196: 0.05016309048 | CN196: 0.05016309048 | CR196: 175 | CS196: 2037-04-01 | CT196: 31 | CU196: 5326 | CV196: 70500.53079 | CW196: 299.9738633 | CX196: 1092.936407 | CY196: 145.7059505 | CZ196: 28 | DA196: 0 | DB196: 1566.616221 | DC196: 70200.55692 | DD196: 0.05016309048 | DE196: 0.05016309048
B197: 176 | S197: =IFERROR((I197+J197+K197+L197+M197)*$J$12+('Simulador para calculos'!I197+'Simulador para calculos'!J197+'Simulador para calculos'!K197+'Simulador para calculos'!L197+'Simulador para calculos'!M197)*NOT($J$12),"") ->  | U197: =IFERROR((1+'Simulación Cliente'!$E$21)^(T197/360),"") ->  | AB197: 176 | AS197: 176 | AT197: 2037-05-01 | AU197: 30 | AV197: 5356 | AW197: 8769.696109 | AX197: 1706.422388 | AY197: 131.5341679 | AZ197: 17.53939222 | BA197: 28 | BB197: 0 | BC197: 1883.495948 | BD197: 7063.273721 | BE197: 0.0493246351 | BF197: 0.0493246351 | BJ197: 176 | BK197: 2037-05-01 | BL197: 30 | BM197: 5356 | BN197: 9025.088517 | BO197: 1432.965227 | BP197: 135.3647257 | BQ197: 18.05017703 | BR197: 28 | BS197: 0 | BT197: 1614.38013 | BU197: 7592.12329 | BV197: 0.0493246351 | BW197: 0.0493246351 | CA197: 176 | CB197: 2037-05-01 | CC197: 30 | CD197: 5356 | CE197: 69952.75502 | CF197: 610.6628961 | CG197: 1049.201398 | CH197: 139.90551 | CI197: 28 | CJ197: 0 | CK197: 1827.769804 | CL197: 69342.09212 | CM197: 0.0493246351 | CN197: 0.0493246351 | CR197: 176 | CS197: 2037-05-01 | CT197: 30 | CU197: 5356 | CV197: 70200.55692 | CW197: 345.2969989 | CX197: 1052.918108 | CY197: 140.4011138 | CZ197: 28 | DA197: 0 | DB197: 1566.616221 | DC197: 69855.25993 | DD197: 0.0493246351 | DE197: 0.0493246351
B198: 177 | S198: =IFERROR((I198+J198+K198+L198+M198)*$J$12+('Simulador para calculos'!I198+'Simulador para calculos'!J198+'Simulador para calculos'!K198+'Simulador para calculos'!L198+'Simulador para calculos'!M198)*NOT($J$12),"") ->  | U198: =IFERROR((1+'Simulación Cliente'!$E$21)^(T198/360),"") ->  | AB198: 177 | AS198: 177 | AT198: 2037-06-01 | AU198: 31 | AV198: 5387 | AW198: 7063.273721 | AX198: 1731.399435 | AY198: 109.4985941 | AZ198: 14.59791863 | BA198: 28 | BB198: 0 | BC198: 1883.495948 | BD198: 5331.874286 | BE198: 0.04847295139 | BF198: 0.04847295139 | BJ198: 177 | BK198: 2037-06-01 | BL198: 31 | BM198: 5387 | BN198: 7592.12329 | BO198: 1452.99212 | BP198: 117.697099 | BQ198: 15.69091081 | BR198: 28 | BS198: 0 | BT198: 1614.38013 | BU198: 6139.13117 | BV198: 0.04847295139 | BW198: 0.04847295139 | CA198: 177 | CB198: 2037-06-01 | CC198: 31 | CD198: 5387 | CE198: 69342.09212 | CF198: 581.48036 | CG198: 1074.97768 | CH198: 143.3117642 | CI198: 28 | CJ198: 0 | CK198: 1827.769804 | CL198: 68760.61176 | CM198: 0.04847295139 | CN198: 0.04847295139 | CR198: 177 | CS198: 2037-06-01 | CT198: 31 | CU198: 5387 | CV198: 69855.25993 | CW198: 311.3107967 | CX198: 1082.933078 | CY198: 144.3723463 | CZ198: 28 | DA198: 0 | DB198: 1566.616221 | DC198: 69543.94913 | DD198: 0.04847295139 | DE198: 0.04847295139
B199: 178 | S199: =IFERROR((I199+J199+K199+L199+M199)*$J$12+('Simulador para calculos'!I199+'Simulador para calculos'!J199+'Simulador para calculos'!K199+'Simulador para calculos'!L199+'Simulador para calculos'!M199)*NOT($J$12),"") ->  | U199: =IFERROR((1+'Simulación Cliente'!$E$21)^(T199/360),"") ->  | AB199: 178 | AS199: 178 | AT199: 2037-07-01 | AU199: 30 | AV199: 5417 | AW199: 5331.874286 | AX199: 1764.860939 | AY199: 79.97125996 | AZ199: 10.66374857 | BA199: 28 | BB199: 0 | BC199: 1883.495948 | BD199: 3567.013347 | BE199: 0.04766274598 | BF199: 0.04766274598 | BJ199: 178 | BK199: 2037-07-01 | BL199: 30 | BM199: 5417 | BN199: 6139.13117 | BO199: 3096.402922 | BP199: 92.07907546 | BQ199: 12.27826234 | BR199: 28 | BS199: 0 | BT199: 3228.760259 | BU199: 3042.728249 | BV199: 0.09532549197 | BW199: 0.04766274598 | CA199: 178 | CB199: 2037-07-01 | CC199: 30 | CD199: 5417 | CE199: 68760.61176 | CF199: 630.9277989 | CG199: 1031.320782 | CH199: 137.5212235 | CI199: 28 | CJ199: 0 | CK199: 1827.769804 | CL199: 68129.68396 | CM199: 0.04766274598 | CN199: 0.04766274598 | CR199: 178 | CS199: 2037-07-01 | CT199: 30 | CU199: 5417 | CV199: 69543.94913 | CW199: 1923.074709 | CX199: 1043.069835 | CY199: 139.0878983 | CZ199: 28 | DA199: 0 | DB199: 3133.232442 | DC199: 67620.87442 | DD199: 0.09532549197 | DE199: 0.04766274598
B200: 179 | S200: =IFERROR((I200+J200+K200+L200+M200)*$J$12+('Simulador para calculos'!I200+'Simulador para calculos'!J200+'Simulador para calculos'!K200+'Simulador para calculos'!L200+'Simulador para calculos'!M200)*NOT($J$12),"") ->  | U200: =IFERROR((1+'Simulación Cliente'!$E$21)^(T200/360),"") ->  | AB200: 179 | AS200: 179 | AT200: 2037-08-01 | AU200: 31 | AV200: 5448 | AW200: 3567.013347 | AX200: 1792.826153 | AY200: 55.297722 | AZ200: 7.372073153 | BA200: 28 | BB200: 0 | BC200: 1883.495948 | BD200: 1774.187194 | BE200: 0.04683975796 | BF200: 0.04683975796 | BJ200: 179 | BK200: 2037-08-01 | BL200: 31 | BM200: 5448 | BN200: 3042.728249 | BO200: 1532.921637 | BP200: 47.16997792 | BQ200: 6.288514522 | BR200: 28 | BS200: 0 | BT200: 1614.38013 | BU200: 1509.806611 | BV200: 0.04683975796 | BW200: 0.04683975796 | CA200: 179 | CB200: 2037-08-01 | CC200: 31 | CD200: 5448 | CE200: 68129.68396 | CF200: 602.7814777 | CG200: 1056.18229 | CH200: 140.8060372 | CI200: 28 | CJ200: 0 | CK200: 1827.769804 | CL200: 67526.90248 | CM200: 0.04683975796 | CN200: 0.04683975796 | CR200: 179 | CS200: 2037-08-01 | CT200: 31 | CU200: 5448 | CV200: 67620.87442 | CW200: 350.567303 | CX200: 1048.294456 | CY200: 139.7544625 | CZ200: 28 | DA200: 0 | DB200: 1566.616221 | DC200: 67270.30712 | DD200: 0.04683975796 | DE200: 0.04683975796
B201: 180 | S201: =IFERROR((I201+J201+K201+L201+M201)*$J$12+('Simulador para calculos'!I201+'Simulador para calculos'!J201+'Simulador para calculos'!K201+'Simulador para calculos'!L201+'Simulador para calculos'!M201)*NOT($J$12),"") ->  | U201: =IFERROR((1+'Simulación Cliente'!$E$21)^(T201/360),"") ->  | AB201: 180 | AS201: 180 | AT201: 2037-09-01 | AU201: 31 | AV201: 5479 | AW201: 1774.187194 | AX201: 1774.187194 | AY201: 27.50438552 | AZ201: 3.666775678 | BA201: 28 | BB201: 0 | BC201: 1833.358356 | BD201: 0 | BE201: 0.04603098039 | BF201: 0.04603098039 | BJ201: 180 | BK201: 2037-09-01 | BL201: 31 | BM201: 5479 | BN201: 1509.806611 | BO201: 1509.806611 | BP201: 23.4058183 | BQ201: 3.120370939 | BR201: 28 | BS201: 0 | BT201: 1564.332801 | BU201: 0 | BV201: 0.04603098039 | BW201: 0.04603098039 | CA201: 180 | CB201: 2037-09-01 | CC201: 31 | CD201: 5479 | CE201: 67526.90248 | CF201: 613.3719039 | CG201: 1046.837653 | CH201: 139.5602473 | CI201: 28 | CJ201: 0 | CK201: 1827.769804 | CL201: 66913.53058 | CM201: 0.04603098039 | CN201: 0.04603098039 | CR201: 180 | CS201: 2037-09-01 | CT201: 31 | CU201: 5479 | CV201: 67270.30712 | CW201: 356.7265121 | CX201: 1042.859776 | CY201: 139.0299326 | CZ201: 28 | DA201: 0 | DB201: 1566.616221 | DC201: 66913.58061 | DD201: 0.04603098039 | DE201: 0.04603098039
B202: 181 | S202: =IFERROR((I202+J202+K202+L202+M202)*$J$12+('Simulador para calculos'!I202+'Simulador para calculos'!J202+'Simulador para calculos'!K202+'Simulador para calculos'!L202+'Simulador para calculos'!M202)*NOT($J$12),"") ->  | U202: =IFERROR((1+'Simulación Cliente'!$E$21)^(T202/360),"") ->  | AB202: 181 | AS202: 181 | BJ202: 181 | CA202: 181 | CB202: 2037-10-01 | CC202: 30 | CD202: 5509 | CE202: 66913.53058 | CF202: 662.3258045 | CG202: 1003.616939 | CH202: 133.8270612 | CI202: 28 | CJ202: 0 | CK202: 1827.769804 | CL202: 66251.20477 | CM202: 0.04526159152 | CN202: 0.04526159152 | CR202: 181 | CS202: 2037-10-01 | CT202: 30 | CU202: 5509 | CV202: 66913.58061 | CW202: 401.1713708 | CX202: 1003.617689 | CY202: 133.8271612 | CZ202: 28 | DA202: 0 | DB202: 1566.616221 | DC202: 66512.40923 | DD202: 0.04526159152 | DE202: 0.04526159152
... 179 more rows

Sheet Simulador para calculos (hidden)
B1: simulacion con Cuota simple | X1: simulacion con CD | AO1: simulacion a 180 | BF1: simulacion a 180 con CD | BW1: simulacion a 240 | CN1: simulacion a 240 con CD
B3: MAF | C3: ='Simulación Cliente'!E9+I8 -> 100000 | X3: MAF | Y3: =+'Simulación Cliente'!$E$10 -> 102639.9204 | AO3: MAF | AP3: =+'Simulación Cliente'!$E$10 -> 102639.9204 | BF3: MAF | BG3: =+'Simulación Cliente'!$E$10 -> 102639.9204 | BW3: MAF | BX3: =+'Simulación Cliente'!$E$10 -> 102639.9204 | CN3: MAF | CO3: =+'Simulación Cliente'!$E$10 -> 102639.9204
B4: Monto del Bien | C4: =+'Simulación Cliente'!$E$19 -> 0 | D4: =C4*J12 -> 0 | X4: Monto del Bien | Y4: =+'Simulación Cliente'!$E$7 -> 100000 | AO4: Monto del Bien | AP4: =+'Simulación Cliente'!$E$7 -> 100000 | BF4: Monto del Bien | BG4: =+'Simulación Cliente'!$E$7 -> 100000 | BW4: Monto del Bien | BX4: =+'Simulación Cliente'!$E$7 -> 100000 | CN4: Monto del Bien | CO4: =+'Simulación Cliente'!$E$7 -> 100000
B5: Moneda | C5: Soles | E5: Suma de Prima Mensual | F5: =SUM(K22:K381) -> 2707.973431 | H5: Ultima fecha pago | I5: =MAX(C22:C381) -> 2025-10-24 | X5: Moneda | Y5: Soles | AO5: Moneda | AP5: Soles | BF5: Moneda | BG5: Soles | BW5: Moneda | BX5: Soles | CN5: Moneda | CO5: Soles
B6: Plazo | C6: =+'Simulación Cliente'!$E$17 -> 24 | E6: VPN - Valor Presente | F6: =NPV(F7,K22:K381) -> 2639.920448 | H6: Cuotas de seguro | I6: =RESTAMESES(C7,I5) -> 24 | X6: Plazo | Y6: =+'Simulación Cliente'!$E$17 -> 24 | AO6: Plazo | AP6: 180 | BF6: Plazo | BG6: 180 | BW6: Plazo | BX6: 240 | CN6: Plazo | CO6: 240
B7: Fecha de Desembolso | C7: ='Simulación Cliente'!E12 -> 2023-10-24 | E7: Tasa de Actualización | F7: 0.002871 | H7: Seguro mensual | I7: =C14*C4 -> 0 | X7: Fecha de Desembolso | Y7: 2022-09-01 | AO7: Fecha de Desembolso | AP7: 2022-09-01 | BF7: Fecha de Desembolso | BG7: 2022-09-01 | BW7: Fecha de Desembolso | BX7: 2022-09-01 | CN7: Fecha de Desembolso | CO7: 2022-09-01
B8: Fecha de 1er Pago | C8: ='Simulación Cliente'!E13 -> 2023-11-24 | H8: Total Prima Única | I8: =I7*I6*NOT(J12) -> 0 | X8: Fecha de 1er Pago | Y8: 2022-10-01 | AO8: Fecha de 1er Pago | AP8: 2022-10-01 | BF8: Fecha de 1er Pago | BG8: 2022-10-01 | BW8: Fecha de 1er Pago | BX8: 2022-10-01 | CN8: Fecha de 1er Pago | CO8: 2022-10-01
B9: Cuota Julio | C9: 1 | X9: Cuota Julio | Y9: 2 | AO9: Cuota Julio | AP9: 1 | BF9: Cuota Julio | BG9: 2 | BW9: Cuota Julio | BX9: 1 | CN9: Cuota Julio | CO9: 2
B10: Cuota Diciembre | C10: 1 | E10: Monto inicial | F10: =C3 -> 100000 | X10: Cuota Diciembre | Y10: 2 | AO10: Cuota Diciembre | AP10: 1 | BF10: Cuota Diciembre | BG10: 2 | BW10: Cuota Diciembre | BX10: 1 | CN10: Cuota Diciembre | CO10: 2
B11: TEA | C11: =+'Simulación Cliente'!$E$20 -> 0.1956 | E11: Monto adicional de Desgravamen / Vida | F11: =F6 -> 2639.920448 | H11: seg desg | I11: seg vida | J11: Seg bien mensual | K11: NO | X11: TEA | Y11: =+'Simulación Cliente'!$E$20 -> 0.1956 | AO11: TEA | AP11: =+'Simulación Cliente'!$E$20 -> 0.1956 | BF11: TEA | BG11: =+'Simulación Cliente'!$E$20 -> 0.1956 | BW11: TEA | BX11: =+'Simulación Cliente'!$E$20 -> 0.1956 | CN11: TEA | CO11: =+'Simulación Cliente'!$E$20 -> 0.1956
B12: Seguro de Desgravamen | C12: =+'Simulación Cliente'!$F$18 -> 0.002 | E12: Prima de Seguro de Desgravamen / Vida | F12: =F11/F10 -> 0.02639920448 | H12: =NOT(OR('Simulación Cliente'!$E$18='Simulación Cliente'!$Q$20,'Simulación Cliente'!$E$18='Simulación Cliente'!$Q$21)) -> TRUE | I12: =OR('Simulación Cliente'!$E$18='Simulación Cliente'!$Q$20,'Simulación Cliente'!$E$18='Simulación Cliente'!$Q$21) -> FALSE | J12: =K11="SI" -> FALSE | X12: Seguro de Desgravamen | Y12: =+'Simulación Cliente'!$F$18 -> 0.002 | AO12: Seguro de Desgravamen | AP12: =+'Simulación Cliente'!$F$18 -> 0.002 | BF12: Seguro de Desgravamen | BG12: =+'Simulación Cliente'!$F$18 -> 0.002 | BW12: Seguro de Desgravamen | BX12: =+'Simulación Cliente'!$F$18 -> 0.002 | CN12: Seguro de Desgravamen | CO12: =+'Simulación Cliente'!$F$18 -> 0.002
B13: TEA Total | C13: =(1+(((1+C11)^(30/360)-1)+C12*H12+C16))^12-1 -> 0.2241787808 | E13: MAF Inicial | F13: =F10+F11 -> 102639.9204 | X13: TCEA | Y13: =(1+(((1+Y11)^(30/360)-1)+Y12+Y16))^12-1 -> 0.2241787808 | AO13: TCEA | AP13: =(1+(((1+AP11)^(30/360)-1)+AP12+AP16))^12-1 -> 0.2241787808 | BF13: TCEA | BG13: =(1+(((1+BG11)^(30/360)-1)+BG12+BG16))^12-1 -> 0.2241787808 | BW13: TCEA | BX13: =(1+(((1+BX11)^(30/360)-1)+BX12+BX16))^12-1 -> 0.2241787808 | CN13: TCEA | CO13: =(1+(((1+CO11)^(30/360)-1)+CO12+CO16))^12-1 -> 0.2241787808
B14: Seguro del Bien | C14: =+'Simulación Cliente'!$F$19 -> 0.00028 | X14: Seguro del Bien | Y14: =+'Simulación Cliente'!$F$19 -> 0.00028 | AO14: Seguro del Bien | AP14: =+'Simulación Cliente'!$F$19 -> 0.00028 | BF14: Seguro del Bien | BG14: =+'Simulación Cliente'!$F$19 -> 0.00028 | BW14: Seguro del Bien | BX14: =+'Simulación Cliente'!$F$19 -> 0.00028 | CN14: Seguro del Bien | CO14: =+'Simulación Cliente'!$F$19 -> 0.00028
B15: Portes | X15: Portes | Y15: =+'Simulación Cliente'!$E$19 -> 0 | AO15: Portes | AP15: =+'Simulación Cliente'!$E$19 -> 0 | BF15: Portes | BG15: =+'Simulación Cliente'!$E$19 -> 0 | BW15: Portes | BX15: =+'Simulación Cliente'!$E$19 -> 0 | CN15: Portes | CO15: =+'Simulación Cliente'!$E$19 -> 0
B16: % Portes | C16: =C15/C3 -> 0 | X16: % Portes | Y16: =Y15/Y3 -> 0 | AO16: % Portes | AP16: =AP15/AP3 -> 0 | BF16: % Portes | BG16: =BG15/BG3 -> 0 | BW16: % Portes | BX16: =BX15/BX3 -> 0 | CN16: % Portes | CO16: =CO15/CO3 -> 0
B17: VALOR CUOTA | C17: =(C3+(C14*D4)*Q20)/P20 -> 5125.798398 | X17: VALOR CUOTA | Y17: =(Y3+(Y14*Y4)*AK20)/AJ20 -> 4530.503191 | AO17: VALOR CUOTA | AP17: =(AP3+(AP14*AP4)*BB20)/BA20 -> 1883.495948 | BF17: VALOR CUOTA | BG17: =(BG3+(BG14*BG4)*BS20)/BR20 -> 1614.38013 | BW17: VALOR CUOTA | BX17: =(BX3+(BX14*BX4)*CJ20)/CI20 -> 1827.769804 | CN17: VALOR CUOTA | CO17: =(CO3+(CO14*CO4)*DA20)/CZ20 -> 1566.616221
P20: =SUM(P22:P381) -> 19.50915589 | Q20: =SUM(Q22:Q381) -> 19.50915589 | AJ20: =SUM(AJ22:AJ381) -> 22.77595293 | AK20: =SUM(AK22:AK381) -> 19.52167719 | BA20: =SUM(BA22:BA381) -> 55.31670418 | BB20: =SUM(BB22:BB381) -> 55.31670418 | BR20: =SUM(BR22:BR381) -> 64.53795252 | BS20: =SUM(BS22:BS381) -> 55.31670418 | CI20: =SUM(CI22:CI381) -> 57.02947132 | CJ20: =SUM(CJ22:CJ381) -> 57.02947132 | CZ20: =SUM(CZ22:CZ381) -> 66.53623538 | DA20: =SUM(DA22:DA381) -> 57.02947132
B21: N° Cuota | C21: Fecha de pago Simul | D21: Día | E21: Fecha Pago | F21: Días | G21: Dias Acumulados | H21: Saldo Inicial | I21: Amortización | J21: Interés | K21: Seguro Desgravamen | L21: Seguro del Bien | M21: Portes | N21: VALOR CUOTA | O21: Saldo Final | P21: Factor Cronograma | Q21: Factor Cronograma 2 | X21: N° Cuota | Y21: Fecha de pago | Z21: Días | AA21: Dias Acumulados | AB21: Saldo Inicial | AC21: Amortización | AD21: Interés | AE21: Seguro Desgravamen | AF21: Seguro del Bien | AG21: Portes | AH21: VALOR CUOTA | AI21: Saldo Final | AJ21: Factor Cronograma | AK21: Factor Cronograma 2 | AO21: N° Cuota | AP21: Fecha de pago | AQ21: Días | AR21: Dias Acumulados | AS21: Saldo Inicial | AT21: Amortización | AU21: Interés | AV21: Seguro Desgravamen | AW21: Seguro del Bien | AX21: Portes | AY21: VALOR CUOTA | AZ21: Saldo Final | BA21: Factor Cronograma | BB21: Factor Cronograma 2 | BF21: N° Cuota | BG21: Fecha de pago | BH21: Días | BI21: Dias Acumulados | BJ21: Saldo Inicial | BK21: Amortización | BL21: Interés | BM21: Seguro Desgravamen | BN21: Seguro del Bien | BO21: Portes | BP21: VALOR CUOTA | BQ21: Saldo Final | BR21: Factor Cronograma | BS21: Factor Cronograma 2 | BW21: N° Cuota | BX21: Fecha de pago | BY21: Días | BZ21: Dias Acumulados | CA21: Saldo Inicial | CB21: Amortización | CC21: Interés | CD21: Seguro Desgravamen | CE21: Seguro del Bien | CF21: Portes | CG21: VALOR CUOTA | CH21: Saldo Final | CI21: Factor Cronograma | CJ21: Factor Cronograma 2 | CN21: N° Cuota | CO21: Fecha de pago | CP21: Días | CQ21: Dias Acumulados | CR21: Saldo Inicial | CS21: Amortización | CT21: Interés | CU21: Seguro Desgravamen | CV21: Seguro del Bien | CW21: Portes | CX21: VALOR CUOTA | CY21: Saldo Final | CZ21: Factor Cronograma | DA21: Factor Cronograma 2
B22: 1 | C22: =C8 -> 2023-11-24 | D22: =IF(B22<=$C$6,WEEKDAY(C22,2),"") -> 5 | E22: =IF(D22=7,C22+1,C22) -> 2023-11-24 | F22: =E22-C7 -> 31 | G22: =F22 -> 31 | H22: =C3 -> 100000 | I22: =IF(B22>C$6,"",N22-M22-L22-K22-J22) -> 3368.872111 | J22: =IF(B22>C$6,"",((1+C$11)^(F22/360)-1)*H22) -> 1550.252736 | K22: =IF(B22>C$6,"",((1+C$12)^(F22/30)-1)*H22*$H$12) -> 206.6735511 | L22: =IF(B22>C$6,"",D$4*C$14) -> 0 | M22: =IF(B22>C$6,"",C$15) -> 0 | N22: =IF(B22>C$6,"",IF(B22=C$6,H22+J22+K22+L22+M22,IF(AND(C$9=2,MONTH(C22)=7),2*C$17,IF(AND(C$10=2,MONTH(C22)=12),2*C$17,C$17)))) -> 5125.798398 | O22: =IF(B22>C$6,"",H22-I22) -> 96631.12789 | P22: =IFERROR(IF(AND(MONTH(C22)=7,C$9=2),2/(1+C$13)^(G22/360),IF(AND(MONTH(C22)=12,C$10=2),2/(1+C$13)^(G22/360),1/(1+C$13)^(G22/360))),"") -> 0.9827330967 | Q22: =IFERROR(1/(1+C$13)^(G22/360),"") -> 0.9827330967 | X22: 1 | Y22: =Y8 -> 2022-10-01 | Z22: =Y22-Y7 -> 30 | AA22: =Z22 -> 30 | AB22: =Y3 -> 102639.9204 | AC22: =IF(X22>Y$6,"",AH22-AG22-AF22-AE22-AD22) -> 2757.756491 | AD22: =IF(X22>Y$6,"",((1+Y$11)^(Z22/360)-1)*AB22) -> 1539.466859 | AE22: =IF(X22>Y$6,"",((1+Y$12)^(Z22/30)-1)*AB22) -> 205.2798409 | AF22: =IF(X22>Y$6,"",Y$4*Y$14) -> 28 | AG22: =IF(X22>Y$6,"",Y$15) -> 0 | AH22: =IF(X22>Y$6,"",IF(X22=Y$6,AB22+AD22+AE22+AF22+AG22,IF(AND(Y$9=2,MONTH(Y22)=7),2*Y$17,IF(AND(Y$10=2,MONTH(Y22)=12),2*Y$17,Y$17)))) -> 4530.503191 | AI22: =IF(X22>Y$6,"",AB22-AC22) -> 99882.16396 | AJ22: =IFERROR(IF(AND(MONTH(Y22)=7,Y$9=2),2/(1+Y$13)^(AA22/360),IF(AND(MONTH(Y22)=12,Y$10=2),2/(1+Y$13)^(AA22/360),1/(1+Y$13)^(AA22/360))),"") -> 0.983285412 | AK22: =IFERROR(1/(1+Y$13)^(AA22/360),"") -> 0.983285412 | AO22: 1 | AP22: =AP8 -> 2022-10-01 | AQ22: =AP22-AP7 -> 30 | AR22: =AQ22 -> 30 | AS22: =AP3 -> 102639.9204 | AT22: =IF(AO22>AP$6,"",AY22-AX22-AW22-AV22-AU22) -> 110.7492478 | AU22: =IF(AO22>AP$6,"",((1+AP$11)^(AQ22/360)-1)*AS22) -> 1539.466859 | AV22: =IF(AO22>AP$6,"",((1+AP$12)^(AQ22/30)-1)*AS22) -> 205.2798409 | AW22: =IF(AO22>AP$6,"",AP$4*AP$14) -> 28 | AX22: =IF(AO22>AP$6,"",AP$15) -> 0 | AY22: =IF(AO22>AP$6,"",IF(AO22=AP$6,AS22+AU22+AV22+AW22+AX22,IF(AND(AP$9=2,MONTH(AP22)=7),2*AP$17,IF(AND(AP$10=2,MONTH(AP22)=12),2*AP$17,AP$17)))) -> 1883.495948 | AZ22: =IF(AO22>AP$6,"",AS22-AT22) -> 102529.1712 | BA22: =IFERROR(IF(AND(MONTH(AP22)=7,AP$9=2),2/(1+AP$13)^(AR22/360),IF(AND(MONTH(AP22)=12,AP$10=2),2/(1+AP$13)^(AR22/360),1/(1+AP$13)^(AR22/360))),"") -> 0.983285412 | BB22: =IFERROR(1/(1+AP$13)^(AR22/360),"") -> 0.983285412 | BF22: 1 | BG22: =BG8 -> 2022-10-01 | BH22: =BG22-BG7 -> 30 | BI22: =BH22 -> 30 | BJ22: =BG3 -> 102639.9204 | BK22: =IF(BF22>BG$6,"",BP22-BO22-BN22-BM22-BL22) -> -158.3665703 | BL22: =IF(BF22>BG$6,"",((1+BG$11)^(BH22/360)-1)*BJ22) -> 1539.466859 | BM22: =IF(BF22>BG$6,"",((1+BG$12)^(BH22/30)-1)*BJ22) -> 205.2798409 | BN22: =IF(BF22>BG$6,"",BG$4*BG$14) -> 28 | BO22: =IF(BF22>BG$6,"",BG$15) -> 0 | BP22: =IF(BF22>BG$6,"",IF(BF22=BG$6,BJ22+BL22+BM22+BN22+BO22,IF(AND(BG$9=2,MONTH(BG22)=7),2*BG$17,IF(AND(BG$10=2,MONTH(BG22)=12),2*BG$17,BG$17)))) -> 1614.38013 | BQ22: =IF(BF22>BG$6,"",BJ22-BK22) -> 102798.287 | BR22: =IFERROR(IF(AND(MONTH(BG22)=7,BG$9=2),2/(1+BG$13)^(BI22/360),IF(AND(MONTH(BG22)=12,BG$10=2),2/(1+BG$13)^(BI22/360),1/(1+BG$13)^(BI22/360))),"") -> 0.983285412 | BS22: =IFERROR(1/(1+BG$13)^(BI22/360),"") -> 0.983285412 | BW22: 1 | BX22: =BX8 -> 2022-10-01 | BY22: =BX22-BX7 -> 30 | BZ22: =BY22 -> 30 | CA22: =BX3 -> 102639.9204 | CB22: =IF(BW22>BX$6,"",CG22-CF22-CE22-CD22-CC22) -> 55.02310438 | CC22: =IF(BW22>BX$6,"",((1+BX$11)^(BY22/360)-1)*CA22) -> 1539.466859 | CD22: =IF(BW22>BX$6,"",((1+BX$12)^(BY22/30)-1)*CA22) -> 205.2798409 | CE22: =IF(BW22>BX$6,"",BX$4*BX$14) -> 28 | CF22: =IF(BW22>BX$6,"",BX$15) -> 0 | CG22: =IF(BW22>BX$6,"",IF(BW22=BX$6,CA22+CC22+CD22+CE22+CF22,IF(AND(BX$9=2,MONTH(BX22)=7),2*BX$17,IF(AND(BX$10=2,MONTH(BX22)=12),2*BX$17,BX$17)))) -> 1827.769804 | CH22: =IF(BW22>BX$6,"",CA22-CB22) -> 102584.8973 | CI22: =IFERROR(IF(AND(MONTH(BX22)=7,BX$9=2),2/(1+BX$13)^(BZ22/360),IF(AND(MONTH(BX22)=12,BX$10=2),2/(1+BX$13)^(BZ22/360),1/(1+BX$13)^(BZ22/360))),"") -> 0.983285412 | CJ22: =IFERROR(1/(1+BX$13)^(BZ22/360),"") -> 0.983285412 | CN22: 1 | CO22: =CO8 -> 2022-10-01 | CP22: =CO22-CO7 -> 30 | CQ22: =CP22 -> 30 | CR22: =CO3 -> 102639.9204 | CS22: =IF(CN22>CO$6,"",CX22-CW22-CV22-CU22-CT22) -> -206.1304789 | CT22: =IF(CN22>CO$6,"",((1+CO$11)^(CP22/360)-1)*CR22) -> 1539.466859 | CU22: =IF(CN22>CO$6,"",((1+CO$12)^(CP22/30)-1)*CR22) -> 205.2798409 | CV22: =IF(CN22>CO$6,"",CO$4*CO$14) -> 28 | CW22: =IF(CN22>CO$6,"",CO$15) -> 0 | CX22: =IF(CN22>CO$6,"",IF(CN22=CO$6,CR22+CT22+CU22+CV22+CW22,IF(AND(CO$9=2,MONTH(CO22)=7),2*CO$17,IF(AND(CO$10=2,MONTH(CO22)=12),2*CO$17,CO$17)))) -> 1566.616221 | CY22: =IF(CN22>CO$6,"",CR22-CS22) -> 102846.0509 | CZ22: =IFERROR(IF(AND(MONTH(CO22)=7,CO$9=2),2/(1+CO$13)^(CQ22/360),IF(AND(MONTH(CO22)=12,CO$10=2),2/(1+CO$13)^(CQ22/360),1/(1+CO$13)^(CQ22/360))),"") -> 0.983285412 | DA22: =IFERROR(1/(1+CO$13)^(CQ22/360),"") -> 0.983285412
B23: 2 | C23: =IF(B23>C$6,"",EDATE(C$22,B22)) -> 2023-12-24 | D23: =IF(B23<=$C$6,WEEKDAY(C23,2),"") -> 7 | E23: 2023-12-25 | F23: =IF(B23>C$6,"",E23-E22) -> 31 | G23: =IFERROR(F23+G22,"") -> 62 | H23: =IF(B23>C$6,"",O22) -> 96631.12789 | I23: =IF(B23>C$6,"",N23-M23-L23-K23-J23) -> 3428.060711 | J23: =IF(B23>C$6,"",((1+C$11)^(F23/360)-1)*H23) -> 1498.026704 | K23: =IF(B23>C$6,"",((1+C$12)^(F23/30)-1)*H23*$H$12) -> 199.7109835 | L23: 0 | M23: 0 | N23: 5125.798398 | O23: 93203.06718 | P23: 0.9657643394 | Q23: 0.9657643394 | X23: 2 | Y23: =IF(X23>Y$6,"",EDATE(Y$22,X22)) -> 2022-11-01 | Z23: =IF(X23>Y$6,"",Y23-Y22) -> 31 | AA23: =IFERROR(Z23+AA22,"") -> 61 | AB23: =IF(X23>Y$6,"",AI22) -> 99882.16396 | AC23: 2747.647196 | AD23: =IF(X23>Y$6,"",((1+Y$11)^(Z23/360)-1)*AB23) -> 1548.425979 | AE23: 206.4300152 | AF23: 28 | AG23: 0 | AH23: 4530.503191 | AI23: 97134.51676 | AJ23: =IFERROR(IF(AND(MONTH(Y23)=7,Y$9=2),2/(1+Y$13)^(AA23/360),IF(AND(MONTH(Y23)=12,Y$10=2),2/(1+Y$13)^(AA23/360),1/(1+Y$13)^(AA23/360))),"") -> 0.966307118 | AK23: =IFERROR(1/(1+Y$13)^(AA23/360),"") -> 0.966307118 | AO23: 2 | AP23: =IF(AO23>AP$6,"",EDATE(AP$22,AO22)) -> 2022-11-01 | AQ23: =IF(AO23>AP$6,"",AP23-AP22) -> 31 | AR23: =IFERROR(AQ23+AR22,"") -> 61 | AS23: =IF(AO23>AP$6,"",AZ22) -> 102529.1712 | AT23: 54.13398723 | AU23: =IF(AO23>AP$6,"",((1+AP$11)^(AQ23/360)-1)*AS23) -> 1589.461282 | AV23: 211.9006791 | AW23: 28 | AX23: 0 | AY23: 1883.495948 | AZ23: 102475.0372 | BA23: =IFERROR(IF(AND(MONTH(AP23)=7,AP$9=2),2/(1+AP$13)^(AR23/360),IF(AND(MONTH(AP23)=12,AP$10=2),2/(1+AP$13)^(AR23/360),1/(1+AP$13)^(AR23/360))),"") -> 0.966307118 | BB23: =IFERROR(1/(1+AP$13)^(AR23/360),"") -> 0.966307118 | BF23: 2 | BG23: =IF(BF23>BG$6,"",EDATE(BG$22,BF22)) -> 2022-11-01 | BH23: =IF(BF23>BG$6,"",BG23-BG22) -> 31 | BI23: =IFERROR(BH23+BI22,"") -> 61 | BJ23: =IF(BF23>BG$6,"",BQ22) -> 102798.287 | BK23: -219.7099975 | BL23: =IF(BF23>BG$6,"",((1+BG$11)^(BH23/360)-1)*BJ23) -> 1593.633257 | BM23: 212.4568703 | BN23: 28 | BO23: 0 | BP23: 1614.38013 | BQ23: 103017.997 | BR23: =IFERROR(IF(AND(MONTH(BG23)=7,BG$9=2),2/(1+BG$13)^(BI23/360),IF(AND(MONTH(BG23)=12,BG$10=2),2/(1+BG$13)^(BI23/360),1/(1+BG$13)^(BI23/360))),"") -> 0.966307118 | BS23: =IFERROR(1/(1+BG$13)^(BI23/360),"") -> 0.966307118 | BW23: 2 | BX23: =IF(BW23>BX$6,"",EDATE(BX$22,BW22)) -> 2022-11-01 | BY23: =IF(BW23>BX$6,"",BX23-BX22) -> 31 | BZ23: =IFERROR(BY23+BZ22,"") -> 61 | CA23: =IF(BW23>BX$6,"",CH22) -> 102584.8973 | CB23: -2.571223469 | CC23: =IF(BW23>BX$6,"",((1+BX$11)^(BY23/360)-1)*CA23) -> 1590.325178 | CD23: 212.0158503 | CE23: 28 | CF23: 0 | CG23: 1827.769804 | CH23: 102587.4686 | CI23: =IFERROR(IF(AND(MONTH(BX23)=7,BX$9=2),2/(1+BX$13)^(BZ23/360),IF(AND(MONTH(BX23)=12,BX$10=2),2/(1+BX$13)^(BZ23/360),1/(1+BX$13)^(BZ23/360))),"") -> 0.966307118 | CJ23: =IFERROR(1/(1+BX$13)^(BZ23/360),"") -> 0.966307118 | CN23: 2 | CO23: =IF(CN23>CO$6,"",EDATE(CO$22,CN22)) -> 2022-11-01 | CP23: =IF(CN23>CO$6,"",CO23-CO22) -> 31 | CQ23: =IFERROR(CP23+CQ22,"") -> 61 | CR23: =IF(CN23>CO$6,"",CY22) -> 102846.0509 | CS23: -268.3130827 | CT23: =IF(CN23>CO$6,"",((1+CO$11)^(CP23/360)-1)*CR23) -> 1594.373718 | CU23: 212.5555856 | CV23: 28 | CW23: 0 | CX23: 1566.616221 | CY23: 103114.364 | CZ23: =IFERROR(IF(AND(MONTH(CO23)=7,CO$9=2),2/(1+CO$13)^(CQ23/360),IF(AND(MONTH(CO23)=12,CO$10=2),2/(1+CO$13)^(CQ23/360),1/(1+CO$13)^(CQ23/360))),"") -> 0.966307118 | DA23: =IFERROR(1/(1+CO$13)^(CQ23/360),"") -> 0.966307118
B24: 3 | C24: =IF(B24>C$6,"",EDATE(C$22,B23)) -> 2024-01-24 | D24: 3 | E24: 2024-01-24 | F24: =IF(B24>C$6,"",E24-E23) -> 30 | G24: =IFERROR(F24+G23,"") -> 92 | H24: =IF(B24>C$6,"",O23) -> 93203.06718 | I24: 3541.466072 | J24: =IF(B24>C$6,"",((1+C$11)^(F24/360)-1)*H24) -> 1397.926192 | K24: =IF(B24>C$6,"",((1+C$12)^(F24/30)-1)*H24*$H$12) -> 186.4061344 | L24: 0 | M24: 0 | N24: 5125.798398 | O24: 89661.60111 | P24: 0.9496219864 | Q24: 0.9496219864 | X24: 3 | Y24: 2022-12-01 | Z24: =IF(X24>Y$6,"",Y24-Y23) -> 30 | AA24: 91 | AB24: 97134.51676 | AC24: =IF(X24>Y$6,"",AH24-AG24-AF24-AE24-AD24) -> 7381.844466 | AD24: =IF(X24>Y$6,"",((1+Y$11)^(Z24/360)-1)*AB24) -> 1456.892881 | AE24: 194.2690335 | AF24: 28 | AG24: 0 | AH24: 9061.006381 | AI24: 89752.67229 | AJ24: 1.900311385 | AK24: 0.9501556927 | AO24: 3 | AP24: 2022-12-01 | AQ24: =IF(AO24>AP$6,"",AP24-AP23) -> 30 | AR24: 91 | AS24: 102475.0372 | AT24: =IF(AO24>AP$6,"",AY24-AX24-AW24-AV24-AU24) -> 113.5520508 | AU24: =IF(AO24>AP$6,"",((1+AP$11)^(AQ24/360)-1)*AS24) -> 1536.993823 | AV24: 204.9500744 | AW24: 28 | AX24: 0 | AY24: 1883.495948 | AZ24: 102361.4852 | BA24: 0.9501556927 | BB24: 0.9501556927 | BF24: 3 | BG24: 2022-12-01 | BH24: =IF(BF24>BG$6,"",BG24-BG23) -> 30 | BI24: 91 | BJ24: 103017.997 | BK24: =IF(BF24>BG$6,"",BP24-BO24-BN24-BM24-BL24) -> 1449.586744 | BL24: =IF(BF24>BG$6,"",((1+BG$11)^(BH24/360)-1)*BJ24) -> 1545.137522 | BM24: 206.035994 | BN24: 28 | BO24: 0 | BP24: 3228.760259 | BQ24: 101568.4103 | BR24: 1.900311385 | BS24: 0.9501556927 | BW24: 3 | BX24: 2022-12-01 | BY24: =IF(BW24>BX$6,"",BX24-BX23) -> 30 | BZ24: 91 | CA24: 102587.4686 | CB24: =IF(BW24>BX$6,"",CG24-CF24-CE24-CD24-CC24) -> 55.91471893 | CC24: =IF(BW24>BX$6,"",((1+BX$11)^(BY24/360)-1)*CA24) -> 1538.680148 | CD24: 205.1749371 | CE24: 28 | CF24: 0 | CG24: 1827.769804 | CH24: 102531.5538 | CI24: 0.9501556927 | CJ24: 0.9501556927 | CN24: 3 | CO24: 2022-12-01 | CP24: =IF(CN24>CO$6,"",CO24-CO23) -> 30 | CQ24: 91 | CR24: 103114.364 | CS24: =IF(CN24>CO$6,"",CX24-CW24-CV24-CU24-CT24) -> 1352.420812 | CT24: =IF(CN24>CO$6,"",((1+CO$11)^(CP24/360)-1)*CR24) -> 1546.582903 | CU24: 206.228728 | CV24: 28 | CW24: 0 | CX24: 3133.232442 | CY24: 101761.9432 | CZ24: 1.900311385 | DA24: 0.9501556927
